Workbook

Sheet District
D2: 2026-2027 | E2: 2025-2026 | F2: 2022-23 | G2: 2021-22 | H2: 2021-22 | I2: 2020-21 | J2: 2020-21 | K2: 2019-20 | L2: 2019-20 | M2: 2018-19 | N2: 2017-18 | O2: 2016-17 | P2: 2015-16 | Q2: 2014-15
D3: Final | E3: Final | F3: Preliminary | G3: Final | H3: Preliminary | I3: Final | J3: Preliminary | K3: Final | L3: Preliminary | M3: Final | N3: 2nd Revised | O3: Revised
C4: Select District Name | D4: ANACORTES
C5: District Code (CCDDD) | D5: =VLOOKUP(D4,CCDDD!D:F,3,FALSE) -> 29103
C7: Eisenhower 2001-02 Allocations | D7: =VLOOKUP($D$5,'Allocation 2026-27 Final'!$A$7:$S$322,4,FALSE) -> 0 | E7: =VLOOKUP($D$5,'Allocation 2025-26 Final'!$A$7:$S$322,4,FALSE) -> 0 | F7: =VLOOKUP($D$5,'[1]Allocation 2022-23 P'!$A$7:$M$321,3,FALSE) -> 0 | G7: =VLOOKUP($D$5,'[2]Allocation 2021-22 Final'!$A$7:$U$321,3,FALSE) -> 0 | H7: =VLOOKUP($D$5,'[1]Allocation 2021-22 Preliminary'!$A$7:$M$321,3,FALSE) -> 0 | I7: =IFERROR(VLOOKUP($D$5,'[1]Allocation 2020-21 Final'!$A$7:$M$317,3,FALSE),0) -> 0 | J7: =IFERROR(VLOOKUP($D$5,'[1]Allocation 2020-21 Preliminary'!$A$7:$M$318,3,FALSE),0) -> 0 | K7: =IFERROR(VLOOKUP($D$5,'[1]Allocation 2019-20 Final'!$A$7:$M$314,3,FALSE),0) -> 0 | L7: =IFERROR(VLOOKUP($D$5,'[1]Allocation 2019-20 Preliminary'!$A$7:$M$316,3,FALSE),0) -> 0 | M7: =IFERROR(VLOOKUP($D$5,'[1]Allocation 2018-19 Final'!$A$7:$M$316,3,FALSE),0) -> 0 | N7: =VLOOKUP($D$5,'[1]Allocation 2017-18 2ndRev_Final'!$A$7:$M$315,3,FALSE) -> 0 | O7: =VLOOKUP($D$5,'[1]Allocation 2016-17 rev_Final'!$A$7:$M$314,3,FALSE) -> 15222 | P7: =VLOOKUP($D$5,'[1]Allocation 2015-16 Final'!$A$7:$M$313,3,FALSE) -> 15222 | Q7: =VLOOKUP($D$5,'[1]Allocation 2014-15 Final'!$A$7:$M$304,3,FALSE) -> 15222
C8: Class Size Reduction allocations 2001-02 | D8: =VLOOKUP($D$5,'Allocation 2026-27 Final'!$A$7:$S$322,5,FALSE) -> 0 | E8: =VLOOKUP($D$5,'Allocation 2025-26 Final'!$A$7:$S$322,5,FALSE) -> 0 | F8: =VLOOKUP($D$5,'[1]Allocation 2022-23 P'!$A$7:$M$321,4,FALSE) -> 0 | G8: =VLOOKUP($D$5,'[2]Allocation 2021-22 Final'!$A$7:$U$321,4,FALSE) -> 0 | H8: =VLOOKUP($D$5,'[1]Allocation 2021-22 Preliminary'!$A$7:$M$321,4,FALSE) -> 0 | I8: =IFERROR(VLOOKUP($D$5,'[1]Allocation 2020-21 Final'!$A$7:$M$317,4,FALSE),0) -> 0 | J8: =IFERROR(VLOOKUP($D$5,'[1]Allocation 2020-21 Preliminary'!$A$7:$M$318,4,FALSE),0) -> 0 | K8: =IFERROR(VLOOKUP($D$5,'[1]Allocation 2019-20 Final'!$A$7:$M$314,4,FALSE),0) -> 0 | L8: =IFERROR(VLOOKUP($D$5,'[1]Allocation 2019-20 Preliminary'!$A$7:$M$316,4,FALSE),0) -> 0 | M8: =IFERROR(VLOOKUP($D$5,'[1]Allocation 2018-19 Final'!$A$7:$M$316,4,FALSE),0) -> 0 | N8: =VLOOKUP($D$5,'[1]Allocation 2017-18 2ndRev_Final'!$A$7:$M$315,4,FALSE) -> 0 | O8: =VLOOKUP($D$5,'[1]Allocation 2016-17 rev_Final'!$A$7:$M$314,4,FALSE) -> 72724 | P8: =VLOOKUP($D$5,'[1]Allocation 2015-16 Final'!$A$7:$M$313,4,FALSE) -> 72724 | Q8: =VLOOKUP($D$5,'[1]Allocation 2014-15 Final'!$A$7:$M$304,4,FALSE) -> 72724
C10: Census Population Ages 5-17 | D10: =VLOOKUP($D$5,'Allocation 2026-27 Final'!$A$7:$S$322,6,FALSE) -> 2785 | E10: =VLOOKUP($D$5,'Allocation 2025-26 Final'!$A$7:$S$322,6,FALSE) -> 2787 | F10: =VLOOKUP($D$5,'[1]Allocation 2022-23 P'!$A$7:$M$321,5,FALSE) -> 2805 | G10: =VLOOKUP($D$5,'[2]Allocation 2021-22 Final'!$A$7:$U$321,5,FALSE) -> 2778 | H10: =VLOOKUP($D$5,'[1]Allocation 2021-22 Preliminary'!$A$7:$M$321,5,FALSE) -> 2778 | I10: =IFERROR(VLOOKUP($D$5,'[1]Allocation 2020-21 Final'!$A$7:$M$317,5,FALSE),0) -> 2766 | J10: =IFERROR(VLOOKUP($D$5,'[1]Allocation 2020-21 Preliminary'!$A$7:$M$318,5,FALSE),0) -> 2766 | K10: =IFERROR(VLOOKUP($D$5,'[1]Allocation 2019-20 Final'!$A$7:$M$314,5,FALSE),0) -> 2736 | L10: =IFERROR(VLOOKUP($D$5,'[1]Allocation 2019-20 Preliminary'!$A$7:$M$316,5,FALSE),0) -> 2736 | M10: =IFERROR(VLOOKUP($D$5,'[1]Allocation 2018-19 Final'!$A$7:$M$315,5,FALSE),0) -> 2699 | N10: =VLOOKUP($D$5,'[1]Allocation 2017-18 2ndRev_Final'!$A$7:$M$315,5,FALSE) -> 2701 | O10: =VLOOKUP($D$5,'[1]Allocation 2016-17 rev_Final'!$A$7:$M$314,5,FALSE) -> 2701 | P10: =VLOOKUP($D$5,'[1]Allocation 2015-16 Final'!$A$7:$M$313,5,FALSE) -> 2674 | Q10: =VLOOKUP($D$5,'[1]Allocation 2014-15 Final'!$A$7:$M$304,5,FALSE) -> 2710
C11: 20% based on Total Pop | D11: =VLOOKUP($D$5,'Allocation 2026-27 Final'!$A$7:$S$322,7,FALSE) -> 15248 | E11: =VLOOKUP($D$5,'Allocation 2025-26 Final'!$A$7:$S$322,7,FALSE) -> 15130 | F11: =VLOOKUP($D$5,'[1]Allocation 2022-23 P'!$A$7:$M$321,6,FALSE) -> 14895 | G11: =VLOOKUP($D$5,'[2]Allocation 2021-22 Final'!$A$7:$U$321,6,FALSE) -> 15127 | H11: =VLOOKUP($D$5,'[1]Allocation 2021-22 Preliminary'!$A$7:$M$321,6,FALSE) -> 15117 | I11: =IFERROR(VLOOKUP($D$5,'[1]Allocation 2020-21 Final'!$A$7:$M$317,6,FALSE),0) -> 14864 | J11: =IFERROR(VLOOKUP($D$5,'[1]Allocation 2020-21 Preliminary'!$A$7:$M$318,6,FALSE),0) -> 14846 | K11: =IFERROR(VLOOKUP($D$5,'[1]Allocation 2019-20 Final'!$A$7:$M$314,6,FALSE),0) -> 14943 | L11: =IFERROR(VLOOKUP($D$5,'[1]Allocation 2019-20 Preliminary'!$A$7:$M$316,6,FALSE),0) -> 14906 | M11: =IFERROR(VLOOKUP($D$5,'[1]Allocation 2018-19 Final'!$A$7:$M$315,6,FALSE),0) -> 14558 | N11: =VLOOKUP($D$5,'[1]Allocation 2017-18 Rev_Final'!$A$7:$M$315,6,FALSE) -> 14713 | O11: =VLOOKUP($D$5,'[1]Allocation 2016-17 rev_Final'!$A$7:$M$314,6,FALSE) -> 1156 | P11: =VLOOKUP($D$5,'[1]Allocation 2015-16 Final'!$A$7:$M$313,6,FALSE) -> 1545 | Q11: =VLOOKUP($D$5,'[1]Allocation 2014-15 Final'!$A$7:$M$304,6,FALSE) -> 1569
C12: Census Poverty Ages 5-17 | D12: =VLOOKUP($D$5,'Allocation 2026-27 Final'!$A$7:$S$322,8,FALSE) -> 195 | E12: =VLOOKUP($D$5,'Allocation 2025-26 Final'!$A$7:$S$322,8,FALSE) -> 225 | F12: =VLOOKUP($D$5,'[1]Allocation 2022-23 P'!$A$7:$M$321,7,FALSE) -> 217 | G12: =VLOOKUP($D$5,'[2]Allocation 2021-22 Final'!$A$7:$U$321,7,FALSE) -> 307 | H12: =VLOOKUP($D$5,'[1]Allocation 2021-22 Preliminary'!$A$7:$M$321,7,FALSE) -> 307 | I12: =IFERROR(VLOOKUP($D$5,'[1]Allocation 2020-21 Final'!$A$7:$M$317,7,FALSE),0) -> 224 | J12: =IFERROR(VLOOKUP($D$5,'[1]Allocation 2020-21 Preliminary'!$A$7:$M$318,7,FALSE),0) -> 224 | K12: =IFERROR(VLOOKUP($D$5,'[1]Allocation 2019-20 Final'!$A$7:$M$314,7,FALSE),0) -> 267 | L12: =IFERROR(VLOOKUP($D$5,'[1]Allocation 2019-20 Preliminary'!$A$7:$M$316,7,FALSE),0) -> 267 | M12: =IFERROR(VLOOKUP($D$5,'[1]Allocation 2018-19 Final'!$A$7:$M$316,7,FALSE),0) -> 231 | N12: =VLOOKUP($D$5,'[1]Allocation 2017-18 2ndRev_Final'!$A$7:$M$315,7,FALSE) -> 336 | O12: =VLOOKUP($D$5,'[1]Allocation 2016-17 rev_Final'!$A$7:$M$314,7,FALSE) -> 356 | P12: =VLOOKUP($D$5,'[1]Allocation 2015-16 Final'!$A$7:$M$313,7,FALSE) -> 359 | Q12: =VLOOKUP($D$5,'[1]Allocation 2014-15 Final'!$A$7:$M$304,7,FALSE) -> 385
C13: 80% based on Low Inc Pop | D13: =VLOOKUP($D$5,'Allocation 2026-27 Final'!$A$7:$S$322,9,FALSE) -> 40239 | E13: =VLOOKUP($D$5,'Allocation 2025-26 Final'!$A$7:$S$322,9,FALSE) -> 44865 | F13: =VLOOKUP($D$5,'[1]Allocation 2022-23 P'!$A$7:$M$321,8,FALSE) -> 48474 | G13: =VLOOKUP($D$5,'[2]Allocation 2021-22 Final'!$A$7:$U$321,8,FALSE) -> 60984 | H13: =VLOOKUP($D$5,'[1]Allocation 2021-22 Preliminary'!$A$7:$M$321,8,FALSE) -> 60903 | I13: =IFERROR(VLOOKUP($D$5,'[1]Allocation 2020-21 Final'!$A$7:$M$317,8,FALSE),0) -> 41858 | J13: =IFERROR(VLOOKUP($D$5,'[1]Allocation 2020-21 Preliminary'!$A$7:$M$318,8,FALSE),0) -> 41809 | K13: =IFERROR(VLOOKUP($D$5,'[1]Allocation 2019-20 Final'!$A$7:$M$314,8,FALSE),0) -> 44472 | L13: =IFERROR(VLOOKUP($D$5,'[1]Allocation 2019-20 Preliminary'!$A$7:$M$316,8,FALSE),0) -> 44362 | M13: =IFERROR(VLOOKUP($D$5,'[1]Allocation 2018-19 Final'!$A$7:$M$316,8,FALSE),0) -> 39758 | N13: =VLOOKUP($D$5,'[1]Allocation 2017-18 2ndRev_Final'!$A$7:$M$315,8,FALSE) -> 51722 | O13: =VLOOKUP($D$5,'[1]Allocation 2016-17 rev_Final'!$A$7:$M$314,8,FALSE) -> 3858 | P13: =VLOOKUP($D$5,'[1]Allocation 2015-16 Final'!$A$7:$M$313,8,FALSE) -> 4903 | Q13: =VLOOKUP($D$5,'[1]Allocation 2014-15 Final'!$A$7:$M$304,8,FALSE) -> 5274
C15: Total Allocation | D15: =VLOOKUP($D$5,'Allocation 2026-27 Final'!$A$7:$S$322,11,FALSE) -> 55487 | E15: =VLOOKUP($D$5,'Allocation 2025-26 Final'!$A$7:$S$322,11,FALSE) -> 59995 | F15: =VLOOKUP($D$5,'[1]Allocation 2022-23 P'!$A$7:$R$321,18,FALSE) -> 63369 | G15: =VLOOKUP($D$5,'[2]Allocation 2021-22 Final'!$A$7:$U$321,10,FALSE) -> 76111 | H15: =VLOOKUP($D$5,'[1]Allocation 2021-22 Preliminary'!$A$7:$R$321,18,FALSE) -> 76020 | I15: =IFERROR(VLOOKUP($D$5,'[1]Allocation 2020-21 Final'!$A$7:$R$317,18,FALSE),0) -> 56722 | J15: =IFERROR(VLOOKUP($D$5,'[1]Allocation 2020-21 Preliminary'!$A$7:$R$318,18,FALSE),0) -> 56655 | K15: =IFERROR(VLOOKUP($D$5,'[1]Allocation 2019-20 Final'!$A$7:$R$314,18,FALSE),0) -> 59415 | L15: =IFERROR(VLOOKUP($D$5,'[1]Allocation 2019-20 Preliminary'!$A$7:$R$316,18,FALSE),0) -> 59268 | M15: =IFERROR(VLOOKUP($D$5,'[1]Allocation 2018-19 Final'!$A$7:$R$316,18,FALSE),0) -> 54316 | N15: =VLOOKUP($D$5,'[1]Allocation 2017-18 2ndRev_Final'!$A$7:$R$315,18,FALSE) -> 66521 | O15: =VLOOKUP($D$5,'[1]Allocation 2016-17 rev_Final'!$A$7:$R$314,18,FALSE)-IF(D4="Seattle",11,0) -> 92950 | P15: =VLOOKUP($D$5,'[1]Allocation 2015-16 Final'!$A$7:$R$313,18,FALSE)-IF(D4="Seattle",6,0) -> 94371 | Q15: =VLOOKUP($D$5,'[1]Allocation 2014-15 Final'!$A$7:$R$304,18,FALSE) -> 94766
C16: Poverty Percentage | D16: =IF(D10=0,0,D12/D10) -> 0.07001795332 | E16: =IF(E10=0,0,E12/E10) -> 0.08073196986 | F16: 0.07736185383 | G16: 0.1105111591 | H16: 0.1105111591 | I16: 0.08098336949 | J16: 0.08098336949 | K16: 0.0975877193 | L16: 0.0975877193 | M16: 0.08558725454 | N16: 0.124398371 | O16: 0.1318030359 | P16: 0.1342557966 | Q16: 0.1420664207
C18: MOE Reduction Percentage | D18: =VLOOKUP($D$5,'Allocation 2026-27 Final'!$A$7:$S$322,17,FALSE) -> 0 | E18: =VLOOKUP($D$5,'Allocation 2025-26 Final'!$A$7:$S$322,17,FALSE) -> 0 | F18: 0 | G18: =VLOOKUP($D$5,'[2]Allocation 2021-22 Final'!$A$7:$U$321,19,FALSE) -> 0 | H18: =IF(VLOOKUP($D$5,'[1]Allocation 2021-22 Preliminary'!$A$7:$T$321,19,FALSE)=0,0,VLOOKUP($D$5,'[1]Allocation 2021-22 Preliminary'!$A$7:$T$321,19,FALSE)-0.9) -> 0 | I18: =IFERROR(IF(VLOOKUP($D$5,'[1]Allocation 2020-21 Final'!$A$7:$T$317,19,FALSE)=0,0,VLOOKUP($D$5,'[1]Allocation 2020-21 Final'!$A$7:$T$317,19,FALSE)-0.9),0) -> 0 | J18: =IFERROR(IF(VLOOKUP($D$5,'[1]Allocation 2020-21 Preliminary'!$A$7:$T$318,19,FALSE)=0,0,VLOOKUP($D$5,'[1]Allocation 2020-21 Preliminary'!$A$7:$T$318,19,FALSE)-0.9),0) -> 0 | K18: =IFERROR(IF(VLOOKUP($D$5,'[1]Allocation 2019-20 Final'!$A$7:$T$314,19,FALSE)=0,0,VLOOKUP($J$5,'[1]Allocation 2019-20 Final'!$A$7:$T$314,19,FALSE)-0.9),0) -> 0 | L18: =IFERROR(IF(VLOOKUP($D$5,'[1]Allocation 2019-20 Preliminary'!$A$7:$T$316,19,FALSE)=0,0,VLOOKUP($D$5,'[1]Allocation 2019-20 Preliminary'!$A$7:$T$316,19,FALSE)-0.9),0) -> 0 | M18: =IFERROR(IF(VLOOKUP($D$5,'[1]Allocation 2018-19 Final'!$A$7:$T$316,19,FALSE)=0,0,VLOOKUP($D$5,'[1]Allocation 2018-19 Final'!$A$7:$T$316,19,FALSE)-0.9),0) -> 0 | N18: =IF(VLOOKUP($D$5,'[1]Allocation 2017-18 2ndRev_Final'!$A$7:$T$315,19,FALSE)=0,0,VLOOKUP($D$5,'[1]Allocation 2017-18 2ndRev_Final'!$A$7:$T$315,19,FALSE)-0.9) -> 0 | O18: =IF(VLOOKUP($D$5,'[1]Allocation 2016-17 rev_Final'!$A$7:$T$314,19,FALSE)=0,0,VLOOKUP($D$5,'[1]Allocation 2016-17 rev_Final'!$A$7:$T$314,19,FALSE)-0.9) -> 0 | P18: =IF(VLOOKUP($D$5,'[1]Allocation 2015-16 Final'!$A$7:$T$313,19,FALSE)=0,0,VLOOKUP($D$5,'[1]Allocation 2015-16 Final'!$A$7:$T$313,19,FALSE)-0.9) -> 0 | Q18: =IF(VLOOKUP($D$5,'[1]Allocation 2014-15 Final'!$A$7:$T$304,19,FALSE)=0,0,VLOOKUP($D$5,'[1]Allocation 2014-15 Final'!$A$7:$T$304,19,FALSE)-0.9) -> 0
C19: MOE Reduction Amount | D19: =VLOOKUP($D$5,'Allocation 2026-27 Final'!$A$7:$S$322,18,FALSE) -> 0 | E19: =VLOOKUP($D$5,'Allocation 2025-26 Final'!$A$7:$S$322,18,FALSE) -> 0 | F19: =VLOOKUP($D$5,'[1]Allocation 2022-23 P'!$A$7:$T$321,20,FALSE) -> 0 | G19: =VLOOKUP($D$5,'[2]Allocation 2021-22 Final'!$A$7:$U$321,20,FALSE) -> 0 | H19: =VLOOKUP($D$5,'[1]Allocation 2021-22 Preliminary'!$A$7:$T$321,20,FALSE) -> 0 | I19: =IFERROR(VLOOKUP($D$5,'[1]Allocation 2020-21 Final'!$A$7:$T$317,20,FALSE),0) -> 0 | J19: =IFERROR(VLOOKUP($D$5,'[1]Allocation 2020-21 Preliminary'!$A$7:$T$318,20,FALSE),0) -> 0 | K19: =IFERROR(VLOOKUP($D$5,'[1]Allocation 2019-20 Final'!$A$7:$T$314,20,FALSE),0) -> 0 | L19: =IFERROR(VLOOKUP($D$5,'[1]Allocation 2019-20 Preliminary'!$A$7:$T$316,20,FALSE),0) -> 0 | M19: =IFERROR(VLOOKUP($D$5,'[1]Allocation 2018-19 Preliminary'!$A$7:$T$316,20,FALSE),0) -> 0 | N19: =VLOOKUP($D$5,'[1]Allocation 2017-18 2ndRev_Final'!$A$7:$T$315,20,FALSE) -> 0 | O19: =VLOOKUP($D$5,'[1]Allocation 2016-17 rev_Final'!$A$7:$T$314,20,FALSE) -> 0 | P19: =VLOOKUP($D$5,'[1]Allocation 2015-16 Final'!$A$7:$T$313,20,FALSE) -> 0 | Q19: =VLOOKUP($D$5,'[1]Allocation 2014-15 Final'!$A$7:$T$304,20,FALSE) -> 0
C20: Prior Year Adjustment (reallocation) | D20: =VLOOKUP($D$5,'Allocation 2026-27 Final'!$A$7:$S$322,15,FALSE) -> 0 | E20: =VLOOKUP($D$5,'Allocation 2025-26 Final'!$A$7:$S$322,15,FALSE) -> 0 | G20: =VLOOKUP($D$5,'[2]Allocation 2021-22 Final'!$A$7:$U$321,17,FALSE) -> 0
C21: Final Allocation | D21: =+D15+D19+D20 -> 55487 | E21: =+E15+E19+E20 -> 59995 | F21: =+F15+F19+F20 -> 63369 | G21: =VLOOKUP($D$5,'[2]Allocation 2021-22 Final'!$A$7:$U$321,21,FALSE) -> 76111 | H21: =+H15+H19+H20 -> 76020 | I21: 56722 | J21: 56655 | K21: 59415 | L21: 59268 | M21: 54316 | N21: 66521 | O21: =+O15+O19 -> 92950 | P21: =+P15+P19 -> 94371 | Q21: =+Q15+Q19 -> 94766
C23: Increase (Decrease) from Prior Year | D23: =D21-E21 -> -4508 | F23: =F21-G15 -> -12742 | G23: =G21-I15 -> 19389 | H23: =H21-I15 -> 19298 | I23: =I21-K15 -> -2693 | J23: =J21-K15 -> -2760 | K23: =K21-L15 -> 147 | L23: =L21-M15 -> 4952 | M23: =IFERROR(M21-N15,0) -> -12205 | N23: =N21-O15 -> -26429 | O23: =O15-P15 -> -1421 | P23: =P15-Q15 -> -395
C24: % Change from Prior Year | D24: =IFERROR(D23/E21,"") -> -0.07513959497 | F24: =IFERROR(F23/G15,"") -> -0.1674133831 | G24: =IFERROR(G23/I15,"") -> 0.3418250414 | H24: =IFERROR(H23/I15,"") -> 0.3402207256 | I24: =IFERROR(I23/K15,"") -> -0.04532525457 | J24: =IFERROR(J23/K15,"") -> -0.04645291593 | K24: =IFERROR(K23/L15,"") -> 0.002480259162 | L24: =IFERROR(L23/M15,"") -> 0.09117018926 | M24: =IFERROR(M23/N15,"") -> -0.1834758948 | N24: =N23/O15 -> -0.2843356643 | O24: =O23/P15 -> -0.01505759184 | P24: =P23/Q15 -> -0.004168161577

Sheet Allocation 2026-27 Final
B1: 2025-26 | K1: =IF(K5=Assumptions!$C$22+J5,"Rounding OK","Rounding Error = "&FIXED(K5-Assumptions!$C$22-J5,TRUE)) -> Rounding OK | R1: =R5 -> 0 | S1: =IF(S5=Assumptions!$C22+R5,"Rounding OK","Rounding Error = "&FIXED(S5-(Assumptions!$C22+R5),TRUE)) -> Rounding OK
B2: ESEA -- Title 2 Distributions | K2: Allocation including private participation | S2: \
A3: 1 | B3: 2 | C3: 3 | D3: 4 | E3: 5 | F3: 6 | G3: 7 | H3: 8 | I3: 9 | J3: 10 | L3: 12 | M3: 13 | N3: 14 | O3: 15 | P3: 16 | Q3: 17 | R3: 18 | S3: 19 | U3: 18
A4: CCDDD | B4: LEAID | C4: District Name | D4: Eisenhower 2001-02 Allocations | E4: Class Size Reduction Allocations 2001-02 | F4: Census Population Ages 5-17 | G4: 20% based on Total Pop | H4: Census Poverty Ages 5-17 | I4: 80% based on Low Inc Pop | J4: MOE | K4: Total Final Allocation | M4: Alloc to non-Census LEA | N4: Realloc Pool | O4: Realloc | P4: Final Alloc Before MOE | Q4: MOE | R4: MOE Reduction | S4: Final Alloc | U4: Prior Year Allocation | Y4: Rank Order | AB4: do not delete Y & Z
C5: State Totals | D5: =SUM(D7:D306) -> 0 | E5: =SUM(E7:E306) -> 0 | F5: =SUM(F7:F319) -> 1229519 | G5: =SUM(G7:G319) -> 6731646 | H5: =SUM(H7:H319) -> 130486 | I5: =SUM(I7:I319) -> 26926565 | K5: =SUM(K7:K319) -> 33658198 | M5: =SUM(M7:M319) -> 0 | N5: =SUM(N7:N319) -> 33658198 | O5: =SUM(O7:O319) -> 0 | P5: =SUM(P7:P319) -> 33658198 | R5: =SUM(R7:R319) -> 0 | S5: =SUM(S7:S319) -> 33658198 | U5: =SUM(U7:U319) -> 33276448 | W5: =SUM(W7:W317) -> 376056 | X5: =MIN(X7:X313) -> -0.736590547 | Y5: ="Lose = "& PROPER(VLOOKUP(X5,$X$7:$AC$313,6,FALSE)) -> Lose = Steptoe | AB5: =+B5 -> 0 | AC5: =+C5 -> State Totals
X6: =MAX(X7:X307) -> 1.685438455 | Y6: ="Win = "&PROPER(VLOOKUP(X6,$X$7:$AC$307,6,FALSE)) -> Win = Klickitat
A7: =VLOOKUP(B7,CCDDD!$A$3:$B$319,2,FALSE) -> 14005 | B7: 5300030 | C7: ABERDEEN | D7: 0 | E7: 0 | F7: =VLOOKUP(B7,'26-27 Adjusted Formula counts'!$A$3:$L$320,8,FALSE) -> 3465 | G7: =ROUND((F7/$F$5*Assumptions!$C$22*Assumptions!$C$30),0) -> 18971 | H7: =VLOOKUP(B7,'26-27 Adjusted Formula counts'!$A$3:$L$320,9,FALSE) -> 709 | I7: =ROUND((H7/$H$5*Assumptions!$C$22*Assumptions!$C$31),0) -> 146306 | K7: =ROUNDDOWN(+I7+G7+E7+D7+J7,0) -> 165277 | N7: =K7 -> 165277 | O7: =-ROUND(N7/$N$5*$M$5,0) -> 0 | P7: =+K7+O7+M7 -> 165277 | R7: =-1*(P7*Q7) -> 0 | S7: =+P7+R7 -> 165277 | U7: =IFERROR(VLOOKUP($A7, 'Allocation 2025-26 Final'!$A$7:$S$323,19,FALSE),0) -> 156564 | W7: =+S7-U7 -> 8713 | X7: =IF(U7>0,W7/U7,0) -> 0.05565136302 | Y7: =RANK(W7,$W$7:$W$319,0) -> 42 | Z7: =(SUM(D7:E7)/S7) -> 0 | AB7: =+B7 -> 5300030 | AC7: ABERDEEN
A8: =VLOOKUP(B8,CCDDD!$A$3:$B$319,2,FALSE) -> 21226 | B8: 5300060 | C8: ADNA | D8: 0 | E8: 0 | F8: =VLOOKUP(B8,'26-27 Adjusted Formula counts'!$A$3:$L$320,8,FALSE) -> 758 | G8: =ROUND((F8/$F$5*Assumptions!$C$22*Assumptions!$C$30),0) -> 4150 | H8: =VLOOKUP(B8,'26-27 Adjusted Formula counts'!$A$3:$L$320,9,FALSE) -> 45 | I8: =ROUND((H8/$H$5*Assumptions!$C$22*Assumptions!$C$31),0) -> 9286 | K8: 13436 | N8: 13436 | O8: 0 | P8: =+K8+O8+M9 -> 13436 | R8: 0 | S8: 13436 | U8: =IFERROR(VLOOKUP($A8, 'Allocation 2025-26 Final'!$A$7:$S$323,19,FALSE),0) -> 17221 | W8: -3785 | X8: -0.2197897915 | Y8: 246 | Z8: 0 | AB8: 5300060 | AC8: ADNA
A9: =VLOOKUP(B9,CCDDD!$A$3:$B$319,2,FALSE) -> 22017 | B9: 5300090 | C9: ALMIRA | D9: 0 | E9: 0 | F9: =VLOOKUP(B9,'26-27 Adjusted Formula counts'!$A$3:$L$320,8,FALSE) -> 98 | G9: =ROUND((F9/$F$5*Assumptions!$C$22*Assumptions!$C$30),0) -> 537 | H9: =VLOOKUP(B9,'26-27 Adjusted Formula counts'!$A$3:$L$320,9,FALSE) -> 11 | I9: =ROUND((H9/$H$5*Assumptions!$C$22*Assumptions!$C$31),0) -> 2270 | K9: 2807 | N9: 2807 | O9: 0 | P9: =+K9+O9+M10 -> 2807 | R9: 0 | S9: 2807 | U9: =IFERROR(VLOOKUP($A9, 'Allocation 2025-26 Final'!$A$7:$S$323,19,FALSE),0) -> 4126 | W9: -1319 | X9: -0.3196800776 | Y9: 203 | Z9: 0 | AB9: 5300090 | AC9: ALMIRA
A10: =VLOOKUP(B10,CCDDD!$A$3:$B$319,2,FALSE) -> 29103 | B10: 5300150 | C10: ANACORTES | D10: 0 | E10: 0 | F10: =VLOOKUP(B10,'26-27 Adjusted Formula counts'!$A$3:$L$320,8,FALSE) -> 2785 | G10: =ROUND((F10/$F$5*Assumptions!$C$22*Assumptions!$C$30),0) -> 15248 | H10: =VLOOKUP(B10,'26-27 Adjusted Formula counts'!$A$3:$L$320,9,FALSE) -> 195 | I10: =ROUND((H10/$H$5*Assumptions!$C$22*Assumptions!$C$31),0) -> 40239 | K10: 55487 | N10: 55487 | O10: 0 | P10: =+K10+O10+M11 -> 55487 | R10: 0 | S10: 55487 | U10: =IFERROR(VLOOKUP($A10, 'Allocation 2025-26 Final'!$A$7:$S$323,19,FALSE),0) -> 59995 | W10: -4508 | X10: -0.07513959497 | Y10: 256 | Z10: 0 | AB10: 5300150 | AC10: ANACORTES
A11: =VLOOKUP(B11,CCDDD!$A$3:$B$319,2,FALSE) -> 31016 | B11: 5300240 | C11: ARLINGTON | D11: 0 | E11: 0 | F11: =VLOOKUP(B11,'26-27 Adjusted Formula counts'!$A$3:$L$320,8,FALSE) -> 6002 | G11: =ROUND((F11/$F$5*Assumptions!$C$22*Assumptions!$C$30),0) -> 32861 | H11: =VLOOKUP(B11,'26-27 Adjusted Formula counts'!$A$3:$L$320,9,FALSE) -> 533 | I11: =ROUND((H11/$H$5*Assumptions!$C$22*Assumptions!$C$31),0) -> 109988 | K11: 142849 | N11: 142849 | O11: 0 | P11: 142849 | R11: 0 | S11: 142849 | U11: =IFERROR(VLOOKUP($A11, 'Allocation 2025-26 Final'!$A$7:$S$323,19,FALSE),0) -> 138624 | W11: 4225 | X11: 0.03047812789 | Y11: 62 | Z11: 0 | AB11: 5300240 | AC11: ARLINGTON
A12: =VLOOKUP(B12,CCDDD!$A$3:$B$319,2,FALSE) -> 02420 | B12: 5300280 | C12: ASOTIN-ANATONE | D12: 0 | E12: 0 | F12: =VLOOKUP(B12,'26-27 Adjusted Formula counts'!$A$3:$L$320,8,FALSE) -> 485 | G12: =ROUND((F12/$F$5*Assumptions!$C$22*Assumptions!$C$30),0) -> 2655 | H12: =VLOOKUP(B12,'26-27 Adjusted Formula counts'!$A$3:$L$320,9,FALSE) -> 29 | I12: =ROUND((H12/$H$5*Assumptions!$C$22*Assumptions!$C$31),0) -> 5984 | K12: 8639 | N12: 8639 | O12: 0 | P12: 8639 | R12: 0 | S12: 8639 | U12: =IFERROR(VLOOKUP($A12, 'Allocation 2025-26 Final'!$A$7:$S$323,19,FALSE),0) -> 8238 | W12: 401 | X12: 0.04867686332 | Y12: 139 | Z12: 0 | AB12: 5300280 | AC12: ASOTIN-ANATONE
A13: =VLOOKUP(B13,CCDDD!$A$3:$B$319,2,FALSE) -> 17408 | B13: 5300300 | C13: AUBURN | D13: 0 | E13: 0 | F13: =VLOOKUP(B13,'26-27 Adjusted Formula counts'!$A$3:$L$320,8,FALSE) -> 18575 | G13: =ROUND((F13/$F$5*Assumptions!$C$22*Assumptions!$C$30),0) -> 101698 | H13: =VLOOKUP(B13,'26-27 Adjusted Formula counts'!$A$3:$L$320,9,FALSE) -> 2933 | I13: =ROUND((H13/$H$5*Assumptions!$C$22*Assumptions!$C$31),0) -> 605242 | K13: 706940 | N13: 706940 | O13: 0 | P13: 706940 | R13: 0 | S13: 706940 | U13: =IFERROR(VLOOKUP($A13, 'Allocation 2025-26 Final'!$A$7:$S$323,19,FALSE),0) -> 651931 | W13: 55009 | X13: 0.08437856153 | Y13: 7 | Z13: 0 | AB13: 5300300 | AC13: AUBURN
A14: =VLOOKUP(B14,CCDDD!$A$3:$B$319,2,FALSE) -> 18303 | B14: 5300330 | C14: BAINBRIDGE ISLAND | D14: 0 | E14: 0 | F14: =VLOOKUP(B14,'26-27 Adjusted Formula counts'!$A$3:$L$320,8,FALSE) -> 3995 | G14: =ROUND((F14/$F$5*Assumptions!$C$22*Assumptions!$C$30),0) -> 21873 | H14: =VLOOKUP(B14,'26-27 Adjusted Formula counts'!$A$3:$L$320,9,FALSE) -> 150 | I14: =ROUND((H14/$H$5*Assumptions!$C$22*Assumptions!$C$31),0) -> 30953 | K14: 52826 | N14: 52826 | O14: 0 | P14: 52826 | R14: 0 | S14: 52826 | U14: =IFERROR(VLOOKUP($A14, 'Allocation 2025-26 Final'!$A$7:$S$323,19,FALSE),0) -> 51473 | W14: 1353 | X14: 0.02628562547 | Y14: 107 | Z14: 0 | AB14: 5300330 | AC14: BAINBRIDGE ISLAND
A15: =VLOOKUP(B15,CCDDD!$A$3:$B$319,2,FALSE) -> 06119 | B15: 5300380 | C15: BATTLE GROUND | D15: 0 | E15: 0 | F15: =VLOOKUP(B15,'26-27 Adjusted Formula counts'!$A$3:$L$320,8,FALSE) -> 15849 | G15: =ROUND((F15/$F$5*Assumptions!$C$22*Assumptions!$C$30),0) -> 86774 | H15: =VLOOKUP(B15,'26-27 Adjusted Formula counts'!$A$3:$L$320,9,FALSE) -> 988 | I15: =ROUND((H15/$H$5*Assumptions!$C$22*Assumptions!$C$31),0) -> 203880 | K15: 290654 | N15: 290654 | O15: 0 | P15: 290654 | R15: 0 | S15: 290654 | U15: =IFERROR(VLOOKUP($A15, 'Allocation 2025-26 Final'!$A$7:$S$323,19,FALSE),0) -> 258017 | W15: 32637 | X15: 0.1264916653 | Y15: 14 | Z15: 0 | AB15: 5300380 | AC15: BATTLE GROUND
A16: =VLOOKUP(B16,CCDDD!$A$3:$B$319,2,FALSE) -> 17405 | B16: 5300390 | C16: BELLEVUE | D16: 0 | E16: 0 | F16: =VLOOKUP(B16,'26-27 Adjusted Formula counts'!$A$3:$L$320,8,FALSE) -> 22751 | G16: =ROUND((F16/$F$5*Assumptions!$C$22*Assumptions!$C$30),0) -> 124562 | H16: =VLOOKUP(B16,'26-27 Adjusted Formula counts'!$A$3:$L$320,9,FALSE) -> 1401 | I16: =ROUND((H16/$H$5*Assumptions!$C$22*Assumptions!$C$31),0) -> 289105 | K16: 413667 | N16: 413667 | O16: 0 | P16: 413667 | R16: 0 | S16: 413667 | U16: =IFERROR(VLOOKUP($A16, 'Allocation 2025-26 Final'!$A$7:$S$323,19,FALSE),0) -> 411856 | W16: 1811 | X16: 0.004397167942 | Y16: 96 | Z16: 0 | AB16: 5300390 | AC16: BELLEVUE
A17: =VLOOKUP(B17,CCDDD!$A$3:$B$319,2,FALSE) -> 37501 | B17: 5300420 | C17: BELLINGHAM | D17: 0 | E17: 0 | F17: =VLOOKUP(B17,'26-27 Adjusted Formula counts'!$A$3:$L$320,8,FALSE) -> 12300.17303 | G17: =ROUND((F17/$F$5*Assumptions!$C$22*Assumptions!$C$30),0) -> 67344 | H17: =VLOOKUP(B17,'26-27 Adjusted Formula counts'!$A$3:$L$320,9,FALSE) -> 920.9700798 | I17: =ROUND((H17/$H$5*Assumptions!$C$22*Assumptions!$C$31),0) -> 190048 | K17: 257392 | N17: 257392 | O17: 0 | P17: 257392 | R17: 0 | S17: 257392 | U17: =IFERROR(VLOOKUP($A17, 'Allocation 2025-26 Final'!$A$7:$S$323,19,FALSE),0) -> 329763 | W17: -72371 | X17: -0.2194636754 | Y17: 311 | Z17: 0 | AB17: 5300420 | AC17: BELLINGHAM
A18: =VLOOKUP(B18,CCDDD!$A$3:$B$319,2,FALSE) -> 01122 | B18: 5300450 | C18: BENGE | D18: 0 | E18: 0 | F18: =VLOOKUP(B18,'26-27 Adjusted Formula counts'!$A$3:$L$320,8,FALSE) -> 16 | G18: =ROUND((F18/$F$5*Assumptions!$C$22*Assumptions!$C$30),0) -> 88 | H18: =VLOOKUP(B18,'26-27 Adjusted Formula counts'!$A$3:$L$320,9,FALSE) -> 1 | I18: =ROUND((H18/$H$5*Assumptions!$C$22*Assumptions!$C$31),0) -> 206 | K18: 294 | N18: 294 | O18: 0 | P18: 294 | R18: 0 | S18: 294 | U18: =IFERROR(VLOOKUP($A18, 'Allocation 2025-26 Final'!$A$7:$S$323,19,FALSE),0) -> 486 | W18: -192 | X18: -0.3950617284 | Y18: 166 | Z18: 0 | AB18: 5300450 | AC18: BENGE
A19: =VLOOKUP(B19,CCDDD!$A$3:$B$319,2,FALSE) -> 27403 | B19: 5300480 | C19: BETHEL | D19: 0 | E19: 0 | F19: =VLOOKUP(B19,'26-27 Adjusted Formula counts'!$A$3:$L$320,8,FALSE) -> 24343 | G19: =ROUND((F19/$F$5*Assumptions!$C$22*Assumptions!$C$30),0) -> 133278 | H19: =VLOOKUP(B19,'26-27 Adjusted Formula counts'!$A$3:$L$320,9,FALSE) -> 2704 | I19: =ROUND((H19/$H$5*Assumptions!$C$22*Assumptions!$C$31),0) -> 557986 | K19: 691264 | N19: 691264 | O19: 0 | P19: 691264 | R19: 0 | S19: 691264 | U19: =IFERROR(VLOOKUP($A19, 'Allocation 2025-26 Final'!$A$7:$S$323,19,FALSE),0) -> 618565 | W19: 72699 | X19: 0.1175284732 | Y19: 5 | Z19: 0 | AB19: 5300480 | AC19: BETHEL
A20: =VLOOKUP(B20,CCDDD!$A$3:$B$319,2,FALSE) -> 20203 | B20: 5300510 | C20: BICKLETON | D20: 0 | E20: 0 | F20: =VLOOKUP(B20,'26-27 Adjusted Formula counts'!$A$3:$L$320,8,FALSE) -> 79 | G20: =ROUND((F20/$F$5*Assumptions!$C$22*Assumptions!$C$30),0) -> 433 | H20: =VLOOKUP(B20,'26-27 Adjusted Formula counts'!$A$3:$L$320,9,FALSE) -> 10 | I20: =ROUND((H20/$H$5*Assumptions!$C$22*Assumptions!$C$31),0) -> 2064 | K20: 2497 | N20: 2497 | O20: 0 | P20: 2497 | R20: 0 | S20: 2497 | U20: =IFERROR(VLOOKUP($A20, 'Allocation 2025-26 Final'!$A$7:$S$323,19,FALSE),0) -> 2224 | W20: 273 | X20: 0.1227517986 | Y20: 146 | Z20: 0 | AB20: 5300510 | AC20: BICKLETON
A21: =VLOOKUP(B21,CCDDD!$A$3:$B$319,2,FALSE) -> 37503 | B21: 5300570 | C21: BLAINE | D21: 0 | E21: 0 | F21: =VLOOKUP(B21,'26-27 Adjusted Formula counts'!$A$3:$L$320,8,FALSE) -> 2450 | G21: =ROUND((F21/$F$5*Assumptions!$C$22*Assumptions!$C$30),0) -> 13414 | H21: =VLOOKUP(B21,'26-27 Adjusted Formula counts'!$A$3:$L$320,9,FALSE) -> 204 | I21: =ROUND((H21/$H$5*Assumptions!$C$22*Assumptions!$C$31),0) -> 42097 | K21: 55511 | N21: 55511 | O21: 0 | P21: 55511 | R21: 0 | S21: 55511 | U21: =IFERROR(VLOOKUP($A21, 'Allocation 2025-26 Final'!$A$7:$S$323,19,FALSE),0) -> 73676 | W21: -18165 | X21: -0.246552473 | Y21: 297 | Z21: 0 | AB21: 5300570 | AC21: BLAINE
A22: =VLOOKUP(B22,CCDDD!$A$3:$B$319,2,FALSE) -> 21234 | B22: 5300630 | C22: BOISTFORT | D22: 0 | E22: 0 | F22: =VLOOKUP(B22,'26-27 Adjusted Formula counts'!$A$3:$L$320,8,FALSE) -> 221 | G22: =ROUND((F22/$F$5*Assumptions!$C$22*Assumptions!$C$30),0) -> 1210 | H22: =VLOOKUP(B22,'26-27 Adjusted Formula counts'!$A$3:$L$320,9,FALSE) -> 22 | I22: =ROUND((H22/$H$5*Assumptions!$C$22*Assumptions!$C$31),0) -> 4540 | K22: 5750 | N22: 5750 | O22: 0 | P22: 5750 | R22: 0 | S22: 5750 | U22: =IFERROR(VLOOKUP($A22, 'Allocation 2025-26 Final'!$A$7:$S$323,19,FALSE),0) -> 5570 | W22: 180 | X22: 0.03231597846 | Y22: 152 | Z22: 0 | AB22: 5300630 | AC22: BOISTFORT
A23: =VLOOKUP(B23,CCDDD!$A$3:$B$319,2,FALSE) -> 18100 | B23: 5300660 | C23: BREMERTON | D23: 0 | E23: 0 | F23: =VLOOKUP(B23,'26-27 Adjusted Formula counts'!$A$3:$L$320,8,FALSE) -> 4879.713253 | G23: =ROUND((F23/$F$5*Assumptions!$C$22*Assumptions!$C$30),0) -> 26717 | H23: =VLOOKUP(B23,'26-27 Adjusted Formula counts'!$A$3:$L$320,9,FALSE) -> 804.763677 | I23: =ROUND((H23/$H$5*Assumptions!$C$22*Assumptions!$C$31),0) -> 166068 | K23: 192785 | N23: 192785 | O23: 0 | P23: 192785 | R23: 0 | S23: 192785 | U23: =IFERROR(VLOOKUP($A23, 'Allocation 2025-26 Final'!$A$7:$S$323,19,FALSE),0) -> 179824 | W23: 12961 | X23: 0.0720760299 | Y23: 29 | Z23: 0 | AB23: 5300660 | AC23: BREMERTON
A24: =VLOOKUP(B24,CCDDD!$A$3:$B$319,2,FALSE) -> 24111 | B24: 5300690 | C24: BREWSTER | D24: 0 | E24: 0 | F24: =VLOOKUP(B24,'26-27 Adjusted Formula counts'!$A$3:$L$320,8,FALSE) -> 942 | G24: =ROUND((F24/$F$5*Assumptions!$C$22*Assumptions!$C$30),0) -> 5157 | H24: =VLOOKUP(B24,'26-27 Adjusted Formula counts'!$A$3:$L$320,9,FALSE) -> 214 | I24: =ROUND((H24/$H$5*Assumptions!$C$22*Assumptions!$C$31),0) -> 44160 | K24: 49317 | N24: 49317 | O24: 0 | P24: 49317 | R24: 0 | S24: 49317 | U24: =IFERROR(VLOOKUP($A24, 'Allocation 2025-26 Final'!$A$7:$S$323,19,FALSE),0) -> 53406 | W24: -4089 | X24: -0.07656443096 | Y24: 250 | Z24: 0 | AB24: 5300690 | AC24: BREWSTER
A25: =VLOOKUP(B25,CCDDD!$A$3:$B$319,2,FALSE) -> 09075 | B25: 5300720 | C25: BRIDGEPORT | D25: 0 | E25: 0 | F25: =VLOOKUP(B25,'26-27 Adjusted Formula counts'!$A$3:$L$320,8,FALSE) -> 673 | G25: =ROUND((F25/$F$5*Assumptions!$C$22*Assumptions!$C$30),0) -> 3685 | H25: =VLOOKUP(B25,'26-27 Adjusted Formula counts'!$A$3:$L$320,9,FALSE) -> 82 | I25: =ROUND((H25/$H$5*Assumptions!$C$22*Assumptions!$C$31),0) -> 16921 | K25: 20606 | N25: 20606 | O25: 0 | P25: 20606 | R25: 0 | S25: 20606 | U25: =IFERROR(VLOOKUP($A25, 'Allocation 2025-26 Final'!$A$7:$S$323,19,FALSE),0) -> 34609 | W25: -14003 | X25: -0.4046057384 | Y25: 293 | Z25: 0 | AB25: 5300720 | AC25: BRIDGEPORT
A26: =VLOOKUP(B26,CCDDD!$A$3:$B$319,2,FALSE) -> 16046 | B26: 5300750 | C26: BRINNON | D26: 0 | E26: 0 | F26: =VLOOKUP(B26,'26-27 Adjusted Formula counts'!$A$3:$L$320,8,FALSE) -> 113 | G26: =ROUND((F26/$F$5*Assumptions!$C$22*Assumptions!$C$30),0) -> 619 | H26: =VLOOKUP(B26,'26-27 Adjusted Formula counts'!$A$3:$L$320,9,FALSE) -> 13 | I26: =ROUND((H26/$H$5*Assumptions!$C$22*Assumptions!$C$31),0) -> 2683 | K26: 3302 | N26: 3302 | O26: 0 | P26: 3302 | R26: 0 | S26: 3302 | U26: =IFERROR(VLOOKUP($A26, 'Allocation 2025-26 Final'!$A$7:$S$323,19,FALSE),0) -> 5593 | W26: -2291 | X26: -0.4096191668 | Y26: 233 | Z26: 0 | AB26: 5300750 | AC26: BRINNON
A27: =VLOOKUP(B27,CCDDD!$A$3:$B$319,2,FALSE) -> 29100 | B27: 5300780 | C27: BURLINGTON-EDISON | D27: 0 | E27: 0 | F27: =VLOOKUP(B27,'26-27 Adjusted Formula counts'!$A$3:$L$320,8,FALSE) -> 3664 | G27: =ROUND((F27/$F$5*Assumptions!$C$22*Assumptions!$C$30),0) -> 20060 | H27: =VLOOKUP(B27,'26-27 Adjusted Formula counts'!$A$3:$L$320,9,FALSE) -> 356 | I27: =ROUND((H27/$H$5*Assumptions!$C$22*Assumptions!$C$31),0) -> 73463 | K27: 93523 | N27: 93523 | O27: 0 | P27: 93523 | R27: 0 | S27: 93523 | U27: =IFERROR(VLOOKUP($A27, 'Allocation 2025-26 Final'!$A$7:$S$323,19,FALSE),0) -> 97673 | W27: -4150 | X27: -0.04248871234 | Y27: 251 | Z27: 0 | AB27: 5300780 | AC27: BURLINGTON-EDISON
A28: =VLOOKUP(B28,CCDDD!$A$3:$B$319,2,FALSE) -> 06117 | B28: 5300810 | C28: CAMAS | D28: 0 | E28: 0 | F28: =VLOOKUP(B28,'26-27 Adjusted Formula counts'!$A$3:$L$320,8,FALSE) -> 7419 | G28: =ROUND((F28/$F$5*Assumptions!$C$22*Assumptions!$C$30),0) -> 40619 | H28: =VLOOKUP(B28,'26-27 Adjusted Formula counts'!$A$3:$L$320,9,FALSE) -> 273 | I28: =ROUND((H28/$H$5*Assumptions!$C$22*Assumptions!$C$31),0) -> 56335 | K28: 96954 | N28: 96954 | O28: 0 | P28: 96954 | R28: 0 | S28: 96954 | U28: =IFERROR(VLOOKUP($A28, 'Allocation 2025-26 Final'!$A$7:$S$323,19,FALSE),0) -> 92956 | W28: 3998 | X28: 0.04300959594 | Y28: 66 | Z28: 0 | AB28: 5300810 | AC28: CAMAS
A29: =VLOOKUP(B29,CCDDD!$A$3:$B$319,2,FALSE) -> 05401 | B29: 5300840 | C29: CAPE FLATTERY | D29: 0 | E29: 0 | F29: =VLOOKUP(B29,'26-27 Adjusted Formula counts'!$A$3:$L$320,8,FALSE) -> 541 | G29: =ROUND((F29/$F$5*Assumptions!$C$22*Assumptions!$C$30),0) -> 2962 | H29: =VLOOKUP(B29,'26-27 Adjusted Formula counts'!$A$3:$L$320,9,FALSE) -> 69 | I29: =ROUND((H29/$H$5*Assumptions!$C$22*Assumptions!$C$31),0) -> 14239 | K29: 17201 | N29: 17201 | O29: 0 | P29: 17201 | R29: 0 | S29: 17201 | U29: =IFERROR(VLOOKUP($A29, 'Allocation 2025-26 Final'!$A$7:$S$323,19,FALSE),0) -> 19110 | W29: -1909 | X29: -0.09989534275 | Y29: 224 | Z29: 0 | AB29: 5300840 | AC29: CAPE FLATTERY
A30: =VLOOKUP(B30,CCDDD!$A$3:$B$319,2,FALSE) -> 27019 | B30: 5300870 | C30: CARBONADO | D30: 0 | E30: 0 | F30: =VLOOKUP(B30,'26-27 Adjusted Formula counts'!$A$3:$L$320,8,FALSE) -> 210 | G30: =ROUND((F30/$F$5*Assumptions!$C$22*Assumptions!$C$30),0) -> 1150 | H30: =VLOOKUP(B30,'26-27 Adjusted Formula counts'!$A$3:$L$320,9,FALSE) -> 4 | I30: =ROUND((H30/$H$5*Assumptions!$C$22*Assumptions!$C$31),0) -> 825 | K30: 1975 | N30: 1975 | O30: 0 | P30: 1975 | R30: 0 | S30: 1975 | U30: =IFERROR(VLOOKUP($A30, 'Allocation 2025-26 Final'!$A$7:$S$323,19,FALSE),0) -> 1933 | W30: 42 | X30: 0.02172788412 | Y30: 158 | Z30: 0 | AB30: 5300870 | AC30: CARBONADO
A31: =VLOOKUP(B31,CCDDD!$A$3:$B$319,2,FALSE) -> 04228 | B31: 5300950 | C31: CASCADE | D31: 0 | E31: 0 | F31: =VLOOKUP(B31,'26-27 Adjusted Formula counts'!$A$3:$L$320,8,FALSE) -> 1596 | G31: =ROUND((F31/$F$5*Assumptions!$C$22*Assumptions!$C$30),0) -> 8738 | H31: =VLOOKUP(B31,'26-27 Adjusted Formula counts'!$A$3:$L$320,9,FALSE) -> 123 | I31: =ROUND((H31/$H$5*Assumptions!$C$22*Assumptions!$C$31),0) -> 25382 | K31: 34120 | N31: 34120 | O31: 0 | P31: 34120 | R31: 0 | S31: 34120 | U31: =IFERROR(VLOOKUP($A31, 'Allocation 2025-26 Final'!$A$7:$S$323,19,FALSE),0) -> 39004 | W31: -4884 | X31: -0.1252179264 | Y31: 262 | Z31: 0 | AB31: 5300950 | AC31: CASCADE
A32: =VLOOKUP(B32,CCDDD!$A$3:$B$319,2,FALSE) -> 04222 | B32: 5300960 | C32: CASHMERE | D32: 0 | E32: 0 | F32: =VLOOKUP(B32,'26-27 Adjusted Formula counts'!$A$3:$L$320,8,FALSE) -> 1536 | G32: =ROUND((F32/$F$5*Assumptions!$C$22*Assumptions!$C$30),0) -> 8410 | H32: =VLOOKUP(B32,'26-27 Adjusted Formula counts'!$A$3:$L$320,9,FALSE) -> 129 | I32: =ROUND((H32/$H$5*Assumptions!$C$22*Assumptions!$C$31),0) -> 26620 | K32: 35030 | N32: 35030 | O32: 0 | P32: 35030 | R32: 0 | S32: 35030 | U32: =IFERROR(VLOOKUP($A32, 'Allocation 2025-26 Final'!$A$7:$S$323,19,FALSE),0) -> 39885 | W32: -4855 | X32: -0.1217249593 | Y32: 261 | Z32: 0 | AB32: 5300960 | AC32: CASHMERE
A33: =VLOOKUP(B33,CCDDD!$A$3:$B$319,2,FALSE) -> 08401 | B33: 5300990 | C33: CASTLE ROCK | D33: 0 | E33: 0 | F33: =VLOOKUP(B33,'26-27 Adjusted Formula counts'!$A$3:$L$320,8,FALSE) -> 1662 | G33: =ROUND((F33/$F$5*Assumptions!$C$22*Assumptions!$C$30),0) -> 9099 | H33: =VLOOKUP(B33,'26-27 Adjusted Formula counts'!$A$3:$L$320,9,FALSE) -> 156 | I33: =ROUND((H33/$H$5*Assumptions!$C$22*Assumptions!$C$31),0) -> 32192 | K33: 41291 | N33: 41291 | O33: 0 | P33: 41291 | R33: 0 | S33: 41291 | U33: =IFERROR(VLOOKUP($A33, 'Allocation 2025-26 Final'!$A$7:$S$323,19,FALSE),0) -> 46504 | W33: -5213 | X33: -0.1120978841 | Y33: 265 | Z33: 0 | AB33: 5300990 | AC33: CASTLE ROCK
A34: =VLOOKUP(B34,CCDDD!$A$3:$B$319,2,FALSE) -> 18901 | B34: 5301000 | C34: CATALYST BREMERTON CHARTER | D34: 0 | E34: 0 | F34: =VLOOKUP(B34,'26-27 Adjusted Formula counts'!$A$3:$L$320,8,FALSE) -> 618.3813253 | G34: =ROUND((F34/$F$5*Assumptions!$C$22*Assumptions!$C$30),0) -> 3386 | H34: =VLOOKUP(B34,'26-27 Adjusted Formula counts'!$A$3:$L$320,9,FALSE) -> 77.79382211 | I34: =ROUND((H34/$H$5*Assumptions!$C$22*Assumptions!$C$31),0) -> 16053 | K34: 19439 | N34: 19439 | O34: 0 | P34: 19439 | R34: 0 | S34: 19439 | U34: =IFERROR(VLOOKUP($A34, 'Allocation 2025-26 Final'!$A$7:$S$323,19,FALSE),0) -> 17018 | W34: 2421 | X34: 0.1422611353 | Y34: 80 | Z34: 0 | AB34: 5301000 | AC34: CATALYST BREMERTON CHARTER
A35: =VLOOKUP(B35,CCDDD!$A$3:$B$319,2,FALSE) -> 20215 | B35: 5301050 | C35: CENTERVILLE | D35: 0 | E35: 0 | F35: =VLOOKUP(B35,'26-27 Adjusted Formula counts'!$A$3:$L$320,8,FALSE) -> 94 | G35: =ROUND((F35/$F$5*Assumptions!$C$22*Assumptions!$C$30),0) -> 515 | H35: =VLOOKUP(B35,'26-27 Adjusted Formula counts'!$A$3:$L$320,9,FALSE) -> 36 | I35: =ROUND((H35/$H$5*Assumptions!$C$22*Assumptions!$C$31),0) -> 7429 | K35: 7944 | N35: 7944 | O35: 0 | P35: 7944 | R35: 0 | S35: 7944 | U35: =IFERROR(VLOOKUP($A35, 'Allocation 2025-26 Final'!$A$7:$S$323,19,FALSE),0) -> 5296 | W35: 2648 | X35: 0.5 | Y35: 77 | Z35: 0 | AB35: 5301050 | AC35: CENTERVILLE
A36: =VLOOKUP(B36,CCDDD!$A$3:$B$319,2,FALSE) -> 18401 | B36: 5301080 | C36: CENTRAL KITSAP | D36: 0 | E36: 0 | F36: =VLOOKUP(B36,'26-27 Adjusted Formula counts'!$A$3:$L$320,8,FALSE) -> 11204 | G36: =ROUND((F36/$F$5*Assumptions!$C$22*Assumptions!$C$30),0) -> 61342 | H36: =VLOOKUP(B36,'26-27 Adjusted Formula counts'!$A$3:$L$320,9,FALSE) -> 795 | I36: =ROUND((H36/$H$5*Assumptions!$C$22*Assumptions!$C$31),0) -> 164053 | K36: 225395 | N36: 225395 | O36: 0 | P36: 225395 | R36: 0 | S36: 225395 | U36: =IFERROR(VLOOKUP($A36, 'Allocation 2025-26 Final'!$A$7:$S$323,19,FALSE),0) -> 212622 | W36: 12773 | X36: 0.0600737459 | Y36: 30 | Z36: 0 | AB36: 5301080 | AC36: CENTRAL KITSAP
A37: =VLOOKUP(B37,CCDDD!$A$3:$B$319,2,FALSE) -> 32356 | B37: 5301110 | C37: CENTRAL VALLEY | D37: 0 | E37: 0 | F37: =VLOOKUP(B37,'26-27 Adjusted Formula counts'!$A$3:$L$320,8,FALSE) -> 17085 | G37: =ROUND((F37/$F$5*Assumptions!$C$22*Assumptions!$C$30),0) -> 93541 | H37: =VLOOKUP(B37,'26-27 Adjusted Formula counts'!$A$3:$L$320,9,FALSE) -> 1218 | I37: =ROUND((H37/$H$5*Assumptions!$C$22*Assumptions!$C$31),0) -> 251342 | K37: 344883 | N37: 344883 | O37: 0 | P37: 344883 | R37: 0 | S37: 344883 | U37: =IFERROR(VLOOKUP($A37, 'Allocation 2025-26 Final'!$A$7:$S$323,19,FALSE),0) -> 370428 | W37: -25545 | X37: -0.0689607697 | Y37: 304 | Z37: 0 | AB37: 5301110 | AC37: CENTRAL VALLEY
A38: =VLOOKUP(B38,CCDDD!$A$3:$B$319,2,FALSE) -> 21401 | B38: 5301140 | C38: CENTRALIA | D38: 0 | E38: 0 | F38: =VLOOKUP(B38,'26-27 Adjusted Formula counts'!$A$3:$L$320,8,FALSE) -> 4393 | G38: =ROUND((F38/$F$5*Assumptions!$C$22*Assumptions!$C$30),0) -> 24052 | H38: =VLOOKUP(B38,'26-27 Adjusted Formula counts'!$A$3:$L$320,9,FALSE) -> 765 | I38: =ROUND((H38/$H$5*Assumptions!$C$22*Assumptions!$C$31),0) -> 157862 | K38: 181914 | N38: 181914 | O38: 0 | P38: 181914 | R38: 0 | S38: 181914 | U38: =IFERROR(VLOOKUP($A38, 'Allocation 2025-26 Final'!$A$7:$S$323,19,FALSE),0) -> 191023 | W38: -9109 | X38: -0.04768535726 | Y38: 283 | Z38: 0 | AB38: 5301140 | AC38: CENTRALIA
A39: =VLOOKUP(B39,CCDDD!$A$3:$B$319,2,FALSE) -> 21302 | B39: 5301170 | C39: CHEHALIS | D39: 0 | E39: 0 | F39: =VLOOKUP(B39,'26-27 Adjusted Formula counts'!$A$3:$L$320,8,FALSE) -> 2949 | G39: =ROUND((F39/$F$5*Assumptions!$C$22*Assumptions!$C$30),0) -> 16146 | H39: =VLOOKUP(B39,'26-27 Adjusted Formula counts'!$A$3:$L$320,9,FALSE) -> 320 | I39: =ROUND((H39/$H$5*Assumptions!$C$22*Assumptions!$C$31),0) -> 66034 | K39: 82180 | N39: 82180 | O39: 0 | P39: 82180 | R39: 0 | S39: 82180 | U39: =IFERROR(VLOOKUP($A39, 'Allocation 2025-26 Final'!$A$7:$S$323,19,FALSE),0) -> 94274 | W39: -12094 | X39: -0.1282856355 | Y39: 291 | Z39: 0 | AB39: 5301170 | AC39: CHEHALIS
A40: =VLOOKUP(B40,CCDDD!$A$3:$B$319,2,FALSE) -> 32360 | B40: 5301230 | C40: CHENEY | D40: 0 | E40: 0 | F40: =VLOOKUP(B40,'26-27 Adjusted Formula counts'!$A$3:$L$320,8,FALSE) -> 6266 | G40: =ROUND((F40/$F$5*Assumptions!$C$22*Assumptions!$C$30),0) -> 34306 | H40: =VLOOKUP(B40,'26-27 Adjusted Formula counts'!$A$3:$L$320,9,FALSE) -> 566 | I40: =ROUND((H40/$H$5*Assumptions!$C$22*Assumptions!$C$31),0) -> 116797 | K40: 151103 | N40: 151103 | O40: 0 | P40: 151103 | R40: 0 | S40: 151103 | U40: =IFERROR(VLOOKUP($A40, 'Allocation 2025-26 Final'!$A$7:$S$323,19,FALSE),0) -> 173106 | W40: -22003 | X40: -0.1271070905 | Y40: 303 | Z40: 0 | AB40: 5301230 | AC40: CHENEY
A41: =VLOOKUP(B41,CCDDD!$A$3:$B$319,2,FALSE) -> 33036 | B41: 5301260 | C41: CHEWELAH | D41: 0 | E41: 0 | F41: =VLOOKUP(B41,'26-27 Adjusted Formula counts'!$A$3:$L$320,8,FALSE) -> 937 | G41: =ROUND((F41/$F$5*Assumptions!$C$22*Assumptions!$C$30),0) -> 5130 | H41: =VLOOKUP(B41,'26-27 Adjusted Formula counts'!$A$3:$L$320,9,FALSE) -> 133 | I41: =ROUND((H41/$H$5*Assumptions!$C$22*Assumptions!$C$31),0) -> 27445 | K41: 32575 | N41: 32575 | O41: 0 | P41: 32575 | R41: 0 | S41: 32575 | U41: =IFERROR(VLOOKUP($A41, 'Allocation 2025-26 Final'!$A$7:$S$323,19,FALSE),0) -> 35439 | W41: -2864 | X41: -0.08081492141 | Y41: 239 | Z41: 0 | AB41: 5301260 | AC41: CHEWELAH
A42: =VLOOKUP(B42,CCDDD!$A$3:$B$319,2,FALSE) -> 16049 | B42: 5301290 | C42: CHIMACUM | D42: 0 | E42: 0 | F42: =VLOOKUP(B42,'26-27 Adjusted Formula counts'!$A$3:$L$320,8,FALSE) -> 1124 | G42: =ROUND((F42/$F$5*Assumptions!$C$22*Assumptions!$C$30),0) -> 6154 | H42: =VLOOKUP(B42,'26-27 Adjusted Formula counts'!$A$3:$L$320,9,FALSE) -> 184 | I42: =ROUND((H42/$H$5*Assumptions!$C$22*Assumptions!$C$31),0) -> 37969 | K42: 44123 | N42: 44123 | O42: 0 | P42: 44123 | R42: 0 | S42: 44123 | U42: =IFERROR(VLOOKUP($A42, 'Allocation 2025-26 Final'!$A$7:$S$323,19,FALSE),0) -> 35580 | W42: 8543 | X42: 0.2401068016 | Y42: 45 | Z42: 0 | AB42: 5301290 | AC42: CHIMACUM
A43: =VLOOKUP(B43,CCDDD!$A$3:$B$319,2,FALSE) -> 02250 | B43: 5301320 | C43: CLARKSTON | D43: 0 | E43: 0 | F43: =VLOOKUP(B43,'26-27 Adjusted Formula counts'!$A$3:$L$320,8,FALSE) -> 2751 | G43: =ROUND((F43/$F$5*Assumptions!$C$22*Assumptions!$C$30),0) -> 15062 | H43: =VLOOKUP(B43,'26-27 Adjusted Formula counts'!$A$3:$L$320,9,FALSE) -> 487 | I43: =ROUND((H43/$H$5*Assumptions!$C$22*Assumptions!$C$31),0) -> 100495 | K43: 115557 | N43: 115557 | O43: 0 | P43: 115557 | R43: 0 | S43: 115557 | U43: =IFERROR(VLOOKUP($A43, 'Allocation 2025-26 Final'!$A$7:$S$323,19,FALSE),0) -> 116149 | W43: -592 | X43: -0.005096901394 | Y43: 182 | Z43: 0 | AB43: 5301320 | AC43: CLARKSTON
A44: =VLOOKUP(B44,CCDDD!$A$3:$B$319,2,FALSE) -> 19404 | B44: 5301350 | C44: CLE ELUM-ROSLYN | D44: 0 | E44: 0 | F44: =VLOOKUP(B44,'26-27 Adjusted Formula counts'!$A$3:$L$320,8,FALSE) -> 1097 | G44: =ROUND((F44/$F$5*Assumptions!$C$22*Assumptions!$C$30),0) -> 6006 | H44: =VLOOKUP(B44,'26-27 Adjusted Formula counts'!$A$3:$L$320,9,FALSE) -> 119 | I44: =ROUND((H44/$H$5*Assumptions!$C$22*Assumptions!$C$31),0) -> 24556 | K44: 30562 | N44: 30562 | O44: 0 | P44: 30562 | R44: 0 | S44: 30562 | U44: =IFERROR(VLOOKUP($A44, 'Allocation 2025-26 Final'!$A$7:$S$323,19,FALSE),0) -> 36161 | W44: -5599 | X44: -0.1548353198 | Y44: 269 | Z44: 0 | AB44: 5301350 | AC44: CLE ELUM-ROSLYN
A45: =VLOOKUP(B45,CCDDD!$A$3:$B$319,2,FALSE) -> 27400 | B45: 5301410 | C45: CLOVER PARK | D45: 0 | E45: 0 | F45: =VLOOKUP(B45,'26-27 Adjusted Formula counts'!$A$3:$L$320,8,FALSE) -> 13799 | G45: =ROUND((F45/$F$5*Assumptions!$C$22*Assumptions!$C$30),0) -> 75550 | H45: =VLOOKUP(B45,'26-27 Adjusted Formula counts'!$A$3:$L$320,9,FALSE) -> 2008 | I45: =ROUND((H45/$H$5*Assumptions!$C$22*Assumptions!$C$31),0) -> 414363 | K45: 489913 | N45: 489913 | O45: 0 | P45: 489913 | R45: 0 | S45: 489913 | U45: =IFERROR(VLOOKUP($A45, 'Allocation 2025-26 Final'!$A$7:$S$323,19,FALSE),0) -> 483424 | W45: 6489 | X45: 0.01342299927 | Y45: 49 | Z45: 0 | AB45: 5301410 | AC45: CLOVER PARK
A46: =VLOOKUP(B46,CCDDD!$A$3:$B$319,2,FALSE) -> 38300 | B46: 5301440 | C46: COLFAX | D46: 0 | E46: 0 | F46: =VLOOKUP(B46,'26-27 Adjusted Formula counts'!$A$3:$L$320,8,FALSE) -> 621 | G46: =ROUND((F46/$F$5*Assumptions!$C$22*Assumptions!$C$30),0) -> 3400 | H46: =VLOOKUP(B46,'26-27 Adjusted Formula counts'!$A$3:$L$320,9,FALSE) -> 65 | I46: =ROUND((H46/$H$5*Assumptions!$C$22*Assumptions!$C$31),0) -> 13413 | K46: 16813 | N46: 16813 | O46: 0 | P46: 16813 | R46: 0 | S46: 16813 | U46: =IFERROR(VLOOKUP($A46, 'Allocation 2025-26 Final'!$A$7:$S$323,19,FALSE),0) -> 15540 | W46: 1273 | X46: 0.08191763192 | Y46: 110 | Z46: 0 | AB46: 5301440 | AC46: COLFAX
A47: =VLOOKUP(B47,CCDDD!$A$3:$B$319,2,FALSE) -> 36250 | B47: 5301470 | C47: COLLEGE PLACE | D47: 0 | E47: 0 | F47: =VLOOKUP(B47,'26-27 Adjusted Formula counts'!$A$3:$L$320,8,FALSE) -> 2028 | G47: =ROUND((F47/$F$5*Assumptions!$C$22*Assumptions!$C$30),0) -> 11103 | H47: =VLOOKUP(B47,'26-27 Adjusted Formula counts'!$A$3:$L$320,9,FALSE) -> 243 | I47: =ROUND((H47/$H$5*Assumptions!$C$22*Assumptions!$C$31),0) -> 50144 | K47: 61247 | N47: 61247 | O47: 0 | P47: 61247 | R47: 0 | S47: 61247 | U47: =IFERROR(VLOOKUP($A47, 'Allocation 2025-26 Final'!$A$7:$S$323,19,FALSE),0) -> 66324 | W47: -5077 | X47: -0.07654845908 | Y47: 263 | Z47: 0 | AB47: 5301470 | AC47: COLLEGE PLACE
A48: =VLOOKUP(B48,CCDDD!$A$3:$B$319,2,FALSE) -> 38306 | B48: 5301500 | C48: COLTON | D48: 0 | E48: 0 | F48: =VLOOKUP(B48,'26-27 Adjusted Formula counts'!$A$3:$L$320,8,FALSE) -> 250 | G48: =ROUND((F48/$F$5*Assumptions!$C$22*Assumptions!$C$30),0) -> 1369 | H48: =VLOOKUP(B48,'26-27 Adjusted Formula counts'!$A$3:$L$320,9,FALSE) -> 16 | I48: =ROUND((H48/$H$5*Assumptions!$C$22*Assumptions!$C$31),0) -> 3302 | K48: 4671 | N48: 4671 | O48: 0 | P48: 4671 | R48: 0 | S48: 4671 | U48: =IFERROR(VLOOKUP($A48, 'Allocation 2025-26 Final'!$A$7:$S$323,19,FALSE),0) -> 3152 | W48: 1519 | X48: 0.4819162437 | Y48: 102 | Z48: 0 | AB48: 5301500 | AC48: COLTON
A49: =VLOOKUP(B49,CCDDD!$A$3:$B$319,2,FALSE) -> 33206 | B49: 5301560 | C49: COLUMBIA (STEV) | D49: 0 | E49: 0 | F49: =VLOOKUP(B49,'26-27 Adjusted Formula counts'!$A$3:$L$320,8,FALSE) -> 205 | G49: =ROUND((F49/$F$5*Assumptions!$C$22*Assumptions!$C$30),0) -> 1122 | H49: =VLOOKUP(B49,'26-27 Adjusted Formula counts'!$A$3:$L$320,9,FALSE) -> 50 | I49: =ROUND((H49/$H$5*Assumptions!$C$22*Assumptions!$C$31),0) -> 10318 | K49: 11440 | N49: 11440 | O49: 0 | P49: 11440 | R49: 0 | S49: 11440 | U49: =IFERROR(VLOOKUP($A49, 'Allocation 2025-26 Final'!$A$7:$S$323,19,FALSE),0) -> 8496 | W49: 2944 | X49: 0.3465160075 | Y49: 72 | Z49: 0 | AB49: 5301560 | AC49: COLUMBIA (STEV)
A50: =VLOOKUP(B50,CCDDD!$A$3:$B$319,2,FALSE) -> 36400 | B50: 5301590 | C50: COLUMBIA (WALLA) | D50: 0 | E50: 0 | F50: =VLOOKUP(B50,'26-27 Adjusted Formula counts'!$A$3:$L$320,8,FALSE) -> 753 | G50: =ROUND((F50/$F$5*Assumptions!$C$22*Assumptions!$C$30),0) -> 4123 | H50: =VLOOKUP(B50,'26-27 Adjusted Formula counts'!$A$3:$L$320,9,FALSE) -> 87 | I50: =ROUND((H50/$H$5*Assumptions!$C$22*Assumptions!$C$31),0) -> 17953 | K50: 22076 | N50: 22076 | O50: 0 | P50: 22076 | R50: 0 | S50: 22076 | U50: =IFERROR(VLOOKUP($A50, 'Allocation 2025-26 Final'!$A$7:$S$323,19,FALSE),0) -> 25057 | W50: -2981 | X50: -0.1189687512 | Y50: 240 | Z50: 0 | AB50: 5301590 | AC50: COLUMBIA (WALLA)
A51: =VLOOKUP(B51,CCDDD!$A$3:$B$319,2,FALSE) -> 33115 | B51: 5301630 | C51: COLVILLE | D51: 0 | E51: 0 | F51: =VLOOKUP(B51,'26-27 Adjusted Formula counts'!$A$3:$L$320,8,FALSE) -> 1996 | G51: =ROUND((F51/$F$5*Assumptions!$C$22*Assumptions!$C$30),0) -> 10928 | H51: =VLOOKUP(B51,'26-27 Adjusted Formula counts'!$A$3:$L$320,9,FALSE) -> 384 | I51: =ROUND((H51/$H$5*Assumptions!$C$22*Assumptions!$C$31),0) -> 79241 | K51: 90169 | N51: 90169 | O51: 0 | P51: 90169 | R51: 0 | S51: 90169 | U51: =IFERROR(VLOOKUP($A51, 'Allocation 2025-26 Final'!$A$7:$S$323,19,FALSE),0) -> 78719 | W51: 11450 | X51: 0.1454540835 | Y51: 32 | Z51: 0 | AB51: 5301630 | AC51: COLVILLE
A52: =VLOOKUP(B52,CCDDD!$A$3:$B$319,2,FALSE) -> 29011 | B52: 5301660 | C52: CONCRETE | D52: 0 | E52: 0 | F52: =VLOOKUP(B52,'26-27 Adjusted Formula counts'!$A$3:$L$320,8,FALSE) -> 705 | G52: =ROUND((F52/$F$5*Assumptions!$C$22*Assumptions!$C$30),0) -> 3860 | H52: =VLOOKUP(B52,'26-27 Adjusted Formula counts'!$A$3:$L$320,9,FALSE) -> 75 | I52: =ROUND((H52/$H$5*Assumptions!$C$22*Assumptions!$C$31),0) -> 15477 | K52: 19337 | N52: 19337 | O52: 0 | P52: 19337 | R52: 0 | S52: 19337 | U52: =IFERROR(VLOOKUP($A52, 'Allocation 2025-26 Final'!$A$7:$S$323,19,FALSE),0) -> 23175 | W52: -3838 | X52: -0.165609493 | Y52: 247 | Z52: 0 | AB52: 5301660 | AC52: CONCRETE
A53: =VLOOKUP(B53,CCDDD!$A$3:$B$319,2,FALSE) -> 29317 | B53: 5301680 | C53: CONWAY | D53: 0 | E53: 0 | F53: =VLOOKUP(B53,'26-27 Adjusted Formula counts'!$A$3:$L$320,8,FALSE) -> 534 | G53: =ROUND((F53/$F$5*Assumptions!$C$22*Assumptions!$C$30),0) -> 2924 | H53: =VLOOKUP(B53,'26-27 Adjusted Formula counts'!$A$3:$L$320,9,FALSE) -> 47 | I53: =ROUND((H53/$H$5*Assumptions!$C$22*Assumptions!$C$31),0) -> 9699 | K53: 12623 | N53: 12623 | O53: 0 | P53: 12623 | R53: 0 | S53: 12623 | U53: =IFERROR(VLOOKUP($A53, 'Allocation 2025-26 Final'!$A$7:$S$323,19,FALSE),0) -> 11872 | W53: 751 | X53: 0.06325808625 | Y53: 123 | Z53: 0 | AB53: 5301680 | AC53: CONWAY
A54: =VLOOKUP(B54,CCDDD!$A$3:$B$319,2,FALSE) -> 14099 | B54: 5301710 | C54: COSMOPOLIS | D54: 0 | E54: 0 | F54: =VLOOKUP(B54,'26-27 Adjusted Formula counts'!$A$3:$L$320,8,FALSE) -> 311 | G54: =ROUND((F54/$F$5*Assumptions!$C$22*Assumptions!$C$30),0) -> 1703 | H54: =VLOOKUP(B54,'26-27 Adjusted Formula counts'!$A$3:$L$320,9,FALSE) -> 28 | I54: =ROUND((H54/$H$5*Assumptions!$C$22*Assumptions!$C$31),0) -> 5778 | K54: 7481 | N54: 7481 | O54: 0 | P54: 7481 | R54: 0 | S54: 7481 | U54: =IFERROR(VLOOKUP($A54, 'Allocation 2025-26 Final'!$A$7:$S$323,19,FALSE),0) -> 8290 | W54: -809 | X54: -0.09758745476 | Y54: 189 | Z54: 0 | AB54: 5301710 | AC54: COSMOPOLIS
A55: =VLOOKUP(B55,CCDDD!$A$3:$B$319,2,FALSE) -> 13151 | B55: 5303440 | C55: COULEE-HARTLINE | D55: 0 | E55: 0 | F55: =VLOOKUP(B55,'26-27 Adjusted Formula counts'!$A$3:$L$320,8,FALSE) -> 246 | G55: =ROUND((F55/$F$5*Assumptions!$C$22*Assumptions!$C$30),0) -> 1347 | H55: =VLOOKUP(B55,'26-27 Adjusted Formula counts'!$A$3:$L$320,9,FALSE) -> 40 | I55: =ROUND((H55/$H$5*Assumptions!$C$22*Assumptions!$C$31),0) -> 8254 | K55: 9601 | N55: 9601 | O55: 0 | P55: 9601 | R55: 0 | S55: 9601 | U55: =IFERROR(VLOOKUP($A55, 'Allocation 2025-26 Final'!$A$7:$S$323,19,FALSE),0) -> 11117 | W55: -1516 | X55: -0.1363677251 | Y55: 209 | Z55: 0 | AB55: 5303440 | AC55: COULEE-HARTLINE
A56: =VLOOKUP(B56,CCDDD!$A$3:$B$319,2,FALSE) -> 15204 | B56: 5301800 | C56: COUPEVILLE | D56: 0 | E56: 0 | F56: =VLOOKUP(B56,'26-27 Adjusted Formula counts'!$A$3:$L$320,8,FALSE) -> 1082 | G56: =ROUND((F56/$F$5*Assumptions!$C$22*Assumptions!$C$30),0) -> 5924 | H56: =VLOOKUP(B56,'26-27 Adjusted Formula counts'!$A$3:$L$320,9,FALSE) -> 104 | I56: =ROUND((H56/$H$5*Assumptions!$C$22*Assumptions!$C$31),0) -> 21461 | K56: 27385 | N56: 27385 | O56: 0 | P56: 27385 | R56: 0 | S56: 27385 | U56: =IFERROR(VLOOKUP($A56, 'Allocation 2025-26 Final'!$A$7:$S$323,19,FALSE),0) -> 27781 | W56: -396 | X56: -0.0142543465 | Y56: 175 | Z56: 0 | AB56: 5301800 | AC56: COUPEVILLE
A57: =VLOOKUP(B57,CCDDD!$A$3:$B$319,2,FALSE) -> 05313 | B57: 5301830 | C57: CRESCENT | D57: 0 | E57: 0 | F57: =VLOOKUP(B57,'26-27 Adjusted Formula counts'!$A$3:$L$320,8,FALSE) -> 339 | G57: =ROUND((F57/$F$5*Assumptions!$C$22*Assumptions!$C$30),0) -> 1856 | H57: =VLOOKUP(B57,'26-27 Adjusted Formula counts'!$A$3:$L$320,9,FALSE) -> 62 | I57: =ROUND((H57/$H$5*Assumptions!$C$22*Assumptions!$C$31),0) -> 12794 | K57: 14650 | N57: 14650 | O57: 0 | P57: 14650 | R57: 0 | S57: 14650 | U57: =IFERROR(VLOOKUP($A57, 'Allocation 2025-26 Final'!$A$7:$S$323,19,FALSE),0) -> 13023 | W57: 1627 | X57: 0.1249328112 | Y57: 99 | Z57: 0 | AB57: 5301830 | AC57: CRESCENT
A58: =VLOOKUP(B58,CCDDD!$A$3:$B$319,2,FALSE) -> 22073 | B58: 5301860 | C58: CRESTON | D58: 0 | E58: 0 | F58: =VLOOKUP(B58,'26-27 Adjusted Formula counts'!$A$3:$L$320,8,FALSE) -> 114 | G58: =ROUND((F58/$F$5*Assumptions!$C$22*Assumptions!$C$30),0) -> 624 | H58: =VLOOKUP(B58,'26-27 Adjusted Formula counts'!$A$3:$L$320,9,FALSE) -> 33 | I58: =ROUND((H58/$H$5*Assumptions!$C$22*Assumptions!$C$31),0) -> 6810 | K58: 7434 | N58: 7434 | O58: 0 | P58: 7434 | R58: 0 | S58: 7434 | U58: =IFERROR(VLOOKUP($A58, 'Allocation 2025-26 Final'!$A$7:$S$323,19,FALSE),0) -> 3411 | W58: 4023 | X58: 1.179419525 | Y58: 65 | Z58: 0 | AB58: 5301860 | AC58: CRESTON
A59: =VLOOKUP(B59,CCDDD!$A$3:$B$319,2,FALSE) -> 10050 | B59: 5301890 | C59: CURLEW | D59: 0 | E59: 0 | F59: =VLOOKUP(B59,'26-27 Adjusted Formula counts'!$A$3:$L$320,8,FALSE) -> 165 | G59: =ROUND((F59/$F$5*Assumptions!$C$22*Assumptions!$C$30),0) -> 903 | H59: =VLOOKUP(B59,'26-27 Adjusted Formula counts'!$A$3:$L$320,9,FALSE) -> 47 | I59: =ROUND((H59/$H$5*Assumptions!$C$22*Assumptions!$C$31),0) -> 9699 | K59: 10602 | N59: 10602 | O59: 0 | P59: 10602 | R59: 0 | S59: 10602 | U59: =IFERROR(VLOOKUP($A59, 'Allocation 2025-26 Final'!$A$7:$S$323,19,FALSE),0) -> 11863 | W59: -1261 | X59: -0.1062968895 | Y59: 201 | Z59: 0 | AB59: 5301890 | AC59: CURLEW
A60: =VLOOKUP(B60,CCDDD!$A$3:$B$319,2,FALSE) -> 26059 | B60: 5301920 | C60: CUSICK | D60: 0 | E60: 0 | F60: =VLOOKUP(B60,'26-27 Adjusted Formula counts'!$A$3:$L$320,8,FALSE) -> 326 | G60: =ROUND((F60/$F$5*Assumptions!$C$22*Assumptions!$C$30),0) -> 1785 | H60: =VLOOKUP(B60,'26-27 Adjusted Formula counts'!$A$3:$L$320,9,FALSE) -> 75 | I60: =ROUND((H60/$H$5*Assumptions!$C$22*Assumptions!$C$31),0) -> 15477 | K60: 17262 | N60: 17262 | O60: 0 | P60: 17262 | R60: 0 | S60: 17262 | U60: =IFERROR(VLOOKUP($A60, 'Allocation 2025-26 Final'!$A$7:$S$323,19,FALSE),0) -> 16309 | W60: 953 | X60: 0.0584339935 | Y60: 118 | Z60: 0 | AB60: 5301920 | AC60: CUSICK
A61: =VLOOKUP(B61,CCDDD!$A$3:$B$319,2,FALSE) -> 19007 | B61: 5301950 | C61: DAMMAN | D61: 0 | E61: 0 | F61: =VLOOKUP(B61,'26-27 Adjusted Formula counts'!$A$3:$L$320,8,FALSE) -> 115 | G61: =ROUND((F61/$F$5*Assumptions!$C$22*Assumptions!$C$30),0) -> 630 | H61: =VLOOKUP(B61,'26-27 Adjusted Formula counts'!$A$3:$L$320,9,FALSE) -> 10 | I61: =ROUND((H61/$H$5*Assumptions!$C$22*Assumptions!$C$31),0) -> 2064 | K61: 2694 | N61: 2694 | O61: 0 | P61: 2694 | R61: 0 | S61: 2694 | U61: =IFERROR(VLOOKUP($A61, 'Allocation 2025-26 Final'!$A$7:$S$323,19,FALSE),0) -> 1211 | W61: 1483 | X61: 1.224607762 | Y61: 104 | Z61: 0 | AB61: 5301950 | AC61: DAMMAN
A62: =VLOOKUP(B62,CCDDD!$A$3:$B$319,2,FALSE) -> 31330 | B62: 5301980 | C62: DARRINGTON | D62: 0 | E62: 0 | F62: =VLOOKUP(B62,'26-27 Adjusted Formula counts'!$A$3:$L$320,8,FALSE) -> 509 | G62: =ROUND((F62/$F$5*Assumptions!$C$22*Assumptions!$C$30),0) -> 2787 | H62: =VLOOKUP(B62,'26-27 Adjusted Formula counts'!$A$3:$L$320,9,FALSE) -> 40 | I62: =ROUND((H62/$H$5*Assumptions!$C$22*Assumptions!$C$31),0) -> 8254 | K62: 11041 | N62: 11041 | O62: 0 | P62: 11041 | R62: 0 | S62: 11041 | U62: =IFERROR(VLOOKUP($A62, 'Allocation 2025-26 Final'!$A$7:$S$323,19,FALSE),0) -> 11521 | W62: -480 | X62: -0.04166305008 | Y62: 177 | Z62: 0 | AB62: 5301980 | AC62: DARRINGTON
A63: =VLOOKUP(B63,CCDDD!$A$3:$B$319,2,FALSE) -> 22207 | B63: 5302010 | C63: DAVENPORT | D63: 0 | E63: 0 | F63: =VLOOKUP(B63,'26-27 Adjusted Formula counts'!$A$3:$L$320,8,FALSE) -> 588 | G63: =ROUND((F63/$F$5*Assumptions!$C$22*Assumptions!$C$30),0) -> 3219 | H63: =VLOOKUP(B63,'26-27 Adjusted Formula counts'!$A$3:$L$320,9,FALSE) -> 112 | I63: =ROUND((H63/$H$5*Assumptions!$C$22*Assumptions!$C$31),0) -> 23112 | K63: 26331 | N63: 26331 | O63: 0 | P63: 26331 | R63: 0 | S63: 26331 | U63: =IFERROR(VLOOKUP($A63, 'Allocation 2025-26 Final'!$A$7:$S$323,19,FALSE),0) -> 19343 | W63: 6988 | X63: 0.361267642 | Y63: 48 | Z63: 0 | AB63: 5302010 | AC63: DAVENPORT
A64: =VLOOKUP(B64,CCDDD!$A$3:$B$319,2,FALSE) -> 07002 | B64: 5302040 | C64: DAYTON | D64: 0 | E64: 0 | F64: =VLOOKUP(B64,'26-27 Adjusted Formula counts'!$A$3:$L$320,8,FALSE) -> 514 | G64: =ROUND((F64/$F$5*Assumptions!$C$22*Assumptions!$C$30),0) -> 2814 | H64: =VLOOKUP(B64,'26-27 Adjusted Formula counts'!$A$3:$L$320,9,FALSE) -> 92 | I64: =ROUND((H64/$H$5*Assumptions!$C$22*Assumptions!$C$31),0) -> 18985 | K64: 21799 | N64: 21799 | O64: 0 | P64: 21799 | R64: 0 | S64: 21799 | U64: =IFERROR(VLOOKUP($A64, 'Allocation 2025-26 Final'!$A$7:$S$323,19,FALSE),0) -> 20952 | W64: 847 | X64: 0.04042573501 | Y64: 121 | Z64: 0 | AB64: 5302040 | AC64: DAYTON
A65: =VLOOKUP(B65,CCDDD!$A$3:$B$319,2,FALSE) -> 32414 | B65: 5302070 | C65: DEER PARK | D65: 0 | E65: 0 | F65: =VLOOKUP(B65,'26-27 Adjusted Formula counts'!$A$3:$L$320,8,FALSE) -> 2376 | G65: =ROUND((F65/$F$5*Assumptions!$C$22*Assumptions!$C$30),0) -> 13009 | H65: =VLOOKUP(B65,'26-27 Adjusted Formula counts'!$A$3:$L$320,9,FALSE) -> 214 | I65: =ROUND((H65/$H$5*Assumptions!$C$22*Assumptions!$C$31),0) -> 44160 | K65: 57169 | N65: 57169 | O65: 0 | P65: 57169 | R65: 0 | S65: 57169 | U65: =IFERROR(VLOOKUP($A65, 'Allocation 2025-26 Final'!$A$7:$S$323,19,FALSE),0) -> 58022 | W65: -853 | X65: -0.01470132019 | Y65: 191 | Z65: 0 | AB65: 5302070 | AC65: DEER PARK
A66: =VLOOKUP(B66,CCDDD!$A$3:$B$319,2,FALSE) -> 27343 | B66: 5302130 | C66: DIERINGER | D66: 0 | E66: 0 | F66: =VLOOKUP(B66,'26-27 Adjusted Formula counts'!$A$3:$L$320,8,FALSE) -> 2296 | G66: =ROUND((F66/$F$5*Assumptions!$C$22*Assumptions!$C$30),0) -> 12571 | H66: =VLOOKUP(B66,'26-27 Adjusted Formula counts'!$A$3:$L$320,9,FALSE) -> 126 | I66: =ROUND((H66/$H$5*Assumptions!$C$22*Assumptions!$C$31),0) -> 26001 | K66: 38572 | N66: 38572 | O66: 0 | P66: 38572 | R66: 0 | S66: 38572 | U66: =IFERROR(VLOOKUP($A66, 'Allocation 2025-26 Final'!$A$7:$S$323,19,FALSE),0) -> 32388 | W66: 6184 | X66: 0.1909349142 | Y66: 50 | Z66: 0 | AB66: 5302130 | AC66: DIERINGER
A67: =VLOOKUP(B67,CCDDD!$A$3:$B$319,2,FALSE) -> 36101 | B67: 5302160 | C67: DIXIE | D67: 0 | E67: 0 | F67: =VLOOKUP(B67,'26-27 Adjusted Formula counts'!$A$3:$L$320,8,FALSE) -> 74 | G67: =ROUND((F67/$F$5*Assumptions!$C$22*Assumptions!$C$30),0) -> 405 | H67: =VLOOKUP(B67,'26-27 Adjusted Formula counts'!$A$3:$L$320,9,FALSE) -> 1 | I67: =ROUND((H67/$H$5*Assumptions!$C$22*Assumptions!$C$31),0) -> 206 | K67: 611 | N67: 611 | O67: 0 | P67: 611 | R67: 0 | S67: 611 | U67: =IFERROR(VLOOKUP($A67, 'Allocation 2025-26 Final'!$A$7:$S$323,19,FALSE),0) -> 1603 | W67: -992 | X67: -0.6188396756 | Y67: 194 | Z67: 0 | AB67: 5302160 | AC67: DIXIE
A68: =VLOOKUP(B68,CCDDD!$A$3:$B$319,2,FALSE) -> 32361 | B68: 5302280 | C68: EAST VALLEY (SPK) | D68: 0 | E68: 0 | F68: =VLOOKUP(B68,'26-27 Adjusted Formula counts'!$A$3:$L$320,8,FALSE) -> 4697 | G68: =ROUND((F68/$F$5*Assumptions!$C$22*Assumptions!$C$30),0) -> 25716 | H68: =VLOOKUP(B68,'26-27 Adjusted Formula counts'!$A$3:$L$320,9,FALSE) -> 543 | I68: =ROUND((H68/$H$5*Assumptions!$C$22*Assumptions!$C$31),0) -> 112051 | K68: 137767 | N68: 137767 | O68: 0 | P68: 137767 | R68: 0 | S68: 137767 | U68: =IFERROR(VLOOKUP($A68, 'Allocation 2025-26 Final'!$A$7:$S$323,19,FALSE),0) -> 140040 | W68: -2273 | X68: -0.01623107684 | Y68: 232 | Z68: 0 | AB68: 5302280 | AC68: EAST VALLEY (SPK)
A69: =VLOOKUP(B69,CCDDD!$A$3:$B$319,2,FALSE) -> 39090 | B69: 5305370 | C69: EAST VALLEY (YAK) | D69: 0 | E69: 0 | F69: =VLOOKUP(B69,'26-27 Adjusted Formula counts'!$A$3:$L$320,8,FALSE) -> 3534 | G69: =ROUND((F69/$F$5*Assumptions!$C$22*Assumptions!$C$30),0) -> 19349 | H69: =VLOOKUP(B69,'26-27 Adjusted Formula counts'!$A$3:$L$320,9,FALSE) -> 515 | I69: =ROUND((H69/$H$5*Assumptions!$C$22*Assumptions!$C$31),0) -> 106273 | K69: 125622 | N69: 125622 | O69: 0 | P69: 125622 | R69: 0 | S69: 125622 | U69: =IFERROR(VLOOKUP($A69, 'Allocation 2025-26 Final'!$A$7:$S$323,19,FALSE),0) -> 115226 | W69: 10396 | X69: 0.0902226928 | Y69: 35 | Z69: 0 | AB69: 5305370 | AC69: EAST VALLEY (YAK)
A70: =VLOOKUP(B70,CCDDD!$A$3:$B$319,2,FALSE) -> 09206 | B70: 5302310 | C70: EASTMONT | D70: 0 | E70: 0 | F70: =VLOOKUP(B70,'26-27 Adjusted Formula counts'!$A$3:$L$320,8,FALSE) -> 6294 | G70: =ROUND((F70/$F$5*Assumptions!$C$22*Assumptions!$C$30),0) -> 34460 | H70: =VLOOKUP(B70,'26-27 Adjusted Formula counts'!$A$3:$L$320,9,FALSE) -> 816 | I70: =ROUND((H70/$H$5*Assumptions!$C$22*Assumptions!$C$31),0) -> 168386 | K70: 202846 | N70: 202846 | O70: 0 | P70: 202846 | R70: 0 | S70: 202846 | U70: =IFERROR(VLOOKUP($A70, 'Allocation 2025-26 Final'!$A$7:$S$323,19,FALSE),0) -> 206760 | W70: -3914 | X70: -0.01893016057 | Y70: 248 | Z70: 0 | AB70: 5302310 | AC70: EASTMONT
A71: =VLOOKUP(B71,CCDDD!$A$3:$B$319,2,FALSE) -> 19028 | B71: 5302340 | C71: EASTON | D71: 0 | E71: 0 | F71: =VLOOKUP(B71,'26-27 Adjusted Formula counts'!$A$3:$L$320,8,FALSE) -> 160 | G71: =ROUND((F71/$F$5*Assumptions!$C$22*Assumptions!$C$30),0) -> 876 | H71: =VLOOKUP(B71,'26-27 Adjusted Formula counts'!$A$3:$L$320,9,FALSE) -> 12 | I71: =ROUND((H71/$H$5*Assumptions!$C$22*Assumptions!$C$31),0) -> 2476 | K71: =ROUNDDOWN(+I71+G71+E71+D71+J71,0) -> 3352 | N71: =K71 -> 3352 | O71: =-ROUND(N71/$N$5*$M$5,0) -> 0 | P71: =+K71+O71+M71 -> 3352 | R71: =-1*(P71*Q71) -> 0 | S71: =+P71+R71 -> 3352 | U71: =IFERROR(VLOOKUP($A71, 'Allocation 2025-26 Final'!$A$7:$S$323,19,FALSE),0) -> 5039 | W71: =+S71-U71 -> -1687 | X71: =IF(U71>0,W71/U71,0) -> -0.3347886485 | Y71: =RANK(W71,$W$7:$W$319,0) -> 213 | Z71: =(SUM(D71:E71)/S71) -> 0 | AB71: =+B71 -> 5302340 | AC71: EASTON
A72: =VLOOKUP(B72,CCDDD!$A$3:$B$319,2,FALSE) -> 27404 | B72: 5302370 | C72: EATONVILLE | D72: 0 | E72: 0 | F72: =VLOOKUP(B72,'26-27 Adjusted Formula counts'!$A$3:$L$320,8,FALSE) -> 2223 | G72: =ROUND((F72/$F$5*Assumptions!$C$22*Assumptions!$C$30),0) -> 12171 | H72: =VLOOKUP(B72,'26-27 Adjusted Formula counts'!$A$3:$L$320,9,FALSE) -> 174 | I72: =ROUND((H72/$H$5*Assumptions!$C$22*Assumptions!$C$31),0) -> 35906 | K72: 48077 | N72: 48077 | O72: 0 | P72: 48077 | R72: 0 | S72: 48077 | U72: =IFERROR(VLOOKUP($A72, 'Allocation 2025-26 Final'!$A$7:$S$323,19,FALSE),0) -> 41973 | W72: 6104 | X72: 0.145426822 | Y72: 52 | Z72: 0 | AB72: 5302370 | AC72: EATONVILLE
A73: =VLOOKUP(B73,CCDDD!$A$3:$B$319,2,FALSE) -> 31015 | B73: 5302400 | C73: EDMONDS | D73: 0 | E73: 0 | F73: =VLOOKUP(B73,'26-27 Adjusted Formula counts'!$A$3:$L$320,8,FALSE) -> 24603 | G73: =ROUND((F73/$F$5*Assumptions!$C$22*Assumptions!$C$30),0) -> 134702 | H73: =VLOOKUP(B73,'26-27 Adjusted Formula counts'!$A$3:$L$320,9,FALSE) -> 2255 | I73: =ROUND((H73/$H$5*Assumptions!$C$22*Assumptions!$C$31),0) -> 465333 | K73: 600035 | N73: 600035 | O73: 0 | P73: 600035 | R73: 0 | S73: 600035 | U73: =IFERROR(VLOOKUP($A73, 'Allocation 2025-26 Final'!$A$7:$S$323,19,FALSE),0) -> 599588 | W73: 447 | X73: 0.0007455119182 | Y73: 137 | Z73: 0 | AB73: 5302400 | AC73: EDMONDS
A74: =VLOOKUP(B74,CCDDD!$A$3:$B$319,2,FALSE) -> 19401 | B74: 5302460 | C74: ELLENSBURG | D74: 0 | E74: 0 | F74: =VLOOKUP(B74,'26-27 Adjusted Formula counts'!$A$3:$L$320,8,FALSE) -> 3660 | G74: =ROUND((F74/$F$5*Assumptions!$C$22*Assumptions!$C$30),0) -> 20039 | H74: =VLOOKUP(B74,'26-27 Adjusted Formula counts'!$A$3:$L$320,9,FALSE) -> 426 | I74: =ROUND((H74/$H$5*Assumptions!$C$22*Assumptions!$C$31),0) -> 87908 | K74: 107947 | N74: 107947 | O74: 0 | P74: 107947 | R74: 0 | S74: 107947 | U74: =IFERROR(VLOOKUP($A74, 'Allocation 2025-26 Final'!$A$7:$S$323,19,FALSE),0) -> 105867 | W74: 2080 | X74: 0.0196472933 | Y74: 85 | Z74: 0 | AB74: 5302460 | AC74: ELLENSBURG
A75: =VLOOKUP(B75,CCDDD!$A$3:$B$319,2,FALSE) -> 14068 | B75: 5302490 | C75: ELMA | D75: 0 | E75: 0 | F75: =VLOOKUP(B75,'26-27 Adjusted Formula counts'!$A$3:$L$320,8,FALSE) -> 1576 | G75: =ROUND((F75/$F$5*Assumptions!$C$22*Assumptions!$C$30),0) -> 8629 | H75: =VLOOKUP(B75,'26-27 Adjusted Formula counts'!$A$3:$L$320,9,FALSE) -> 262 | I75: =ROUND((H75/$H$5*Assumptions!$C$22*Assumptions!$C$31),0) -> 54065 | K75: 62694 | N75: 62694 | O75: 0 | P75: 62694 | R75: 0 | S75: 62694 | U75: =IFERROR(VLOOKUP($A75, 'Allocation 2025-26 Final'!$A$7:$S$323,19,FALSE),0) -> 56703 | W75: 5991 | X75: 0.1056557854 | Y75: 53 | Z75: 0 | AB75: 5302490 | AC75: ELMA
A76: =VLOOKUP(B76,CCDDD!$A$3:$B$319,2,FALSE) -> 38308 | B76: 5302520 | C76: ENDICOTT | D76: 0 | E76: 0 | F76: =VLOOKUP(B76,'26-27 Adjusted Formula counts'!$A$3:$L$320,8,FALSE) -> 90 | G76: =ROUND((F76/$F$5*Assumptions!$C$22*Assumptions!$C$30),0) -> 493 | H76: =VLOOKUP(B76,'26-27 Adjusted Formula counts'!$A$3:$L$320,9,FALSE) -> 12 | I76: =ROUND((H76/$H$5*Assumptions!$C$22*Assumptions!$C$31),0) -> 2476 | K76: 2969 | N76: 2969 | O76: 0 | P76: 2969 | R76: 0 | S76: 2969 | U76: =IFERROR(VLOOKUP($A76, 'Allocation 2025-26 Final'!$A$7:$S$323,19,FALSE),0) -> 4876 | W76: -1907 | X76: -0.3910992617 | Y76: 222 | Z76: 0 | AB76: 5302520 | AC76: ENDICOTT
A77: =VLOOKUP(B77,CCDDD!$A$3:$B$319,2,FALSE) -> 04127 | B77: 5302550 | C77: ENTIAT | D77: 0 | E77: 0 | F77: =VLOOKUP(B77,'26-27 Adjusted Formula counts'!$A$3:$L$320,8,FALSE) -> 417 | G77: =ROUND((F77/$F$5*Assumptions!$C$22*Assumptions!$C$30),0) -> 2283 | H77: =VLOOKUP(B77,'26-27 Adjusted Formula counts'!$A$3:$L$320,9,FALSE) -> 37 | I77: =ROUND((H77/$H$5*Assumptions!$C$22*Assumptions!$C$31),0) -> 7635 | K77: 9918 | N77: 9918 | O77: 0 | P77: 9918 | R77: 0 | S77: 9918 | U77: =IFERROR(VLOOKUP($A77, 'Allocation 2025-26 Final'!$A$7:$S$323,19,FALSE),0) -> 15181 | W77: -5263 | X77: -0.3466833542 | Y77: 266 | Z77: 0 | AB77: 5302550 | AC77: ENTIAT
A78: =VLOOKUP(B78,CCDDD!$A$3:$B$319,2,FALSE) -> 17216 | B78: 5300001 | C78: ENUMCLAW | D78: 0 | E78: 0 | F78: =VLOOKUP(B78,'26-27 Adjusted Formula counts'!$A$3:$L$320,8,FALSE) -> 4736 | G78: =ROUND((F78/$F$5*Assumptions!$C$22*Assumptions!$C$30),0) -> 25930 | H78: =VLOOKUP(B78,'26-27 Adjusted Formula counts'!$A$3:$L$320,9,FALSE) -> 251 | I78: =ROUND((H78/$H$5*Assumptions!$C$22*Assumptions!$C$31),0) -> 51795 | K78: 77725 | N78: 77725 | O78: 0 | P78: 77725 | R78: 0 | S78: 77725 | U78: =IFERROR(VLOOKUP($A78, 'Allocation 2025-26 Final'!$A$7:$S$323,19,FALSE),0) -> 80063 | W78: -2338 | X78: -0.02920200342 | Y78: 235 | Z78: 0 | AB78: 5300001 | AC78: ENUMCLAW
A79: =VLOOKUP(B79,CCDDD!$A$3:$B$319,2,FALSE) -> 13165 | B79: 5302610 | C79: EPHRATA | D79: 0 | E79: 0 | F79: =VLOOKUP(B79,'26-27 Adjusted Formula counts'!$A$3:$L$320,8,FALSE) -> 2895 | G79: =ROUND((F79/$F$5*Assumptions!$C$22*Assumptions!$C$30),0) -> 15850 | H79: =VLOOKUP(B79,'26-27 Adjusted Formula counts'!$A$3:$L$320,9,FALSE) -> 495 | I79: =ROUND((H79/$H$5*Assumptions!$C$22*Assumptions!$C$31),0) -> 102146 | K79: 117996 | N79: 117996 | O79: 0 | P79: 117996 | R79: 0 | S79: 117996 | U79: =IFERROR(VLOOKUP($A79, 'Allocation 2025-26 Final'!$A$7:$S$323,19,FALSE),0) -> 100930 | W79: 17066 | X79: 0.1690874864 | Y79: 24 | Z79: 0 | AB79: 5302610 | AC79: EPHRATA
A80: =VLOOKUP(B80,CCDDD!$A$3:$B$319,2,FALSE) -> 21036 | B80: 5302640 | C80: EVALINE | D80: 0 | E80: 0 | F80: =VLOOKUP(B80,'26-27 Adjusted Formula counts'!$A$3:$L$320,8,FALSE) -> 132 | G80: =ROUND((F80/$F$5*Assumptions!$C$22*Assumptions!$C$30),0) -> 723 | H80: =VLOOKUP(B80,'26-27 Adjusted Formula counts'!$A$3:$L$320,9,FALSE) -> 17 | I80: =ROUND((H80/$H$5*Assumptions!$C$22*Assumptions!$C$31),0) -> 3508 | K80: 4231 | N80: 4231 | O80: 0 | P80: 4231 | R80: 0 | S80: 4231 | U80: =IFERROR(VLOOKUP($A80, 'Allocation 2025-26 Final'!$A$7:$S$323,19,FALSE),0) -> 3896 | W80: 335 | X80: 0.08598562628 | Y80: 143 | Z80: 0 | AB80: 5302640 | AC80: EVALINE
A81: =VLOOKUP(B81,CCDDD!$A$3:$B$319,2,FALSE) -> 31002 | B81: 5302670 | C81: EVERETT | D81: 0 | E81: 0 | F81: =VLOOKUP(B81,'26-27 Adjusted Formula counts'!$A$3:$L$320,8,FALSE) -> 23123 | G81: =ROUND((F81/$F$5*Assumptions!$C$22*Assumptions!$C$30),0) -> 126599 | H81: =VLOOKUP(B81,'26-27 Adjusted Formula counts'!$A$3:$L$320,9,FALSE) -> 2244 | I81: =ROUND((H81/$H$5*Assumptions!$C$22*Assumptions!$C$31),0) -> 463063 | K81: 589662 | N81: 589662 | O81: 0 | P81: 589662 | R81: 0 | S81: 589662 | U81: =IFERROR(VLOOKUP($A81, 'Allocation 2025-26 Final'!$A$7:$S$323,19,FALSE),0) -> 608073 | W81: -18411 | X81: -0.03027761469 | Y81: 298 | Z81: 0 | AB81: 5302670 | AC81: EVERETT
A82: =VLOOKUP(B82,CCDDD!$A$3:$B$319,2,FALSE) -> 06114 | B82: 5302700 | C82: EVERGREEN (CLARK) | D82: 0 | E82: 0 | F82: =VLOOKUP(B82,'26-27 Adjusted Formula counts'!$A$3:$L$320,8,FALSE) -> 26694 | G82: =ROUND((F82/$F$5*Assumptions!$C$22*Assumptions!$C$30),0) -> 146150 | H82: =VLOOKUP(B82,'26-27 Adjusted Formula counts'!$A$3:$L$320,9,FALSE) -> 2621 | I82: =ROUND((H82/$H$5*Assumptions!$C$22*Assumptions!$C$31),0) -> 540859 | K82: 687009 | N82: 687009 | O82: 0 | P82: 687009 | R82: 0 | S82: 687009 | U82: =IFERROR(VLOOKUP($A82, 'Allocation 2025-26 Final'!$A$7:$S$323,19,FALSE),0) -> 660990 | W82: 26019 | X82: 0.03936368175 | Y82: 16 | Z82: 0 | AB82: 5302700 | AC82: EVERGREEN (CLARK)
A83: =VLOOKUP(B83,CCDDD!$A$3:$B$319,2,FALSE) -> 33205 | B83: 5302730 | C83: EVERGREEN (STEV) | D83: 0 | E83: 0 | F83: =VLOOKUP(B83,'26-27 Adjusted Formula counts'!$A$3:$L$320,8,FALSE) -> 56 | G83: =ROUND((F83/$F$5*Assumptions!$C$22*Assumptions!$C$30),0) -> 307 | H83: =VLOOKUP(B83,'26-27 Adjusted Formula counts'!$A$3:$L$320,9,FALSE) -> 19 | I83: =ROUND((H83/$H$5*Assumptions!$C$22*Assumptions!$C$31),0) -> 3921 | K83: 4228 | N83: 4228 | O83: 0 | P83: 4228 | R83: 0 | S83: 4228 | U83: =IFERROR(VLOOKUP($A83, 'Allocation 2025-26 Final'!$A$7:$S$323,19,FALSE),0) -> 3699 | W83: 529 | X83: 0.1430116248 | Y83: 132 | Z83: 0 | AB83: 5302730 | AC83: EVERGREEN (STEV)
A84: =VLOOKUP(B84,CCDDD!$A$3:$B$319,2,FALSE) -> 17210 | B84: 5302820 | C84: FEDERAL WAY | D84: 0 | E84: 0 | F84: =VLOOKUP(B84,'26-27 Adjusted Formula counts'!$A$3:$L$320,8,FALSE) -> 24447 | G84: =ROUND((F84/$F$5*Assumptions!$C$22*Assumptions!$C$30),0) -> 133848 | H84: =VLOOKUP(B84,'26-27 Adjusted Formula counts'!$A$3:$L$320,9,FALSE) -> 4134 | I84: =ROUND((H84/$H$5*Assumptions!$C$22*Assumptions!$C$31),0) -> 853075 | K84: 986923 | N84: 986923 | O84: 0 | P84: 986923 | R84: 0 | S84: 986923 | U84: =IFERROR(VLOOKUP($A84, 'Allocation 2025-26 Final'!$A$7:$S$323,19,FALSE),0) -> 966914 | W84: 20009 | X84: 0.02069367079 | Y84: 21 | Z84: 0 | AB84: 5302820 | AC84: FEDERAL WAY
A85: =VLOOKUP(B85,CCDDD!$A$3:$B$319,2,FALSE) -> 37502 | B85: 5302850 | C85: FERNDALE | D85: 0 | E85: 0 | F85: =VLOOKUP(B85,'26-27 Adjusted Formula counts'!$A$3:$L$320,8,FALSE) -> 6112 | G85: =ROUND((F85/$F$5*Assumptions!$C$22*Assumptions!$C$30),0) -> 33463 | H85: =VLOOKUP(B85,'26-27 Adjusted Formula counts'!$A$3:$L$320,9,FALSE) -> 543 | I85: =ROUND((H85/$H$5*Assumptions!$C$22*Assumptions!$C$31),0) -> 112051 | K85: 145514 | N85: 145514 | O85: 0 | P85: 145514 | R85: 0 | S85: 145514 | U85: =IFERROR(VLOOKUP($A85, 'Allocation 2025-26 Final'!$A$7:$S$323,19,FALSE),0) -> 186925 | W85: -41411 | X85: -0.22153805 | Y85: 308 | Z85: 0 | AB85: 5302850 | AC85: FERNDALE
A86: =VLOOKUP(B86,CCDDD!$A$3:$B$319,2,FALSE) -> 27417 | B86: 5302880 | C86: FIFE | D86: 0 | E86: 0 | F86: =VLOOKUP(B86,'26-27 Adjusted Formula counts'!$A$3:$L$320,8,FALSE) -> 4106 | G86: =ROUND((F86/$F$5*Assumptions!$C$22*Assumptions!$C$30),0) -> 22480 | H86: =VLOOKUP(B86,'26-27 Adjusted Formula counts'!$A$3:$L$320,9,FALSE) -> 458 | I86: =ROUND((H86/$H$5*Assumptions!$C$22*Assumptions!$C$31),0) -> 94511 | K86: 116991 | N86: 116991 | O86: 0 | P86: 116991 | R86: 0 | S86: 116991 | U86: =IFERROR(VLOOKUP($A86, 'Allocation 2025-26 Final'!$A$7:$S$323,19,FALSE),0) -> 99193 | W86: 17798 | X86: 0.1794279838 | Y86: 23 | Z86: 0 | AB86: 5302880 | AC86: FIFE
A87: =VLOOKUP(B87,CCDDD!$A$3:$B$319,2,FALSE) -> 03053 | B87: 5302910 | C87: FINLEY | D87: 0 | E87: 0 | F87: =VLOOKUP(B87,'26-27 Adjusted Formula counts'!$A$3:$L$320,8,FALSE) -> 920 | G87: =ROUND((F87/$F$5*Assumptions!$C$22*Assumptions!$C$30),0) -> 5037 | H87: =VLOOKUP(B87,'26-27 Adjusted Formula counts'!$A$3:$L$320,9,FALSE) -> 93 | I87: =ROUND((H87/$H$5*Assumptions!$C$22*Assumptions!$C$31),0) -> 19191 | K87: 24228 | N87: 24228 | O87: 0 | P87: 24228 | R87: 0 | S87: 24228 | U87: =IFERROR(VLOOKUP($A87, 'Allocation 2025-26 Final'!$A$7:$S$323,19,FALSE),0) -> 27526 | W87: -3298 | X87: -0.119813994 | Y87: 242 | Z87: 0 | AB87: 5302910 | AC87: FINLEY
A88: =VLOOKUP(B88,CCDDD!$A$3:$B$319,2,FALSE) -> 27402 | B88: 5302940 | C88: FRANKLIN PIERCE | D88: 0 | E88: 0 | F88: =VLOOKUP(B88,'26-27 Adjusted Formula counts'!$A$3:$L$320,8,FALSE) -> 9347 | G88: =ROUND((F88/$F$5*Assumptions!$C$22*Assumptions!$C$30),0) -> 51175 | H88: =VLOOKUP(B88,'26-27 Adjusted Formula counts'!$A$3:$L$320,9,FALSE) -> 1533 | I88: =ROUND((H88/$H$5*Assumptions!$C$22*Assumptions!$C$31),0) -> 316344 | K88: 367519 | N88: 367519 | O88: 0 | P88: 367519 | R88: 0 | S88: 367519 | U88: =IFERROR(VLOOKUP($A88, 'Allocation 2025-26 Final'!$A$7:$S$323,19,FALSE),0) -> 319493 | W88: 48026 | X88: 0.1503194123 | Y88: 8 | Z88: 0 | AB88: 5302940 | AC88: FRANKLIN PIERCE
A89: =VLOOKUP(B89,CCDDD!$A$3:$B$319,2,FALSE) -> 32358 | B89: 5302970 | C89: FREEMAN | D89: 0 | E89: 0 | F89: =VLOOKUP(B89,'26-27 Adjusted Formula counts'!$A$3:$L$320,8,FALSE) -> 998 | G89: =ROUND((F89/$F$5*Assumptions!$C$22*Assumptions!$C$30),0) -> 5464 | H89: =VLOOKUP(B89,'26-27 Adjusted Formula counts'!$A$3:$L$320,9,FALSE) -> 29 | I89: =ROUND((H89/$H$5*Assumptions!$C$22*Assumptions!$C$31),0) -> 5984 | K89: 11448 | N89: 11448 | O89: 0 | P89: 11448 | R89: 0 | S89: 11448 | U89: =IFERROR(VLOOKUP($A89, 'Allocation 2025-26 Final'!$A$7:$S$323,19,FALSE),0) -> 12612 | W89: -1164 | X89: -0.09229305423 | Y89: 199 | Z89: 0 | AB89: 5302970 | AC89: FREEMAN
A90: =VLOOKUP(B90,CCDDD!$A$3:$B$319,2,FALSE) -> 38302 | B90: 5303000 | C90: GARFIELD | D90: 0 | E90: 0 | F90: =VLOOKUP(B90,'26-27 Adjusted Formula counts'!$A$3:$L$320,8,FALSE) -> 132 | G90: =ROUND((F90/$F$5*Assumptions!$C$22*Assumptions!$C$30),0) -> 723 | H90: =VLOOKUP(B90,'26-27 Adjusted Formula counts'!$A$3:$L$320,9,FALSE) -> 28 | I90: =ROUND((H90/$H$5*Assumptions!$C$22*Assumptions!$C$31),0) -> 5778 | K90: 6501 | N90: 6501 | O90: 0 | P90: 6501 | R90: 0 | S90: 6501 | U90: =IFERROR(VLOOKUP($A90, 'Allocation 2025-26 Final'!$A$7:$S$323,19,FALSE),0) -> 7297 | W90: -796 | X90: -0.1090859257 | Y90: 188 | Z90: 0 | AB90: 5303000 | AC90: GARFIELD
A91: =VLOOKUP(B91,CCDDD!$A$3:$B$319,2,FALSE) -> 20401 | B91: 5303030 | C91: GLENWOOD | D91: 0 | E91: 0 | F91: =VLOOKUP(B91,'26-27 Adjusted Formula counts'!$A$3:$L$320,8,FALSE) -> 62 | G91: =ROUND((F91/$F$5*Assumptions!$C$22*Assumptions!$C$30),0) -> 339 | H91: =VLOOKUP(B91,'26-27 Adjusted Formula counts'!$A$3:$L$320,9,FALSE) -> 10 | I91: =ROUND((H91/$H$5*Assumptions!$C$22*Assumptions!$C$31),0) -> 2064 | K91: 2403 | N91: 2403 | O91: 0 | P91: 2403 | R91: 0 | S91: 2403 | U91: =IFERROR(VLOOKUP($A91, 'Allocation 2025-26 Final'!$A$7:$S$323,19,FALSE),0) -> 2132 | W91: 271 | X91: 0.1271106942 | Y91: 147 | Z91: 0 | AB91: 5303030 | AC91: GLENWOOD
A92: =VLOOKUP(B92,CCDDD!$A$3:$B$319,2,FALSE) -> 20404 | B92: 5303090 | C92: GOLDENDALE | D92: 0 | E92: 0 | F92: =VLOOKUP(B92,'26-27 Adjusted Formula counts'!$A$3:$L$320,8,FALSE) -> 1076 | G92: =ROUND((F92/$F$5*Assumptions!$C$22*Assumptions!$C$30),0) -> 5891 | H92: =VLOOKUP(B92,'26-27 Adjusted Formula counts'!$A$3:$L$320,9,FALSE) -> 162 | I92: =ROUND((H92/$H$5*Assumptions!$C$22*Assumptions!$C$31),0) -> 33430 | K92: 39321 | N92: 39321 | O92: 0 | P92: 39321 | R92: 0 | S92: 39321 | U92: =IFERROR(VLOOKUP($A92, 'Allocation 2025-26 Final'!$A$7:$S$323,19,FALSE),0) -> 37939 | W92: 1382 | X92: 0.03642689581 | Y92: 106 | Z92: 0 | AB92: 5303090 | AC92: GOLDENDALE
A93: =VLOOKUP(B93,CCDDD!$A$3:$B$319,2,FALSE) -> 13301 | B93: 5303130 | C93: GRAND COULEE | D93: 0 | E93: 0 | F93: =VLOOKUP(B93,'26-27 Adjusted Formula counts'!$A$3:$L$320,8,FALSE) -> 670 | G93: =ROUND((F93/$F$5*Assumptions!$C$22*Assumptions!$C$30),0) -> 3668 | H93: =VLOOKUP(B93,'26-27 Adjusted Formula counts'!$A$3:$L$320,9,FALSE) -> 149 | I93: =ROUND((H93/$H$5*Assumptions!$C$22*Assumptions!$C$31),0) -> 30747 | K93: 34415 | N93: 34415 | O93: 0 | P93: 34415 | R93: 0 | S93: 34415 | U93: =IFERROR(VLOOKUP($A93, 'Allocation 2025-26 Final'!$A$7:$S$323,19,FALSE),0) -> 25781 | W93: 8634 | X93: 0.3348977929 | Y93: 43 | Z93: 0 | AB93: 5303130 | AC93: GRAND COULEE
A94: =VLOOKUP(B94,CCDDD!$A$3:$B$319,2,FALSE) -> 39200 | B94: 5303150 | C94: GRANDVIEW | D94: 0 | E94: 0 | F94: =VLOOKUP(B94,'26-27 Adjusted Formula counts'!$A$3:$L$320,8,FALSE) -> 3712 | G94: =ROUND((F94/$F$5*Assumptions!$C$22*Assumptions!$C$30),0) -> 20323 | H94: =VLOOKUP(B94,'26-27 Adjusted Formula counts'!$A$3:$L$320,9,FALSE) -> 820 | I94: =ROUND((H94/$H$5*Assumptions!$C$22*Assumptions!$C$31),0) -> 169212 | K94: 189535 | N94: 189535 | O94: 0 | P94: 189535 | R94: 0 | S94: 189535 | U94: =IFERROR(VLOOKUP($A94, 'Allocation 2025-26 Final'!$A$7:$S$323,19,FALSE),0) -> 180986 | W94: 8549 | X94: 0.04723569779 | Y94: 44 | Z94: 0 | AB94: 5303150 | AC94: GRANDVIEW
A95: =VLOOKUP(B95,CCDDD!$A$3:$B$319,2,FALSE) -> 39204 | B95: 5303180 | C95: GRANGER | D95: 0 | E95: 0 | F95: =VLOOKUP(B95,'26-27 Adjusted Formula counts'!$A$3:$L$320,8,FALSE) -> 1577 | G95: =ROUND((F95/$F$5*Assumptions!$C$22*Assumptions!$C$30),0) -> 8634 | H95: =VLOOKUP(B95,'26-27 Adjusted Formula counts'!$A$3:$L$320,9,FALSE) -> 249 | I95: =ROUND((H95/$H$5*Assumptions!$C$22*Assumptions!$C$31),0) -> 51383 | K95: 60017 | N95: 60017 | O95: 0 | P95: 60017 | R95: 0 | S95: 60017 | U95: =IFERROR(VLOOKUP($A95, 'Allocation 2025-26 Final'!$A$7:$S$323,19,FALSE),0) -> 58664 | W95: 1353 | X95: 0.02306354834 | Y95: 107 | Z95: 0 | AB95: 5303180 | AC95: GRANGER
A96: =VLOOKUP(B96,CCDDD!$A$3:$B$319,2,FALSE) -> 31332 | B96: 5303210 | C96: GRANITE FALLS | D96: 0 | E96: 0 | F96: =VLOOKUP(B96,'26-27 Adjusted Formula counts'!$A$3:$L$320,8,FALSE) -> 2838 | G96: =ROUND((F96/$F$5*Assumptions!$C$22*Assumptions!$C$30),0) -> 15538 | H96: =VLOOKUP(B96,'26-27 Adjusted Formula counts'!$A$3:$L$320,9,FALSE) -> 182 | I96: =ROUND((H96/$H$5*Assumptions!$C$22*Assumptions!$C$31),0) -> 37557 | K96: 53095 | N96: 53095 | O96: 0 | P96: 53095 | R96: 0 | S96: 53095 | U96: =IFERROR(VLOOKUP($A96, 'Allocation 2025-26 Final'!$A$7:$S$323,19,FALSE),0) -> 51196 | W96: 1899 | X96: 0.03709274162 | Y96: 91 | Z96: 0 | AB96: 5303210 | AC96: GRANITE FALLS
A97: =VLOOKUP(B97,CCDDD!$A$3:$B$319,2,FALSE) -> 23054 | B97: 5303240 | C97: GRAPEVIEW | D97: 0 | E97: 0 | F97: =VLOOKUP(B97,'26-27 Adjusted Formula counts'!$A$3:$L$320,8,FALSE) -> 347 | G97: =ROUND((F97/$F$5*Assumptions!$C$22*Assumptions!$C$30),0) -> 1900 | H97: =VLOOKUP(B97,'26-27 Adjusted Formula counts'!$A$3:$L$320,9,FALSE) -> 34 | I97: =ROUND((H97/$H$5*Assumptions!$C$22*Assumptions!$C$31),0) -> 7016 | K97: 8916 | N97: 8916 | O97: 0 | P97: 8916 | R97: 0 | S97: 8916 | U97: =IFERROR(VLOOKUP($A97, 'Allocation 2025-26 Final'!$A$7:$S$323,19,FALSE),0) -> 8836 | W97: 80 | X97: 0.00905387053 | Y97: 154 | Z97: 0 | AB97: 5303240 | AC97: GRAPEVIEW
A98: =VLOOKUP(B98,CCDDD!$A$3:$B$319,2,FALSE) -> 32312 | B98: 5303270 | C98: GREAT NORTHERN | D98: 0 | E98: 0 | F98: =VLOOKUP(B98,'26-27 Adjusted Formula counts'!$A$3:$L$320,8,FALSE) -> 188 | G98: =ROUND((F98/$F$5*Assumptions!$C$22*Assumptions!$C$30),0) -> 1029 | H98: =VLOOKUP(B98,'26-27 Adjusted Formula counts'!$A$3:$L$320,9,FALSE) -> 33 | I98: =ROUND((H98/$H$5*Assumptions!$C$22*Assumptions!$C$31),0) -> 6810 | K98: 7839 | N98: 7839 | O98: 0 | P98: 7839 | R98: 0 | S98: 7839 | U98: =IFERROR(VLOOKUP($A98, 'Allocation 2025-26 Final'!$A$7:$S$323,19,FALSE),0) -> 8199 | W98: -360 | X98: -0.04390779363 | Y98: 172 | Z98: 0 | AB98: 5303270 | AC98: GREAT NORTHERN
A99: =VLOOKUP(B99,CCDDD!$A$3:$B$319,2,FALSE) -> 17910 | B99: 5303280 | C99: RAINIER VALLEY CHARTER | D99: 0 | E99: 0 | F99: =VLOOKUP(B99,'26-27 Adjusted Formula counts'!$A$3:$L$320,8,FALSE) -> 176.5700073 | G99: =ROUND((F99/$F$5*Assumptions!$C$22*Assumptions!$C$30),0) -> 967 | H99: =VLOOKUP(B99,'26-27 Adjusted Formula counts'!$A$3:$L$320,9,FALSE) -> 26.89731361 | I99: =ROUND((H99/$H$5*Assumptions!$C$22*Assumptions!$C$31),0) -> 5550 | K99: 6517 | N99: 6517 | O99: 0 | P99: 6517 | R99: 0 | S99: 6517 | U99: =IFERROR(VLOOKUP($A99, 'Allocation 2025-26 Final'!$A$7:$S$323,19,FALSE),0) -> 5381 | W99: 1136 | X99: 0.211113176 | Y99: 115 | Z99: 0 | AB99: 5303280 | AC99: RAINIER VALLEY CHARTER
A100: =VLOOKUP(B100,CCDDD!$A$3:$B$319,2,FALSE) -> 06103 | B100: 5303300 | C100: GREEN MOUNTAIN | D100: 0 | E100: 0 | F100: =VLOOKUP(B100,'26-27 Adjusted Formula counts'!$A$3:$L$320,8,FALSE) -> 205 | G100: =ROUND((F100/$F$5*Assumptions!$C$22*Assumptions!$C$30),0) -> 1122 | H100: =VLOOKUP(B100,'26-27 Adjusted Formula counts'!$A$3:$L$320,9,FALSE) -> 13 | I100: =ROUND((H100/$H$5*Assumptions!$C$22*Assumptions!$C$31),0) -> 2683 | K100: 3805 | N100: 3805 | O100: 0 | P100: 3805 | R100: 0 | S100: 3805 | U100: =IFERROR(VLOOKUP($A100, 'Allocation 2025-26 Final'!$A$7:$S$323,19,FALSE),0) -> 3511 | W100: 294 | X100: 0.08373682711 | Y100: 145 | Z100: 0 | AB100: 5303300 | AC100: GREEN MOUNTAIN
A101: =VLOOKUP(B101,CCDDD!$A$3:$B$319,2,FALSE) -> 34324 | B101: 5303330 | C101: GRIFFIN | D101: 0 | E101: 0 | F101: =VLOOKUP(B101,'26-27 Adjusted Formula counts'!$A$3:$L$320,8,FALSE) -> 901 | G101: =ROUND((F101/$F$5*Assumptions!$C$22*Assumptions!$C$30),0) -> 4933 | H101: =VLOOKUP(B101,'26-27 Adjusted Formula counts'!$A$3:$L$320,9,FALSE) -> 48 | I101: =ROUND((H101/$H$5*Assumptions!$C$22*Assumptions!$C$31),0) -> 9905 | K101: 14838 | N101: 14838 | O101: 0 | P101: 14838 | R101: 0 | S101: 14838 | U101: =IFERROR(VLOOKUP($A101, 'Allocation 2025-26 Final'!$A$7:$S$323,19,FALSE),0) -> 13649 | W101: 1189 | X101: 0.08711260898 | Y101: 113 | Z101: 0 | AB101: 5303330 | AC101: GRIFFIN
A102: =VLOOKUP(B102,CCDDD!$A$3:$B$319,2,FALSE) -> 22204 | B102: 5303360 | C102: HARRINGTON | D102: 0 | E102: 0 | F102: =VLOOKUP(B102,'26-27 Adjusted Formula counts'!$A$3:$L$320,8,FALSE) -> 145 | G102: =ROUND((F102/$F$5*Assumptions!$C$22*Assumptions!$C$30),0) -> 794 | H102: =VLOOKUP(B102,'26-27 Adjusted Formula counts'!$A$3:$L$320,9,FALSE) -> 25 | I102: =ROUND((H102/$H$5*Assumptions!$C$22*Assumptions!$C$31),0) -> 5159 | K102: 5953 | N102: 5953 | O102: 0 | P102: 5953 | R102: 0 | S102: 5953 | U102: =IFERROR(VLOOKUP($A102, 'Allocation 2025-26 Final'!$A$7:$S$323,19,FALSE),0) -> 5573 | W102: 380 | X102: 0.06818589629 | Y102: 142 | Z102: 0 | AB102: 5303360 | AC102: HARRINGTON
A103: =VLOOKUP(B103,CCDDD!$A$3:$B$319,2,FALSE) -> 39203 | B103: 5303510 | C103: HIGHLAND | D103: 0 | E103: 0 | F103: =VLOOKUP(B103,'26-27 Adjusted Formula counts'!$A$3:$L$320,8,FALSE) -> 1264 | G103: =ROUND((F103/$F$5*Assumptions!$C$22*Assumptions!$C$30),0) -> 6920 | H103: =VLOOKUP(B103,'26-27 Adjusted Formula counts'!$A$3:$L$320,9,FALSE) -> 131 | I103: =ROUND((H103/$H$5*Assumptions!$C$22*Assumptions!$C$31),0) -> 27033 | K103: 33953 | N103: 33953 | O103: 0 | P103: 33953 | R103: 0 | S103: 33953 | U103: =IFERROR(VLOOKUP($A103, 'Allocation 2025-26 Final'!$A$7:$S$323,19,FALSE),0) -> 35220 | W103: -1267 | X103: -0.03597387848 | Y103: 202 | Z103: 0 | AB103: 5303510 | AC103: HIGHLAND
A104: =VLOOKUP(B104,CCDDD!$A$3:$B$319,2,FALSE) -> 17401 | B104: 5303540 | C104: HIGHLINE | D104: 0 | E104: 0 | F104: =VLOOKUP(B104,'26-27 Adjusted Formula counts'!$A$3:$L$320,8,FALSE) -> 20024.41191 | G104: =ROUND((F104/$F$5*Assumptions!$C$22*Assumptions!$C$30),0) -> 109634 | H104: =VLOOKUP(B104,'26-27 Adjusted Formula counts'!$A$3:$L$320,9,FALSE) -> 3380.415234 | I104: =ROUND((H104/$H$5*Assumptions!$C$22*Assumptions!$C$31),0) -> 697569 | K104: 807203 | N104: 807203 | O104: 0 | P104: 807203 | R104: 0 | S104: 807203 | U104: =IFERROR(VLOOKUP($A104, 'Allocation 2025-26 Final'!$A$7:$S$323,19,FALSE),0) -> 760137 | W104: 47066 | X104: 0.06191778587 | Y104: 10 | Z104: 0 | AB104: 5303540 | AC104: HIGHLINE
A105: =VLOOKUP(B105,CCDDD!$A$3:$B$319,2,FALSE) -> 06098 | B105: 5303570 | C105: HOCKINSON | D105: 0 | E105: 0 | F105: =VLOOKUP(B105,'26-27 Adjusted Formula counts'!$A$3:$L$320,8,FALSE) -> 2174 | G105: =ROUND((F105/$F$5*Assumptions!$C$22*Assumptions!$C$30),0) -> 11903 | H105: =VLOOKUP(B105,'26-27 Adjusted Formula counts'!$A$3:$L$320,9,FALSE) -> 114 | I105: =ROUND((H105/$H$5*Assumptions!$C$22*Assumptions!$C$31),0) -> 23525 | K105: 35428 | N105: 35428 | O105: 0 | P105: 35428 | R105: 0 | S105: 35428 | U105: =IFERROR(VLOOKUP($A105, 'Allocation 2025-26 Final'!$A$7:$S$323,19,FALSE),0) -> 32804 | W105: 2624 | X105: 0.07999024509 | Y105: 78 | Z105: 0 | AB105: 5303570 | AC105: HOCKINSON
A106: =VLOOKUP(B106,CCDDD!$A$3:$B$319,2,FALSE) -> 23404 | B106: 5303600 | C106: HOOD CANAL | D106: 0 | E106: 0 | F106: =VLOOKUP(B106,'26-27 Adjusted Formula counts'!$A$3:$L$320,8,FALSE) -> 714 | G106: =ROUND((F106/$F$5*Assumptions!$C$22*Assumptions!$C$30),0) -> 3909 | H106: =VLOOKUP(B106,'26-27 Adjusted Formula counts'!$A$3:$L$320,9,FALSE) -> 107 | I106: =ROUND((H106/$H$5*Assumptions!$C$22*Assumptions!$C$31),0) -> 22080 | K106: 25989 | N106: 25989 | O106: 0 | P106: 25989 | R106: 0 | S106: 25989 | U106: =IFERROR(VLOOKUP($A106, 'Allocation 2025-26 Final'!$A$7:$S$323,19,FALSE),0) -> 30541 | W106: -4552 | X106: -0.1490455453 | Y106: 258 | Z106: 0 | AB106: 5303600 | AC106: HOOD CANAL
A107: =VLOOKUP(B107,CCDDD!$A$3:$B$319,2,FALSE) -> 14028 | B107: 5303660 | C107: HOQUIAM | D107: 0 | E107: 0 | F107: =VLOOKUP(B107,'26-27 Adjusted Formula counts'!$A$3:$L$320,8,FALSE) -> 1799 | G107: =ROUND((F107/$F$5*Assumptions!$C$22*Assumptions!$C$30),0) -> 9850 | H107: =VLOOKUP(B107,'26-27 Adjusted Formula counts'!$A$3:$L$320,9,FALSE) -> 412 | I107: =ROUND((H107/$H$5*Assumptions!$C$22*Assumptions!$C$31),0) -> 85019 | K107: 94869 | N107: 94869 | O107: 0 | P107: 94869 | R107: 0 | S107: 94869 | U107: =IFERROR(VLOOKUP($A107, 'Allocation 2025-26 Final'!$A$7:$S$323,19,FALSE),0) -> 85059 | W107: 9810 | X107: 0.1153317109 | Y107: 39 | Z107: 0 | AB107: 5303660 | AC107: HOQUIAM
A108: =VLOOKUP(B108,CCDDD!$A$3:$B$319,2,FALSE) -> 27902 | B108: 5303705 | C108: IMPACT COMMENCEMENT BAY CHARTER | D108: 0 | E108: 0 | F108: =VLOOKUP(B108,'26-27 Adjusted Formula counts'!$A$3:$L$320,8,FALSE) -> 303.7140733 | G108: =ROUND((F108/$F$5*Assumptions!$C$22*Assumptions!$C$30),0) -> 1663 | H108: =VLOOKUP(B108,'26-27 Adjusted Formula counts'!$A$3:$L$320,9,FALSE) -> 57.08452527 | I108: =ROUND((H108/$H$5*Assumptions!$C$22*Assumptions!$C$31),0) -> 11780 | K108: 13443 | N108: 13443 | O108: 0 | P108: 13443 | R108: 0 | S108: 13443 | U108: =IFERROR(VLOOKUP($A108, 'Allocation 2025-26 Final'!$A$7:$S$323,19,FALSE),0) -> 11588 | W108: 1855 | X108: 0.1600793925 | Y108: 93 | Z108: 0 | AB108: 5303705 | AC108: IMPACT COMMENCEMENT BAY CHARTER
A109: =VLOOKUP(B109,CCDDD!$A$3:$B$319,2,FALSE) -> 17911 | B109: 5303700 | C109: IMPACT PUGET SOUND CHARTER | D109: 0 | E109: 0 | F109: =VLOOKUP(B109,'26-27 Adjusted Formula counts'!$A$3:$L$320,8,FALSE) -> 497.6488706 | G109: =ROUND((F109/$F$5*Assumptions!$C$22*Assumptions!$C$30),0) -> 2725 | H109: =VLOOKUP(B109,'26-27 Adjusted Formula counts'!$A$3:$L$320,9,FALSE) -> 112.824155 | I109: =ROUND((H109/$H$5*Assumptions!$C$22*Assumptions!$C$31),0) -> 23282 | K109: 26007 | N109: 26007 | O109: 0 | P109: 26007 | R109: 0 | S109: 26007 | U109: =IFERROR(VLOOKUP($A109, 'Allocation 2025-26 Final'!$A$7:$S$323,19,FALSE),0) -> 18540 | W109: 7467 | X109: 0.4027508091 | Y109: 47 | Z109: 0 | AB109: 5303700 | AC109: IMPACT PUGET SOUND CHARTER
A110: =VLOOKUP(B110,CCDDD!$A$3:$B$319,2,FALSE) -> 17916 | B110: 5303710 | C110: IMPACT SALISH SEA CHARTER | D110: 0 | E110: 0 | F110: =VLOOKUP(B110,'26-27 Adjusted Formula counts'!$A$3:$L$320,8,FALSE) -> 342.6180698 | G110: =ROUND((F110/$F$5*Assumptions!$C$22*Assumptions!$C$30),0) -> 1876 | H110: =VLOOKUP(B110,'26-27 Adjusted Formula counts'!$A$3:$L$320,9,FALSE) -> 75.70451956 | I110: =ROUND((H110/$H$5*Assumptions!$C$22*Assumptions!$C$31),0) -> 15622 | K110: 17498 | N110: 17498 | O110: 0 | P110: 17498 | R110: 0 | S110: 17498 | U110: =IFERROR(VLOOKUP($A110, 'Allocation 2025-26 Final'!$A$7:$S$323,19,FALSE),0) -> 13743 | W110: 3755 | X110: 0.273230008 | Y110: 69 | Z110: 0 | AB110: 5303710 | AC110: IMPACT SALISH SEA CHARTER
A111: =VLOOKUP(B111,CCDDD!$A$3:$B$319,2,FALSE) -> 10070 | B111: 5300002 | C111: INCHELIUM | D111: 0 | E111: 0 | F111: =VLOOKUP(B111,'26-27 Adjusted Formula counts'!$A$3:$L$320,8,FALSE) -> 200 | G111: =ROUND((F111/$F$5*Assumptions!$C$22*Assumptions!$C$30),0) -> 1095 | H111: =VLOOKUP(B111,'26-27 Adjusted Formula counts'!$A$3:$L$320,9,FALSE) -> 47 | I111: =ROUND((H111/$H$5*Assumptions!$C$22*Assumptions!$C$31),0) -> 9699 | K111: 10794 | N111: 10794 | O111: 0 | P111: 10794 | R111: 0 | S111: 10794 | U111: =IFERROR(VLOOKUP($A111, 'Allocation 2025-26 Final'!$A$7:$S$323,19,FALSE),0) -> 12640 | W111: -1846 | X111: -0.1460443038 | Y111: 218 | Z111: 0 | AB111: 5300002 | AC111: INCHELIUM
A112: =VLOOKUP(B112,CCDDD!$A$3:$B$319,2,FALSE) -> 31063 | B112: 5303720 | C112: INDEX | D112: 0 | E112: 0 | F112: =VLOOKUP(B112,'26-27 Adjusted Formula counts'!$A$3:$L$320,8,FALSE) -> 55 | G112: =ROUND((F112/$F$5*Assumptions!$C$22*Assumptions!$C$30),0) -> 301 | H112: =VLOOKUP(B112,'26-27 Adjusted Formula counts'!$A$3:$L$320,9,FALSE) -> 3 | I112: =ROUND((H112/$H$5*Assumptions!$C$22*Assumptions!$C$31),0) -> 619 | K112: 920 | N112: 920 | O112: 0 | P112: 920 | R112: 0 | S112: 920 | U112: =IFERROR(VLOOKUP($A112, 'Allocation 2025-26 Final'!$A$7:$S$323,19,FALSE),0) -> 1290 | W112: -370 | X112: -0.2868217054 | Y112: 173 | Z112: 0 | AB112: 5303720 | AC112: INDEX
A113: =VLOOKUP(B113,CCDDD!$A$3:$B$319,2,FALSE) -> 17411 | B113: 5303750 | C113: ISSAQUAH | D113: 0 | E113: 0 | F113: =VLOOKUP(B113,'26-27 Adjusted Formula counts'!$A$3:$L$320,8,FALSE) -> 23076 | G113: =ROUND((F113/$F$5*Assumptions!$C$22*Assumptions!$C$30),0) -> 126342 | H113: =VLOOKUP(B113,'26-27 Adjusted Formula counts'!$A$3:$L$320,9,FALSE) -> 829 | I113: =ROUND((H113/$H$5*Assumptions!$C$22*Assumptions!$C$31),0) -> 171069 | K113: 297411 | N113: 297411 | O113: 0 | P113: 297411 | R113: 0 | S113: 297411 | U113: =IFERROR(VLOOKUP($A113, 'Allocation 2025-26 Final'!$A$7:$S$323,19,FALSE),0) -> 308322 | W113: -10911 | X113: -0.03538832779 | Y113: 287 | Z113: 0 | AB113: 5303750 | AC113: ISSAQUAH
A114: =VLOOKUP(B114,CCDDD!$A$3:$B$319,2,FALSE) -> 11056 | B114: 5303780 | C114: KAHLOTUS | D114: 0 | E114: 0 | F114: =VLOOKUP(B114,'26-27 Adjusted Formula counts'!$A$3:$L$320,8,FALSE) -> 60 | G114: =ROUND((F114/$F$5*Assumptions!$C$22*Assumptions!$C$30),0) -> 329 | H114: =VLOOKUP(B114,'26-27 Adjusted Formula counts'!$A$3:$L$320,9,FALSE) -> 7 | I114: =ROUND((H114/$H$5*Assumptions!$C$22*Assumptions!$C$31),0) -> 1444 | K114: 1773 | N114: 1773 | O114: 0 | P114: 1773 | R114: 0 | S114: 1773 | U114: =IFERROR(VLOOKUP($A114, 'Allocation 2025-26 Final'!$A$7:$S$323,19,FALSE),0) -> 1323 | W114: 450 | X114: 0.3401360544 | Y114: 136 | Z114: 0 | AB114: 5303780 | AC114: KAHLOTUS
A115: =VLOOKUP(B115,CCDDD!$A$3:$B$319,2,FALSE) -> 08402 | B115: 5303810 | C115: KALAMA | D115: 0 | E115: 0 | F115: =VLOOKUP(B115,'26-27 Adjusted Formula counts'!$A$3:$L$320,8,FALSE) -> 1373 | G115: =ROUND((F115/$F$5*Assumptions!$C$22*Assumptions!$C$30),0) -> 7517 | H115: =VLOOKUP(B115,'26-27 Adjusted Formula counts'!$A$3:$L$320,9,FALSE) -> 92 | I115: =ROUND((H115/$H$5*Assumptions!$C$22*Assumptions!$C$31),0) -> 18985 | K115: 26502 | N115: 26502 | O115: 0 | P115: 26502 | R115: 0 | S115: 26502 | U115: =IFERROR(VLOOKUP($A115, 'Allocation 2025-26 Final'!$A$7:$S$323,19,FALSE),0) -> 27598 | W115: -1096 | X115: -0.03971302268 | Y115: 197 | Z115: 0 | AB115: 5303810 | AC115: KALAMA
A116: =VLOOKUP(B116,CCDDD!$A$3:$B$319,2,FALSE) -> 10003 | B116: 5303870 | C116: KELLER | D116: 0 | E116: 0 | F116: =VLOOKUP(B116,'26-27 Adjusted Formula counts'!$A$3:$L$320,8,FALSE) -> 110 | G116: =ROUND((F116/$F$5*Assumptions!$C$22*Assumptions!$C$30),0) -> 602 | H116: =VLOOKUP(B116,'26-27 Adjusted Formula counts'!$A$3:$L$320,9,FALSE) -> 26 | I116: =ROUND((H116/$H$5*Assumptions!$C$22*Assumptions!$C$31),0) -> 5365 | K116: 5967 | N116: 5967 | O116: 0 | P116: 5967 | R116: 0 | S116: 5967 | U116: =IFERROR(VLOOKUP($A116, 'Allocation 2025-26 Final'!$A$7:$S$323,19,FALSE),0) -> 5571 | W116: 396 | X116: 0.07108239095 | Y116: 140 | Z116: 0 | AB116: 5303870 | AC116: KELLER
A117: =VLOOKUP(B117,CCDDD!$A$3:$B$319,2,FALSE) -> 08458 | B117: 5300003 | C117: KELSO | D117: 0 | E117: 0 | F117: =VLOOKUP(B117,'26-27 Adjusted Formula counts'!$A$3:$L$320,8,FALSE) -> 5531 | G117: =ROUND((F117/$F$5*Assumptions!$C$22*Assumptions!$C$30),0) -> 30282 | H117: =VLOOKUP(B117,'26-27 Adjusted Formula counts'!$A$3:$L$320,9,FALSE) -> 708 | I117: =ROUND((H117/$H$5*Assumptions!$C$22*Assumptions!$C$31),0) -> 146100 | K117: 176382 | N117: 176382 | O117: 0 | P117: 176382 | R117: 0 | S117: 176382 | U117: =IFERROR(VLOOKUP($A117, 'Allocation 2025-26 Final'!$A$7:$S$323,19,FALSE),0) -> 206225 | W117: -29843 | X117: -0.144710874 | Y117: 305 | Z117: 0 | AB117: 5300003 | AC117: KELSO
A118: =VLOOKUP(B118,CCDDD!$A$3:$B$319,2,FALSE) -> 03017 | B118: 5303930 | C118: KENNEWICK | D118: 0 | E118: 0 | F118: =VLOOKUP(B118,'26-27 Adjusted Formula counts'!$A$3:$L$320,8,FALSE) -> 20732 | G118: =ROUND((F118/$F$5*Assumptions!$C$22*Assumptions!$C$30),0) -> 113508 | H118: =VLOOKUP(B118,'26-27 Adjusted Formula counts'!$A$3:$L$320,9,FALSE) -> 2450 | I118: =ROUND((H118/$H$5*Assumptions!$C$22*Assumptions!$C$31),0) -> 505572 | K118: 619080 | N118: 619080 | O118: 0 | P118: 619080 | R118: 0 | S118: 619080 | U118: =IFERROR(VLOOKUP($A118, 'Allocation 2025-26 Final'!$A$7:$S$323,19,FALSE),0) -> 702154 | W118: -83074 | X118: -0.1183130766 | Y118: 312 | Z118: 0 | AB118: 5303930 | AC118: KENNEWICK
A119: =VLOOKUP(B119,CCDDD!$A$3:$B$319,2,FALSE) -> 17415 | B119: 5303960 | C119: KENT | D119: 0 | E119: 0 | F119: =VLOOKUP(B119,'26-27 Adjusted Formula counts'!$A$3:$L$320,8,FALSE) -> 30469 | G119: =ROUND((F119/$F$5*Assumptions!$C$22*Assumptions!$C$30),0) -> 166818 | H119: =VLOOKUP(B119,'26-27 Adjusted Formula counts'!$A$3:$L$320,9,FALSE) -> 4462 | I119: =ROUND((H119/$H$5*Assumptions!$C$22*Assumptions!$C$31),0) -> 920760 | K119: 1087578 | N119: 1087578 | O119: 0 | P119: 1087578 | R119: 0 | S119: 1087578 | U119: =IFERROR(VLOOKUP($A119, 'Allocation 2025-26 Final'!$A$7:$S$323,19,FALSE),0) -> 1040312 | W119: 47266 | X119: 0.04543444659 | Y119: 9 | Z119: 0 | AB119: 5303960 | AC119: KENT
A120: =VLOOKUP(B120,CCDDD!$A$3:$B$319,2,FALSE) -> 33212 | B120: 5303990 | C120: KETTLE FALLS | D120: 0 | E120: 0 | F120: =VLOOKUP(B120,'26-27 Adjusted Formula counts'!$A$3:$L$320,8,FALSE) -> 941 | G120: =ROUND((F120/$F$5*Assumptions!$C$22*Assumptions!$C$30),0) -> 5152 | H120: =VLOOKUP(B120,'26-27 Adjusted Formula counts'!$A$3:$L$320,9,FALSE) -> 160 | I120: =ROUND((H120/$H$5*Assumptions!$C$22*Assumptions!$C$31),0) -> 33017 | K120: 38169 | N120: 38169 | O120: 0 | P120: 38169 | R120: 0 | S120: 38169 | U120: =IFERROR(VLOOKUP($A120, 'Allocation 2025-26 Final'!$A$7:$S$323,19,FALSE),0) -> 33854 | W120: 4315 | X120: 0.127459089 | Y120: 61 | Z120: 0 | AB120: 5303990 | AC120: KETTLE FALLS
A121: =VLOOKUP(B121,CCDDD!$A$3:$B$319,2,FALSE) -> 03052 | B121: 5304020 | C121: KIONA-BENTON | D121: 0 | E121: 0 | F121: =VLOOKUP(B121,'26-27 Adjusted Formula counts'!$A$3:$L$320,8,FALSE) -> 1758 | G121: =ROUND((F121/$F$5*Assumptions!$C$22*Assumptions!$C$30),0) -> 9625 | H121: =VLOOKUP(B121,'26-27 Adjusted Formula counts'!$A$3:$L$320,9,FALSE) -> 152 | I121: =ROUND((H121/$H$5*Assumptions!$C$22*Assumptions!$C$31),0) -> 31366 | K121: 40991 | N121: 40991 | O121: 0 | P121: 40991 | R121: 0 | S121: 40991 | U121: =IFERROR(VLOOKUP($A121, 'Allocation 2025-26 Final'!$A$7:$S$323,19,FALSE),0) -> 46637 | W121: -5646 | X121: -0.1210626756 | Y121: 270 | Z121: 0 | AB121: 5304020 | AC121: KIONA-BENTON
A122: =VLOOKUP(B122,CCDDD!$A$3:$B$319,2,FALSE) -> 19403 | B122: 5304050 | C122: KITTITAS | D122: 0 | E122: 0 | F122: =VLOOKUP(B122,'26-27 Adjusted Formula counts'!$A$3:$L$320,8,FALSE) -> 761 | G122: =ROUND((F122/$F$5*Assumptions!$C$22*Assumptions!$C$30),0) -> 4166 | H122: =VLOOKUP(B122,'26-27 Adjusted Formula counts'!$A$3:$L$320,9,FALSE) -> 62 | I122: =ROUND((H122/$H$5*Assumptions!$C$22*Assumptions!$C$31),0) -> 12794 | K122: 16960 | N122: 16960 | O122: 0 | P122: 16960 | R122: 0 | S122: 16960 | U122: =IFERROR(VLOOKUP($A122, 'Allocation 2025-26 Final'!$A$7:$S$323,19,FALSE),0) -> 17814 | W122: -854 | X122: -0.04793982261 | Y122: 192 | Z122: 0 | AB122: 5304050 | AC122: KITTITAS
A123: =VLOOKUP(B123,CCDDD!$A$3:$B$319,2,FALSE) -> 20402 | B123: 5304080 | C123: KLICKITAT | D123: 0 | E123: 0 | F123: =VLOOKUP(B123,'26-27 Adjusted Formula counts'!$A$3:$L$320,8,FALSE) -> 82 | G123: =ROUND((F123/$F$5*Assumptions!$C$22*Assumptions!$C$30),0) -> 449 | H123: =VLOOKUP(B123,'26-27 Adjusted Formula counts'!$A$3:$L$320,9,FALSE) -> 14 | I123: =ROUND((H123/$H$5*Assumptions!$C$22*Assumptions!$C$31),0) -> 2889 | K123: 3338 | N123: 3338 | O123: 0 | P123: 3338 | R123: 0 | S123: 3338 | U123: =IFERROR(VLOOKUP($A123, 'Allocation 2025-26 Final'!$A$7:$S$323,19,FALSE),0) -> 1243 | W123: 2095 | X123: 1.685438455 | Y123: 84 | Z123: 0 | AB123: 5304080 | AC123: KLICKITAT
A124: =VLOOKUP(B124,CCDDD!$A$3:$B$319,2,FALSE) -> 06101 | B124: 5304170 | C124: LA CENTER | D124: 0 | E124: 0 | F124: =VLOOKUP(B124,'26-27 Adjusted Formula counts'!$A$3:$L$320,8,FALSE) -> 1930 | G124: =ROUND((F124/$F$5*Assumptions!$C$22*Assumptions!$C$30),0) -> 10567 | H124: =VLOOKUP(B124,'26-27 Adjusted Formula counts'!$A$3:$L$320,9,FALSE) -> 107 | I124: =ROUND((H124/$H$5*Assumptions!$C$22*Assumptions!$C$31),0) -> 22080 | K124: 32647 | N124: 32647 | O124: 0 | P124: 32647 | R124: 0 | S124: 32647 | U124: =IFERROR(VLOOKUP($A124, 'Allocation 2025-26 Final'!$A$7:$S$323,19,FALSE),0) -> 26489 | W124: 6158 | X124: 0.2324738571 | Y124: 51 | Z124: 0 | AB124: 5304170 | AC124: LA CENTER
A125: =VLOOKUP(B125,CCDDD!$A$3:$B$319,2,FALSE) -> 29311 | B125: 5304110 | C125: LA CONNER | D125: 0 | E125: 0 | F125: =VLOOKUP(B125,'26-27 Adjusted Formula counts'!$A$3:$L$320,8,FALSE) -> 585 | G125: =ROUND((F125/$F$5*Assumptions!$C$22*Assumptions!$C$30),0) -> 3203 | H125: =VLOOKUP(B125,'26-27 Adjusted Formula counts'!$A$3:$L$320,9,FALSE) -> 61 | I125: =ROUND((H125/$H$5*Assumptions!$C$22*Assumptions!$C$31),0) -> 12588 | K125: 15791 | N125: 15791 | O125: 0 | P125: 15791 | R125: 0 | S125: 15791 | U125: =IFERROR(VLOOKUP($A125, 'Allocation 2025-26 Final'!$A$7:$S$323,19,FALSE),0) -> 14547 | W125: 1244 | X125: 0.08551591393 | Y125: 112 | Z125: 0 | AB125: 5304110 | AC125: LA CONNER
A126: =VLOOKUP(B126,CCDDD!$A$3:$B$319,2,FALSE) -> 38126 | B126: 5304150 | C126: LACROSSE | D126: 0 | E126: 0 | F126: =VLOOKUP(B126,'26-27 Adjusted Formula counts'!$A$3:$L$320,8,FALSE) -> 90 | G126: =ROUND((F126/$F$5*Assumptions!$C$22*Assumptions!$C$30),0) -> 493 | H126: =VLOOKUP(B126,'26-27 Adjusted Formula counts'!$A$3:$L$320,9,FALSE) -> 13 | I126: =ROUND((H126/$H$5*Assumptions!$C$22*Assumptions!$C$31),0) -> 2683 | K126: 3176 | N126: 3176 | O126: 0 | P126: 3176 | R126: 0 | S126: 3176 | U126: =IFERROR(VLOOKUP($A126, 'Allocation 2025-26 Final'!$A$7:$S$323,19,FALSE),0) -> 3879 | W126: -703 | X126: -0.1812322764 | Y126: 186 | Z126: 0 | AB126: 5304150 | AC126: LACROSSE
A127: =VLOOKUP(B127,CCDDD!$A$3:$B$319,2,FALSE) -> 04129 | B127: 5301200 | C127: LAKE CHELAN | D127: 0 | E127: 0 | F127: =VLOOKUP(B127,'26-27 Adjusted Formula counts'!$A$3:$L$320,8,FALSE) -> 1267 | G127: =ROUND((F127/$F$5*Assumptions!$C$22*Assumptions!$C$30),0) -> 6937 | H127: =VLOOKUP(B127,'26-27 Adjusted Formula counts'!$A$3:$L$320,9,FALSE) -> 107 | I127: =ROUND((H127/$H$5*Assumptions!$C$22*Assumptions!$C$31),0) -> 22080 | K127: 29017 | N127: 29017 | O127: 0 | P127: 29017 | R127: 0 | S127: 29017 | U127: =IFERROR(VLOOKUP($A127, 'Allocation 2025-26 Final'!$A$7:$S$323,19,FALSE),0) -> 40059 | W127: -11042 | X127: -0.2756434259 | Y127: 289 | Z127: 0 | AB127: 5301200 | AC127: LAKE CHELAN
A128: =VLOOKUP(B128,CCDDD!$A$3:$B$319,2,FALSE) -> 14097 | B128: 5307050 | C128: QUINAULT | D128: 0 | E128: 0 | F128: =VLOOKUP(B128,'26-27 Adjusted Formula counts'!$A$3:$L$320,8,FALSE) -> 172 | G128: =ROUND((F128/$F$5*Assumptions!$C$22*Assumptions!$C$30),0) -> 942 | H128: =VLOOKUP(B128,'26-27 Adjusted Formula counts'!$A$3:$L$320,9,FALSE) -> 15 | I128: =ROUND((H128/$H$5*Assumptions!$C$22*Assumptions!$C$31),0) -> 3095 | K128: 4037 | N128: 4037 | O128: 0 | P128: 4037 | R128: 0 | S128: 4037 | U128: =IFERROR(VLOOKUP($A128, 'Allocation 2025-26 Final'!$A$7:$S$323,19,FALSE),0) -> 6733 | W128: -2696 | X128: -0.4004158622 | Y128: 237 | Z128: 0 | AB128: 5307050 | AC128: QUINAULT
A129: =VLOOKUP(B129,CCDDD!$A$3:$B$319,2,FALSE) -> 31004 | B129: 5304200 | C129: LAKE STEVENS | D129: 0 | E129: 0 | F129: =VLOOKUP(B129,'26-27 Adjusted Formula counts'!$A$3:$L$320,8,FALSE) -> 10407 | G129: =ROUND((F129/$F$5*Assumptions!$C$22*Assumptions!$C$30),0) -> 56979 | H129: =VLOOKUP(B129,'26-27 Adjusted Formula counts'!$A$3:$L$320,9,FALSE) -> 649 | I129: =ROUND((H129/$H$5*Assumptions!$C$22*Assumptions!$C$31),0) -> 133925 | K129: 190904 | N129: 190904 | O129: 0 | P129: 190904 | R129: 0 | S129: 190904 | U129: =IFERROR(VLOOKUP($A129, 'Allocation 2025-26 Final'!$A$7:$S$323,19,FALSE),0) -> 189088 | W129: 1816 | X129: 0.009603993908 | Y129: 95 | Z129: 0 | AB129: 5304200 | AC129: LAKE STEVENS
A130: =VLOOKUP(B130,CCDDD!$A$3:$B$319,2,FALSE) -> 17414 | B130: 5304230 | C130: LAKE WASHINGTON | D130: 0 | E130: 0 | F130: =VLOOKUP(B130,'26-27 Adjusted Formula counts'!$A$3:$L$320,8,FALSE) -> 36176 | G130: =ROUND((F130/$F$5*Assumptions!$C$22*Assumptions!$C$30),0) -> 198064 | H130: =VLOOKUP(B130,'26-27 Adjusted Formula counts'!$A$3:$L$320,9,FALSE) -> 1461 | I130: =ROUND((H130/$H$5*Assumptions!$C$22*Assumptions!$C$31),0) -> 301486 | K130: 499550 | N130: 499550 | O130: 0 | P130: 499550 | R130: 0 | S130: 499550 | U130: =IFERROR(VLOOKUP($A130, 'Allocation 2025-26 Final'!$A$7:$S$323,19,FALSE),0) -> 481324 | W130: 18226 | X130: 0.03786638522 | Y130: 22 | Z130: 0 | AB130: 5304230 | AC130: LAKE WASHINGTON
A131: =VLOOKUP(B131,CCDDD!$A$3:$B$319,2,FALSE) -> 31306 | B131: 5304260 | C131: LAKEWOOD | D131: 0 | E131: 0 | F131: =VLOOKUP(B131,'26-27 Adjusted Formula counts'!$A$3:$L$320,8,FALSE) -> 2681 | G131: =ROUND((F131/$F$5*Assumptions!$C$22*Assumptions!$C$30),0) -> 14679 | H131: =VLOOKUP(B131,'26-27 Adjusted Formula counts'!$A$3:$L$320,9,FALSE) -> 291 | I131: =ROUND((H131/$H$5*Assumptions!$C$22*Assumptions!$C$31),0) -> 60050 | K131: 74729 | N131: 74729 | O131: 0 | P131: 74729 | R131: 0 | S131: 74729 | U131: =IFERROR(VLOOKUP($A131, 'Allocation 2025-26 Final'!$A$7:$S$323,19,FALSE),0) -> 80851 | W131: -6122 | X131: -0.07571953346 | Y131: 273 | Z131: 0 | AB131: 5304260 | AC131: LAKEWOOD
A132: =VLOOKUP(B132,CCDDD!$A$3:$B$319,2,FALSE) -> 38264 | B132: 5304290 | C132: LAMONT | D132: 0 | E132: 0 | F132: =VLOOKUP(B132,'26-27 Adjusted Formula counts'!$A$3:$L$320,8,FALSE) -> 28 | G132: =ROUND((F132/$F$5*Assumptions!$C$22*Assumptions!$C$30),0) -> 153 | H132: =VLOOKUP(B132,'26-27 Adjusted Formula counts'!$A$3:$L$320,9,FALSE) -> 7 | I132: =ROUND((H132/$H$5*Assumptions!$C$22*Assumptions!$C$31),0) -> 1444 | K132: 1597 | N132: 1597 | O132: 0 | P132: 1597 | R132: 0 | S132: 1597 | U132: =IFERROR(VLOOKUP($A132, 'Allocation 2025-26 Final'!$A$7:$S$323,19,FALSE),0) -> 2146 | W132: -549 | X132: -0.2558247903 | Y132: 181 | Z132: 0 | AB132: 5304290 | AC132: LAMONT
A133: =VLOOKUP(B133,CCDDD!$A$3:$B$319,2,FALSE) -> 32362 | B133: 5304380 | C133: LIBERTY | D133: 0 | E133: 0 | F133: =VLOOKUP(B133,'26-27 Adjusted Formula counts'!$A$3:$L$320,8,FALSE) -> 830 | G133: =ROUND((F133/$F$5*Assumptions!$C$22*Assumptions!$C$30),0) -> 4544 | H133: =VLOOKUP(B133,'26-27 Adjusted Formula counts'!$A$3:$L$320,9,FALSE) -> 37 | I133: =ROUND((H133/$H$5*Assumptions!$C$22*Assumptions!$C$31),0) -> 7635 | K133: 12179 | N133: 12179 | O133: 0 | P133: 12179 | R133: 0 | S133: 12179 | U133: =IFERROR(VLOOKUP($A133, 'Allocation 2025-26 Final'!$A$7:$S$323,19,FALSE),0) -> 11501 | W133: 678 | X133: 0.05895139553 | Y133: 126 | Z133: 0 | AB133: 5304380 | AC133: LIBERTY
A134: =VLOOKUP(B134,CCDDD!$A$3:$B$319,2,FALSE) -> 01158 | B134: 5304410 | C134: LIND | D134: 0 | E134: 0 | F134: =VLOOKUP(B134,'26-27 Adjusted Formula counts'!$A$3:$L$320,8,FALSE) -> 303 | G134: =ROUND((F134/$F$5*Assumptions!$C$22*Assumptions!$C$30),0) -> 1659 | H134: =VLOOKUP(B134,'26-27 Adjusted Formula counts'!$A$3:$L$320,9,FALSE) -> 51 | I134: =ROUND((H134/$H$5*Assumptions!$C$22*Assumptions!$C$31),0) -> 10524 | K134: 12183 | N134: 12183 | O134: 0 | P134: 12183 | R134: 0 | S134: 12183 | U134: =IFERROR(VLOOKUP($A134, 'Allocation 2025-26 Final'!$A$7:$S$323,19,FALSE),0) -> 11604 | W134: 579 | X134: 0.04989658738 | Y134: 130 | Z134: 0 | AB134: 5304410 | AC134: LIND
A135: =VLOOKUP(B135,CCDDD!$A$3:$B$319,2,FALSE) -> 08122 | B135: 5304470 | C135: LONGVIEW | D135: 0 | E135: 0 | F135: =VLOOKUP(B135,'26-27 Adjusted Formula counts'!$A$3:$L$320,8,FALSE) -> 7315 | G135: =ROUND((F135/$F$5*Assumptions!$C$22*Assumptions!$C$30),0) -> 40050 | H135: =VLOOKUP(B135,'26-27 Adjusted Formula counts'!$A$3:$L$320,9,FALSE) -> 1118 | I135: =ROUND((H135/$H$5*Assumptions!$C$22*Assumptions!$C$31),0) -> 230706 | K135: =ROUNDDOWN(+I135+G135+E135+D135+J135,0) -> 270756 | N135: =K135 -> 270756 | O135: =-ROUND(N135/$N$5*$M$5,0) -> 0 | P135: =+K135+O135+M135 -> 270756 | R135: =-1*(P135*Q135) -> 0 | S135: =+P135+R135 -> 270756 | U135: =IFERROR(VLOOKUP($A135, 'Allocation 2025-26 Final'!$A$7:$S$323,19,FALSE),0) -> 305343 | W135: =+S135-U135 -> -34587 | X135: =IF(U135>0,W135/U135,0) -> -0.1132726147 | Y135: =RANK(W135,$W$7:$W$319,0) -> 307 | Z135: =(SUM(D135:E135)/S135) -> 0 | AB135: =+B135 -> 5304470 | AC135: LONGVIEW
A136: =VLOOKUP(B136,CCDDD!$A$3:$B$319,2,FALSE) -> 33183 | B136: 5304500 | C136: LOON LAKE | D136: 0 | E136: 0 | F136: =VLOOKUP(B136,'26-27 Adjusted Formula counts'!$A$3:$L$320,8,FALSE) -> 255 | G136: =ROUND((F136/$F$5*Assumptions!$C$22*Assumptions!$C$30),0) -> 1396 | H136: =VLOOKUP(B136,'26-27 Adjusted Formula counts'!$A$3:$L$320,9,FALSE) -> 41 | I136: =ROUND((H136/$H$5*Assumptions!$C$22*Assumptions!$C$31),0) -> 8461 | K136: 9857 | N136: 9857 | O136: 0 | P136: 9857 | R136: 0 | S136: 9857 | U136: =IFERROR(VLOOKUP($A136, 'Allocation 2025-26 Final'!$A$7:$S$323,19,FALSE),0) -> 11764 | W136: -1907 | X136: -0.1621047263 | Y136: 222 | Z136: 0 | AB136: 5304500 | AC136: LOON LAKE
A137: =VLOOKUP(B137,CCDDD!$A$3:$B$319,2,FALSE) -> 28144 | B137: 5304530 | C137: LOPEZ | D137: 0 | E137: 0 | F137: =VLOOKUP(B137,'26-27 Adjusted Formula counts'!$A$3:$L$320,8,FALSE) -> 276 | G137: =ROUND((F137/$F$5*Assumptions!$C$22*Assumptions!$C$30),0) -> 1511 | H137: =VLOOKUP(B137,'26-27 Adjusted Formula counts'!$A$3:$L$320,9,FALSE) -> 40 | I137: =ROUND((H137/$H$5*Assumptions!$C$22*Assumptions!$C$31),0) -> 8254 | K137: 9765 | N137: 9765 | O137: 0 | P137: 9765 | R137: 0 | S137: 9765 | U137: =IFERROR(VLOOKUP($A137, 'Allocation 2025-26 Final'!$A$7:$S$323,19,FALSE),0) -> 11091 | W137: -1326 | X137: -0.1195563971 | Y137: 204 | Z137: 0 | AB137: 5304530 | AC137: LOPEZ
A138: =VLOOKUP(B138,CCDDD!$A$3:$B$319,2,FALSE) -> 32903 | B138: 5304550 | C138: LUMEN CHARTER | D138: 0 | E138: 0 | F138: =VLOOKUP(B138,'26-27 Adjusted Formula counts'!$A$3:$L$320,8,FALSE) -> 28.7683404 | G138: =ROUND((F138/$F$5*Assumptions!$C$22*Assumptions!$C$30),0) -> 158 | H138: =VLOOKUP(B138,'26-27 Adjusted Formula counts'!$A$3:$L$320,9,FALSE) -> 4.776230702 | I138: =ROUND((H138/$H$5*Assumptions!$C$22*Assumptions!$C$31),0) -> 986 | K138: 1144 | N138: 1144 | O138: 0 | P138: 1144 | R138: 0 | S138: 1144 | U138: =IFERROR(VLOOKUP($A138, 'Allocation 2025-26 Final'!$A$7:$S$323,19,FALSE),0) -> 1765 | W138: -621 | X138: -0.3518413598 | Y138: 184 | Z138: 0 | AB138: 5304550 | AC138: LUMEN CHARTER
A139: =VLOOKUP(B139,CCDDD!$A$3:$B$319,2,FALSE) -> 20406 | B139: 5304590 | C139: LYLE | D139: 0 | E139: 0 | F139: =VLOOKUP(B139,'26-27 Adjusted Formula counts'!$A$3:$L$320,8,FALSE) -> 418 | G139: =ROUND((F139/$F$5*Assumptions!$C$22*Assumptions!$C$30),0) -> 2289 | H139: =VLOOKUP(B139,'26-27 Adjusted Formula counts'!$A$3:$L$320,9,FALSE) -> 70 | I139: =ROUND((H139/$H$5*Assumptions!$C$22*Assumptions!$C$31),0) -> 14445 | K139: 16734 | N139: 16734 | O139: 0 | P139: 16734 | R139: 0 | S139: 16734 | U139: =IFERROR(VLOOKUP($A139, 'Allocation 2025-26 Final'!$A$7:$S$323,19,FALSE),0) -> 20215 | W139: -3481 | X139: -0.1721988622 | Y139: 244 | Z139: 0 | AB139: 5304590 | AC139: LYLE
A140: =VLOOKUP(B140,CCDDD!$A$3:$B$319,2,FALSE) -> 37504 | B140: 5304620 | C140: LYNDEN | D140: 0 | E140: 0 | F140: =VLOOKUP(B140,'26-27 Adjusted Formula counts'!$A$3:$L$320,8,FALSE) -> 4311 | G140: =ROUND((F140/$F$5*Assumptions!$C$22*Assumptions!$C$30),0) -> 23603 | H140: =VLOOKUP(B140,'26-27 Adjusted Formula counts'!$A$3:$L$320,9,FALSE) -> 263 | I140: =ROUND((H140/$H$5*Assumptions!$C$22*Assumptions!$C$31),0) -> 54272 | K140: 77875 | N140: 77875 | O140: 0 | P140: 77875 | R140: 0 | S140: 77875 | U140: =IFERROR(VLOOKUP($A140, 'Allocation 2025-26 Final'!$A$7:$S$323,19,FALSE),0) -> 92677 | W140: -14802 | X140: -0.1597160029 | Y140: 295 | Z140: 0 | AB140: 5304620 | AC140: LYNDEN
A141: =VLOOKUP(B141,CCDDD!$A$3:$B$319,2,FALSE) -> 39120 | B141: 5304650 | C141: MABTON | D141: 0 | E141: 0 | F141: =VLOOKUP(B141,'26-27 Adjusted Formula counts'!$A$3:$L$320,8,FALSE) -> 765 | G141: =ROUND((F141/$F$5*Assumptions!$C$22*Assumptions!$C$30),0) -> 4188 | H141: =VLOOKUP(B141,'26-27 Adjusted Formula counts'!$A$3:$L$320,9,FALSE) -> 101 | I141: =ROUND((H141/$H$5*Assumptions!$C$22*Assumptions!$C$31),0) -> 20842 | K141: 25030 | N141: 25030 | O141: 0 | P141: 25030 | R141: 0 | S141: 25030 | U141: =IFERROR(VLOOKUP($A141, 'Allocation 2025-26 Final'!$A$7:$S$323,19,FALSE),0) -> 28108 | W141: -3078 | X141: -0.1095061904 | Y141: 241 | Z141: 0 | AB141: 5304650 | AC141: MABTON
A142: =VLOOKUP(B142,CCDDD!$A$3:$B$319,2,FALSE) -> 09207 | B142: 5304710 | C142: MANSFIELD | D142: 0 | E142: 0 | F142: =VLOOKUP(B142,'26-27 Adjusted Formula counts'!$A$3:$L$320,8,FALSE) -> 85 | G142: =ROUND((F142/$F$5*Assumptions!$C$22*Assumptions!$C$30),0) -> 465 | H142: =VLOOKUP(B142,'26-27 Adjusted Formula counts'!$A$3:$L$320,9,FALSE) -> 8 | I142: =ROUND((H142/$H$5*Assumptions!$C$22*Assumptions!$C$31),0) -> 1651 | K142: 2116 | N142: 2116 | O142: 0 | P142: 2116 | R142: 0 | S142: 2116 | U142: =IFERROR(VLOOKUP($A142, 'Allocation 2025-26 Final'!$A$7:$S$323,19,FALSE),0) -> 2660 | W142: -544 | X142: -0.2045112782 | Y142: 180 | Z142: 0 | AB142: 5304710 | AC142: MANSFIELD
A143: =VLOOKUP(B143,CCDDD!$A$3:$B$319,2,FALSE) -> 04019 | B143: 5304740 | C143: MANSON | D143: 0 | E143: 0 | F143: =VLOOKUP(B143,'26-27 Adjusted Formula counts'!$A$3:$L$320,8,FALSE) -> 626 | G143: =ROUND((F143/$F$5*Assumptions!$C$22*Assumptions!$C$30),0) -> 3427 | H143: =VLOOKUP(B143,'26-27 Adjusted Formula counts'!$A$3:$L$320,9,FALSE) -> 72 | I143: =ROUND((H143/$H$5*Assumptions!$C$22*Assumptions!$C$31),0) -> 14858 | K143: 18285 | N143: 18285 | O143: 0 | P143: 18285 | R143: 0 | S143: 18285 | U143: =IFERROR(VLOOKUP($A143, 'Allocation 2025-26 Final'!$A$7:$S$323,19,FALSE),0) -> 23871 | W143: -5586 | X143: -0.2340077919 | Y143: 268 | Z143: 0 | AB143: 5304740 | AC143: MANSON
A144: =VLOOKUP(B144,CCDDD!$A$3:$B$319,2,FALSE) -> 23311 | B144: 5304800 | C144: MARY M KNIGHT | D144: 0 | E144: 0 | F144: =VLOOKUP(B144,'26-27 Adjusted Formula counts'!$A$3:$L$320,8,FALSE) -> 210 | G144: =ROUND((F144/$F$5*Assumptions!$C$22*Assumptions!$C$30),0) -> 1150 | H144: =VLOOKUP(B144,'26-27 Adjusted Formula counts'!$A$3:$L$320,9,FALSE) -> 27 | I144: =ROUND((H144/$H$5*Assumptions!$C$22*Assumptions!$C$31),0) -> 5572 | K144: 6722 | N144: 6722 | O144: 0 | P144: 6722 | R144: 0 | S144: 6722 | U144: =IFERROR(VLOOKUP($A144, 'Allocation 2025-26 Final'!$A$7:$S$323,19,FALSE),0) -> 6114 | W144: 608 | X144: 0.09944389925 | Y144: 129 | Z144: 0 | AB144: 5304800 | AC144: MARY M KNIGHT
A145: =VLOOKUP(B145,CCDDD!$A$3:$B$319,2,FALSE) -> 33207 | B145: 5304830 | C145: MARY WALKER | D145: 0 | E145: 0 | F145: =VLOOKUP(B145,'26-27 Adjusted Formula counts'!$A$3:$L$320,8,FALSE) -> 639 | G145: =ROUND((F145/$F$5*Assumptions!$C$22*Assumptions!$C$30),0) -> 3499 | H145: =VLOOKUP(B145,'26-27 Adjusted Formula counts'!$A$3:$L$320,9,FALSE) -> 132 | I145: =ROUND((H145/$H$5*Assumptions!$C$22*Assumptions!$C$31),0) -> 27239 | K145: 30738 | N145: 30738 | O145: 0 | P145: 30738 | R145: 0 | S145: 30738 | U145: =IFERROR(VLOOKUP($A145, 'Allocation 2025-26 Final'!$A$7:$S$323,19,FALSE),0) -> 26626 | W145: 4112 | X145: 0.1544355142 | Y145: 64 | Z145: 0 | AB145: 5304830 | AC145: MARY WALKER
A146: =VLOOKUP(B146,CCDDD!$A$3:$B$319,2,FALSE) -> 31025 | B146: 5304860 | C146: MARYSVILLE | D146: 0 | E146: 0 | F146: =VLOOKUP(B146,'26-27 Adjusted Formula counts'!$A$3:$L$320,8,FALSE) -> 12728 | G146: =ROUND((F146/$F$5*Assumptions!$C$22*Assumptions!$C$30),0) -> 69686 | H146: =VLOOKUP(B146,'26-27 Adjusted Formula counts'!$A$3:$L$320,9,FALSE) -> 1382 | I146: =ROUND((H146/$H$5*Assumptions!$C$22*Assumptions!$C$31),0) -> 285184 | K146: 354870 | N146: 354870 | O146: 0 | P146: 354870 | R146: 0 | S146: 354870 | U146: =IFERROR(VLOOKUP($A146, 'Allocation 2025-26 Final'!$A$7:$S$323,19,FALSE),0) -> 349151 | W146: 5719 | X146: 0.01637973255 | Y146: 54 | Z146: 0 | AB146: 5304860 | AC146: MARYSVILLE
A147: =VLOOKUP(B147,CCDDD!$A$3:$B$319,2,FALSE) -> 14065 | B147: 5304890 | C147: MCCLEARY | D147: 0 | E147: 0 | F147: =VLOOKUP(B147,'26-27 Adjusted Formula counts'!$A$3:$L$320,8,FALSE) -> 567 | G147: =ROUND((F147/$F$5*Assumptions!$C$22*Assumptions!$C$30),0) -> 3104 | H147: =VLOOKUP(B147,'26-27 Adjusted Formula counts'!$A$3:$L$320,9,FALSE) -> 36 | I147: =ROUND((H147/$H$5*Assumptions!$C$22*Assumptions!$C$31),0) -> 7429 | K147: 10533 | N147: 10533 | O147: 0 | P147: 10533 | R147: 0 | S147: 10533 | U147: =IFERROR(VLOOKUP($A147, 'Allocation 2025-26 Final'!$A$7:$S$323,19,FALSE),0) -> 11885 | W147: -1352 | X147: -0.1137568363 | Y147: 206 | Z147: 0 | AB147: 5304890 | AC147: MCCLEARY
A148: =VLOOKUP(B148,CCDDD!$A$3:$B$319,2,FALSE) -> 32354 | B148: 5304920 | C148: MEAD | D148: 0 | E148: 0 | F148: =VLOOKUP(B148,'26-27 Adjusted Formula counts'!$A$3:$L$320,8,FALSE) -> 12063 | G148: =ROUND((F148/$F$5*Assumptions!$C$22*Assumptions!$C$30),0) -> 66045 | H148: =VLOOKUP(B148,'26-27 Adjusted Formula counts'!$A$3:$L$320,9,FALSE) -> 736 | I148: =ROUND((H148/$H$5*Assumptions!$C$22*Assumptions!$C$31),0) -> 151878 | K148: 217923 | N148: 217923 | O148: 0 | P148: 217923 | R148: 0 | S148: 217923 | U148: =IFERROR(VLOOKUP($A148, 'Allocation 2025-26 Final'!$A$7:$S$323,19,FALSE),0) -> 238787 | W148: -20864 | X148: -0.08737494085 | Y148: 302 | Z148: 0 | AB148: 5304920 | AC148: MEAD
A149: =VLOOKUP(B149,CCDDD!$A$3:$B$319,2,FALSE) -> 32326 | B149: 5304950 | C149: MEDICAL LAKE | D149: 0 | E149: 0 | F149: =VLOOKUP(B149,'26-27 Adjusted Formula counts'!$A$3:$L$320,8,FALSE) -> 1808 | G149: =ROUND((F149/$F$5*Assumptions!$C$22*Assumptions!$C$30),0) -> 9899 | H149: =VLOOKUP(B149,'26-27 Adjusted Formula counts'!$A$3:$L$320,9,FALSE) -> 125 | I149: =ROUND((H149/$H$5*Assumptions!$C$22*Assumptions!$C$31),0) -> 25794 | K149: 35693 | N149: 35693 | O149: 0 | P149: 35693 | R149: 0 | S149: 35693 | U149: =IFERROR(VLOOKUP($A149, 'Allocation 2025-26 Final'!$A$7:$S$323,19,FALSE),0) -> 43347 | W149: -7654 | X149: -0.1765750802 | Y149: 279 | Z149: 0 | AB149: 5304950 | AC149: MEDICAL LAKE
A150: =VLOOKUP(B150,CCDDD!$A$3:$B$319,2,FALSE) -> 17400 | B150: 5304980 | C150: MERCER ISLAND | D150: 0 | E150: 0 | F150: =VLOOKUP(B150,'26-27 Adjusted Formula counts'!$A$3:$L$320,8,FALSE) -> 4956 | G150: =ROUND((F150/$F$5*Assumptions!$C$22*Assumptions!$C$30),0) -> 27134 | H150: =VLOOKUP(B150,'26-27 Adjusted Formula counts'!$A$3:$L$320,9,FALSE) -> 135 | I150: =ROUND((H150/$H$5*Assumptions!$C$22*Assumptions!$C$31),0) -> 27858 | K150: 54992 | N150: 54992 | O150: 0 | P150: 54992 | R150: 0 | S150: 54992 | U150: =IFERROR(VLOOKUP($A150, 'Allocation 2025-26 Final'!$A$7:$S$323,19,FALSE),0) -> 56511 | W150: -1519 | X150: -0.02687972253 | Y150: 210 | Z150: 0 | AB150: 5304980 | AC150: MERCER ISLAND
A151: =VLOOKUP(B151,CCDDD!$A$3:$B$319,2,FALSE) -> 37505 | B151: 5305010 | C151: MERIDIAN | D151: 0 | E151: 0 | F151: =VLOOKUP(B151,'26-27 Adjusted Formula counts'!$A$3:$L$320,8,FALSE) -> 1690 | G151: =ROUND((F151/$F$5*Assumptions!$C$22*Assumptions!$C$30),0) -> 9253 | H151: =VLOOKUP(B151,'26-27 Adjusted Formula counts'!$A$3:$L$320,9,FALSE) -> 153 | I151: =ROUND((H151/$H$5*Assumptions!$C$22*Assumptions!$C$31),0) -> 31572 | K151: 40825 | N151: 40825 | O151: 0 | P151: 40825 | R151: 0 | S151: 40825 | U151: =IFERROR(VLOOKUP($A151, 'Allocation 2025-26 Final'!$A$7:$S$323,19,FALSE),0) -> 51750 | W151: -10925 | X151: -0.2111111111 | Y151: 288 | Z151: 0 | AB151: 5305010 | AC151: MERIDIAN
A152: =VLOOKUP(B152,CCDDD!$A$3:$B$319,2,FALSE) -> 24350 | B152: 5305020 | C152: METHOW VALLEY | D152: 0 | E152: 0 | F152: =VLOOKUP(B152,'26-27 Adjusted Formula counts'!$A$3:$L$320,8,FALSE) -> 833 | G152: =ROUND((F152/$F$5*Assumptions!$C$22*Assumptions!$C$30),0) -> 4561 | H152: =VLOOKUP(B152,'26-27 Adjusted Formula counts'!$A$3:$L$320,9,FALSE) -> 103 | I152: =ROUND((H152/$H$5*Assumptions!$C$22*Assumptions!$C$31),0) -> 21255 | K152: 25816 | N152: 25816 | O152: 0 | P152: 25816 | R152: 0 | S152: 25816 | U152: =IFERROR(VLOOKUP($A152, 'Allocation 2025-26 Final'!$A$7:$S$323,19,FALSE),0) -> 30266 | W152: -4450 | X152: -0.1470296703 | Y152: 255 | Z152: 0 | AB152: 5305020 | AC152: METHOW VALLEY
A153: =VLOOKUP(B153,CCDDD!$A$3:$B$319,2,FALSE) -> 30031 | B153: 5305040 | C153: MILL A | D153: 0 | E153: 0 | F153: =VLOOKUP(B153,'26-27 Adjusted Formula counts'!$A$3:$L$320,8,FALSE) -> 71 | G153: =ROUND((F153/$F$5*Assumptions!$C$22*Assumptions!$C$30),0) -> 389 | H153: =VLOOKUP(B153,'26-27 Adjusted Formula counts'!$A$3:$L$320,9,FALSE) -> 9 | I153: =ROUND((H153/$H$5*Assumptions!$C$22*Assumptions!$C$31),0) -> 1857 | K153: 2246 | N153: 2246 | O153: 0 | P153: 2246 | R153: 0 | S153: 2246 | U153: =IFERROR(VLOOKUP($A153, 'Allocation 2025-26 Final'!$A$7:$S$323,19,FALSE),0) -> 2988 | W153: -742 | X153: -0.2483266399 | Y153: 187 | Z153: 0 | AB153: 5305040 | AC153: MILL A
A154: =VLOOKUP(B154,CCDDD!$A$3:$B$319,2,FALSE) -> 31103 | B154: 5305130 | C154: MONROE | D154: 0 | E154: 0 | F154: =VLOOKUP(B154,'26-27 Adjusted Formula counts'!$A$3:$L$320,8,FALSE) -> 6745 | G154: =ROUND((F154/$F$5*Assumptions!$C$22*Assumptions!$C$30),0) -> 36929 | H154: =VLOOKUP(B154,'26-27 Adjusted Formula counts'!$A$3:$L$320,9,FALSE) -> 406 | I154: =ROUND((H154/$H$5*Assumptions!$C$22*Assumptions!$C$31),0) -> 83781 | K154: 120710 | N154: 120710 | O154: 0 | P154: 120710 | R154: 0 | S154: 120710 | U154: =IFERROR(VLOOKUP($A154, 'Allocation 2025-26 Final'!$A$7:$S$323,19,FALSE),0) -> 126679 | W154: -5969 | X154: -0.0471190963 | Y154: 271 | Z154: 0 | AB154: 5305130 | AC154: MONROE
A155: =VLOOKUP(B155,CCDDD!$A$3:$B$319,2,FALSE) -> 14066 | B155: 5305160 | C155: MONTESANO | D155: 0 | E155: 0 | F155: =VLOOKUP(B155,'26-27 Adjusted Formula counts'!$A$3:$L$320,8,FALSE) -> 1321 | G155: =ROUND((F155/$F$5*Assumptions!$C$22*Assumptions!$C$30),0) -> 7232 | H155: =VLOOKUP(B155,'26-27 Adjusted Formula counts'!$A$3:$L$320,9,FALSE) -> 97 | I155: =ROUND((H155/$H$5*Assumptions!$C$22*Assumptions!$C$31),0) -> 20017 | K155: 27249 | N155: 27249 | O155: 0 | P155: 27249 | R155: 0 | S155: 27249 | U155: =IFERROR(VLOOKUP($A155, 'Allocation 2025-26 Final'!$A$7:$S$323,19,FALSE),0) -> 31186 | W155: -3937 | X155: -0.1262425447 | Y155: 249 | Z155: 0 | AB155: 5305160 | AC155: MONTESANO
A156: =VLOOKUP(B156,CCDDD!$A$3:$B$319,2,FALSE) -> 21214 | B156: 5305190 | C156: MORTON | D156: 0 | E156: 0 | F156: =VLOOKUP(B156,'26-27 Adjusted Formula counts'!$A$3:$L$320,8,FALSE) -> 342 | G156: =ROUND((F156/$F$5*Assumptions!$C$22*Assumptions!$C$30),0) -> 1872 | H156: =VLOOKUP(B156,'26-27 Adjusted Formula counts'!$A$3:$L$320,9,FALSE) -> 32 | I156: =ROUND((H156/$H$5*Assumptions!$C$22*Assumptions!$C$31),0) -> 6603 | K156: 8475 | N156: 8475 | O156: 0 | P156: 8475 | R156: 0 | S156: 8475 | U156: =IFERROR(VLOOKUP($A156, 'Allocation 2025-26 Final'!$A$7:$S$323,19,FALSE),0) -> 10204 | W156: -1729 | X156: -0.1694433555 | Y156: 215 | Z156: 0 | AB156: 5305190 | AC156: MORTON
A157: =VLOOKUP(B157,CCDDD!$A$3:$B$319,2,FALSE) -> 13161 | B157: 5305220 | C157: MOSES LAKE | D157: 0 | E157: 0 | F157: =VLOOKUP(B157,'26-27 Adjusted Formula counts'!$A$3:$L$320,8,FALSE) -> 9724 | G157: =ROUND((F157/$F$5*Assumptions!$C$22*Assumptions!$C$30),0) -> 53239 | H157: =VLOOKUP(B157,'26-27 Adjusted Formula counts'!$A$3:$L$320,9,FALSE) -> 1960 | I157: =ROUND((H157/$H$5*Assumptions!$C$22*Assumptions!$C$31),0) -> 404458 | K157: 457697 | N157: 457697 | O157: 0 | P157: 457697 | R157: 0 | S157: 457697 | U157: =IFERROR(VLOOKUP($A157, 'Allocation 2025-26 Final'!$A$7:$S$323,19,FALSE),0) -> 368078 | W157: 89619 | X157: 0.2434782845 | Y157: 3 | Z157: 0 | AB157: 5305220 | AC157: MOSES LAKE
A158: =VLOOKUP(B158,CCDDD!$A$3:$B$319,2,FALSE) -> 21206 | B158: 5305250 | C158: MOSSYROCK | D158: 0 | E158: 0 | F158: =VLOOKUP(B158,'26-27 Adjusted Formula counts'!$A$3:$L$320,8,FALSE) -> 718 | G158: =ROUND((F158/$F$5*Assumptions!$C$22*Assumptions!$C$30),0) -> 3931 | H158: =VLOOKUP(B158,'26-27 Adjusted Formula counts'!$A$3:$L$320,9,FALSE) -> 77 | I158: =ROUND((H158/$H$5*Assumptions!$C$22*Assumptions!$C$31),0) -> 15889 | K158: 19820 | N158: 19820 | O158: 0 | P158: 19820 | R158: 0 | S158: 19820 | U158: =IFERROR(VLOOKUP($A158, 'Allocation 2025-26 Final'!$A$7:$S$323,19,FALSE),0) -> 17403 | W158: 2417 | X158: 0.1388841004 | Y158: 81 | Z158: 0 | AB158: 5305250 | AC158: MOSSYROCK
A159: =VLOOKUP(B159,CCDDD!$A$3:$B$319,2,FALSE) -> 39209 | B159: 5305280 | C159: MOUNT ADAMS | D159: 0 | E159: 0 | F159: =VLOOKUP(B159,'26-27 Adjusted Formula counts'!$A$3:$L$320,8,FALSE) -> 992 | G159: =ROUND((F159/$F$5*Assumptions!$C$22*Assumptions!$C$30),0) -> 5431 | H159: =VLOOKUP(B159,'26-27 Adjusted Formula counts'!$A$3:$L$320,9,FALSE) -> 126 | I159: =ROUND((H159/$H$5*Assumptions!$C$22*Assumptions!$C$31),0) -> 26001 | K159: 31432 | N159: 31432 | O159: 0 | P159: 31432 | R159: 0 | S159: 31432 | U159: =IFERROR(VLOOKUP($A159, 'Allocation 2025-26 Final'!$A$7:$S$323,19,FALSE),0) -> 30143 | W159: 1289 | X159: 0.04276283051 | Y159: 109 | Z159: 0 | AB159: 5305280 | AC159: MOUNT ADAMS
A160: =VLOOKUP(B160,CCDDD!$A$3:$B$319,2,FALSE) -> 37507 | B160: 5305310 | C160: MOUNT BAKER | D160: 0 | E160: 0 | F160: =VLOOKUP(B160,'26-27 Adjusted Formula counts'!$A$3:$L$320,8,FALSE) -> 2412 | G160: =ROUND((F160/$F$5*Assumptions!$C$22*Assumptions!$C$30),0) -> 13206 | H160: =VLOOKUP(B160,'26-27 Adjusted Formula counts'!$A$3:$L$320,9,FALSE) -> 175 | I160: =ROUND((H160/$H$5*Assumptions!$C$22*Assumptions!$C$31),0) -> 36112 | K160: 49318 | N160: 49318 | O160: 0 | P160: 49318 | R160: 0 | S160: 49318 | U160: =IFERROR(VLOOKUP($A160, 'Allocation 2025-26 Final'!$A$7:$S$323,19,FALSE),0) -> 66490 | W160: -17172 | X160: -0.2582644007 | Y160: 296 | Z160: 0 | AB160: 5305310 | AC160: MOUNT BAKER
A161: =VLOOKUP(B161,CCDDD!$A$3:$B$319,2,FALSE) -> 30029 | B161: 5305340 | C161: MOUNT PLEASANT | D161: 0 | E161: 0 | F161: =VLOOKUP(B161,'26-27 Adjusted Formula counts'!$A$3:$L$320,8,FALSE) -> 39 | G161: =ROUND((F161/$F$5*Assumptions!$C$22*Assumptions!$C$30),0) -> 214 | H161: =VLOOKUP(B161,'26-27 Adjusted Formula counts'!$A$3:$L$320,9,FALSE) -> 5 | I161: =ROUND((H161/$H$5*Assumptions!$C$22*Assumptions!$C$31),0) -> 1032 | K161: 1246 | N161: 1246 | O161: 0 | P161: 1246 | R161: 0 | S161: 1246 | U161: =IFERROR(VLOOKUP($A161, 'Allocation 2025-26 Final'!$A$7:$S$323,19,FALSE),0) -> 622 | W161: 624 | X161: 1.003215434 | Y161: 128 | Z161: 0 | AB161: 5305340 | AC161: MOUNT PLEASANT
A162: =VLOOKUP(B162,CCDDD!$A$3:$B$319,2,FALSE) -> 29320 | B162: 5305400 | C162: MOUNT VERNON | D162: 0 | E162: 0 | F162: =VLOOKUP(B162,'26-27 Adjusted Formula counts'!$A$3:$L$320,8,FALSE) -> 6746 | G162: =ROUND((F162/$F$5*Assumptions!$C$22*Assumptions!$C$30),0) -> 36934 | H162: =VLOOKUP(B162,'26-27 Adjusted Formula counts'!$A$3:$L$320,9,FALSE) -> 759 | I162: =ROUND((H162/$H$5*Assumptions!$C$22*Assumptions!$C$31),0) -> 156624 | K162: 193558 | N162: 193558 | O162: 0 | P162: 193558 | R162: 0 | S162: 193558 | U162: =IFERROR(VLOOKUP($A162, 'Allocation 2025-26 Final'!$A$7:$S$323,19,FALSE),0) -> 214221 | W162: -20663 | X162: -0.09645646319 | Y162: 301 | Z162: 0 | AB162: 5305400 | AC162: MOUNT VERNON
A163: =VLOOKUP(B163,CCDDD!$A$3:$B$319,2,FALSE) -> 31006 | B163: 5305430 | C163: MUKILTEO | D163: 0 | E163: 0 | F163: =VLOOKUP(B163,'26-27 Adjusted Formula counts'!$A$3:$L$320,8,FALSE) -> 17182 | G163: =ROUND((F163/$F$5*Assumptions!$C$22*Assumptions!$C$30),0) -> 94072 | H163: =VLOOKUP(B163,'26-27 Adjusted Formula counts'!$A$3:$L$320,9,FALSE) -> 2358 | I163: =ROUND((H163/$H$5*Assumptions!$C$22*Assumptions!$C$31),0) -> 486587 | K163: 580659 | N163: 580659 | O163: 0 | P163: 580659 | R163: 0 | S163: 580659 | U163: =IFERROR(VLOOKUP($A163, 'Allocation 2025-26 Final'!$A$7:$S$323,19,FALSE),0) -> 580731 | W163: -72 | X163: -0.0001239816714 | Y163: 163 | Z163: 0 | AB163: 5305430 | AC163: MUKILTEO
A164: =VLOOKUP(B164,CCDDD!$A$3:$B$319,2,FALSE) -> 39003 | B164: 5305460 | C164: NACHES VALLEY | D164: 0 | E164: 0 | F164: =VLOOKUP(B164,'26-27 Adjusted Formula counts'!$A$3:$L$320,8,FALSE) -> 1603 | G164: =ROUND((F164/$F$5*Assumptions!$C$22*Assumptions!$C$30),0) -> 8776 | H164: =VLOOKUP(B164,'26-27 Adjusted Formula counts'!$A$3:$L$320,9,FALSE) -> 189 | I164: =ROUND((H164/$H$5*Assumptions!$C$22*Assumptions!$C$31),0) -> 39001 | K164: 47777 | N164: 47777 | O164: 0 | P164: 47777 | R164: 0 | S164: 47777 | U164: =IFERROR(VLOOKUP($A164, 'Allocation 2025-26 Final'!$A$7:$S$323,19,FALSE),0) -> 43258 | W164: 4519 | X164: 0.1044662259 | Y164: 59 | Z164: 0 | AB164: 5305460 | AC164: NACHES VALLEY
A165: =VLOOKUP(B165,CCDDD!$A$3:$B$319,2,FALSE) -> 21014 | B165: 5305490 | C165: NAPAVINE | D165: 0 | E165: 0 | F165: =VLOOKUP(B165,'26-27 Adjusted Formula counts'!$A$3:$L$320,8,FALSE) -> 796 | G165: =ROUND((F165/$F$5*Assumptions!$C$22*Assumptions!$C$30),0) -> 4358 | H165: =VLOOKUP(B165,'26-27 Adjusted Formula counts'!$A$3:$L$320,9,FALSE) -> 83 | I165: =ROUND((H165/$H$5*Assumptions!$C$22*Assumptions!$C$31),0) -> 17128 | K165: 21486 | N165: 21486 | O165: 0 | P165: 21486 | R165: 0 | S165: 21486 | U165: =IFERROR(VLOOKUP($A165, 'Allocation 2025-26 Final'!$A$7:$S$323,19,FALSE),0) -> 20613 | W165: 873 | X165: 0.04235191384 | Y165: 120 | Z165: 0 | AB165: 5305490 | AC165: NAPAVINE
A166: =VLOOKUP(B166,CCDDD!$A$3:$B$319,2,FALSE) -> 25155 | B166: 5305520 | C166: NASELLE-GRAYS | D166: 0 | E166: 0 | F166: =VLOOKUP(B166,'26-27 Adjusted Formula counts'!$A$3:$L$320,8,FALSE) -> 325 | G166: =ROUND((F166/$F$5*Assumptions!$C$22*Assumptions!$C$30),0) -> 1779 | H166: =VLOOKUP(B166,'26-27 Adjusted Formula counts'!$A$3:$L$320,9,FALSE) -> 40 | I166: =ROUND((H166/$H$5*Assumptions!$C$22*Assumptions!$C$31),0) -> 8254 | K166: 10033 | N166: 10033 | O166: 0 | P166: 10033 | R166: 0 | S166: 10033 | U166: =IFERROR(VLOOKUP($A166, 'Allocation 2025-26 Final'!$A$7:$S$323,19,FALSE),0) -> 9596 | W166: 437 | X166: 0.04553980825 | Y166: 138 | Z166: 0 | AB166: 5305520 | AC166: NASELLE-GRAYS
A167: =VLOOKUP(B167,CCDDD!$A$3:$B$319,2,FALSE) -> 24014 | B167: 5305550 | C167: NESPELEM | D167: 0 | E167: 0 | F167: =VLOOKUP(B167,'26-27 Adjusted Formula counts'!$A$3:$L$320,8,FALSE) -> 245 | G167: =ROUND((F167/$F$5*Assumptions!$C$22*Assumptions!$C$30),0) -> 1341 | H167: =VLOOKUP(B167,'26-27 Adjusted Formula counts'!$A$3:$L$320,9,FALSE) -> 77 | I167: =ROUND((H167/$H$5*Assumptions!$C$22*Assumptions!$C$31),0) -> 15889 | K167: 17230 | N167: 17230 | O167: 0 | P167: 17230 | R167: 0 | S167: 17230 | U167: =IFERROR(VLOOKUP($A167, 'Allocation 2025-26 Final'!$A$7:$S$323,19,FALSE),0) -> 15293 | W167: 1937 | X167: 0.1266592559 | Y167: 88 | Z167: 0 | AB167: 5305550 | AC167: NESPELEM
A168: =VLOOKUP(B168,CCDDD!$A$3:$B$319,2,FALSE) -> 26056 | B168: 5305610 | C168: NEWPORT | D168: 0 | E168: 0 | F168: =VLOOKUP(B168,'26-27 Adjusted Formula counts'!$A$3:$L$320,8,FALSE) -> 1443 | G168: =ROUND((F168/$F$5*Assumptions!$C$22*Assumptions!$C$30),0) -> 7900 | H168: =VLOOKUP(B168,'26-27 Adjusted Formula counts'!$A$3:$L$320,9,FALSE) -> 237 | I168: =ROUND((H168/$H$5*Assumptions!$C$22*Assumptions!$C$31),0) -> 48906 | K168: 56806 | N168: 56806 | O168: 0 | P168: 56806 | R168: 0 | S168: 56806 | U168: =IFERROR(VLOOKUP($A168, 'Allocation 2025-26 Final'!$A$7:$S$323,19,FALSE),0) -> 61202 | W168: -4396 | X168: -0.07182771805 | Y168: 253 | Z168: 0 | AB168: 5305610 | AC168: NEWPORT
A169: =VLOOKUP(B169,CCDDD!$A$3:$B$319,2,FALSE) -> 32325 | B169: 5305640 | C169: NINE MILE FALLS | D169: 0 | E169: 0 | F169: =VLOOKUP(B169,'26-27 Adjusted Formula counts'!$A$3:$L$320,8,FALSE) -> 1564 | G169: =ROUND((F169/$F$5*Assumptions!$C$22*Assumptions!$C$30),0) -> 8563 | H169: =VLOOKUP(B169,'26-27 Adjusted Formula counts'!$A$3:$L$320,9,FALSE) -> 130 | I169: =ROUND((H169/$H$5*Assumptions!$C$22*Assumptions!$C$31),0) -> 26826 | K169: 35389 | N169: 35389 | O169: 0 | P169: 35389 | R169: 0 | S169: 35389 | U169: =IFERROR(VLOOKUP($A169, 'Allocation 2025-26 Final'!$A$7:$S$323,19,FALSE),0) -> 31476 | W169: 3913 | X169: 0.1243169399 | Y169: 68 | Z169: 0 | AB169: 5305640 | AC169: NINE MILE FALLS
A170: =VLOOKUP(B170,CCDDD!$A$3:$B$319,2,FALSE) -> 37506 | B170: 5305670 | C170: NOOKSACK VALLEY | D170: 0 | E170: 0 | F170: =VLOOKUP(B170,'26-27 Adjusted Formula counts'!$A$3:$L$320,8,FALSE) -> 2189 | G170: =ROUND((F170/$F$5*Assumptions!$C$22*Assumptions!$C$30),0) -> 11985 | H170: =VLOOKUP(B170,'26-27 Adjusted Formula counts'!$A$3:$L$320,9,FALSE) -> 165 | I170: =ROUND((H170/$H$5*Assumptions!$C$22*Assumptions!$C$31),0) -> 34049 | K170: 46034 | N170: 46034 | O170: 0 | P170: 46034 | R170: 0 | S170: 46034 | U170: =IFERROR(VLOOKUP($A170, 'Allocation 2025-26 Final'!$A$7:$S$323,19,FALSE),0) -> 60284 | W170: -14250 | X170: -0.2363811293 | Y170: 294 | Z170: 0 | AB170: 5305670 | AC170: NOOKSACK VALLEY
A171: =VLOOKUP(B171,CCDDD!$A$3:$B$319,2,FALSE) -> 14064 | B171: 5305700 | C171: NORTH BEACH | D171: 0 | E171: 0 | F171: =VLOOKUP(B171,'26-27 Adjusted Formula counts'!$A$3:$L$320,8,FALSE) -> 698 | G171: =ROUND((F171/$F$5*Assumptions!$C$22*Assumptions!$C$30),0) -> 3822 | H171: =VLOOKUP(B171,'26-27 Adjusted Formula counts'!$A$3:$L$320,9,FALSE) -> 135 | I171: =ROUND((H171/$H$5*Assumptions!$C$22*Assumptions!$C$31),0) -> 27858 | K171: 31680 | N171: 31680 | O171: 0 | P171: 31680 | R171: 0 | S171: 31680 | U171: =IFERROR(VLOOKUP($A171, 'Allocation 2025-26 Final'!$A$7:$S$323,19,FALSE),0) -> 28951 | W171: 2729 | X171: 0.09426271977 | Y171: 75 | Z171: 0 | AB171: 5305700 | AC171: NORTH BEACH
A172: =VLOOKUP(B172,CCDDD!$A$3:$B$319,2,FALSE) -> 11051 | B172: 5305730 | C172: NORTH FRANKLIN | D172: 0 | E172: 0 | F172: =VLOOKUP(B172,'26-27 Adjusted Formula counts'!$A$3:$L$320,8,FALSE) -> 2196 | G172: =ROUND((F172/$F$5*Assumptions!$C$22*Assumptions!$C$30),0) -> 12023 | H172: =VLOOKUP(B172,'26-27 Adjusted Formula counts'!$A$3:$L$320,9,FALSE) -> 238 | I172: =ROUND((H172/$H$5*Assumptions!$C$22*Assumptions!$C$31),0) -> 49113 | K172: 61136 | N172: 61136 | O172: 0 | P172: 61136 | R172: 0 | S172: 61136 | U172: =IFERROR(VLOOKUP($A172, 'Allocation 2025-26 Final'!$A$7:$S$323,19,FALSE),0) -> 51468 | W172: 9668 | X172: 0.1878448745 | Y172: 40 | Z172: 0 | AB172: 5305730 | AC172: NORTH FRANKLIN
A173: =VLOOKUP(B173,CCDDD!$A$3:$B$319,2,FALSE) -> 18400 | B173: 5305760 | C173: NORTH KITSAP | D173: 0 | E173: 0 | F173: =VLOOKUP(B173,'26-27 Adjusted Formula counts'!$A$3:$L$320,8,FALSE) -> 7200 | G173: =ROUND((F173/$F$5*Assumptions!$C$22*Assumptions!$C$30),0) -> 39420 | H173: =VLOOKUP(B173,'26-27 Adjusted Formula counts'!$A$3:$L$320,9,FALSE) -> 535 | I173: =ROUND((H173/$H$5*Assumptions!$C$22*Assumptions!$C$31),0) -> 110400 | K173: 149820 | N173: 149820 | O173: 0 | P173: 149820 | R173: 0 | S173: 149820 | U173: =IFERROR(VLOOKUP($A173, 'Allocation 2025-26 Final'!$A$7:$S$323,19,FALSE),0) -> 133584 | W173: 16236 | X173: 0.121541502 | Y173: 25 | Z173: 0 | AB173: 5305760 | AC173: NORTH KITSAP
A174: =VLOOKUP(B174,CCDDD!$A$3:$B$319,2,FALSE) -> 23403 | B174: 5305790 | C174: NORTH MASON | D174: 0 | E174: 0 | F174: =VLOOKUP(B174,'26-27 Adjusted Formula counts'!$A$3:$L$320,8,FALSE) -> 2512 | G174: =ROUND((F174/$F$5*Assumptions!$C$22*Assumptions!$C$30),0) -> 13753 | H174: =VLOOKUP(B174,'26-27 Adjusted Formula counts'!$A$3:$L$320,9,FALSE) -> 358 | I174: =ROUND((H174/$H$5*Assumptions!$C$22*Assumptions!$C$31),0) -> 73875 | K174: 87628 | N174: 87628 | O174: 0 | P174: 87628 | R174: 0 | S174: 87628 | U174: =IFERROR(VLOOKUP($A174, 'Allocation 2025-26 Final'!$A$7:$S$323,19,FALSE),0) -> 86820 | W174: 808 | X174: 0.00930661138 | Y174: 122 | Z174: 0 | AB174: 5305790 | AC174: NORTH MASON
A175: =VLOOKUP(B175,CCDDD!$A$3:$B$319,2,FALSE) -> 25200 | B175: 5305820 | C175: NORTH RIVER | D175: 0 | E175: 0 | F175: =VLOOKUP(B175,'26-27 Adjusted Formula counts'!$A$3:$L$320,8,FALSE) -> 50 | G175: =ROUND((F175/$F$5*Assumptions!$C$22*Assumptions!$C$30),0) -> 274 | H175: =VLOOKUP(B175,'26-27 Adjusted Formula counts'!$A$3:$L$320,9,FALSE) -> 8 | I175: =ROUND((H175/$H$5*Assumptions!$C$22*Assumptions!$C$31),0) -> 1651 | K175: 1925 | N175: 1925 | O175: 0 | P175: 1925 | R175: 0 | S175: 1925 | U175: =IFERROR(VLOOKUP($A175, 'Allocation 2025-26 Final'!$A$7:$S$323,19,FALSE),0) -> 2271 | W175: -346 | X175: -0.1523557904 | Y175: 170 | Z175: 0 | AB175: 5305820 | AC175: NORTH RIVER
A176: =VLOOKUP(B176,CCDDD!$A$3:$B$319,2,FALSE) -> 34003 | B176: 5305850 | C176: NORTH THURSTON | D176: 0 | E176: 0 | F176: =VLOOKUP(B176,'26-27 Adjusted Formula counts'!$A$3:$L$320,8,FALSE) -> 17086 | G176: =ROUND((F176/$F$5*Assumptions!$C$22*Assumptions!$C$30),0) -> 93546 | H176: =VLOOKUP(B176,'26-27 Adjusted Formula counts'!$A$3:$L$320,9,FALSE) -> 1425 | I176: =ROUND((H176/$H$5*Assumptions!$C$22*Assumptions!$C$31),0) -> 294057 | K176: 387603 | N176: 387603 | O176: 0 | P176: 387603 | R176: 0 | S176: 387603 | U176: =IFERROR(VLOOKUP($A176, 'Allocation 2025-26 Final'!$A$7:$S$323,19,FALSE),0) -> 406498 | W176: -18895 | X176: -0.04648239352 | Y176: 299 | Z176: 0 | AB176: 5305850 | AC176: NORTH THURSTON
A177: =VLOOKUP(B177,CCDDD!$A$3:$B$319,2,FALSE) -> 33211 | B177: 5305880 | C177: NORTHPORT | D177: 0 | E177: 0 | F177: =VLOOKUP(B177,'26-27 Adjusted Formula counts'!$A$3:$L$320,8,FALSE) -> 225 | G177: =ROUND((F177/$F$5*Assumptions!$C$22*Assumptions!$C$30),0) -> 1232 | H177: =VLOOKUP(B177,'26-27 Adjusted Formula counts'!$A$3:$L$320,9,FALSE) -> 59 | I177: =ROUND((H177/$H$5*Assumptions!$C$22*Assumptions!$C$31),0) -> 12175 | K177: 13407 | N177: 13407 | O177: 0 | P177: 13407 | R177: 0 | S177: 13407 | U177: =IFERROR(VLOOKUP($A177, 'Allocation 2025-26 Final'!$A$7:$S$323,19,FALSE),0) -> 10006 | W177: 3401 | X177: 0.3398960624 | Y177: 70 | Z177: 0 | AB177: 5305880 | AC177: NORTHPORT
A178: =VLOOKUP(B178,CCDDD!$A$3:$B$319,2,FALSE) -> 17417 | B178: 5305910 | C178: NORTHSHORE | D178: 0 | E178: 0 | F178: =VLOOKUP(B178,'26-27 Adjusted Formula counts'!$A$3:$L$320,8,FALSE) -> 26639 | G178: =ROUND((F178/$F$5*Assumptions!$C$22*Assumptions!$C$30),0) -> 145849 | H178: =VLOOKUP(B178,'26-27 Adjusted Formula counts'!$A$3:$L$320,9,FALSE) -> 1036 | I178: =ROUND((H178/$H$5*Assumptions!$C$22*Assumptions!$C$31),0) -> 213785 | K178: 359634 | N178: 359634 | O178: 0 | P178: 359634 | R178: 0 | S178: 359634 | U178: =IFERROR(VLOOKUP($A178, 'Allocation 2025-26 Final'!$A$7:$S$323,19,FALSE),0) -> 349237 | W178: 10397 | X178: 0.02977061422 | Y178: 34 | Z178: 0 | AB178: 5305910 | AC178: NORTHSHORE
A179: =VLOOKUP(B179,CCDDD!$A$3:$B$319,2,FALSE) -> 15201 | B179: 5305940 | C179: OAK HARBOR | D179: 0 | E179: 0 | F179: =VLOOKUP(B179,'26-27 Adjusted Formula counts'!$A$3:$L$320,8,FALSE) -> 5959 | G179: =ROUND((F179/$F$5*Assumptions!$C$22*Assumptions!$C$30),0) -> 32626 | H179: =VLOOKUP(B179,'26-27 Adjusted Formula counts'!$A$3:$L$320,9,FALSE) -> 525 | I179: =ROUND((H179/$H$5*Assumptions!$C$22*Assumptions!$C$31),0) -> 108337 | K179: 140963 | N179: 140963 | O179: 0 | P179: 140963 | R179: 0 | S179: 140963 | U179: =IFERROR(VLOOKUP($A179, 'Allocation 2025-26 Final'!$A$7:$S$323,19,FALSE),0) -> 145786 | W179: -4823 | X179: -0.03308273771 | Y179: 259 | Z179: 0 | AB179: 5305940 | AC179: OAK HARBOR
A180: =VLOOKUP(B180,CCDDD!$A$3:$B$319,2,FALSE) -> 38324 | B180: 5305970 | C180: OAKESDALE | D180: 0 | E180: 0 | F180: =VLOOKUP(B180,'26-27 Adjusted Formula counts'!$A$3:$L$320,8,FALSE) -> 131 | G180: =ROUND((F180/$F$5*Assumptions!$C$22*Assumptions!$C$30),0) -> 717 | H180: =VLOOKUP(B180,'26-27 Adjusted Formula counts'!$A$3:$L$320,9,FALSE) -> 9 | I180: =ROUND((H180/$H$5*Assumptions!$C$22*Assumptions!$C$31),0) -> 1857 | K180: 2574 | N180: 2574 | O180: 0 | P180: 2574 | R180: 0 | S180: 2574 | U180: =IFERROR(VLOOKUP($A180, 'Allocation 2025-26 Final'!$A$7:$S$323,19,FALSE),0) -> 2506 | W180: 68 | X180: 0.0271348763 | Y180: 155 | Z180: 0 | AB180: 5305970 | AC180: OAKESDALE
A181: =VLOOKUP(B181,CCDDD!$A$3:$B$319,2,FALSE) -> 14400 | B181: 5306000 | C181: OAKVILLE | D181: 0 | E181: 0 | F181: =VLOOKUP(B181,'26-27 Adjusted Formula counts'!$A$3:$L$320,8,FALSE) -> 446 | G181: =ROUND((F181/$F$5*Assumptions!$C$22*Assumptions!$C$30),0) -> 2442 | H181: =VLOOKUP(B181,'26-27 Adjusted Formula counts'!$A$3:$L$320,9,FALSE) -> 51 | I181: =ROUND((H181/$H$5*Assumptions!$C$22*Assumptions!$C$31),0) -> 10524 | K181: 12966 | N181: 12966 | O181: 0 | P181: 12966 | R181: 0 | S181: 12966 | U181: =IFERROR(VLOOKUP($A181, 'Allocation 2025-26 Final'!$A$7:$S$323,19,FALSE),0) -> 14817 | W181: -1851 | X181: -0.1249240737 | Y181: 220 | Z181: 0 | AB181: 5306000 | AC181: OAKVILLE
A182: =VLOOKUP(B182,CCDDD!$A$3:$B$319,2,FALSE) -> 25101 | B182: 5306060 | C182: OCEAN BEACH | D182: 0 | E182: 0 | F182: =VLOOKUP(B182,'26-27 Adjusted Formula counts'!$A$3:$L$320,8,FALSE) -> 977 | G182: =ROUND((F182/$F$5*Assumptions!$C$22*Assumptions!$C$30),0) -> 5349 | H182: =VLOOKUP(B182,'26-27 Adjusted Formula counts'!$A$3:$L$320,9,FALSE) -> 153 | I182: =ROUND((H182/$H$5*Assumptions!$C$22*Assumptions!$C$31),0) -> 31572 | K182: 36921 | N182: 36921 | O182: 0 | P182: 36921 | R182: 0 | S182: 36921 | U182: =IFERROR(VLOOKUP($A182, 'Allocation 2025-26 Final'!$A$7:$S$323,19,FALSE),0) -> 43240 | W182: -6319 | X182: -0.1461378353 | Y182: 275 | Z182: 0 | AB182: 5306060 | AC182: OCEAN BEACH
A183: =VLOOKUP(B183,CCDDD!$A$3:$B$319,2,FALSE) -> 14172 | B183: 5306090 | C183: OCOSTA | D183: 0 | E183: 0 | F183: =VLOOKUP(B183,'26-27 Adjusted Formula counts'!$A$3:$L$320,8,FALSE) -> 648 | G183: =ROUND((F183/$F$5*Assumptions!$C$22*Assumptions!$C$30),0) -> 3548 | H183: =VLOOKUP(B183,'26-27 Adjusted Formula counts'!$A$3:$L$320,9,FALSE) -> 110 | I183: =ROUND((H183/$H$5*Assumptions!$C$22*Assumptions!$C$31),0) -> 22699 | K183: 26247 | N183: 26247 | O183: 0 | P183: 26247 | R183: 0 | S183: 26247 | U183: =IFERROR(VLOOKUP($A183, 'Allocation 2025-26 Final'!$A$7:$S$323,19,FALSE),0) -> 31100 | W183: -4853 | X183: -0.1560450161 | Y183: 260 | Z183: 0 | AB183: 5306090 | AC183: OCOSTA
A184: =VLOOKUP(B184,CCDDD!$A$3:$B$319,2,FALSE) -> 22105 | B184: 5306120 | C184: ODESSA | D184: 0 | E184: 0 | F184: =VLOOKUP(B184,'26-27 Adjusted Formula counts'!$A$3:$L$320,8,FALSE) -> 308 | G184: =ROUND((F184/$F$5*Assumptions!$C$22*Assumptions!$C$30),0) -> 1686 | H184: =VLOOKUP(B184,'26-27 Adjusted Formula counts'!$A$3:$L$320,9,FALSE) -> 38 | I184: =ROUND((H184/$H$5*Assumptions!$C$22*Assumptions!$C$31),0) -> 7842 | K184: 9528 | N184: 9528 | O184: 0 | P184: 9528 | R184: 0 | S184: 9528 | U184: =IFERROR(VLOOKUP($A184, 'Allocation 2025-26 Final'!$A$7:$S$323,19,FALSE),0) -> 10645 | W184: -1117 | X184: -0.1049318929 | Y184: 198 | Z184: 0 | AB184: 5306120 | AC184: ODESSA
A185: =VLOOKUP(B185,CCDDD!$A$3:$B$319,2,FALSE) -> 24105 | B185: 5306150 | C185: OKANOGAN | D185: 0 | E185: 0 | F185: =VLOOKUP(B185,'26-27 Adjusted Formula counts'!$A$3:$L$320,8,FALSE) -> 945 | G185: =ROUND((F185/$F$5*Assumptions!$C$22*Assumptions!$C$30),0) -> 5174 | H185: =VLOOKUP(B185,'26-27 Adjusted Formula counts'!$A$3:$L$320,9,FALSE) -> 159 | I185: =ROUND((H185/$H$5*Assumptions!$C$22*Assumptions!$C$31),0) -> 32811 | K185: 37985 | N185: 37985 | O185: 0 | P185: 37985 | R185: 0 | S185: 37985 | U185: =IFERROR(VLOOKUP($A185, 'Allocation 2025-26 Final'!$A$7:$S$323,19,FALSE),0) -> 35272 | W185: 2713 | X185: 0.07691653436 | Y185: 76 | Z185: 0 | AB185: 5306150 | AC185: OKANOGAN
A186: =VLOOKUP(B186,CCDDD!$A$3:$B$319,2,FALSE) -> 34111 | B186: 5306180 | C186: OLYMPIA | D186: 0 | E186: 0 | F186: =VLOOKUP(B186,'26-27 Adjusted Formula counts'!$A$3:$L$320,8,FALSE) -> 10439 | G186: =ROUND((F186/$F$5*Assumptions!$C$22*Assumptions!$C$30),0) -> 57154 | H186: =VLOOKUP(B186,'26-27 Adjusted Formula counts'!$A$3:$L$320,9,FALSE) -> 785 | I186: =ROUND((H186/$H$5*Assumptions!$C$22*Assumptions!$C$31),0) -> 161989 | K186: 219143 | N186: 219143 | O186: 0 | P186: 219143 | R186: 0 | S186: 219143 | U186: =IFERROR(VLOOKUP($A186, 'Allocation 2025-26 Final'!$A$7:$S$323,19,FALSE),0) -> 229558 | W186: -10415 | X186: -0.04536979761 | Y186: 285 | Z186: 0 | AB186: 5306180 | AC186: OLYMPIA
A187: =VLOOKUP(B187,CCDDD!$A$3:$B$319,2,FALSE) -> 24019 | B187: 5306220 | C187: OMAK | D187: 0 | E187: 0 | F187: =VLOOKUP(B187,'26-27 Adjusted Formula counts'!$A$3:$L$320,8,FALSE) -> 1871 | G187: =ROUND((F187/$F$5*Assumptions!$C$22*Assumptions!$C$30),0) -> 10244 | H187: =VLOOKUP(B187,'26-27 Adjusted Formula counts'!$A$3:$L$320,9,FALSE) -> 341 | I187: =ROUND((H187/$H$5*Assumptions!$C$22*Assumptions!$C$31),0) -> 70367 | K187: 80611 | N187: 80611 | O187: 0 | P187: 80611 | R187: 0 | S187: 80611 | U187: =IFERROR(VLOOKUP($A187, 'Allocation 2025-26 Final'!$A$7:$S$323,19,FALSE),0) -> 86775 | W187: -6164 | X187: -0.07103428407 | Y187: 274 | Z187: 0 | AB187: 5306220 | AC187: OMAK
A188: =VLOOKUP(B188,CCDDD!$A$3:$B$319,2,FALSE) -> 21300 | B188: 5306240 | C188: ONALASKA | D188: 0 | E188: 0 | F188: =VLOOKUP(B188,'26-27 Adjusted Formula counts'!$A$3:$L$320,8,FALSE) -> 959 | G188: =ROUND((F188/$F$5*Assumptions!$C$22*Assumptions!$C$30),0) -> 5251 | H188: =VLOOKUP(B188,'26-27 Adjusted Formula counts'!$A$3:$L$320,9,FALSE) -> 93 | I188: =ROUND((H188/$H$5*Assumptions!$C$22*Assumptions!$C$31),0) -> 19191 | K188: 24442 | N188: 24442 | O188: 0 | P188: 24442 | R188: 0 | S188: 24442 | U188: =IFERROR(VLOOKUP($A188, 'Allocation 2025-26 Final'!$A$7:$S$323,19,FALSE),0) -> 25475 | W188: -1033 | X188: -0.04054955839 | Y188: 195 | Z188: 0 | AB188: 5306240 | AC188: ONALASKA
A189: =VLOOKUP(B189,CCDDD!$A$3:$B$319,2,FALSE) -> 33030 | B189: 5306270 | C189: ONION CREEK | D189: 0 | E189: 0 | F189: =VLOOKUP(B189,'26-27 Adjusted Formula counts'!$A$3:$L$320,8,FALSE) -> 62 | G189: =ROUND((F189/$F$5*Assumptions!$C$22*Assumptions!$C$30),0) -> 339 | H189: =VLOOKUP(B189,'26-27 Adjusted Formula counts'!$A$3:$L$320,9,FALSE) -> 18 | I189: =ROUND((H189/$H$5*Assumptions!$C$22*Assumptions!$C$31),0) -> 3714 | K189: 4053 | N189: 4053 | O189: 0 | P189: 4053 | R189: 0 | S189: 4053 | U189: =IFERROR(VLOOKUP($A189, 'Allocation 2025-26 Final'!$A$7:$S$323,19,FALSE),0) -> 5128 | W189: -1075 | X189: -0.2096333853 | Y189: 196 | Z189: 0 | AB189: 5306270 | AC189: ONION CREEK
A190: =VLOOKUP(B190,CCDDD!$A$3:$B$319,2,FALSE) -> 28137 | B190: 5306300 | C190: ORCAS ISLAND | D190: 0 | E190: 0 | F190: =VLOOKUP(B190,'26-27 Adjusted Formula counts'!$A$3:$L$320,8,FALSE) -> 566 | G190: =ROUND((F190/$F$5*Assumptions!$C$22*Assumptions!$C$30),0) -> 3099 | H190: =VLOOKUP(B190,'26-27 Adjusted Formula counts'!$A$3:$L$320,9,FALSE) -> 70 | I190: =ROUND((H190/$H$5*Assumptions!$C$22*Assumptions!$C$31),0) -> 14445 | K190: 17544 | N190: 17544 | O190: 0 | P190: 17544 | R190: 0 | S190: 17544 | U190: =IFERROR(VLOOKUP($A190, 'Allocation 2025-26 Final'!$A$7:$S$323,19,FALSE),0) -> 19860 | W190: -2316 | X190: -0.1166163142 | Y190: 234 | Z190: 0 | AB190: 5306300 | AC190: ORCAS ISLAND
A191: =VLOOKUP(B191,CCDDD!$A$3:$B$319,2,FALSE) -> 32123 | B191: 5306330 | C191: ORCHARD PRAIRIE | D191: 0 | E191: 0 | F191: =VLOOKUP(B191,'26-27 Adjusted Formula counts'!$A$3:$L$320,8,FALSE) -> 177 | G191: =ROUND((F191/$F$5*Assumptions!$C$22*Assumptions!$C$30),0) -> 969 | H191: =VLOOKUP(B191,'26-27 Adjusted Formula counts'!$A$3:$L$320,9,FALSE) -> 9 | I191: =ROUND((H191/$H$5*Assumptions!$C$22*Assumptions!$C$31),0) -> 1857 | K191: 2826 | N191: 2826 | O191: 0 | P191: 2826 | R191: 0 | S191: 2826 | U191: =IFERROR(VLOOKUP($A191, 'Allocation 2025-26 Final'!$A$7:$S$323,19,FALSE),0) -> 4156 | W191: -1330 | X191: -0.3200192493 | Y191: 205 | Z191: 0 | AB191: 5306330 | AC191: ORCHARD PRAIRIE
A192: =VLOOKUP(B192,CCDDD!$A$3:$B$319,2,FALSE) -> 10065 | B192: 5306360 | C192: ORIENT | D192: 0 | E192: 0 | F192: =VLOOKUP(B192,'26-27 Adjusted Formula counts'!$A$3:$L$320,8,FALSE) -> 129 | G192: =ROUND((F192/$F$5*Assumptions!$C$22*Assumptions!$C$30),0) -> 706 | H192: =VLOOKUP(B192,'26-27 Adjusted Formula counts'!$A$3:$L$320,9,FALSE) -> 22 | I192: =ROUND((H192/$H$5*Assumptions!$C$22*Assumptions!$C$31),0) -> 4540 | K192: 5246 | N192: 5246 | O192: 0 | P192: 5246 | R192: 0 | S192: 5246 | U192: =IFERROR(VLOOKUP($A192, 'Allocation 2025-26 Final'!$A$7:$S$323,19,FALSE),0) -> 9679 | W192: -4433 | X192: -0.4580018597 | Y192: 254 | Z192: 0 | AB192: 5306360 | AC192: ORIENT
A193: =VLOOKUP(B193,CCDDD!$A$3:$B$319,2,FALSE) -> 09013 | B193: 5306390 | C193: ORONDO | D193: 0 | E193: 0 | F193: =VLOOKUP(B193,'26-27 Adjusted Formula counts'!$A$3:$L$320,8,FALSE) -> 260 | G193: =ROUND((F193/$F$5*Assumptions!$C$22*Assumptions!$C$30),0) -> 1424 | H193: =VLOOKUP(B193,'26-27 Adjusted Formula counts'!$A$3:$L$320,9,FALSE) -> 16 | I193: =ROUND((H193/$H$5*Assumptions!$C$22*Assumptions!$C$31),0) -> 3302 | K193: 4726 | N193: 4726 | O193: 0 | P193: 4726 | R193: 0 | S193: 4726 | U193: =IFERROR(VLOOKUP($A193, 'Allocation 2025-26 Final'!$A$7:$S$323,19,FALSE),0) -> 5222 | W193: -496 | X193: -0.09498276522 | Y193: 179 | Z193: 0 | AB193: 5306390 | AC193: ORONDO
A194: =VLOOKUP(B194,CCDDD!$A$3:$B$319,2,FALSE) -> 24410 | B194: 5306420 | C194: OROVILLE | D194: 0 | E194: 0 | F194: =VLOOKUP(B194,'26-27 Adjusted Formula counts'!$A$3:$L$320,8,FALSE) -> 689 | G194: =ROUND((F194/$F$5*Assumptions!$C$22*Assumptions!$C$30),0) -> 3772 | H194: =VLOOKUP(B194,'26-27 Adjusted Formula counts'!$A$3:$L$320,9,FALSE) -> 134 | I194: =ROUND((H194/$H$5*Assumptions!$C$22*Assumptions!$C$31),0) -> 27652 | K194: 31424 | N194: 31424 | O194: 0 | P194: 31424 | R194: 0 | S194: 31424 | U194: =IFERROR(VLOOKUP($A194, 'Allocation 2025-26 Final'!$A$7:$S$323,19,FALSE),0) -> 32670 | W194: -1246 | X194: -0.03813896541 | Y194: 200 | Z194: 0 | AB194: 5306420 | AC194: OROVILLE
A195: =VLOOKUP(B195,CCDDD!$A$3:$B$319,2,FALSE) -> 27344 | B195: 5306450 | C195: ORTING | D195: 0 | E195: 0 | F195: =VLOOKUP(B195,'26-27 Adjusted Formula counts'!$A$3:$L$320,8,FALSE) -> 3277 | G195: =ROUND((F195/$F$5*Assumptions!$C$22*Assumptions!$C$30),0) -> 17942 | H195: =VLOOKUP(B195,'26-27 Adjusted Formula counts'!$A$3:$L$320,9,FALSE) -> 202 | I195: =ROUND((H195/$H$5*Assumptions!$C$22*Assumptions!$C$31),0) -> 41684 | K195: 59626 | N195: 59626 | O195: 0 | P195: 59626 | R195: 0 | S195: 59626 | U195: =IFERROR(VLOOKUP($A195, 'Allocation 2025-26 Final'!$A$7:$S$323,19,FALSE),0) -> 49478 | W195: 10148 | X195: 0.2051012571 | Y195: 36 | Z195: 0 | AB195: 5306450 | AC195: ORTING
A196: =VLOOKUP(B196,CCDDD!$A$3:$B$319,2,FALSE) -> 01147 | B196: 5306480 | C196: OTHELLO | D196: 0 | E196: 0 | F196: =VLOOKUP(B196,'26-27 Adjusted Formula counts'!$A$3:$L$320,8,FALSE) -> 4557 | G196: =ROUND((F196/$F$5*Assumptions!$C$22*Assumptions!$C$30),0) -> 24950 | H196: =VLOOKUP(B196,'26-27 Adjusted Formula counts'!$A$3:$L$320,9,FALSE) -> 911 | I196: =ROUND((H196/$H$5*Assumptions!$C$22*Assumptions!$C$31),0) -> 187990 | K196: 212940 | N196: 212940 | O196: 0 | P196: 212940 | R196: 0 | S196: 212940 | U196: =IFERROR(VLOOKUP($A196, 'Allocation 2025-26 Final'!$A$7:$S$323,19,FALSE),0) -> 203087 | W196: 9853 | X196: 0.04851615318 | Y196: 38 | Z196: 0 | AB196: 5306480 | AC196: OTHELLO
A197: =VLOOKUP(B197,CCDDD!$A$3:$B$319,2,FALSE) -> 09102 | B197: 5306510 | C197: PALISADES | D197: 0 | E197: 0 | F197: =VLOOKUP(B197,'26-27 Adjusted Formula counts'!$A$3:$L$320,8,FALSE) -> 46 | G197: =ROUND((F197/$F$5*Assumptions!$C$22*Assumptions!$C$30),0) -> 252 | H197: =VLOOKUP(B197,'26-27 Adjusted Formula counts'!$A$3:$L$320,9,FALSE) -> 4 | I197: =ROUND((H197/$H$5*Assumptions!$C$22*Assumptions!$C$31),0) -> 825 | K197: 1077 | N197: 1077 | O197: 0 | P197: 1077 | R197: 0 | S197: 1077 | U197: =IFERROR(VLOOKUP($A197, 'Allocation 2025-26 Final'!$A$7:$S$323,19,FALSE),0) -> 1252 | W197: -175 | X197: -0.1397763578 | Y197: 165 | Z197: 0 | AB197: 5306510 | AC197: PALISADES
A198: =VLOOKUP(B198,CCDDD!$A$3:$B$319,2,FALSE) -> 38301 | B198: 5306540 | C198: PALOUSE | D198: 0 | E198: 0 | F198: =VLOOKUP(B198,'26-27 Adjusted Formula counts'!$A$3:$L$320,8,FALSE) -> 247 | G198: =ROUND((F198/$F$5*Assumptions!$C$22*Assumptions!$C$30),0) -> 1352 | H198: =VLOOKUP(B198,'26-27 Adjusted Formula counts'!$A$3:$L$320,9,FALSE) -> 14 | I198: =ROUND((H198/$H$5*Assumptions!$C$22*Assumptions!$C$31),0) -> 2889 | K198: 4241 | N198: 4241 | O198: 0 | P198: 4241 | R198: 0 | S198: 4241 | U198: =IFERROR(VLOOKUP($A198, 'Allocation 2025-26 Final'!$A$7:$S$323,19,FALSE),0) -> 3734 | W198: 507 | X198: 0.1357793251 | Y198: 134 | Z198: 0 | AB198: 5306540 | AC198: PALOUSE
A199: =VLOOKUP(B199,CCDDD!$A$3:$B$319,2,FALSE) -> 11001 | B199: 5306570 | C199: PASCO | D199: 0 | E199: 0 | F199: =VLOOKUP(B199,'26-27 Adjusted Formula counts'!$A$3:$L$320,8,FALSE) -> 20277 | G199: =ROUND((F199/$F$5*Assumptions!$C$22*Assumptions!$C$30),0) -> 111017 | H199: =VLOOKUP(B199,'26-27 Adjusted Formula counts'!$A$3:$L$320,9,FALSE) -> 3545 | I199: =ROUND((H199/$H$5*Assumptions!$C$22*Assumptions!$C$31),0) -> 731532 | K199: =ROUNDDOWN(+I199+G199+E199+D199+J199,0) -> 842549 | N199: =K199 -> 842549 | O199: =-ROUND(N199/$N$5*$M$5,0) -> 0 | P199: =+K199+O199+M199 -> 842549 | R199: =-1*(P199*Q199) -> 0 | S199: =+P199+R199 -> 842549 | U199: =IFERROR(VLOOKUP($A199, 'Allocation 2025-26 Final'!$A$7:$S$323,19,FALSE),0) -> 738183 | W199: =+S199-U199 -> 104366 | X199: =IF(U199>0,W199/U199,0) -> 0.141382286 | Y199: =RANK(W199,$W$7:$W$319,0) -> 2 | Z199: =(SUM(D199:E199)/S199) -> 0 | AB199: =+B199 -> 5306570 | AC199: PASCO
A200: =VLOOKUP(B200,CCDDD!$A$3:$B$319,2,FALSE) -> 24122 | B200: 5306600 | C200: PATEROS | D200: 0 | E200: 0 | F200: =VLOOKUP(B200,'26-27 Adjusted Formula counts'!$A$3:$L$320,8,FALSE) -> 286 | G200: =ROUND((F200/$F$5*Assumptions!$C$22*Assumptions!$C$30),0) -> 1566 | H200: =VLOOKUP(B200,'26-27 Adjusted Formula counts'!$A$3:$L$320,9,FALSE) -> 60 | I200: =ROUND((H200/$H$5*Assumptions!$C$22*Assumptions!$C$31),0) -> 12381 | K200: 13947 | N200: 13947 | O200: 0 | P200: 13947 | R200: 0 | S200: 13947 | U200: =IFERROR(VLOOKUP($A200, 'Allocation 2025-26 Final'!$A$7:$S$323,19,FALSE),0) -> 9733 | W200: 4214 | X200: 0.4329600329 | Y200: 63 | Z200: 0 | AB200: 5306600 | AC200: PATEROS
... 119 more rows

Sheet Allocation 2025-26 Final (hidden)
B1: 2025-26 | K1: =IF(K5=Assumptions!$E$22+J5,"Rounding OK","Rounding Error = "&FIXED(K5-Assumptions!$E$22-J5,TRUE)) -> Rounding OK | R1: =R5 -> 0 | S1: =IF(S5=Assumptions!$E22+R5,"Rounding OK","Rounding Error = "&FIXED(S5-(Assumptions!$E22+R5),TRUE)) -> Rounding OK
B2: ESEA -- Title 2 Distributions | K2: Allocation including private participation | S2: \
A3: 1 | B3: 2 | C3: 3 | D3: 4 | E3: 5 | F3: 6 | G3: 7 | H3: 8 | I3: 9 | J3: 10 | L3: 12 | M3: 13 | N3: 14 | O3: 15 | P3: 16 | Q3: 17 | R3: 18 | S3: 19 | U3: 18
A4: CCDDD | B4: LEAID | C4: District Name | D4: Eisenhower 2001-02 Allocations | E4: Class Size Reduction Allocations 2001-02 | F4: Census Population Ages 5-17 | G4: 20% based on Total Pop | H4: Census Poverty Ages 5-17 | I4: 80% based on Low Inc Pop | J4: MOE | K4: Total Final Allocation | M4: Alloc to non-Census LEA | N4: Realloc Pool | O4: Realloc | P4: Final Alloc Before MOE | Q4: MOE | R4: MOE Reduction | S4: Final Alloc | U4: Prior Year Allocation | Y4: Rank Order | AB4: do not delete Y & Z
C5: State Totals | D5: =SUM(D7:D306) -> 0 | E5: =SUM(E7:E306) -> 0 | F5: =SUM(F7:F320) -> 1226172 | G5: =SUM(G7:G320) -> 6656530 | H5: =SUM(H7:H320) -> 133532 | I5: =SUM(I7:I320) -> 26626122 | K5: =SUM(K7:K320) -> 33282640 | M5: =SUM(M7:M320) -> 0 | N5: =SUM(N7:N320) -> 33282640 | O5: =SUM(O7:O320) -> 0 | P5: =SUM(P7:P320) -> 33282640 | R5: =SUM(R7:R320) -> 0 | S5: =SUM(S7:S320) -> 33282640 | U5: =SUM(U7:U320) -> 0 | W5: =SUM(W7:W318) -> 33267369 | X5: =MIN(X7:X314) -> 0 | Y5: ="Lose = "& PROPER(VLOOKUP(X5,$X$7:$AC$314,6,FALSE)) -> Lose = Aberdeen | AB5: =+B5 -> 0 | AC5: =+C5 -> State Totals
X6: =MAX(X7:X307) -> 0 | Y6: ="Win = "&PROPER(VLOOKUP(X6,$X$7:$AC$307,6,FALSE)) -> Win = Aberdeen
A7: =VLOOKUP(B7,CCDDD!$A$3:$B$319,2,FALSE) -> 14005 | B7: 5300030 | C7: ABERDEEN | D7: 0 | E7: 0 | F7: =VLOOKUP(B7,'25-26 Adjusted Formula counts'!$A$3:$L$320,8,FALSE) -> 3496 | G7: =ROUND((F7/$F$5*Assumptions!$E$22*Assumptions!$E$30),0) -> 18979 | H7: =VLOOKUP(B7,'25-26 Adjusted Formula counts'!$A$3:$L$320,9,FALSE) -> 690 | I7: =ROUND((H7/$H$5*Assumptions!$E$22*Assumptions!$E$31),0) -> 137585 | K7: =ROUNDDOWN(+I7+G7+E7+D7+J7,0) -> 156564 | N7: =K7 -> 156564 | O7: =-ROUND(N7/$N$5*$M$5,0) -> 0 | P7: =+K7+O7+M7 -> 156564 | R7: =-1*(P7*Q7) -> 0 | S7: =+P7+R7 -> 156564 | U7: =IFERROR(VLOOKUP($A7,#REF!, 19,FALSE),0) -> 0 | W7: =+S7-U7 -> 156564 | X7: =IF(U7>0,W7/U7,0) -> 0 | Y7: =RANK(W7,$W$7:$W$320,0) -> 58 | Z7: =(SUM(D7:E7)/S7) -> 0 | AB7: =+B7 -> 5300030 | AC7: ABERDEEN
A8: =VLOOKUP(B8,CCDDD!$A$3:$B$319,2,FALSE) -> 21226 | B8: 5300060 | C8: ADNA | D8: 0 | E8: 0 | F8: =VLOOKUP(B8,'25-26 Adjusted Formula counts'!$A$3:$L$320,8,FALSE) -> 748 | G8: =ROUND((F8/$F$5*Assumptions!$E$22*Assumptions!$E$30),0) -> 4061 | H8: =VLOOKUP(B8,'25-26 Adjusted Formula counts'!$A$3:$L$320,9,FALSE) -> 66 | I8: =ROUND((H8/$H$5*Assumptions!$E$22*Assumptions!$E$31),0) -> 13160 | K8: 17221 | N8: 17221 | O8: 0 | P8: =+K8+O8+M9 -> 17221 | R8: 0 | S8: 17221 | U8: =IFERROR(VLOOKUP($A8,#REF!, 19,FALSE),0) -> 0 | W8: 17221 | X8: 0 | Y8: 194 | Z8: 0 | AB8: 5300060 | AC8: ADNA
A9: =VLOOKUP(B9,CCDDD!$A$3:$B$319,2,FALSE) -> 22017 | B9: 5300090 | C9: ALMIRA | D9: 0 | E9: 0 | F9: =VLOOKUP(B9,'25-26 Adjusted Formula counts'!$A$3:$L$320,8,FALSE) -> 99 | G9: =ROUND((F9/$F$5*Assumptions!$E$22*Assumptions!$E$30),0) -> 537 | H9: =VLOOKUP(B9,'25-26 Adjusted Formula counts'!$A$3:$L$320,9,FALSE) -> 18 | I9: =ROUND((H9/$H$5*Assumptions!$E$22*Assumptions!$E$31),0) -> 3589 | K9: 4126 | N9: 4126 | O9: 0 | P9: =+K9+O9+M10 -> 4126 | R9: 0 | S9: 4126 | U9: =IFERROR(VLOOKUP($A9,#REF!, 19,FALSE),0) -> 0 | W9: 4126 | X9: 0 | Y9: 273 | Z9: 0 | AB9: 5300090 | AC9: ALMIRA
A10: =VLOOKUP(B10,CCDDD!$A$3:$B$319,2,FALSE) -> 29103 | B10: 5300150 | C10: ANACORTES | D10: 0 | E10: 0 | F10: =VLOOKUP(B10,'25-26 Adjusted Formula counts'!$A$3:$L$320,8,FALSE) -> 2787 | G10: =ROUND((F10/$F$5*Assumptions!$E$22*Assumptions!$E$30),0) -> 15130 | H10: =VLOOKUP(B10,'25-26 Adjusted Formula counts'!$A$3:$L$320,9,FALSE) -> 225 | I10: =ROUND((H10/$H$5*Assumptions!$E$22*Assumptions!$E$31),0) -> 44865 | K10: 59995 | N10: 59995 | O10: 0 | P10: =+K10+O10+M11 -> 59995 | R10: 0 | S10: 59995 | U10: =IFERROR(VLOOKUP($A10,#REF!, 19,FALSE),0) -> 0 | W10: 59995 | X10: 0 | Y10: 105 | Z10: 0 | AB10: 5300150 | AC10: ANACORTES
A11: =VLOOKUP(B11,CCDDD!$A$3:$B$319,2,FALSE) -> 31016 | B11: 5300240 | C11: ARLINGTON | D11: 0 | E11: 0 | F11: =VLOOKUP(B11,'25-26 Adjusted Formula counts'!$A$3:$L$320,8,FALSE) -> 5958 | G11: =ROUND((F11/$F$5*Assumptions!$E$22*Assumptions!$E$30),0) -> 32344 | H11: =VLOOKUP(B11,'25-26 Adjusted Formula counts'!$A$3:$L$320,9,FALSE) -> 533 | I11: =ROUND((H11/$H$5*Assumptions!$E$22*Assumptions!$E$31),0) -> 106280 | K11: 138624 | N11: 138624 | O11: 0 | P11: 138624 | R11: 0 | S11: 138624 | U11: =IFERROR(VLOOKUP($A11,#REF!, 19,FALSE),0) -> 0 | W11: 138624 | X11: 0 | Y11: 62 | Z11: 0 | AB11: 5300240 | AC11: ARLINGTON
A12: =VLOOKUP(B12,CCDDD!$A$3:$B$319,2,FALSE) -> 02420 | B12: 5300280 | C12: ASOTIN-ANATONE | D12: 0 | E12: 0 | F12: =VLOOKUP(B12,'25-26 Adjusted Formula counts'!$A$3:$L$320,8,FALSE) -> 489 | G12: =ROUND((F12/$F$5*Assumptions!$E$22*Assumptions!$E$30),0) -> 2655 | H12: =VLOOKUP(B12,'25-26 Adjusted Formula counts'!$A$3:$L$320,9,FALSE) -> 28 | I12: =ROUND((H12/$H$5*Assumptions!$E$22*Assumptions!$E$31),0) -> 5583 | K12: 8238 | N12: 8238 | O12: 0 | P12: 8238 | R12: 0 | S12: 8238 | U12: =IFERROR(VLOOKUP($A12,#REF!, 19,FALSE),0) -> 0 | W12: 8238 | X12: 0 | Y12: 241 | Z12: 0 | AB12: 5300280 | AC12: ASOTIN-ANATONE
A13: =VLOOKUP(B13,CCDDD!$A$3:$B$319,2,FALSE) -> 17408 | B13: 5300300 | C13: AUBURN | D13: 0 | E13: 0 | F13: =VLOOKUP(B13,'25-26 Adjusted Formula counts'!$A$3:$L$320,8,FALSE) -> 18383 | G13: =ROUND((F13/$F$5*Assumptions!$E$22*Assumptions!$E$30),0) -> 99796 | H13: =VLOOKUP(B13,'25-26 Adjusted Formula counts'!$A$3:$L$320,9,FALSE) -> 2769 | I13: =ROUND((H13/$H$5*Assumptions!$E$22*Assumptions!$E$31),0) -> 552135 | K13: 651931 | N13: 651931 | O13: 0 | P13: 651931 | R13: 0 | S13: 651931 | U13: =IFERROR(VLOOKUP($A13,#REF!, 19,FALSE),0) -> 0 | W13: 651931 | X13: 0 | Y13: 12 | Z13: 0 | AB13: 5300300 | AC13: AUBURN
A14: =VLOOKUP(B14,CCDDD!$A$3:$B$319,2,FALSE) -> 18303 | B14: 5300330 | C14: BAINBRIDGE ISLAND | D14: 0 | E14: 0 | F14: =VLOOKUP(B14,'25-26 Adjusted Formula counts'!$A$3:$L$320,8,FALSE) -> 3972 | G14: =ROUND((F14/$F$5*Assumptions!$E$22*Assumptions!$E$30),0) -> 21563 | H14: =VLOOKUP(B14,'25-26 Adjusted Formula counts'!$A$3:$L$320,9,FALSE) -> 150 | I14: =ROUND((H14/$H$5*Assumptions!$E$22*Assumptions!$E$31),0) -> 29910 | K14: 51473 | N14: 51473 | O14: 0 | P14: 51473 | R14: 0 | S14: 51473 | U14: =IFERROR(VLOOKUP($A14,#REF!, 19,FALSE),0) -> 0 | W14: 51473 | X14: 0 | Y14: 118 | Z14: 0 | AB14: 5300330 | AC14: BAINBRIDGE ISLAND
A15: =VLOOKUP(B15,CCDDD!$A$3:$B$319,2,FALSE) -> 06119 | B15: 5300380 | C15: BATTLE GROUND | D15: 0 | E15: 0 | F15: =VLOOKUP(B15,'25-26 Adjusted Formula counts'!$A$3:$L$320,8,FALSE) -> 15940 | G15: =ROUND((F15/$F$5*Assumptions!$E$22*Assumptions!$E$30),0) -> 86534 | H15: =VLOOKUP(B15,'25-26 Adjusted Formula counts'!$A$3:$L$320,9,FALSE) -> 860 | I15: =ROUND((H15/$H$5*Assumptions!$E$22*Assumptions!$E$31),0) -> 171483 | K15: 258017 | N15: 258017 | O15: 0 | P15: 258017 | R15: 0 | S15: 258017 | U15: =IFERROR(VLOOKUP($A15,#REF!, 19,FALSE),0) -> 0 | W15: 258017 | X15: 0 | Y15: 33 | Z15: 0 | AB15: 5300380 | AC15: BATTLE GROUND
A16: =VLOOKUP(B16,CCDDD!$A$3:$B$319,2,FALSE) -> 17405 | B16: 5300390 | C16: BELLEVUE | D16: 0 | E16: 0 | F16: =VLOOKUP(B16,'25-26 Adjusted Formula counts'!$A$3:$L$320,8,FALSE) -> 22497 | G16: =ROUND((F16/$F$5*Assumptions!$E$22*Assumptions!$E$30),0) -> 122130 | H16: =VLOOKUP(B16,'25-26 Adjusted Formula counts'!$A$3:$L$320,9,FALSE) -> 1453 | I16: =ROUND((H16/$H$5*Assumptions!$E$22*Assumptions!$E$31),0) -> 289726 | K16: 411856 | N16: 411856 | O16: 0 | P16: 411856 | R16: 0 | S16: 411856 | U16: =IFERROR(VLOOKUP($A16,#REF!, 19,FALSE),0) -> 0 | W16: 411856 | X16: 0 | Y16: 21 | Z16: 0 | AB16: 5300390 | AC16: BELLEVUE
A17: =VLOOKUP(B17,CCDDD!$A$3:$B$319,2,FALSE) -> 37501 | B17: 5300420 | C17: BELLINGHAM | D17: 0 | E17: 0 | F17: =VLOOKUP(B17,'25-26 Adjusted Formula counts'!$A$3:$L$320,8,FALSE) -> 12453.45242 | G17: =ROUND((F17/$F$5*Assumptions!$E$22*Assumptions!$E$30),0) -> 67606 | H17: =VLOOKUP(B17,'25-26 Adjusted Formula counts'!$A$3:$L$320,9,FALSE) -> 1314.735076 | I17: =ROUND((H17/$H$5*Assumptions!$E$22*Assumptions!$E$31),0) -> 262157 | K17: 329763 | N17: 329763 | O17: 0 | P17: 329763 | R17: 0 | S17: 329763 | U17: =IFERROR(VLOOKUP($A17,#REF!, 19,FALSE),0) -> 0 | W17: 329763 | X17: 0 | Y17: 28 | Z17: 0 | AB17: 5300420 | AC17: BELLINGHAM
A18: =VLOOKUP(B18,CCDDD!$A$3:$B$319,2,FALSE) -> 01122 | B18: 5300450 | C18: BENGE | D18: 0 | E18: 0 | F18: =VLOOKUP(B18,'25-26 Adjusted Formula counts'!$A$3:$L$320,8,FALSE) -> 16 | G18: =ROUND((F18/$F$5*Assumptions!$E$22*Assumptions!$E$30),0) -> 87 | H18: =VLOOKUP(B18,'25-26 Adjusted Formula counts'!$A$3:$L$320,9,FALSE) -> 2 | I18: =ROUND((H18/$H$5*Assumptions!$E$22*Assumptions!$E$31),0) -> 399 | K18: 486 | N18: 486 | O18: 0 | P18: 486 | R18: 0 | S18: 486 | U18: =IFERROR(VLOOKUP($A18,#REF!, 19,FALSE),0) -> 0 | W18: 486 | X18: 0 | Y18: 311 | Z18: 0 | AB18: 5300450 | AC18: BENGE
A19: =VLOOKUP(B19,CCDDD!$A$3:$B$319,2,FALSE) -> 27403 | B19: 5300480 | C19: BETHEL | D19: 0 | E19: 0 | F19: =VLOOKUP(B19,'25-26 Adjusted Formula counts'!$A$3:$L$320,8,FALSE) -> 24321 | G19: =ROUND((F19/$F$5*Assumptions!$E$22*Assumptions!$E$30),0) -> 132032 | H19: =VLOOKUP(B19,'25-26 Adjusted Formula counts'!$A$3:$L$320,9,FALSE) -> 2440 | I19: =ROUND((H19/$H$5*Assumptions!$E$22*Assumptions!$E$31),0) -> 486533 | K19: 618565 | N19: 618565 | O19: 0 | P19: 618565 | R19: 0 | S19: 618565 | U19: =IFERROR(VLOOKUP($A19,#REF!, 19,FALSE),0) -> 0 | W19: 618565 | X19: 0 | Y19: 13 | Z19: 0 | AB19: 5300480 | AC19: BETHEL
A20: =VLOOKUP(B20,CCDDD!$A$3:$B$319,2,FALSE) -> 20203 | B20: 5300510 | C20: BICKLETON | D20: 0 | E20: 0 | F20: =VLOOKUP(B20,'25-26 Adjusted Formula counts'!$A$3:$L$320,8,FALSE) -> 79 | G20: =ROUND((F20/$F$5*Assumptions!$E$22*Assumptions!$E$30),0) -> 429 | H20: =VLOOKUP(B20,'25-26 Adjusted Formula counts'!$A$3:$L$320,9,FALSE) -> 9 | I20: =ROUND((H20/$H$5*Assumptions!$E$22*Assumptions!$E$31),0) -> 1795 | K20: 2224 | N20: 2224 | O20: 0 | P20: 2224 | R20: 0 | S20: 2224 | U20: =IFERROR(VLOOKUP($A20,#REF!, 19,FALSE),0) -> 0 | W20: 2224 | X20: 0 | Y20: 290 | Z20: 0 | AB20: 5300510 | AC20: BICKLETON
A21: =VLOOKUP(B21,CCDDD!$A$3:$B$319,2,FALSE) -> 37503 | B21: 5300570 | C21: BLAINE | D21: 0 | E21: 0 | F21: =VLOOKUP(B21,'25-26 Adjusted Formula counts'!$A$3:$L$320,8,FALSE) -> 2479 | G21: =ROUND((F21/$F$5*Assumptions!$E$22*Assumptions!$E$30),0) -> 13458 | H21: =VLOOKUP(B21,'25-26 Adjusted Formula counts'!$A$3:$L$320,9,FALSE) -> 302 | I21: =ROUND((H21/$H$5*Assumptions!$E$22*Assumptions!$E$31),0) -> 60218 | K21: 73676 | N21: 73676 | O21: 0 | P21: 73676 | R21: 0 | S21: 73676 | U21: =IFERROR(VLOOKUP($A21,#REF!, 19,FALSE),0) -> 0 | W21: 73676 | X21: 0 | Y21: 94 | Z21: 0 | AB21: 5300570 | AC21: BLAINE
A22: =VLOOKUP(B22,CCDDD!$A$3:$B$319,2,FALSE) -> 21234 | B22: 5300630 | C22: BOISTFORT | D22: 0 | E22: 0 | F22: =VLOOKUP(B22,'25-26 Adjusted Formula counts'!$A$3:$L$320,8,FALSE) -> 218 | G22: =ROUND((F22/$F$5*Assumptions!$E$22*Assumptions!$E$30),0) -> 1183 | H22: =VLOOKUP(B22,'25-26 Adjusted Formula counts'!$A$3:$L$320,9,FALSE) -> 22 | I22: =ROUND((H22/$H$5*Assumptions!$E$22*Assumptions!$E$31),0) -> 4387 | K22: 5570 | N22: 5570 | O22: 0 | P22: 5570 | R22: 0 | S22: 5570 | U22: =IFERROR(VLOOKUP($A22,#REF!, 19,FALSE),0) -> 0 | W22: 5570 | X22: 0 | Y22: 261 | Z22: 0 | AB22: 5300630 | AC22: BOISTFORT
A23: =VLOOKUP(B23,CCDDD!$A$3:$B$319,2,FALSE) -> 18100 | B23: 5300660 | C23: BREMERTON | D23: 0 | E23: 0 | F23: =VLOOKUP(B23,'25-26 Adjusted Formula counts'!$A$3:$L$320,8,FALSE) -> 4891.276985 | G23: =ROUND((F23/$F$5*Assumptions!$E$22*Assumptions!$E$30),0) -> 26553 | H23: =VLOOKUP(B23,'25-26 Adjusted Formula counts'!$A$3:$L$320,9,FALSE) -> 768.6634473 | I23: =ROUND((H23/$H$5*Assumptions!$E$22*Assumptions!$E$31),0) -> 153271 | K23: 179824 | N23: 179824 | O23: 0 | P23: 179824 | R23: 0 | S23: 179824 | U23: =IFERROR(VLOOKUP($A23,#REF!, 19,FALSE),0) -> 0 | W23: 179824 | X23: 0 | Y23: 49 | Z23: 0 | AB23: 5300660 | AC23: BREMERTON
A24: =VLOOKUP(B24,CCDDD!$A$3:$B$319,2,FALSE) -> 24111 | B24: 5300690 | C24: BREWSTER | D24: 0 | E24: 0 | F24: =VLOOKUP(B24,'25-26 Adjusted Formula counts'!$A$3:$L$320,8,FALSE) -> 949 | G24: =ROUND((F24/$F$5*Assumptions!$E$22*Assumptions!$E$30),0) -> 5152 | H24: =VLOOKUP(B24,'25-26 Adjusted Formula counts'!$A$3:$L$320,9,FALSE) -> 242 | I24: =ROUND((H24/$H$5*Assumptions!$E$22*Assumptions!$E$31),0) -> 48254 | K24: 53406 | N24: 53406 | O24: 0 | P24: 53406 | R24: 0 | S24: 53406 | U24: =IFERROR(VLOOKUP($A24,#REF!, 19,FALSE),0) -> 0 | W24: 53406 | X24: 0 | Y24: 116 | Z24: 0 | AB24: 5300690 | AC24: BREWSTER
A25: =VLOOKUP(B25,CCDDD!$A$3:$B$319,2,FALSE) -> 09075 | B25: 5300720 | C25: BRIDGEPORT | D25: 0 | E25: 0 | F25: =VLOOKUP(B25,'25-26 Adjusted Formula counts'!$A$3:$L$320,8,FALSE) -> 682 | G25: =ROUND((F25/$F$5*Assumptions!$E$22*Assumptions!$E$30),0) -> 3702 | H25: =VLOOKUP(B25,'25-26 Adjusted Formula counts'!$A$3:$L$320,9,FALSE) -> 155 | I25: =ROUND((H25/$H$5*Assumptions!$E$22*Assumptions!$E$31),0) -> 30907 | K25: 34609 | N25: 34609 | O25: 0 | P25: 34609 | R25: 0 | S25: 34609 | U25: =IFERROR(VLOOKUP($A25,#REF!, 19,FALSE),0) -> 0 | W25: 34609 | X25: 0 | Y25: 146 | Z25: 0 | AB25: 5300720 | AC25: BRIDGEPORT
A26: =VLOOKUP(B26,CCDDD!$A$3:$B$319,2,FALSE) -> 16046 | B26: 5300750 | C26: BRINNON | D26: 0 | E26: 0 | F26: =VLOOKUP(B26,'25-26 Adjusted Formula counts'!$A$3:$L$320,8,FALSE) -> 112 | G26: =ROUND((F26/$F$5*Assumptions!$E$22*Assumptions!$E$30),0) -> 608 | H26: =VLOOKUP(B26,'25-26 Adjusted Formula counts'!$A$3:$L$320,9,FALSE) -> 25 | I26: =ROUND((H26/$H$5*Assumptions!$E$22*Assumptions!$E$31),0) -> 4985 | K26: 5593 | N26: 5593 | O26: 0 | P26: 5593 | R26: 0 | S26: 5593 | U26: =IFERROR(VLOOKUP($A26,#REF!, 19,FALSE),0) -> 0 | W26: 5593 | X26: 0 | Y26: 258 | Z26: 0 | AB26: 5300750 | AC26: BRINNON
A27: =VLOOKUP(B27,CCDDD!$A$3:$B$319,2,FALSE) -> 29100 | B27: 5300780 | C27: BURLINGTON-EDISON | D27: 0 | E27: 0 | F27: =VLOOKUP(B27,'25-26 Adjusted Formula counts'!$A$3:$L$320,8,FALSE) -> 3667 | G27: =ROUND((F27/$F$5*Assumptions!$E$22*Assumptions!$E$30),0) -> 19907 | H27: =VLOOKUP(B27,'25-26 Adjusted Formula counts'!$A$3:$L$320,9,FALSE) -> 390 | I27: =ROUND((H27/$H$5*Assumptions!$E$22*Assumptions!$E$31),0) -> 77766 | K27: 97673 | N27: 97673 | O27: 0 | P27: 97673 | R27: 0 | S27: 97673 | U27: =IFERROR(VLOOKUP($A27,#REF!, 19,FALSE),0) -> 0 | W27: 97673 | X27: 0 | Y27: 81 | Z27: 0 | AB27: 5300780 | AC27: BURLINGTON-EDISON
A28: =VLOOKUP(B28,CCDDD!$A$3:$B$319,2,FALSE) -> 06117 | B28: 5300810 | C28: CAMAS | D28: 0 | E28: 0 | F28: =VLOOKUP(B28,'25-26 Adjusted Formula counts'!$A$3:$L$320,8,FALSE) -> 7463 | G28: =ROUND((F28/$F$5*Assumptions!$E$22*Assumptions!$E$30),0) -> 40514 | H28: =VLOOKUP(B28,'25-26 Adjusted Formula counts'!$A$3:$L$320,9,FALSE) -> 263 | I28: =ROUND((H28/$H$5*Assumptions!$E$22*Assumptions!$E$31),0) -> 52442 | K28: 92956 | N28: 92956 | O28: 0 | P28: 92956 | R28: 0 | S28: 92956 | U28: =IFERROR(VLOOKUP($A28,#REF!, 19,FALSE),0) -> 0 | W28: 92956 | X28: 0 | Y28: 83 | Z28: 0 | AB28: 5300810 | AC28: CAMAS
A29: =VLOOKUP(B29,CCDDD!$A$3:$B$319,2,FALSE) -> 05401 | B29: 5300840 | C29: CAPE FLATTERY | D29: 0 | E29: 0 | F29: =VLOOKUP(B29,'25-26 Adjusted Formula counts'!$A$3:$L$320,8,FALSE) -> 545 | G29: =ROUND((F29/$F$5*Assumptions!$E$22*Assumptions!$E$30),0) -> 2959 | H29: =VLOOKUP(B29,'25-26 Adjusted Formula counts'!$A$3:$L$320,9,FALSE) -> 81 | I29: =ROUND((H29/$H$5*Assumptions!$E$22*Assumptions!$E$31),0) -> 16151 | K29: 19110 | N29: 19110 | O29: 0 | P29: 19110 | R29: 0 | S29: 19110 | U29: =IFERROR(VLOOKUP($A29,#REF!, 19,FALSE),0) -> 0 | W29: 19110 | X29: 0 | Y29: 187 | Z29: 0 | AB29: 5300840 | AC29: CAPE FLATTERY
A30: =VLOOKUP(B30,CCDDD!$A$3:$B$319,2,FALSE) -> 27019 | B30: 5300870 | C30: CARBONADO | D30: 0 | E30: 0 | F30: =VLOOKUP(B30,'25-26 Adjusted Formula counts'!$A$3:$L$320,8,FALSE) -> 209 | G30: =ROUND((F30/$F$5*Assumptions!$E$22*Assumptions!$E$30),0) -> 1135 | H30: =VLOOKUP(B30,'25-26 Adjusted Formula counts'!$A$3:$L$320,9,FALSE) -> 4 | I30: =ROUND((H30/$H$5*Assumptions!$E$22*Assumptions!$E$31),0) -> 798 | K30: 1933 | N30: 1933 | O30: 0 | P30: 1933 | R30: 0 | S30: 1933 | U30: =IFERROR(VLOOKUP($A30,#REF!, 19,FALSE),0) -> 0 | W30: 1933 | X30: 0 | Y30: 295 | Z30: 0 | AB30: 5300870 | AC30: CARBONADO
A31: =VLOOKUP(B31,CCDDD!$A$3:$B$319,2,FALSE) -> 04228 | B31: 5300950 | C31: CASCADE | D31: 0 | E31: 0 | F31: =VLOOKUP(B31,'25-26 Adjusted Formula counts'!$A$3:$L$320,8,FALSE) -> 1565 | G31: =ROUND((F31/$F$5*Assumptions!$E$22*Assumptions!$E$30),0) -> 8496 | H31: =VLOOKUP(B31,'25-26 Adjusted Formula counts'!$A$3:$L$320,9,FALSE) -> 153 | I31: =ROUND((H31/$H$5*Assumptions!$E$22*Assumptions!$E$31),0) -> 30508 | K31: 39004 | N31: 39004 | O31: 0 | P31: 39004 | R31: 0 | S31: 39004 | U31: =IFERROR(VLOOKUP($A31,#REF!, 19,FALSE),0) -> 0 | W31: 39004 | X31: 0 | Y31: 136 | Z31: 0 | AB31: 5300950 | AC31: CASCADE
A32: =VLOOKUP(B32,CCDDD!$A$3:$B$319,2,FALSE) -> 04222 | B32: 5300960 | C32: CASHMERE | D32: 0 | E32: 0 | F32: =VLOOKUP(B32,'25-26 Adjusted Formula counts'!$A$3:$L$320,8,FALSE) -> 1507 | G32: =ROUND((F32/$F$5*Assumptions!$E$22*Assumptions!$E$30),0) -> 8181 | H32: =VLOOKUP(B32,'25-26 Adjusted Formula counts'!$A$3:$L$320,9,FALSE) -> 159 | I32: =ROUND((H32/$H$5*Assumptions!$E$22*Assumptions!$E$31),0) -> 31704 | K32: 39885 | N32: 39885 | O32: 0 | P32: 39885 | R32: 0 | S32: 39885 | U32: =IFERROR(VLOOKUP($A32,#REF!, 19,FALSE),0) -> 0 | W32: 39885 | X32: 0 | Y32: 134 | Z32: 0 | AB32: 5300960 | AC32: CASHMERE
A33: =VLOOKUP(B33,CCDDD!$A$3:$B$319,2,FALSE) -> 08401 | B33: 5300990 | C33: CASTLE ROCK | D33: 0 | E33: 0 | F33: =VLOOKUP(B33,'25-26 Adjusted Formula counts'!$A$3:$L$320,8,FALSE) -> 1661 | G33: =ROUND((F33/$F$5*Assumptions!$E$22*Assumptions!$E$30),0) -> 9017 | H33: =VLOOKUP(B33,'25-26 Adjusted Formula counts'!$A$3:$L$320,9,FALSE) -> 188 | I33: =ROUND((H33/$H$5*Assumptions!$E$22*Assumptions!$E$31),0) -> 37487 | K33: 46504 | N33: 46504 | O33: 0 | P33: 46504 | R33: 0 | S33: 46504 | U33: =IFERROR(VLOOKUP($A33,#REF!, 19,FALSE),0) -> 0 | W33: 46504 | X33: 0 | Y33: 125 | Z33: 0 | AB33: 5300990 | AC33: CASTLE ROCK
A34: =VLOOKUP(B34,CCDDD!$A$3:$B$319,2,FALSE) -> 18901 | B34: 5301000 | C34: CATALYST BREMERTON CHARTER | D34: 0 | E34: 0 | F34: =VLOOKUP(B34,'25-26 Adjusted Formula counts'!$A$3:$L$320,8,FALSE) -> 583.0661307 | G34: =ROUND((F34/$F$5*Assumptions!$E$22*Assumptions!$E$30),0) -> 3165 | H34: =VLOOKUP(B34,'25-26 Adjusted Formula counts'!$A$3:$L$320,9,FALSE) -> 69.47473997 | I34: =ROUND((H34/$H$5*Assumptions!$E$22*Assumptions!$E$31),0) -> 13853 | K34: 17018 | N34: 17018 | O34: 0 | P34: 17018 | R34: 0 | S34: 17018 | U34: =IFERROR(VLOOKUP($A34,#REF!, 19,FALSE),0) -> 0 | W34: 17018 | X34: 0 | Y34: 195 | Z34: 0 | AB34: 5301000 | AC34: CATALYST BREMERTON CHARTER
A35: =VLOOKUP(B35,CCDDD!$A$3:$B$319,2,FALSE) -> 20215 | B35: 5301050 | C35: CENTERVILLE | D35: 0 | E35: 0 | F35: =VLOOKUP(B35,'25-26 Adjusted Formula counts'!$A$3:$L$320,8,FALSE) -> 94 | G35: =ROUND((F35/$F$5*Assumptions!$E$22*Assumptions!$E$30),0) -> 510 | H35: =VLOOKUP(B35,'25-26 Adjusted Formula counts'!$A$3:$L$320,9,FALSE) -> 24 | I35: =ROUND((H35/$H$5*Assumptions!$E$22*Assumptions!$E$31),0) -> 4786 | K35: 5296 | N35: 5296 | O35: 0 | P35: 5296 | R35: 0 | S35: 5296 | U35: =IFERROR(VLOOKUP($A35,#REF!, 19,FALSE),0) -> 0 | W35: 5296 | X35: 0 | Y35: 263 | Z35: 0 | AB35: 5301050 | AC35: CENTERVILLE
A36: =VLOOKUP(B36,CCDDD!$A$3:$B$319,2,FALSE) -> 18401 | B36: 5301080 | C36: CENTRAL KITSAP | D36: 0 | E36: 0 | F36: =VLOOKUP(B36,'25-26 Adjusted Formula counts'!$A$3:$L$320,8,FALSE) -> 11141 | G36: =ROUND((F36/$F$5*Assumptions!$E$22*Assumptions!$E$30),0) -> 60481 | H36: =VLOOKUP(B36,'25-26 Adjusted Formula counts'!$A$3:$L$320,9,FALSE) -> 763 | I36: =ROUND((H36/$H$5*Assumptions!$E$22*Assumptions!$E$31),0) -> 152141 | K36: 212622 | N36: 212622 | O36: 0 | P36: 212622 | R36: 0 | S36: 212622 | U36: =IFERROR(VLOOKUP($A36,#REF!, 19,FALSE),0) -> 0 | W36: 212622 | X36: 0 | Y36: 40 | Z36: 0 | AB36: 5301080 | AC36: CENTRAL KITSAP
A37: =VLOOKUP(B37,CCDDD!$A$3:$B$319,2,FALSE) -> 32356 | B37: 5301110 | C37: CENTRAL VALLEY | D37: 0 | E37: 0 | F37: =VLOOKUP(B37,'25-26 Adjusted Formula counts'!$A$3:$L$320,8,FALSE) -> 17143 | G37: =ROUND((F37/$F$5*Assumptions!$E$22*Assumptions!$E$30),0) -> 93064 | H37: =VLOOKUP(B37,'25-26 Adjusted Formula counts'!$A$3:$L$320,9,FALSE) -> 1391 | I37: =ROUND((H37/$H$5*Assumptions!$E$22*Assumptions!$E$31),0) -> 277364 | K37: 370428 | N37: 370428 | O37: 0 | P37: 370428 | R37: 0 | S37: 370428 | U37: =IFERROR(VLOOKUP($A37,#REF!, 19,FALSE),0) -> 0 | W37: 370428 | X37: 0 | Y37: 24 | Z37: 0 | AB37: 5301110 | AC37: CENTRAL VALLEY
A38: =VLOOKUP(B38,CCDDD!$A$3:$B$319,2,FALSE) -> 21401 | B38: 5301140 | C38: CENTRALIA | D38: 0 | E38: 0 | F38: =VLOOKUP(B38,'25-26 Adjusted Formula counts'!$A$3:$L$320,8,FALSE) -> 4334 | G38: =ROUND((F38/$F$5*Assumptions!$E$22*Assumptions!$E$30),0) -> 23528 | H38: =VLOOKUP(B38,'25-26 Adjusted Formula counts'!$A$3:$L$320,9,FALSE) -> 840 | I38: =ROUND((H38/$H$5*Assumptions!$E$22*Assumptions!$E$31),0) -> 167495 | K38: 191023 | N38: 191023 | O38: 0 | P38: 191023 | R38: 0 | S38: 191023 | U38: =IFERROR(VLOOKUP($A38,#REF!, 19,FALSE),0) -> 0 | W38: 191023 | X38: 0 | Y38: 44 | Z38: 0 | AB38: 5301140 | AC38: CENTRALIA
A39: =VLOOKUP(B39,CCDDD!$A$3:$B$319,2,FALSE) -> 21302 | B39: 5301170 | C39: CHEHALIS | D39: 0 | E39: 0 | F39: =VLOOKUP(B39,'25-26 Adjusted Formula counts'!$A$3:$L$320,8,FALSE) -> 2894 | G39: =ROUND((F39/$F$5*Assumptions!$E$22*Assumptions!$E$30),0) -> 15711 | H39: =VLOOKUP(B39,'25-26 Adjusted Formula counts'!$A$3:$L$320,9,FALSE) -> 394 | I39: =ROUND((H39/$H$5*Assumptions!$E$22*Assumptions!$E$31),0) -> 78563 | K39: 94274 | N39: 94274 | O39: 0 | P39: 94274 | R39: 0 | S39: 94274 | U39: =IFERROR(VLOOKUP($A39,#REF!, 19,FALSE),0) -> 0 | W39: 94274 | X39: 0 | Y39: 82 | Z39: 0 | AB39: 5301170 | AC39: CHEHALIS
A40: =VLOOKUP(B40,CCDDD!$A$3:$B$319,2,FALSE) -> 32360 | B40: 5301230 | C40: CHENEY | D40: 0 | E40: 0 | F40: =VLOOKUP(B40,'25-26 Adjusted Formula counts'!$A$3:$L$320,8,FALSE) -> 6286 | G40: =ROUND((F40/$F$5*Assumptions!$E$22*Assumptions!$E$30),0) -> 34125 | H40: =VLOOKUP(B40,'25-26 Adjusted Formula counts'!$A$3:$L$320,9,FALSE) -> 697 | I40: =ROUND((H40/$H$5*Assumptions!$E$22*Assumptions!$E$31),0) -> 138981 | K40: 173106 | N40: 173106 | O40: 0 | P40: 173106 | R40: 0 | S40: 173106 | U40: =IFERROR(VLOOKUP($A40,#REF!, 19,FALSE),0) -> 0 | W40: 173106 | X40: 0 | Y40: 51 | Z40: 0 | AB40: 5301230 | AC40: CHENEY
A41: =VLOOKUP(B41,CCDDD!$A$3:$B$319,2,FALSE) -> 33036 | B41: 5301260 | C41: CHEWELAH | D41: 0 | E41: 0 | F41: =VLOOKUP(B41,'25-26 Adjusted Formula counts'!$A$3:$L$320,8,FALSE) -> 945 | G41: =ROUND((F41/$F$5*Assumptions!$E$22*Assumptions!$E$30),0) -> 5130 | H41: =VLOOKUP(B41,'25-26 Adjusted Formula counts'!$A$3:$L$320,9,FALSE) -> 152 | I41: =ROUND((H41/$H$5*Assumptions!$E$22*Assumptions!$E$31),0) -> 30309 | K41: 35439 | N41: 35439 | O41: 0 | P41: 35439 | R41: 0 | S41: 35439 | U41: =IFERROR(VLOOKUP($A41,#REF!, 19,FALSE),0) -> 0 | W41: 35439 | X41: 0 | Y41: 143 | Z41: 0 | AB41: 5301260 | AC41: CHEWELAH
A42: =VLOOKUP(B42,CCDDD!$A$3:$B$319,2,FALSE) -> 16049 | B42: 5301290 | C42: CHIMACUM | D42: 0 | E42: 0 | F42: =VLOOKUP(B42,'25-26 Adjusted Formula counts'!$A$3:$L$320,8,FALSE) -> 1118 | G42: =ROUND((F42/$F$5*Assumptions!$E$22*Assumptions!$E$30),0) -> 6069 | H42: =VLOOKUP(B42,'25-26 Adjusted Formula counts'!$A$3:$L$320,9,FALSE) -> 148 | I42: =ROUND((H42/$H$5*Assumptions!$E$22*Assumptions!$E$31),0) -> 29511 | K42: 35580 | N42: 35580 | O42: 0 | P42: 35580 | R42: 0 | S42: 35580 | U42: =IFERROR(VLOOKUP($A42,#REF!, 19,FALSE),0) -> 0 | W42: 35580 | X42: 0 | Y42: 142 | Z42: 0 | AB42: 5301290 | AC42: CHIMACUM
A43: =VLOOKUP(B43,CCDDD!$A$3:$B$319,2,FALSE) -> 02250 | B43: 5301320 | C43: CLARKSTON | D43: 0 | E43: 0 | F43: =VLOOKUP(B43,'25-26 Adjusted Formula counts'!$A$3:$L$320,8,FALSE) -> 2773 | G43: =ROUND((F43/$F$5*Assumptions!$E$22*Assumptions!$E$30),0) -> 15054 | H43: =VLOOKUP(B43,'25-26 Adjusted Formula counts'!$A$3:$L$320,9,FALSE) -> 507 | I43: =ROUND((H43/$H$5*Assumptions!$E$22*Assumptions!$E$31),0) -> 101095 | K43: 116149 | N43: 116149 | O43: 0 | P43: 116149 | R43: 0 | S43: 116149 | U43: =IFERROR(VLOOKUP($A43,#REF!, 19,FALSE),0) -> 0 | W43: 116149 | X43: 0 | Y43: 71 | Z43: 0 | AB43: 5301320 | AC43: CLARKSTON
A44: =VLOOKUP(B44,CCDDD!$A$3:$B$319,2,FALSE) -> 19404 | B44: 5301350 | C44: CLE ELUM-ROSLYN | D44: 0 | E44: 0 | F44: =VLOOKUP(B44,'25-26 Adjusted Formula counts'!$A$3:$L$320,8,FALSE) -> 1078 | G44: =ROUND((F44/$F$5*Assumptions!$E$22*Assumptions!$E$30),0) -> 5852 | H44: =VLOOKUP(B44,'25-26 Adjusted Formula counts'!$A$3:$L$320,9,FALSE) -> 152 | I44: =ROUND((H44/$H$5*Assumptions!$E$22*Assumptions!$E$31),0) -> 30309 | K44: 36161 | N44: 36161 | O44: 0 | P44: 36161 | R44: 0 | S44: 36161 | U44: =IFERROR(VLOOKUP($A44,#REF!, 19,FALSE),0) -> 0 | W44: 36161 | X44: 0 | Y44: 140 | Z44: 0 | AB44: 5301350 | AC44: CLE ELUM-ROSLYN
A45: =VLOOKUP(B45,CCDDD!$A$3:$B$319,2,FALSE) -> 27400 | B45: 5301410 | C45: CLOVER PARK | D45: 0 | E45: 0 | F45: =VLOOKUP(B45,'25-26 Adjusted Formula counts'!$A$3:$L$320,8,FALSE) -> 13789 | G45: =ROUND((F45/$F$5*Assumptions!$E$22*Assumptions!$E$30),0) -> 74856 | H45: =VLOOKUP(B45,'25-26 Adjusted Formula counts'!$A$3:$L$320,9,FALSE) -> 2049 | I45: =ROUND((H45/$H$5*Assumptions!$E$22*Assumptions!$E$31),0) -> 408568 | K45: 483424 | N45: 483424 | O45: 0 | P45: 483424 | R45: 0 | S45: 483424 | U45: =IFERROR(VLOOKUP($A45,#REF!, 19,FALSE),0) -> 0 | W45: 483424 | X45: 0 | Y45: 19 | Z45: 0 | AB45: 5301410 | AC45: CLOVER PARK
A46: =VLOOKUP(B46,CCDDD!$A$3:$B$319,2,FALSE) -> 38300 | B46: 5301440 | C46: COLFAX | D46: 0 | E46: 0 | F46: =VLOOKUP(B46,'25-26 Adjusted Formula counts'!$A$3:$L$320,8,FALSE) -> 622 | G46: =ROUND((F46/$F$5*Assumptions!$E$22*Assumptions!$E$30),0) -> 3377 | H46: =VLOOKUP(B46,'25-26 Adjusted Formula counts'!$A$3:$L$320,9,FALSE) -> 61 | I46: =ROUND((H46/$H$5*Assumptions!$E$22*Assumptions!$E$31),0) -> 12163 | K46: 15540 | N46: 15540 | O46: 0 | P46: 15540 | R46: 0 | S46: 15540 | U46: =IFERROR(VLOOKUP($A46,#REF!, 19,FALSE),0) -> 0 | W46: 15540 | X46: 0 | Y46: 200 | Z46: 0 | AB46: 5301440 | AC46: COLFAX
A47: =VLOOKUP(B47,CCDDD!$A$3:$B$319,2,FALSE) -> 36250 | B47: 5301470 | C47: COLLEGE PLACE | D47: 0 | E47: 0 | F47: =VLOOKUP(B47,'25-26 Adjusted Formula counts'!$A$3:$L$320,8,FALSE) -> 2043 | G47: =ROUND((F47/$F$5*Assumptions!$E$22*Assumptions!$E$30),0) -> 11091 | H47: =VLOOKUP(B47,'25-26 Adjusted Formula counts'!$A$3:$L$320,9,FALSE) -> 277 | I47: =ROUND((H47/$H$5*Assumptions!$E$22*Assumptions!$E$31),0) -> 55233 | K47: 66324 | N47: 66324 | O47: 0 | P47: 66324 | R47: 0 | S47: 66324 | U47: =IFERROR(VLOOKUP($A47,#REF!, 19,FALSE),0) -> 0 | W47: 66324 | X47: 0 | Y47: 99 | Z47: 0 | AB47: 5301470 | AC47: COLLEGE PLACE
A48: =VLOOKUP(B48,CCDDD!$A$3:$B$319,2,FALSE) -> 38306 | B48: 5301500 | C48: COLTON | D48: 0 | E48: 0 | F48: =VLOOKUP(B48,'25-26 Adjusted Formula counts'!$A$3:$L$320,8,FALSE) -> 250 | G48: =ROUND((F48/$F$5*Assumptions!$E$22*Assumptions!$E$30),0) -> 1357 | H48: =VLOOKUP(B48,'25-26 Adjusted Formula counts'!$A$3:$L$320,9,FALSE) -> 9 | I48: =ROUND((H48/$H$5*Assumptions!$E$22*Assumptions!$E$31),0) -> 1795 | K48: 3152 | N48: 3152 | O48: 0 | P48: 3152 | R48: 0 | S48: 3152 | U48: =IFERROR(VLOOKUP($A48,#REF!, 19,FALSE),0) -> 0 | W48: 3152 | X48: 0 | Y48: 284 | Z48: 0 | AB48: 5301500 | AC48: COLTON
A49: =VLOOKUP(B49,CCDDD!$A$3:$B$319,2,FALSE) -> 33206 | B49: 5301560 | C49: COLUMBIA (STEV) | D49: 0 | E49: 0 | F49: =VLOOKUP(B49,'25-26 Adjusted Formula counts'!$A$3:$L$320,8,FALSE) -> 206 | G49: =ROUND((F49/$F$5*Assumptions!$E$22*Assumptions!$E$30),0) -> 1118 | H49: =VLOOKUP(B49,'25-26 Adjusted Formula counts'!$A$3:$L$320,9,FALSE) -> 37 | I49: =ROUND((H49/$H$5*Assumptions!$E$22*Assumptions!$E$31),0) -> 7378 | K49: 8496 | N49: 8496 | O49: 0 | P49: 8496 | R49: 0 | S49: 8496 | U49: =IFERROR(VLOOKUP($A49,#REF!, 19,FALSE),0) -> 0 | W49: 8496 | X49: 0 | Y49: 239 | Z49: 0 | AB49: 5301560 | AC49: COLUMBIA (STEV)
A50: =VLOOKUP(B50,CCDDD!$A$3:$B$319,2,FALSE) -> 36400 | B50: 5301590 | C50: COLUMBIA (WALLA) | D50: 0 | E50: 0 | F50: =VLOOKUP(B50,'25-26 Adjusted Formula counts'!$A$3:$L$320,8,FALSE) -> 759 | G50: =ROUND((F50/$F$5*Assumptions!$E$22*Assumptions!$E$30),0) -> 4120 | H50: =VLOOKUP(B50,'25-26 Adjusted Formula counts'!$A$3:$L$320,9,FALSE) -> 105 | I50: =ROUND((H50/$H$5*Assumptions!$E$22*Assumptions!$E$31),0) -> 20937 | K50: 25057 | N50: 25057 | O50: 0 | P50: 25057 | R50: 0 | S50: 25057 | U50: =IFERROR(VLOOKUP($A50,#REF!, 19,FALSE),0) -> 0 | W50: 25057 | X50: 0 | Y50: 170 | Z50: 0 | AB50: 5301590 | AC50: COLUMBIA (WALLA)
A51: =VLOOKUP(B51,CCDDD!$A$3:$B$319,2,FALSE) -> 33115 | B51: 5301630 | C51: COLVILLE | D51: 0 | E51: 0 | F51: =VLOOKUP(B51,'25-26 Adjusted Formula counts'!$A$3:$L$320,8,FALSE) -> 2012 | G51: =ROUND((F51/$F$5*Assumptions!$E$22*Assumptions!$E$30),0) -> 10923 | H51: =VLOOKUP(B51,'25-26 Adjusted Formula counts'!$A$3:$L$320,9,FALSE) -> 340 | I51: =ROUND((H51/$H$5*Assumptions!$E$22*Assumptions!$E$31),0) -> 67796 | K51: 78719 | N51: 78719 | O51: 0 | P51: 78719 | R51: 0 | S51: 78719 | U51: =IFERROR(VLOOKUP($A51,#REF!, 19,FALSE),0) -> 0 | W51: 78719 | X51: 0 | Y51: 93 | Z51: 0 | AB51: 5301630 | AC51: COLVILLE
A52: =VLOOKUP(B52,CCDDD!$A$3:$B$319,2,FALSE) -> 29011 | B52: 5301660 | C52: CONCRETE | D52: 0 | E52: 0 | F52: =VLOOKUP(B52,'25-26 Adjusted Formula counts'!$A$3:$L$320,8,FALSE) -> 706 | G52: =ROUND((F52/$F$5*Assumptions!$E$22*Assumptions!$E$30),0) -> 3833 | H52: =VLOOKUP(B52,'25-26 Adjusted Formula counts'!$A$3:$L$320,9,FALSE) -> 97 | I52: =ROUND((H52/$H$5*Assumptions!$E$22*Assumptions!$E$31),0) -> 19342 | K52: 23175 | N52: 23175 | O52: 0 | P52: 23175 | R52: 0 | S52: 23175 | U52: =IFERROR(VLOOKUP($A52,#REF!, 19,FALSE),0) -> 0 | W52: 23175 | X52: 0 | Y52: 175 | Z52: 0 | AB52: 5301660 | AC52: CONCRETE
A53: =VLOOKUP(B53,CCDDD!$A$3:$B$319,2,FALSE) -> 29317 | B53: 5301680 | C53: CONWAY | D53: 0 | E53: 0 | F53: =VLOOKUP(B53,'25-26 Adjusted Formula counts'!$A$3:$L$320,8,FALSE) -> 534 | G53: =ROUND((F53/$F$5*Assumptions!$E$22*Assumptions!$E$30),0) -> 2899 | H53: =VLOOKUP(B53,'25-26 Adjusted Formula counts'!$A$3:$L$320,9,FALSE) -> 45 | I53: =ROUND((H53/$H$5*Assumptions!$E$22*Assumptions!$E$31),0) -> 8973 | K53: 11872 | N53: 11872 | O53: 0 | P53: 11872 | R53: 0 | S53: 11872 | U53: =IFERROR(VLOOKUP($A53,#REF!, 19,FALSE),0) -> 0 | W53: 11872 | X53: 0 | Y53: 217 | Z53: 0 | AB53: 5301680 | AC53: CONWAY
A54: =VLOOKUP(B54,CCDDD!$A$3:$B$319,2,FALSE) -> 14099 | B54: 5301710 | C54: COSMOPOLIS | D54: 0 | E54: 0 | F54: =VLOOKUP(B54,'25-26 Adjusted Formula counts'!$A$3:$L$320,8,FALSE) -> 315 | G54: =ROUND((F54/$F$5*Assumptions!$E$22*Assumptions!$E$30),0) -> 1710 | H54: =VLOOKUP(B54,'25-26 Adjusted Formula counts'!$A$3:$L$320,9,FALSE) -> 33 | I54: =ROUND((H54/$H$5*Assumptions!$E$22*Assumptions!$E$31),0) -> 6580 | K54: 8290 | N54: 8290 | O54: 0 | P54: 8290 | R54: 0 | S54: 8290 | U54: =IFERROR(VLOOKUP($A54,#REF!, 19,FALSE),0) -> 0 | W54: 8290 | X54: 0 | Y54: 240 | Z54: 0 | AB54: 5301710 | AC54: COSMOPOLIS
A55: =VLOOKUP(B55,CCDDD!$A$3:$B$319,2,FALSE) -> 13151 | B55: 5303440 | C55: COULEE-HARTLINE | D55: 0 | E55: 0 | F55: =VLOOKUP(B55,'25-26 Adjusted Formula counts'!$A$3:$L$320,8,FALSE) -> 248 | G55: =ROUND((F55/$F$5*Assumptions!$E$22*Assumptions!$E$30),0) -> 1346 | H55: =VLOOKUP(B55,'25-26 Adjusted Formula counts'!$A$3:$L$320,9,FALSE) -> 49 | I55: =ROUND((H55/$H$5*Assumptions!$E$22*Assumptions!$E$31),0) -> 9771 | K55: 11117 | N55: 11117 | O55: 0 | P55: 11117 | R55: 0 | S55: 11117 | U55: =IFERROR(VLOOKUP($A55,#REF!, 19,FALSE),0) -> 0 | W55: 11117 | X55: 0 | Y55: 225 | Z55: 0 | AB55: 5303440 | AC55: COULEE-HARTLINE
A56: =VLOOKUP(B56,CCDDD!$A$3:$B$319,2,FALSE) -> 15204 | B56: 5301800 | C56: COUPEVILLE | D56: 0 | E56: 0 | F56: =VLOOKUP(B56,'25-26 Adjusted Formula counts'!$A$3:$L$320,8,FALSE) -> 1077 | G56: =ROUND((F56/$F$5*Assumptions!$E$22*Assumptions!$E$30),0) -> 5847 | H56: =VLOOKUP(B56,'25-26 Adjusted Formula counts'!$A$3:$L$320,9,FALSE) -> 110 | I56: =ROUND((H56/$H$5*Assumptions!$E$22*Assumptions!$E$31),0) -> 21934 | K56: 27781 | N56: 27781 | O56: 0 | P56: 27781 | R56: 0 | S56: 27781 | U56: =IFERROR(VLOOKUP($A56,#REF!, 19,FALSE),0) -> 0 | W56: 27781 | X56: 0 | Y56: 162 | Z56: 0 | AB56: 5301800 | AC56: COUPEVILLE
A57: =VLOOKUP(B57,CCDDD!$A$3:$B$319,2,FALSE) -> 05313 | B57: 5301830 | C57: CRESCENT | D57: 0 | E57: 0 | F57: =VLOOKUP(B57,'25-26 Adjusted Formula counts'!$A$3:$L$320,8,FALSE) -> 342 | G57: =ROUND((F57/$F$5*Assumptions!$E$22*Assumptions!$E$30),0) -> 1857 | H57: =VLOOKUP(B57,'25-26 Adjusted Formula counts'!$A$3:$L$320,9,FALSE) -> 56 | I57: =ROUND((H57/$H$5*Assumptions!$E$22*Assumptions!$E$31),0) -> 11166 | K57: 13023 | N57: 13023 | O57: 0 | P57: 13023 | R57: 0 | S57: 13023 | U57: =IFERROR(VLOOKUP($A57,#REF!, 19,FALSE),0) -> 0 | W57: 13023 | X57: 0 | Y57: 212 | Z57: 0 | AB57: 5301830 | AC57: CRESCENT
A58: =VLOOKUP(B58,CCDDD!$A$3:$B$319,2,FALSE) -> 22073 | B58: 5301860 | C58: CRESTON | D58: 0 | E58: 0 | F58: =VLOOKUP(B58,'25-26 Adjusted Formula counts'!$A$3:$L$320,8,FALSE) -> 114 | G58: =ROUND((F58/$F$5*Assumptions!$E$22*Assumptions!$E$30),0) -> 619 | H58: =VLOOKUP(B58,'25-26 Adjusted Formula counts'!$A$3:$L$320,9,FALSE) -> 14 | I58: =ROUND((H58/$H$5*Assumptions!$E$22*Assumptions!$E$31),0) -> 2792 | K58: 3411 | N58: 3411 | O58: 0 | P58: 3411 | R58: 0 | S58: 3411 | U58: =IFERROR(VLOOKUP($A58,#REF!, 19,FALSE),0) -> 0 | W58: 3411 | X58: 0 | Y58: 283 | Z58: 0 | AB58: 5301860 | AC58: CRESTON
A59: =VLOOKUP(B59,CCDDD!$A$3:$B$319,2,FALSE) -> 10050 | B59: 5301890 | C59: CURLEW | D59: 0 | E59: 0 | F59: =VLOOKUP(B59,'25-26 Adjusted Formula counts'!$A$3:$L$320,8,FALSE) -> 165 | G59: =ROUND((F59/$F$5*Assumptions!$E$22*Assumptions!$E$30),0) -> 896 | H59: =VLOOKUP(B59,'25-26 Adjusted Formula counts'!$A$3:$L$320,9,FALSE) -> 55 | I59: =ROUND((H59/$H$5*Assumptions!$E$22*Assumptions!$E$31),0) -> 10967 | K59: 11863 | N59: 11863 | O59: 0 | P59: 11863 | R59: 0 | S59: 11863 | U59: =IFERROR(VLOOKUP($A59,#REF!, 19,FALSE),0) -> 0 | W59: 11863 | X59: 0 | Y59: 218 | Z59: 0 | AB59: 5301890 | AC59: CURLEW
A60: =VLOOKUP(B60,CCDDD!$A$3:$B$319,2,FALSE) -> 26059 | B60: 5301920 | C60: CUSICK | D60: 0 | E60: 0 | F60: =VLOOKUP(B60,'25-26 Adjusted Formula counts'!$A$3:$L$320,8,FALSE) -> 323 | G60: =ROUND((F60/$F$5*Assumptions!$E$22*Assumptions!$E$30),0) -> 1753 | H60: =VLOOKUP(B60,'25-26 Adjusted Formula counts'!$A$3:$L$320,9,FALSE) -> 73 | I60: =ROUND((H60/$H$5*Assumptions!$E$22*Assumptions!$E$31),0) -> 14556 | K60: 16309 | N60: 16309 | O60: 0 | P60: 16309 | R60: 0 | S60: 16309 | U60: =IFERROR(VLOOKUP($A60,#REF!, 19,FALSE),0) -> 0 | W60: 16309 | X60: 0 | Y60: 197 | Z60: 0 | AB60: 5301920 | AC60: CUSICK
A61: =VLOOKUP(B61,CCDDD!$A$3:$B$319,2,FALSE) -> 19007 | B61: 5301950 | C61: DAMMAN | D61: 0 | E61: 0 | F61: =VLOOKUP(B61,'25-26 Adjusted Formula counts'!$A$3:$L$320,8,FALSE) -> 113 | G61: =ROUND((F61/$F$5*Assumptions!$E$22*Assumptions!$E$30),0) -> 613 | H61: =VLOOKUP(B61,'25-26 Adjusted Formula counts'!$A$3:$L$320,9,FALSE) -> 3 | I61: =ROUND((H61/$H$5*Assumptions!$E$22*Assumptions!$E$31),0) -> 598 | K61: 1211 | N61: 1211 | O61: 0 | P61: 1211 | R61: 0 | S61: 1211 | U61: =IFERROR(VLOOKUP($A61,#REF!, 19,FALSE),0) -> 0 | W61: 1211 | X61: 0 | Y61: 305 | Z61: 0 | AB61: 5301950 | AC61: DAMMAN
A62: =VLOOKUP(B62,CCDDD!$A$3:$B$319,2,FALSE) -> 31330 | B62: 5301980 | C62: DARRINGTON | D62: 0 | E62: 0 | F62: =VLOOKUP(B62,'25-26 Adjusted Formula counts'!$A$3:$L$320,8,FALSE) -> 506 | G62: =ROUND((F62/$F$5*Assumptions!$E$22*Assumptions!$E$30),0) -> 2747 | H62: =VLOOKUP(B62,'25-26 Adjusted Formula counts'!$A$3:$L$320,9,FALSE) -> 44 | I62: =ROUND((H62/$H$5*Assumptions!$E$22*Assumptions!$E$31),0) -> 8774 | K62: 11521 | N62: 11521 | O62: 0 | P62: 11521 | R62: 0 | S62: 11521 | U62: =IFERROR(VLOOKUP($A62,#REF!, 19,FALSE),0) -> 0 | W62: 11521 | X62: 0 | Y62: 223 | Z62: 0 | AB62: 5301980 | AC62: DARRINGTON
A63: =VLOOKUP(B63,CCDDD!$A$3:$B$319,2,FALSE) -> 22207 | B63: 5302010 | C63: DAVENPORT | D63: 0 | E63: 0 | F63: =VLOOKUP(B63,'25-26 Adjusted Formula counts'!$A$3:$L$320,8,FALSE) -> 588 | G63: =ROUND((F63/$F$5*Assumptions!$E$22*Assumptions!$E$30),0) -> 3192 | H63: =VLOOKUP(B63,'25-26 Adjusted Formula counts'!$A$3:$L$320,9,FALSE) -> 81 | I63: =ROUND((H63/$H$5*Assumptions!$E$22*Assumptions!$E$31),0) -> 16151 | K63: 19343 | N63: 19343 | O63: 0 | P63: 19343 | R63: 0 | S63: 19343 | U63: =IFERROR(VLOOKUP($A63,#REF!, 19,FALSE),0) -> 0 | W63: 19343 | X63: 0 | Y63: 186 | Z63: 0 | AB63: 5302010 | AC63: DAVENPORT
A64: =VLOOKUP(B64,CCDDD!$A$3:$B$319,2,FALSE) -> 07002 | B64: 5302040 | C64: DAYTON | D64: 0 | E64: 0 | F64: =VLOOKUP(B64,'25-26 Adjusted Formula counts'!$A$3:$L$320,8,FALSE) -> 517 | G64: =ROUND((F64/$F$5*Assumptions!$E$22*Assumptions!$E$30),0) -> 2807 | H64: =VLOOKUP(B64,'25-26 Adjusted Formula counts'!$A$3:$L$320,9,FALSE) -> 91 | I64: =ROUND((H64/$H$5*Assumptions!$E$22*Assumptions!$E$31),0) -> 18145 | K64: 20952 | N64: 20952 | O64: 0 | P64: 20952 | R64: 0 | S64: 20952 | U64: =IFERROR(VLOOKUP($A64,#REF!, 19,FALSE),0) -> 0 | W64: 20952 | X64: 0 | Y64: 179 | Z64: 0 | AB64: 5302040 | AC64: DAYTON
A65: =VLOOKUP(B65,CCDDD!$A$3:$B$319,2,FALSE) -> 32414 | B65: 5302070 | C65: DEER PARK | D65: 0 | E65: 0 | F65: =VLOOKUP(B65,'25-26 Adjusted Formula counts'!$A$3:$L$320,8,FALSE) -> 2387 | G65: =ROUND((F65/$F$5*Assumptions!$E$22*Assumptions!$E$30),0) -> 12958 | H65: =VLOOKUP(B65,'25-26 Adjusted Formula counts'!$A$3:$L$320,9,FALSE) -> 226 | I65: =ROUND((H65/$H$5*Assumptions!$E$22*Assumptions!$E$31),0) -> 45064 | K65: 58022 | N65: 58022 | O65: 0 | P65: 58022 | R65: 0 | S65: 58022 | U65: =IFERROR(VLOOKUP($A65,#REF!, 19,FALSE),0) -> 0 | W65: 58022 | X65: 0 | Y65: 108 | Z65: 0 | AB65: 5302070 | AC65: DEER PARK
A66: =VLOOKUP(B66,CCDDD!$A$3:$B$319,2,FALSE) -> 27343 | B66: 5302130 | C66: DIERINGER | D66: 0 | E66: 0 | F66: =VLOOKUP(B66,'25-26 Adjusted Formula counts'!$A$3:$L$320,8,FALSE) -> 2293 | G66: =ROUND((F66/$F$5*Assumptions!$E$22*Assumptions!$E$30),0) -> 12448 | H66: =VLOOKUP(B66,'25-26 Adjusted Formula counts'!$A$3:$L$320,9,FALSE) -> 100 | I66: =ROUND((H66/$H$5*Assumptions!$E$22*Assumptions!$E$31),0) -> 19940 | K66: 32388 | N66: 32388 | O66: 0 | P66: 32388 | R66: 0 | S66: 32388 | U66: =IFERROR(VLOOKUP($A66,#REF!, 19,FALSE),0) -> 0 | W66: 32388 | X66: 0 | Y66: 151 | Z66: 0 | AB66: 5302130 | AC66: DIERINGER
A67: =VLOOKUP(B67,CCDDD!$A$3:$B$319,2,FALSE) -> 36101 | B67: 5302160 | C67: DIXIE | D67: 0 | E67: 0 | F67: =VLOOKUP(B67,'25-26 Adjusted Formula counts'!$A$3:$L$320,8,FALSE) -> 75 | G67: =ROUND((F67/$F$5*Assumptions!$E$22*Assumptions!$E$30),0) -> 407 | H67: =VLOOKUP(B67,'25-26 Adjusted Formula counts'!$A$3:$L$320,9,FALSE) -> 6 | I67: =ROUND((H67/$H$5*Assumptions!$E$22*Assumptions!$E$31),0) -> 1196 | K67: 1603 | N67: 1603 | O67: 0 | P67: 1603 | R67: 0 | S67: 1603 | U67: =IFERROR(VLOOKUP($A67,#REF!, 19,FALSE),0) -> 0 | W67: 1603 | X67: 0 | Y67: 298 | Z67: 0 | AB67: 5302160 | AC67: DIXIE
A68: =VLOOKUP(B68,CCDDD!$A$3:$B$319,2,FALSE) -> 32361 | B68: 5302280 | C68: EAST VALLEY (SPK) | D68: 0 | E68: 0 | F68: =VLOOKUP(B68,'25-26 Adjusted Formula counts'!$A$3:$L$320,8,FALSE) -> 4713 | G68: =ROUND((F68/$F$5*Assumptions!$E$22*Assumptions!$E$30),0) -> 25585 | H68: =VLOOKUP(B68,'25-26 Adjusted Formula counts'!$A$3:$L$320,9,FALSE) -> 574 | I68: =ROUND((H68/$H$5*Assumptions!$E$22*Assumptions!$E$31),0) -> 114455 | K68: 140040 | N68: 140040 | O68: 0 | P68: 140040 | R68: 0 | S68: 140040 | U68: =IFERROR(VLOOKUP($A68,#REF!, 19,FALSE),0) -> 0 | W68: 140040 | X68: 0 | Y68: 61 | Z68: 0 | AB68: 5302280 | AC68: EAST VALLEY (SPK)
A69: =VLOOKUP(B69,CCDDD!$A$3:$B$319,2,FALSE) -> 39090 | B69: 5305370 | C69: EAST VALLEY (YAK) | D69: 0 | E69: 0 | F69: =VLOOKUP(B69,'25-26 Adjusted Formula counts'!$A$3:$L$320,8,FALSE) -> 3558 | G69: =ROUND((F69/$F$5*Assumptions!$E$22*Assumptions!$E$30),0) -> 19315 | H69: =VLOOKUP(B69,'25-26 Adjusted Formula counts'!$A$3:$L$320,9,FALSE) -> 481 | I69: =ROUND((H69/$H$5*Assumptions!$E$22*Assumptions!$E$31),0) -> 95911 | K69: 115226 | N69: 115226 | O69: 0 | P69: 115226 | R69: 0 | S69: 115226 | U69: =IFERROR(VLOOKUP($A69,#REF!, 19,FALSE),0) -> 0 | W69: 115226 | X69: 0 | Y69: 72 | Z69: 0 | AB69: 5305370 | AC69: EAST VALLEY (YAK)
A70: =VLOOKUP(B70,CCDDD!$A$3:$B$319,2,FALSE) -> 09206 | B70: 5302310 | C70: EASTMONT | D70: 0 | E70: 0 | F70: =VLOOKUP(B70,'25-26 Adjusted Formula counts'!$A$3:$L$320,8,FALSE) -> 6388 | G70: =ROUND((F70/$F$5*Assumptions!$E$22*Assumptions!$E$30),0) -> 34679 | H70: =VLOOKUP(B70,'25-26 Adjusted Formula counts'!$A$3:$L$320,9,FALSE) -> 863 | I70: =ROUND((H70/$H$5*Assumptions!$E$22*Assumptions!$E$31),0) -> 172081 | K70: 206760 | N70: 206760 | O70: 0 | P70: 206760 | R70: 0 | S70: 206760 | U70: =IFERROR(VLOOKUP($A70,#REF!, 19,FALSE),0) -> 0 | W70: 206760 | X70: 0 | Y70: 41 | Z70: 0 | AB70: 5302310 | AC70: EASTMONT
A71: =VLOOKUP(B71,CCDDD!$A$3:$B$319,2,FALSE) -> 19028 | B71: 5302340 | C71: EASTON | D71: 0 | E71: 0 | F71: =VLOOKUP(B71,'25-26 Adjusted Formula counts'!$A$3:$L$320,8,FALSE) -> 157 | G71: =ROUND((F71/$F$5*Assumptions!$E$22*Assumptions!$E$30),0) -> 852 | H71: =VLOOKUP(B71,'25-26 Adjusted Formula counts'!$A$3:$L$320,9,FALSE) -> 21 | I71: =ROUND((H71/$H$5*Assumptions!$E$22*Assumptions!$E$31),0) -> 4187 | K71: =ROUNDDOWN(+I71+G71+E71+D71+J71,0) -> 5039 | N71: =K71 -> 5039 | O71: =-ROUND(N71/$N$5*$M$5,0) -> 0 | P71: =+K71+O71+M71 -> 5039 | R71: =-1*(P71*Q71) -> 0 | S71: =+P71+R71 -> 5039 | U71: =IFERROR(VLOOKUP($A71,#REF!, 19,FALSE),0) -> 0 | W71: =+S71-U71 -> 5039 | X71: =IF(U71>0,W71/U71,0) -> 0 | Y71: =RANK(W71,$W$7:$W$320,0) -> 266 | Z71: =(SUM(D71:E71)/S71) -> 0 | AB71: =+B71 -> 5302340 | AC71: EASTON
A72: =VLOOKUP(B72,CCDDD!$A$3:$B$319,2,FALSE) -> 27404 | B72: 5302370 | C72: EATONVILLE | D72: 0 | E72: 0 | F72: =VLOOKUP(B72,'25-26 Adjusted Formula counts'!$A$3:$L$320,8,FALSE) -> 2222 | G72: =ROUND((F72/$F$5*Assumptions!$E$22*Assumptions!$E$30),0) -> 12063 | H72: =VLOOKUP(B72,'25-26 Adjusted Formula counts'!$A$3:$L$320,9,FALSE) -> 150 | I72: =ROUND((H72/$H$5*Assumptions!$E$22*Assumptions!$E$31),0) -> 29910 | K72: 41973 | N72: 41973 | O72: 0 | P72: 41973 | R72: 0 | S72: 41973 | U72: =IFERROR(VLOOKUP($A72,#REF!, 19,FALSE),0) -> 0 | W72: 41973 | X72: 0 | Y72: 132 | Z72: 0 | AB72: 5302370 | AC72: EATONVILLE
A73: =VLOOKUP(B73,CCDDD!$A$3:$B$319,2,FALSE) -> 31015 | B73: 5302400 | C73: EDMONDS | D73: 0 | E73: 0 | F73: =VLOOKUP(B73,'25-26 Adjusted Formula counts'!$A$3:$L$320,8,FALSE) -> 24425 | G73: =ROUND((F73/$F$5*Assumptions!$E$22*Assumptions!$E$30),0) -> 132596 | H73: =VLOOKUP(B73,'25-26 Adjusted Formula counts'!$A$3:$L$320,9,FALSE) -> 2342 | I73: =ROUND((H73/$H$5*Assumptions!$E$22*Assumptions!$E$31),0) -> 466992 | K73: 599588 | N73: 599588 | O73: 0 | P73: 599588 | R73: 0 | S73: 599588 | U73: =IFERROR(VLOOKUP($A73,#REF!, 19,FALSE),0) -> 0 | W73: 599588 | X73: 0 | Y73: 15 | Z73: 0 | AB73: 5302400 | AC73: EDMONDS
A74: =VLOOKUP(B74,CCDDD!$A$3:$B$319,2,FALSE) -> 19401 | B74: 5302460 | C74: ELLENSBURG | D74: 0 | E74: 0 | F74: =VLOOKUP(B74,'25-26 Adjusted Formula counts'!$A$3:$L$320,8,FALSE) -> 3597 | G74: =ROUND((F74/$F$5*Assumptions!$E$22*Assumptions!$E$30),0) -> 19527 | H74: =VLOOKUP(B74,'25-26 Adjusted Formula counts'!$A$3:$L$320,9,FALSE) -> 433 | I74: =ROUND((H74/$H$5*Assumptions!$E$22*Assumptions!$E$31),0) -> 86340 | K74: 105867 | N74: 105867 | O74: 0 | P74: 105867 | R74: 0 | S74: 105867 | U74: =IFERROR(VLOOKUP($A74,#REF!, 19,FALSE),0) -> 0 | W74: 105867 | X74: 0 | Y74: 76 | Z74: 0 | AB74: 5302460 | AC74: ELLENSBURG
A75: =VLOOKUP(B75,CCDDD!$A$3:$B$319,2,FALSE) -> 14068 | B75: 5302490 | C75: ELMA | D75: 0 | E75: 0 | F75: =VLOOKUP(B75,'25-26 Adjusted Formula counts'!$A$3:$L$320,8,FALSE) -> 1593 | G75: =ROUND((F75/$F$5*Assumptions!$E$22*Assumptions!$E$30),0) -> 8648 | H75: =VLOOKUP(B75,'25-26 Adjusted Formula counts'!$A$3:$L$320,9,FALSE) -> 241 | I75: =ROUND((H75/$H$5*Assumptions!$E$22*Assumptions!$E$31),0) -> 48055 | K75: 56703 | N75: 56703 | O75: 0 | P75: 56703 | R75: 0 | S75: 56703 | U75: =IFERROR(VLOOKUP($A75,#REF!, 19,FALSE),0) -> 0 | W75: 56703 | X75: 0 | Y75: 109 | Z75: 0 | AB75: 5302490 | AC75: ELMA
A76: =VLOOKUP(B76,CCDDD!$A$3:$B$319,2,FALSE) -> 38308 | B76: 5302520 | C76: ENDICOTT | D76: 0 | E76: 0 | F76: =VLOOKUP(B76,'25-26 Adjusted Formula counts'!$A$3:$L$320,8,FALSE) -> 90 | G76: =ROUND((F76/$F$5*Assumptions!$E$22*Assumptions!$E$30),0) -> 489 | H76: =VLOOKUP(B76,'25-26 Adjusted Formula counts'!$A$3:$L$320,9,FALSE) -> 22 | I76: =ROUND((H76/$H$5*Assumptions!$E$22*Assumptions!$E$31),0) -> 4387 | K76: 4876 | N76: 4876 | O76: 0 | P76: 4876 | R76: 0 | S76: 4876 | U76: =IFERROR(VLOOKUP($A76,#REF!, 19,FALSE),0) -> 0 | W76: 4876 | X76: 0 | Y76: 267 | Z76: 0 | AB76: 5302520 | AC76: ENDICOTT
A77: =VLOOKUP(B77,CCDDD!$A$3:$B$319,2,FALSE) -> 04127 | B77: 5302550 | C77: ENTIAT | D77: 0 | E77: 0 | F77: =VLOOKUP(B77,'25-26 Adjusted Formula counts'!$A$3:$L$320,8,FALSE) -> 409 | G77: =ROUND((F77/$F$5*Assumptions!$E$22*Assumptions!$E$30),0) -> 2220 | H77: =VLOOKUP(B77,'25-26 Adjusted Formula counts'!$A$3:$L$320,9,FALSE) -> 65 | I77: =ROUND((H77/$H$5*Assumptions!$E$22*Assumptions!$E$31),0) -> 12961 | K77: 15181 | N77: 15181 | O77: 0 | P77: 15181 | R77: 0 | S77: 15181 | U77: =IFERROR(VLOOKUP($A77,#REF!, 19,FALSE),0) -> 0 | W77: 15181 | X77: 0 | Y77: 202 | Z77: 0 | AB77: 5302550 | AC77: ENTIAT
A78: =VLOOKUP(B78,CCDDD!$A$3:$B$319,2,FALSE) -> 17216 | B78: 5300001 | C78: ENUMCLAW | D78: 0 | E78: 0 | F78: =VLOOKUP(B78,'25-26 Adjusted Formula counts'!$A$3:$L$320,8,FALSE) -> 4684 | G78: =ROUND((F78/$F$5*Assumptions!$E$22*Assumptions!$E$30),0) -> 25428 | H78: =VLOOKUP(B78,'25-26 Adjusted Formula counts'!$A$3:$L$320,9,FALSE) -> 274 | I78: =ROUND((H78/$H$5*Assumptions!$E$22*Assumptions!$E$31),0) -> 54635 | K78: 80063 | N78: 80063 | O78: 0 | P78: 80063 | R78: 0 | S78: 80063 | U78: =IFERROR(VLOOKUP($A78,#REF!, 19,FALSE),0) -> 0 | W78: 80063 | X78: 0 | Y78: 91 | Z78: 0 | AB78: 5300001 | AC78: ENUMCLAW
A79: =VLOOKUP(B79,CCDDD!$A$3:$B$319,2,FALSE) -> 13165 | B79: 5302610 | C79: EPHRATA | D79: 0 | E79: 0 | F79: =VLOOKUP(B79,'25-26 Adjusted Formula counts'!$A$3:$L$320,8,FALSE) -> 2908 | G79: =ROUND((F79/$F$5*Assumptions!$E$22*Assumptions!$E$30),0) -> 15787 | H79: =VLOOKUP(B79,'25-26 Adjusted Formula counts'!$A$3:$L$320,9,FALSE) -> 427 | I79: =ROUND((H79/$H$5*Assumptions!$E$22*Assumptions!$E$31),0) -> 85143 | K79: 100930 | N79: 100930 | O79: 0 | P79: 100930 | R79: 0 | S79: 100930 | U79: =IFERROR(VLOOKUP($A79,#REF!, 19,FALSE),0) -> 0 | W79: 100930 | X79: 0 | Y79: 78 | Z79: 0 | AB79: 5302610 | AC79: EPHRATA
A80: =VLOOKUP(B80,CCDDD!$A$3:$B$319,2,FALSE) -> 21036 | B80: 5302640 | C80: EVALINE | D80: 0 | E80: 0 | F80: =VLOOKUP(B80,'25-26 Adjusted Formula counts'!$A$3:$L$320,8,FALSE) -> 130 | G80: =ROUND((F80/$F$5*Assumptions!$E$22*Assumptions!$E$30),0) -> 706 | H80: =VLOOKUP(B80,'25-26 Adjusted Formula counts'!$A$3:$L$320,9,FALSE) -> 16 | I80: =ROUND((H80/$H$5*Assumptions!$E$22*Assumptions!$E$31),0) -> 3190 | K80: 3896 | N80: 3896 | O80: 0 | P80: 3896 | R80: 0 | S80: 3896 | U80: =IFERROR(VLOOKUP($A80,#REF!, 19,FALSE),0) -> 0 | W80: 3896 | X80: 0 | Y80: 274 | Z80: 0 | AB80: 5302640 | AC80: EVALINE
A81: =VLOOKUP(B81,CCDDD!$A$3:$B$319,2,FALSE) -> 31002 | B81: 5302670 | C81: EVERETT | D81: 0 | E81: 0 | F81: =VLOOKUP(B81,'25-26 Adjusted Formula counts'!$A$3:$L$320,8,FALSE) -> 22976 | G81: =ROUND((F81/$F$5*Assumptions!$E$22*Assumptions!$E$30),0) -> 124730 | H81: =VLOOKUP(B81,'25-26 Adjusted Formula counts'!$A$3:$L$320,9,FALSE) -> 2424 | I81: =ROUND((H81/$H$5*Assumptions!$E$22*Assumptions!$E$31),0) -> 483343 | K81: 608073 | N81: 608073 | O81: 0 | P81: 608073 | R81: 0 | S81: 608073 | U81: =IFERROR(VLOOKUP($A81,#REF!, 19,FALSE),0) -> 0 | W81: 608073 | X81: 0 | Y81: 14 | Z81: 0 | AB81: 5302670 | AC81: EVERETT
A82: =VLOOKUP(B82,CCDDD!$A$3:$B$319,2,FALSE) -> 06114 | B82: 5302700 | C82: EVERGREEN (CLARK) | D82: 0 | E82: 0 | F82: =VLOOKUP(B82,'25-26 Adjusted Formula counts'!$A$3:$L$320,8,FALSE) -> 26847 | G82: =ROUND((F82/$F$5*Assumptions!$E$22*Assumptions!$E$30),0) -> 145744 | H82: =VLOOKUP(B82,'25-26 Adjusted Formula counts'!$A$3:$L$320,9,FALSE) -> 2584 | I82: =ROUND((H82/$H$5*Assumptions!$E$22*Assumptions!$E$31),0) -> 515246 | K82: 660990 | N82: 660990 | O82: 0 | P82: 660990 | R82: 0 | S82: 660990 | U82: =IFERROR(VLOOKUP($A82,#REF!, 19,FALSE),0) -> 0 | W82: 660990 | X82: 0 | Y82: 10 | Z82: 0 | AB82: 5302700 | AC82: EVERGREEN (CLARK)
A83: =VLOOKUP(B83,CCDDD!$A$3:$B$319,2,FALSE) -> 33205 | B83: 5302730 | C83: EVERGREEN (STEV) | D83: 0 | E83: 0 | F83: =VLOOKUP(B83,'25-26 Adjusted Formula counts'!$A$3:$L$320,8,FALSE) -> 57 | G83: =ROUND((F83/$F$5*Assumptions!$E$22*Assumptions!$E$30),0) -> 309 | H83: =VLOOKUP(B83,'25-26 Adjusted Formula counts'!$A$3:$L$320,9,FALSE) -> 17 | I83: =ROUND((H83/$H$5*Assumptions!$E$22*Assumptions!$E$31),0) -> 3390 | K83: 3699 | N83: 3699 | O83: 0 | P83: 3699 | R83: 0 | S83: 3699 | U83: =IFERROR(VLOOKUP($A83,#REF!, 19,FALSE),0) -> 0 | W83: 3699 | X83: 0 | Y83: 279 | Z83: 0 | AB83: 5302730 | AC83: EVERGREEN (STEV)
A84: =VLOOKUP(B84,CCDDD!$A$3:$B$319,2,FALSE) -> 17210 | B84: 5302820 | C84: FEDERAL WAY | D84: 0 | E84: 0 | F84: =VLOOKUP(B84,'25-26 Adjusted Formula counts'!$A$3:$L$320,8,FALSE) -> 24174 | G84: =ROUND((F84/$F$5*Assumptions!$E$22*Assumptions!$E$30),0) -> 131234 | H84: =VLOOKUP(B84,'25-26 Adjusted Formula counts'!$A$3:$L$320,9,FALSE) -> 4191 | I84: =ROUND((H84/$H$5*Assumptions!$E$22*Assumptions!$E$31),0) -> 835680 | K84: 966914 | N84: 966914 | O84: 0 | P84: 966914 | R84: 0 | S84: 966914 | U84: =IFERROR(VLOOKUP($A84,#REF!, 19,FALSE),0) -> 0 | W84: 966914 | X84: 0 | Y84: 5 | Z84: 0 | AB84: 5302820 | AC84: FEDERAL WAY
A85: =VLOOKUP(B85,CCDDD!$A$3:$B$319,2,FALSE) -> 37502 | B85: 5302850 | C85: FERNDALE | D85: 0 | E85: 0 | F85: =VLOOKUP(B85,'25-26 Adjusted Formula counts'!$A$3:$L$320,8,FALSE) -> 6187 | G85: =ROUND((F85/$F$5*Assumptions!$E$22*Assumptions!$E$30),0) -> 33587 | H85: =VLOOKUP(B85,'25-26 Adjusted Formula counts'!$A$3:$L$320,9,FALSE) -> 769 | I85: =ROUND((H85/$H$5*Assumptions!$E$22*Assumptions!$E$31),0) -> 153338 | K85: 186925 | N85: 186925 | O85: 0 | P85: 186925 | R85: 0 | S85: 186925 | U85: =IFERROR(VLOOKUP($A85,#REF!, 19,FALSE),0) -> 0 | W85: 186925 | X85: 0 | Y85: 47 | Z85: 0 | AB85: 5302850 | AC85: FERNDALE
A86: =VLOOKUP(B86,CCDDD!$A$3:$B$319,2,FALSE) -> 27417 | B86: 5302880 | C86: FIFE | D86: 0 | E86: 0 | F86: =VLOOKUP(B86,'25-26 Adjusted Formula counts'!$A$3:$L$320,8,FALSE) -> 4094 | G86: =ROUND((F86/$F$5*Assumptions!$E$22*Assumptions!$E$30),0) -> 22225 | H86: =VLOOKUP(B86,'25-26 Adjusted Formula counts'!$A$3:$L$320,9,FALSE) -> 386 | I86: =ROUND((H86/$H$5*Assumptions!$E$22*Assumptions!$E$31),0) -> 76968 | K86: 99193 | N86: 99193 | O86: 0 | P86: 99193 | R86: 0 | S86: 99193 | U86: =IFERROR(VLOOKUP($A86,#REF!, 19,FALSE),0) -> 0 | W86: 99193 | X86: 0 | Y86: 80 | Z86: 0 | AB86: 5302880 | AC86: FIFE
A87: =VLOOKUP(B87,CCDDD!$A$3:$B$319,2,FALSE) -> 03053 | B87: 5302910 | C87: FINLEY | D87: 0 | E87: 0 | F87: =VLOOKUP(B87,'25-26 Adjusted Formula counts'!$A$3:$L$320,8,FALSE) -> 920 | G87: =ROUND((F87/$F$5*Assumptions!$E$22*Assumptions!$E$30),0) -> 4994 | H87: =VLOOKUP(B87,'25-26 Adjusted Formula counts'!$A$3:$L$320,9,FALSE) -> 113 | I87: =ROUND((H87/$H$5*Assumptions!$E$22*Assumptions!$E$31),0) -> 22532 | K87: 27526 | N87: 27526 | O87: 0 | P87: 27526 | R87: 0 | S87: 27526 | U87: =IFERROR(VLOOKUP($A87,#REF!, 19,FALSE),0) -> 0 | W87: 27526 | X87: 0 | Y87: 164 | Z87: 0 | AB87: 5302910 | AC87: FINLEY
A88: =VLOOKUP(B88,CCDDD!$A$3:$B$319,2,FALSE) -> 27402 | B88: 5302940 | C88: FRANKLIN PIERCE | D88: 0 | E88: 0 | F88: =VLOOKUP(B88,'25-26 Adjusted Formula counts'!$A$3:$L$320,8,FALSE) -> 9340 | G88: =ROUND((F88/$F$5*Assumptions!$E$22*Assumptions!$E$30),0) -> 50704 | H88: =VLOOKUP(B88,'25-26 Adjusted Formula counts'!$A$3:$L$320,9,FALSE) -> 1348 | I88: =ROUND((H88/$H$5*Assumptions!$E$22*Assumptions!$E$31),0) -> 268789 | K88: 319493 | N88: 319493 | O88: 0 | P88: 319493 | R88: 0 | S88: 319493 | U88: =IFERROR(VLOOKUP($A88,#REF!, 19,FALSE),0) -> 0 | W88: 319493 | X88: 0 | Y88: 29 | Z88: 0 | AB88: 5302940 | AC88: FRANKLIN PIERCE
A89: =VLOOKUP(B89,CCDDD!$A$3:$B$319,2,FALSE) -> 32358 | B89: 5302970 | C89: FREEMAN | D89: 0 | E89: 0 | F89: =VLOOKUP(B89,'25-26 Adjusted Formula counts'!$A$3:$L$320,8,FALSE) -> 1001 | G89: =ROUND((F89/$F$5*Assumptions!$E$22*Assumptions!$E$30),0) -> 5434 | H89: =VLOOKUP(B89,'25-26 Adjusted Formula counts'!$A$3:$L$320,9,FALSE) -> 36 | I89: =ROUND((H89/$H$5*Assumptions!$E$22*Assumptions!$E$31),0) -> 7178 | K89: 12612 | N89: 12612 | O89: 0 | P89: 12612 | R89: 0 | S89: 12612 | U89: =IFERROR(VLOOKUP($A89,#REF!, 19,FALSE),0) -> 0 | W89: 12612 | X89: 0 | Y89: 215 | Z89: 0 | AB89: 5302970 | AC89: FREEMAN
A90: =VLOOKUP(B90,CCDDD!$A$3:$B$319,2,FALSE) -> 38302 | B90: 5303000 | C90: GARFIELD | D90: 0 | E90: 0 | F90: =VLOOKUP(B90,'25-26 Adjusted Formula counts'!$A$3:$L$320,8,FALSE) -> 132 | G90: =ROUND((F90/$F$5*Assumptions!$E$22*Assumptions!$E$30),0) -> 717 | H90: =VLOOKUP(B90,'25-26 Adjusted Formula counts'!$A$3:$L$320,9,FALSE) -> 33 | I90: =ROUND((H90/$H$5*Assumptions!$E$22*Assumptions!$E$31),0) -> 6580 | K90: 7297 | N90: 7297 | O90: 0 | P90: 7297 | R90: 0 | S90: 7297 | U90: =IFERROR(VLOOKUP($A90,#REF!, 19,FALSE),0) -> 0 | W90: 7297 | X90: 0 | Y90: 244 | Z90: 0 | AB90: 5303000 | AC90: GARFIELD
A91: =VLOOKUP(B91,CCDDD!$A$3:$B$319,2,FALSE) -> 20401 | B91: 5303030 | C91: GLENWOOD | D91: 0 | E91: 0 | F91: =VLOOKUP(B91,'25-26 Adjusted Formula counts'!$A$3:$L$320,8,FALSE) -> 62 | G91: =ROUND((F91/$F$5*Assumptions!$E$22*Assumptions!$E$30),0) -> 337 | H91: =VLOOKUP(B91,'25-26 Adjusted Formula counts'!$A$3:$L$320,9,FALSE) -> 9 | I91: =ROUND((H91/$H$5*Assumptions!$E$22*Assumptions!$E$31),0) -> 1795 | K91: 2132 | N91: 2132 | O91: 0 | P91: 2132 | R91: 0 | S91: 2132 | U91: =IFERROR(VLOOKUP($A91,#REF!, 19,FALSE),0) -> 0 | W91: 2132 | X91: 0 | Y91: 292 | Z91: 0 | AB91: 5303030 | AC91: GLENWOOD
A92: =VLOOKUP(B92,CCDDD!$A$3:$B$319,2,FALSE) -> 20404 | B92: 5303090 | C92: GOLDENDALE | D92: 0 | E92: 0 | F92: =VLOOKUP(B92,'25-26 Adjusted Formula counts'!$A$3:$L$320,8,FALSE) -> 1075 | G92: =ROUND((F92/$F$5*Assumptions!$E$22*Assumptions!$E$30),0) -> 5836 | H92: =VLOOKUP(B92,'25-26 Adjusted Formula counts'!$A$3:$L$320,9,FALSE) -> 161 | I92: =ROUND((H92/$H$5*Assumptions!$E$22*Assumptions!$E$31),0) -> 32103 | K92: 37939 | N92: 37939 | O92: 0 | P92: 37939 | R92: 0 | S92: 37939 | U92: =IFERROR(VLOOKUP($A92,#REF!, 19,FALSE),0) -> 0 | W92: 37939 | X92: 0 | Y92: 138 | Z92: 0 | AB92: 5303090 | AC92: GOLDENDALE
A93: =VLOOKUP(B93,CCDDD!$A$3:$B$319,2,FALSE) -> 13301 | B93: 5303130 | C93: GRAND COULEE | D93: 0 | E93: 0 | F93: =VLOOKUP(B93,'25-26 Adjusted Formula counts'!$A$3:$L$320,8,FALSE) -> 672 | G93: =ROUND((F93/$F$5*Assumptions!$E$22*Assumptions!$E$30),0) -> 3648 | H93: =VLOOKUP(B93,'25-26 Adjusted Formula counts'!$A$3:$L$320,9,FALSE) -> 111 | I93: =ROUND((H93/$H$5*Assumptions!$E$22*Assumptions!$E$31),0) -> 22133 | K93: 25781 | N93: 25781 | O93: 0 | P93: 25781 | R93: 0 | S93: 25781 | U93: =IFERROR(VLOOKUP($A93,#REF!, 19,FALSE),0) -> 0 | W93: 25781 | X93: 0 | Y93: 168 | Z93: 0 | AB93: 5303130 | AC93: GRAND COULEE
A94: =VLOOKUP(B94,CCDDD!$A$3:$B$319,2,FALSE) -> 39200 | B94: 5303150 | C94: GRANDVIEW | D94: 0 | E94: 0 | F94: =VLOOKUP(B94,'25-26 Adjusted Formula counts'!$A$3:$L$320,8,FALSE) -> 3734 | G94: =ROUND((F94/$F$5*Assumptions!$E$22*Assumptions!$E$30),0) -> 20271 | H94: =VLOOKUP(B94,'25-26 Adjusted Formula counts'!$A$3:$L$320,9,FALSE) -> 806 | I94: =ROUND((H94/$H$5*Assumptions!$E$22*Assumptions!$E$31),0) -> 160715 | K94: 180986 | N94: 180986 | O94: 0 | P94: 180986 | R94: 0 | S94: 180986 | U94: =IFERROR(VLOOKUP($A94,#REF!, 19,FALSE),0) -> 0 | W94: 180986 | X94: 0 | Y94: 48 | Z94: 0 | AB94: 5303150 | AC94: GRANDVIEW
A95: =VLOOKUP(B95,CCDDD!$A$3:$B$319,2,FALSE) -> 39204 | B95: 5303180 | C95: GRANGER | D95: 0 | E95: 0 | F95: =VLOOKUP(B95,'25-26 Adjusted Formula counts'!$A$3:$L$320,8,FALSE) -> 1587 | G95: =ROUND((F95/$F$5*Assumptions!$E$22*Assumptions!$E$30),0) -> 8615 | H95: =VLOOKUP(B95,'25-26 Adjusted Formula counts'!$A$3:$L$320,9,FALSE) -> 251 | I95: =ROUND((H95/$H$5*Assumptions!$E$22*Assumptions!$E$31),0) -> 50049 | K95: 58664 | N95: 58664 | O95: 0 | P95: 58664 | R95: 0 | S95: 58664 | U95: =IFERROR(VLOOKUP($A95,#REF!, 19,FALSE),0) -> 0 | W95: 58664 | X95: 0 | Y95: 107 | Z95: 0 | AB95: 5303180 | AC95: GRANGER
A96: =VLOOKUP(B96,CCDDD!$A$3:$B$319,2,FALSE) -> 31332 | B96: 5303210 | C96: GRANITE FALLS | D96: 0 | E96: 0 | F96: =VLOOKUP(B96,'25-26 Adjusted Formula counts'!$A$3:$L$320,8,FALSE) -> 2819 | G96: =ROUND((F96/$F$5*Assumptions!$E$22*Assumptions!$E$30),0) -> 15304 | H96: =VLOOKUP(B96,'25-26 Adjusted Formula counts'!$A$3:$L$320,9,FALSE) -> 180 | I96: =ROUND((H96/$H$5*Assumptions!$E$22*Assumptions!$E$31),0) -> 35892 | K96: 51196 | N96: 51196 | O96: 0 | P96: 51196 | R96: 0 | S96: 51196 | U96: =IFERROR(VLOOKUP($A96,#REF!, 19,FALSE),0) -> 0 | W96: 51196 | X96: 0 | Y96: 120 | Z96: 0 | AB96: 5303210 | AC96: GRANITE FALLS
A97: =VLOOKUP(B97,CCDDD!$A$3:$B$319,2,FALSE) -> 23054 | B97: 5303240 | C97: GRAPEVIEW | D97: 0 | E97: 0 | F97: =VLOOKUP(B97,'25-26 Adjusted Formula counts'!$A$3:$L$320,8,FALSE) -> 342 | G97: =ROUND((F97/$F$5*Assumptions!$E$22*Assumptions!$E$30),0) -> 1857 | H97: =VLOOKUP(B97,'25-26 Adjusted Formula counts'!$A$3:$L$320,9,FALSE) -> 35 | I97: =ROUND((H97/$H$5*Assumptions!$E$22*Assumptions!$E$31),0) -> 6979 | K97: 8836 | N97: 8836 | O97: 0 | P97: 8836 | R97: 0 | S97: 8836 | U97: =IFERROR(VLOOKUP($A97,#REF!, 19,FALSE),0) -> 0 | W97: 8836 | X97: 0 | Y97: 237 | Z97: 0 | AB97: 5303240 | AC97: GRAPEVIEW
A98: =VLOOKUP(B98,CCDDD!$A$3:$B$319,2,FALSE) -> 32312 | B98: 5303270 | C98: GREAT NORTHERN | D98: 0 | E98: 0 | F98: =VLOOKUP(B98,'25-26 Adjusted Formula counts'!$A$3:$L$320,8,FALSE) -> 188 | G98: =ROUND((F98/$F$5*Assumptions!$E$22*Assumptions!$E$30),0) -> 1021 | H98: =VLOOKUP(B98,'25-26 Adjusted Formula counts'!$A$3:$L$320,9,FALSE) -> 36 | I98: =ROUND((H98/$H$5*Assumptions!$E$22*Assumptions!$E$31),0) -> 7178 | K98: 8199 | N98: 8199 | O98: 0 | P98: 8199 | R98: 0 | S98: 8199 | U98: =IFERROR(VLOOKUP($A98,#REF!, 19,FALSE),0) -> 0 | W98: 8199 | X98: 0 | Y98: 242 | Z98: 0 | AB98: 5303270 | AC98: GREAT NORTHERN
A99: =VLOOKUP(B99,CCDDD!$A$3:$B$319,2,FALSE) -> 17910 | B99: 5303280 | C99: RAINIER VALLEY CHARTER | D99: 0 | E99: 0 | F99: =VLOOKUP(B99,'25-26 Adjusted Formula counts'!$A$3:$L$320,8,FALSE) -> 158.5380037 | G99: =ROUND((F99/$F$5*Assumptions!$E$22*Assumptions!$E$30),0) -> 861 | H99: =VLOOKUP(B99,'25-26 Adjusted Formula counts'!$A$3:$L$320,9,FALSE) -> 22.66692293 | I99: =ROUND((H99/$H$5*Assumptions!$E$22*Assumptions!$E$31),0) -> 4520 | K99: 5381 | N99: 5381 | O99: 0 | P99: 5381 | R99: 0 | S99: 5381 | U99: =IFERROR(VLOOKUP($A99,#REF!, 19,FALSE),0) -> 0 | W99: 5381 | X99: 0 | Y99: 262 | Z99: 0 | AB99: 5303280 | AC99: RAINIER VALLEY CHARTER
A100: =VLOOKUP(B100,CCDDD!$A$3:$B$319,2,FALSE) -> 06103 | B100: 5303300 | C100: GREEN MOUNTAIN | D100: 0 | E100: 0 | F100: =VLOOKUP(B100,'25-26 Adjusted Formula counts'!$A$3:$L$320,8,FALSE) -> 206 | G100: =ROUND((F100/$F$5*Assumptions!$E$22*Assumptions!$E$30),0) -> 1118 | H100: =VLOOKUP(B100,'25-26 Adjusted Formula counts'!$A$3:$L$320,9,FALSE) -> 12 | I100: =ROUND((H100/$H$5*Assumptions!$E$22*Assumptions!$E$31),0) -> 2393 | K100: 3511 | N100: 3511 | O100: 0 | P100: 3511 | R100: 0 | S100: 3511 | U100: =IFERROR(VLOOKUP($A100,#REF!, 19,FALSE),0) -> 0 | W100: 3511 | X100: 0 | Y100: 282 | Z100: 0 | AB100: 5303300 | AC100: GREEN MOUNTAIN
A101: =VLOOKUP(B101,CCDDD!$A$3:$B$319,2,FALSE) -> 34324 | B101: 5303330 | C101: GRIFFIN | D101: 0 | E101: 0 | F101: =VLOOKUP(B101,'25-26 Adjusted Formula counts'!$A$3:$L$320,8,FALSE) -> 898 | G101: =ROUND((F101/$F$5*Assumptions!$E$22*Assumptions!$E$30),0) -> 4875 | H101: =VLOOKUP(B101,'25-26 Adjusted Formula counts'!$A$3:$L$320,9,FALSE) -> 44 | I101: =ROUND((H101/$H$5*Assumptions!$E$22*Assumptions!$E$31),0) -> 8774 | K101: 13649 | N101: 13649 | O101: 0 | P101: 13649 | R101: 0 | S101: 13649 | U101: =IFERROR(VLOOKUP($A101,#REF!, 19,FALSE),0) -> 0 | W101: 13649 | X101: 0 | Y101: 210 | Z101: 0 | AB101: 5303330 | AC101: GRIFFIN
A102: =VLOOKUP(B102,CCDDD!$A$3:$B$319,2,FALSE) -> 22204 | B102: 5303360 | C102: HARRINGTON | D102: 0 | E102: 0 | F102: =VLOOKUP(B102,'25-26 Adjusted Formula counts'!$A$3:$L$320,8,FALSE) -> 145 | G102: =ROUND((F102/$F$5*Assumptions!$E$22*Assumptions!$E$30),0) -> 787 | H102: =VLOOKUP(B102,'25-26 Adjusted Formula counts'!$A$3:$L$320,9,FALSE) -> 24 | I102: =ROUND((H102/$H$5*Assumptions!$E$22*Assumptions!$E$31),0) -> 4786 | K102: 5573 | N102: 5573 | O102: 0 | P102: 5573 | R102: 0 | S102: 5573 | U102: =IFERROR(VLOOKUP($A102,#REF!, 19,FALSE),0) -> 0 | W102: 5573 | X102: 0 | Y102: 259 | Z102: 0 | AB102: 5303360 | AC102: HARRINGTON
A103: =VLOOKUP(B103,CCDDD!$A$3:$B$319,2,FALSE) -> 39203 | B103: 5303510 | C103: HIGHLAND | D103: 0 | E103: 0 | F103: =VLOOKUP(B103,'25-26 Adjusted Formula counts'!$A$3:$L$320,8,FALSE) -> 1272 | G103: =ROUND((F103/$F$5*Assumptions!$E$22*Assumptions!$E$30),0) -> 6905 | H103: =VLOOKUP(B103,'25-26 Adjusted Formula counts'!$A$3:$L$320,9,FALSE) -> 142 | I103: =ROUND((H103/$H$5*Assumptions!$E$22*Assumptions!$E$31),0) -> 28315 | K103: 35220 | N103: 35220 | O103: 0 | P103: 35220 | R103: 0 | S103: 35220 | U103: =IFERROR(VLOOKUP($A103,#REF!, 19,FALSE),0) -> 0 | W103: 35220 | X103: 0 | Y103: 145 | Z103: 0 | AB103: 5303510 | AC103: HIGHLAND
A104: =VLOOKUP(B104,CCDDD!$A$3:$B$319,2,FALSE) -> 17401 | B104: 5303540 | C104: HIGHLINE | D104: 0 | E104: 0 | F104: =VLOOKUP(B104,'25-26 Adjusted Formula counts'!$A$3:$L$320,8,FALSE) -> 19648.57576 | G104: =ROUND((F104/$F$5*Assumptions!$E$22*Assumptions!$E$30),0) -> 106666 | H104: =VLOOKUP(B104,'25-26 Adjusted Formula counts'!$A$3:$L$320,9,FALSE) -> 3277.206562 | I104: =ROUND((H104/$H$5*Assumptions!$E$22*Assumptions!$E$31),0) -> 653471 | K104: 760137 | N104: 760137 | O104: 0 | P104: 760137 | R104: 0 | S104: 760137 | U104: =IFERROR(VLOOKUP($A104,#REF!, 19,FALSE),0) -> 0 | W104: 760137 | X104: 0 | Y104: 7 | Z104: 0 | AB104: 5303540 | AC104: HIGHLINE
A105: =VLOOKUP(B105,CCDDD!$A$3:$B$319,2,FALSE) -> 06098 | B105: 5303570 | C105: HOCKINSON | D105: 0 | E105: 0 | F105: =VLOOKUP(B105,'25-26 Adjusted Formula counts'!$A$3:$L$320,8,FALSE) -> 2186 | G105: =ROUND((F105/$F$5*Assumptions!$E$22*Assumptions!$E$30),0) -> 11867 | H105: =VLOOKUP(B105,'25-26 Adjusted Formula counts'!$A$3:$L$320,9,FALSE) -> 105 | I105: =ROUND((H105/$H$5*Assumptions!$E$22*Assumptions!$E$31),0) -> 20937 | K105: 32804 | N105: 32804 | O105: 0 | P105: 32804 | R105: 0 | S105: 32804 | U105: =IFERROR(VLOOKUP($A105,#REF!, 19,FALSE),0) -> 0 | W105: 32804 | X105: 0 | Y105: 148 | Z105: 0 | AB105: 5303570 | AC105: HOCKINSON
A106: =VLOOKUP(B106,CCDDD!$A$3:$B$319,2,FALSE) -> 23404 | B106: 5303600 | C106: HOOD CANAL | D106: 0 | E106: 0 | F106: =VLOOKUP(B106,'25-26 Adjusted Formula counts'!$A$3:$L$320,8,FALSE) -> 704 | G106: =ROUND((F106/$F$5*Assumptions!$E$22*Assumptions!$E$30),0) -> 3822 | H106: =VLOOKUP(B106,'25-26 Adjusted Formula counts'!$A$3:$L$320,9,FALSE) -> 134 | I106: =ROUND((H106/$H$5*Assumptions!$E$22*Assumptions!$E$31),0) -> 26719 | K106: 30541 | N106: 30541 | O106: 0 | P106: 30541 | R106: 0 | S106: 30541 | U106: =IFERROR(VLOOKUP($A106,#REF!, 19,FALSE),0) -> 0 | W106: 30541 | X106: 0 | Y106: 156 | Z106: 0 | AB106: 5303600 | AC106: HOOD CANAL
A107: =VLOOKUP(B107,CCDDD!$A$3:$B$319,2,FALSE) -> 14028 | B107: 5303660 | C107: HOQUIAM | D107: 0 | E107: 0 | F107: =VLOOKUP(B107,'25-26 Adjusted Formula counts'!$A$3:$L$320,8,FALSE) -> 1821 | G107: =ROUND((F107/$F$5*Assumptions!$E$22*Assumptions!$E$30),0) -> 9886 | H107: =VLOOKUP(B107,'25-26 Adjusted Formula counts'!$A$3:$L$320,9,FALSE) -> 377 | I107: =ROUND((H107/$H$5*Assumptions!$E$22*Assumptions!$E$31),0) -> 75173 | K107: 85059 | N107: 85059 | O107: 0 | P107: 85059 | R107: 0 | S107: 85059 | U107: =IFERROR(VLOOKUP($A107,#REF!, 19,FALSE),0) -> 0 | W107: 85059 | X107: 0 | Y107: 89 | Z107: 0 | AB107: 5303660 | AC107: HOQUIAM
A108: =VLOOKUP(B108,CCDDD!$A$3:$B$319,2,FALSE) -> 27902 | B108: 5303705 | C108: IMPACT COMMENCEMENT BAY CHARTER | D108: 0 | E108: 0 | F108: =VLOOKUP(B108,'25-26 Adjusted Formula counts'!$A$3:$L$320,8,FALSE) -> 308.1892771 | G108: =ROUND((F108/$F$5*Assumptions!$E$22*Assumptions!$E$30),0) -> 1673 | H108: =VLOOKUP(B108,'25-26 Adjusted Formula counts'!$A$3:$L$320,9,FALSE) -> 49.72514361 | I108: =ROUND((H108/$H$5*Assumptions!$E$22*Assumptions!$E$31),0) -> 9915 | K108: 11588 | N108: 11588 | O108: 0 | P108: 11588 | R108: 0 | S108: 11588 | U108: =IFERROR(VLOOKUP($A108,#REF!, 19,FALSE),0) -> 0 | W108: 11588 | X108: 0 | Y108: 222 | Z108: 0 | AB108: 5303705 | AC108: IMPACT COMMENCEMENT BAY CHARTER
A109: =VLOOKUP(B109,CCDDD!$A$3:$B$319,2,FALSE) -> 17911 | B109: 5303700 | C109: IMPACT PUGET SOUND CHARTER | D109: 0 | E109: 0 | F109: =VLOOKUP(B109,'25-26 Adjusted Formula counts'!$A$3:$L$320,8,FALSE) -> 408.1165363 | G109: =ROUND((F109/$F$5*Assumptions!$E$22*Assumptions!$E$30),0) -> 2216 | H109: =VLOOKUP(B109,'25-26 Adjusted Formula counts'!$A$3:$L$320,9,FALSE) -> 81.86646548 | I109: =ROUND((H109/$H$5*Assumptions!$E$22*Assumptions!$E$31),0) -> 16324 | K109: 18540 | N109: 18540 | O109: 0 | P109: 18540 | R109: 0 | S109: 18540 | U109: =IFERROR(VLOOKUP($A109,#REF!, 19,FALSE),0) -> 0 | W109: 18540 | X109: 0 | Y109: 188 | Z109: 0 | AB109: 5303700 | AC109: IMPACT PUGET SOUND CHARTER
A110: =VLOOKUP(B110,CCDDD!$A$3:$B$319,2,FALSE) -> 17916 | B110: 5303710 | C110: IMPACT SALISH SEA CHARTER | D110: 0 | E110: 0 | F110: =VLOOKUP(B110,'25-26 Adjusted Formula counts'!$A$3:$L$320,8,FALSE) -> 318.7655786 | G110: =ROUND((F110/$F$5*Assumptions!$E$22*Assumptions!$E$30),0) -> 1730 | H110: =VLOOKUP(B110,'25-26 Adjusted Formula counts'!$A$3:$L$320,9,FALSE) -> 60.24594493 | I110: =ROUND((H110/$H$5*Assumptions!$E$22*Assumptions!$E$31),0) -> 12013 | K110: 13743 | N110: 13743 | O110: 0 | P110: 13743 | R110: 0 | S110: 13743 | U110: =IFERROR(VLOOKUP($A110,#REF!, 19,FALSE),0) -> 0 | W110: 13743 | X110: 0 | Y110: 208 | Z110: 0 | AB110: 5303710 | AC110: IMPACT SALISH SEA CHARTER
A111: =VLOOKUP(B111,CCDDD!$A$3:$B$319,2,FALSE) -> 10070 | B111: 5300002 | C111: INCHELIUM | D111: 0 | E111: 0 | F111: =VLOOKUP(B111,'25-26 Adjusted Formula counts'!$A$3:$L$320,8,FALSE) -> 198 | G111: =ROUND((F111/$F$5*Assumptions!$E$22*Assumptions!$E$30),0) -> 1075 | H111: =VLOOKUP(B111,'25-26 Adjusted Formula counts'!$A$3:$L$320,9,FALSE) -> 58 | I111: =ROUND((H111/$H$5*Assumptions!$E$22*Assumptions!$E$31),0) -> 11565 | K111: 12640 | N111: 12640 | O111: 0 | P111: 12640 | R111: 0 | S111: 12640 | U111: =IFERROR(VLOOKUP($A111,#REF!, 19,FALSE),0) -> 0 | W111: 12640 | X111: 0 | Y111: 214 | Z111: 0 | AB111: 5300002 | AC111: INCHELIUM
A112: =VLOOKUP(B112,CCDDD!$A$3:$B$319,2,FALSE) -> 31063 | B112: 5303720 | C112: INDEX | D112: 0 | E112: 0 | F112: =VLOOKUP(B112,'25-26 Adjusted Formula counts'!$A$3:$L$320,8,FALSE) -> 54 | G112: =ROUND((F112/$F$5*Assumptions!$E$22*Assumptions!$E$30),0) -> 293 | H112: =VLOOKUP(B112,'25-26 Adjusted Formula counts'!$A$3:$L$320,9,FALSE) -> 5 | I112: =ROUND((H112/$H$5*Assumptions!$E$22*Assumptions!$E$31),0) -> 997 | K112: 1290 | N112: 1290 | O112: 0 | P112: 1290 | R112: 0 | S112: 1290 | U112: =IFERROR(VLOOKUP($A112,#REF!, 19,FALSE),0) -> 0 | W112: 1290 | X112: 0 | Y112: 301 | Z112: 0 | AB112: 5303720 | AC112: INDEX
A113: =VLOOKUP(B113,CCDDD!$A$3:$B$319,2,FALSE) -> 17411 | B113: 5303750 | C113: ISSAQUAH | D113: 0 | E113: 0 | F113: =VLOOKUP(B113,'25-26 Adjusted Formula counts'!$A$3:$L$320,8,FALSE) -> 22819 | G113: =ROUND((F113/$F$5*Assumptions!$E$22*Assumptions!$E$30),0) -> 123878 | H113: =VLOOKUP(B113,'25-26 Adjusted Formula counts'!$A$3:$L$320,9,FALSE) -> 925 | I113: =ROUND((H113/$H$5*Assumptions!$E$22*Assumptions!$E$31),0) -> 184444 | K113: 308322 | N113: 308322 | O113: 0 | P113: 308322 | R113: 0 | S113: 308322 | U113: =IFERROR(VLOOKUP($A113,#REF!, 19,FALSE),0) -> 0 | W113: 308322 | X113: 0 | Y113: 30 | Z113: 0 | AB113: 5303750 | AC113: ISSAQUAH
A114: =VLOOKUP(B114,CCDDD!$A$3:$B$319,2,FALSE) -> 11056 | B114: 5303780 | C114: KAHLOTUS | D114: 0 | E114: 0 | F114: =VLOOKUP(B114,'25-26 Adjusted Formula counts'!$A$3:$L$320,8,FALSE) -> 60 | G114: =ROUND((F114/$F$5*Assumptions!$E$22*Assumptions!$E$30),0) -> 326 | H114: =VLOOKUP(B114,'25-26 Adjusted Formula counts'!$A$3:$L$320,9,FALSE) -> 5 | I114: =ROUND((H114/$H$5*Assumptions!$E$22*Assumptions!$E$31),0) -> 997 | K114: 1323 | N114: 1323 | O114: 0 | P114: 1323 | R114: 0 | S114: 1323 | U114: =IFERROR(VLOOKUP($A114,#REF!, 19,FALSE),0) -> 0 | W114: 1323 | X114: 0 | Y114: 300 | Z114: 0 | AB114: 5303780 | AC114: KAHLOTUS
A115: =VLOOKUP(B115,CCDDD!$A$3:$B$319,2,FALSE) -> 08402 | B115: 5303810 | C115: KALAMA | D115: 0 | E115: 0 | F115: =VLOOKUP(B115,'25-26 Adjusted Formula counts'!$A$3:$L$320,8,FALSE) -> 1374 | G115: =ROUND((F115/$F$5*Assumptions!$E$22*Assumptions!$E$30),0) -> 7459 | H115: =VLOOKUP(B115,'25-26 Adjusted Formula counts'!$A$3:$L$320,9,FALSE) -> 101 | I115: =ROUND((H115/$H$5*Assumptions!$E$22*Assumptions!$E$31),0) -> 20139 | K115: 27598 | N115: 27598 | O115: 0 | P115: 27598 | R115: 0 | S115: 27598 | U115: =IFERROR(VLOOKUP($A115,#REF!, 19,FALSE),0) -> 0 | W115: 27598 | X115: 0 | Y115: 163 | Z115: 0 | AB115: 5303810 | AC115: KALAMA
A116: =VLOOKUP(B116,CCDDD!$A$3:$B$319,2,FALSE) -> 10003 | B116: 5303870 | C116: KELLER | D116: 0 | E116: 0 | F116: =VLOOKUP(B116,'25-26 Adjusted Formula counts'!$A$3:$L$320,8,FALSE) -> 108 | G116: =ROUND((F116/$F$5*Assumptions!$E$22*Assumptions!$E$30),0) -> 586 | H116: =VLOOKUP(B116,'25-26 Adjusted Formula counts'!$A$3:$L$320,9,FALSE) -> 25 | I116: =ROUND((H116/$H$5*Assumptions!$E$22*Assumptions!$E$31),0) -> 4985 | K116: 5571 | N116: 5571 | O116: 0 | P116: 5571 | R116: 0 | S116: 5571 | U116: =IFERROR(VLOOKUP($A116,#REF!, 19,FALSE),0) -> 0 | W116: 5571 | X116: 0 | Y116: 260 | Z116: 0 | AB116: 5303870 | AC116: KELLER
A117: =VLOOKUP(B117,CCDDD!$A$3:$B$319,2,FALSE) -> 08458 | B117: 5300003 | C117: KELSO | D117: 0 | E117: 0 | F117: =VLOOKUP(B117,'25-26 Adjusted Formula counts'!$A$3:$L$320,8,FALSE) -> 5555 | G117: =ROUND((F117/$F$5*Assumptions!$E$22*Assumptions!$E$30),0) -> 30156 | H117: =VLOOKUP(B117,'25-26 Adjusted Formula counts'!$A$3:$L$320,9,FALSE) -> 883 | I117: =ROUND((H117/$H$5*Assumptions!$E$22*Assumptions!$E$31),0) -> 176069 | K117: 206225 | N117: 206225 | O117: 0 | P117: 206225 | R117: 0 | S117: 206225 | U117: =IFERROR(VLOOKUP($A117,#REF!, 19,FALSE),0) -> 0 | W117: 206225 | X117: 0 | Y117: 42 | Z117: 0 | AB117: 5300003 | AC117: KELSO
A118: =VLOOKUP(B118,CCDDD!$A$3:$B$319,2,FALSE) -> 03017 | B118: 5303930 | C118: KENNEWICK | D118: 0 | E118: 0 | F118: =VLOOKUP(B118,'25-26 Adjusted Formula counts'!$A$3:$L$320,8,FALSE) -> 20729 | G118: =ROUND((F118/$F$5*Assumptions!$E$22*Assumptions!$E$30),0) -> 112532 | H118: =VLOOKUP(B118,'25-26 Adjusted Formula counts'!$A$3:$L$320,9,FALSE) -> 2957 | I118: =ROUND((H118/$H$5*Assumptions!$E$22*Assumptions!$E$31),0) -> 589622 | K118: 702154 | N118: 702154 | O118: 0 | P118: 702154 | R118: 0 | S118: 702154 | U118: =IFERROR(VLOOKUP($A118,#REF!, 19,FALSE),0) -> 0 | W118: 702154 | X118: 0 | Y118: 9 | Z118: 0 | AB118: 5303930 | AC118: KENNEWICK
A119: =VLOOKUP(B119,CCDDD!$A$3:$B$319,2,FALSE) -> 17415 | B119: 5303960 | C119: KENT | D119: 0 | E119: 0 | F119: =VLOOKUP(B119,'25-26 Adjusted Formula counts'!$A$3:$L$320,8,FALSE) -> 30128 | G119: =ROUND((F119/$F$5*Assumptions!$E$22*Assumptions!$E$30),0) -> 163556 | H119: =VLOOKUP(B119,'25-26 Adjusted Formula counts'!$A$3:$L$320,9,FALSE) -> 4397 | I119: =ROUND((H119/$H$5*Assumptions!$E$22*Assumptions!$E$31),0) -> 876756 | K119: 1040312 | N119: 1040312 | O119: 0 | P119: 1040312 | R119: 0 | S119: 1040312 | U119: =IFERROR(VLOOKUP($A119,#REF!, 19,FALSE),0) -> 0 | W119: 1040312 | X119: 0 | Y119: 3 | Z119: 0 | AB119: 5303960 | AC119: KENT
A120: =VLOOKUP(B120,CCDDD!$A$3:$B$319,2,FALSE) -> 33212 | B120: 5303990 | C120: KETTLE FALLS | D120: 0 | E120: 0 | F120: =VLOOKUP(B120,'25-26 Adjusted Formula counts'!$A$3:$L$320,8,FALSE) -> 947 | G120: =ROUND((F120/$F$5*Assumptions!$E$22*Assumptions!$E$30),0) -> 5141 | H120: =VLOOKUP(B120,'25-26 Adjusted Formula counts'!$A$3:$L$320,9,FALSE) -> 144 | I120: =ROUND((H120/$H$5*Assumptions!$E$22*Assumptions!$E$31),0) -> 28713 | K120: 33854 | N120: 33854 | O120: 0 | P120: 33854 | R120: 0 | S120: 33854 | U120: =IFERROR(VLOOKUP($A120,#REF!, 19,FALSE),0) -> 0 | W120: 33854 | X120: 0 | Y120: 147 | Z120: 0 | AB120: 5303990 | AC120: KETTLE FALLS
A121: =VLOOKUP(B121,CCDDD!$A$3:$B$319,2,FALSE) -> 03052 | B121: 5304020 | C121: KIONA-BENTON | D121: 0 | E121: 0 | F121: =VLOOKUP(B121,'25-26 Adjusted Formula counts'!$A$3:$L$320,8,FALSE) -> 1759 | G121: =ROUND((F121/$F$5*Assumptions!$E$22*Assumptions!$E$30),0) -> 9549 | H121: =VLOOKUP(B121,'25-26 Adjusted Formula counts'!$A$3:$L$320,9,FALSE) -> 186 | I121: =ROUND((H121/$H$5*Assumptions!$E$22*Assumptions!$E$31),0) -> 37088 | K121: 46637 | N121: 46637 | O121: 0 | P121: 46637 | R121: 0 | S121: 46637 | U121: =IFERROR(VLOOKUP($A121,#REF!, 19,FALSE),0) -> 0 | W121: 46637 | X121: 0 | Y121: 124 | Z121: 0 | AB121: 5304020 | AC121: KIONA-BENTON
A122: =VLOOKUP(B122,CCDDD!$A$3:$B$319,2,FALSE) -> 19403 | B122: 5304050 | C122: KITTITAS | D122: 0 | E122: 0 | F122: =VLOOKUP(B122,'25-26 Adjusted Formula counts'!$A$3:$L$320,8,FALSE) -> 747 | G122: =ROUND((F122/$F$5*Assumptions!$E$22*Assumptions!$E$30),0) -> 4055 | H122: =VLOOKUP(B122,'25-26 Adjusted Formula counts'!$A$3:$L$320,9,FALSE) -> 69 | I122: =ROUND((H122/$H$5*Assumptions!$E$22*Assumptions!$E$31),0) -> 13759 | K122: 17814 | N122: 17814 | O122: 0 | P122: 17814 | R122: 0 | S122: 17814 | U122: =IFERROR(VLOOKUP($A122,#REF!, 19,FALSE),0) -> 0 | W122: 17814 | X122: 0 | Y122: 192 | Z122: 0 | AB122: 5304050 | AC122: KITTITAS
A123: =VLOOKUP(B123,CCDDD!$A$3:$B$319,2,FALSE) -> 20402 | B123: 5304080 | C123: KLICKITAT | D123: 0 | E123: 0 | F123: =VLOOKUP(B123,'25-26 Adjusted Formula counts'!$A$3:$L$320,8,FALSE) -> 82 | G123: =ROUND((F123/$F$5*Assumptions!$E$22*Assumptions!$E$30),0) -> 445 | H123: =VLOOKUP(B123,'25-26 Adjusted Formula counts'!$A$3:$L$320,9,FALSE) -> 4 | I123: =ROUND((H123/$H$5*Assumptions!$E$22*Assumptions!$E$31),0) -> 798 | K123: 1243 | N123: 1243 | O123: 0 | P123: 1243 | R123: 0 | S123: 1243 | U123: =IFERROR(VLOOKUP($A123,#REF!, 19,FALSE),0) -> 0 | W123: 1243 | X123: 0 | Y123: 304 | Z123: 0 | AB123: 5304080 | AC123: KLICKITAT
A124: =VLOOKUP(B124,CCDDD!$A$3:$B$319,2,FALSE) -> 06101 | B124: 5304170 | C124: LA CENTER | D124: 0 | E124: 0 | F124: =VLOOKUP(B124,'25-26 Adjusted Formula counts'!$A$3:$L$320,8,FALSE) -> 1941 | G124: =ROUND((F124/$F$5*Assumptions!$E$22*Assumptions!$E$30),0) -> 10537 | H124: =VLOOKUP(B124,'25-26 Adjusted Formula counts'!$A$3:$L$320,9,FALSE) -> 80 | I124: =ROUND((H124/$H$5*Assumptions!$E$22*Assumptions!$E$31),0) -> 15952 | K124: 26489 | N124: 26489 | O124: 0 | P124: 26489 | R124: 0 | S124: 26489 | U124: =IFERROR(VLOOKUP($A124,#REF!, 19,FALSE),0) -> 0 | W124: 26489 | X124: 0 | Y124: 166 | Z124: 0 | AB124: 5304170 | AC124: LA CENTER
A125: =VLOOKUP(B125,CCDDD!$A$3:$B$319,2,FALSE) -> 29311 | B125: 5304110 | C125: LA CONNER | D125: 0 | E125: 0 | F125: =VLOOKUP(B125,'25-26 Adjusted Formula counts'!$A$3:$L$320,8,FALSE) -> 586 | G125: =ROUND((F125/$F$5*Assumptions!$E$22*Assumptions!$E$30),0) -> 3181 | H125: =VLOOKUP(B125,'25-26 Adjusted Formula counts'!$A$3:$L$320,9,FALSE) -> 57 | I125: =ROUND((H125/$H$5*Assumptions!$E$22*Assumptions!$E$31),0) -> 11366 | K125: 14547 | N125: 14547 | O125: 0 | P125: 14547 | R125: 0 | S125: 14547 | U125: =IFERROR(VLOOKUP($A125,#REF!, 19,FALSE),0) -> 0 | W125: 14547 | X125: 0 | Y125: 207 | Z125: 0 | AB125: 5304110 | AC125: LA CONNER
A126: =VLOOKUP(B126,CCDDD!$A$3:$B$319,2,FALSE) -> 38126 | B126: 5304150 | C126: LACROSSE | D126: 0 | E126: 0 | F126: =VLOOKUP(B126,'25-26 Adjusted Formula counts'!$A$3:$L$320,8,FALSE) -> 90 | G126: =ROUND((F126/$F$5*Assumptions!$E$22*Assumptions!$E$30),0) -> 489 | H126: =VLOOKUP(B126,'25-26 Adjusted Formula counts'!$A$3:$L$320,9,FALSE) -> 17 | I126: =ROUND((H126/$H$5*Assumptions!$E$22*Assumptions!$E$31),0) -> 3390 | K126: 3879 | N126: 3879 | O126: 0 | P126: 3879 | R126: 0 | S126: 3879 | U126: =IFERROR(VLOOKUP($A126,#REF!, 19,FALSE),0) -> 0 | W126: 3879 | X126: 0 | Y126: 275 | Z126: 0 | AB126: 5304150 | AC126: LACROSSE
A127: =VLOOKUP(B127,CCDDD!$A$3:$B$319,2,FALSE) -> 04129 | B127: 5301200 | C127: LAKE CHELAN | D127: 0 | E127: 0 | F127: =VLOOKUP(B127,'25-26 Adjusted Formula counts'!$A$3:$L$320,8,FALSE) -> 1245 | G127: =ROUND((F127/$F$5*Assumptions!$E$22*Assumptions!$E$30),0) -> 6759 | H127: =VLOOKUP(B127,'25-26 Adjusted Formula counts'!$A$3:$L$320,9,FALSE) -> 167 | I127: =ROUND((H127/$H$5*Assumptions!$E$22*Assumptions!$E$31),0) -> 33300 | K127: 40059 | N127: 40059 | O127: 0 | P127: 40059 | R127: 0 | S127: 40059 | U127: =IFERROR(VLOOKUP($A127,#REF!, 19,FALSE),0) -> 0 | W127: 40059 | X127: 0 | Y127: 133 | Z127: 0 | AB127: 5301200 | AC127: LAKE CHELAN
A128: =VLOOKUP(B128,CCDDD!$A$3:$B$319,2,FALSE) -> 14097 | B128: 5307050 | C128: QUINAULT | D128: 0 | E128: 0 | F128: =VLOOKUP(B128,'25-26 Adjusted Formula counts'!$A$3:$L$320,8,FALSE) -> 175 | G128: =ROUND((F128/$F$5*Assumptions!$E$22*Assumptions!$E$30),0) -> 950 | H128: =VLOOKUP(B128,'25-26 Adjusted Formula counts'!$A$3:$L$320,9,FALSE) -> 29 | I128: =ROUND((H128/$H$5*Assumptions!$E$22*Assumptions!$E$31),0) -> 5783 | K128: 6733 | N128: 6733 | O128: 0 | P128: 6733 | R128: 0 | S128: 6733 | U128: =IFERROR(VLOOKUP($A128,#REF!, 19,FALSE),0) -> 0 | W128: 6733 | X128: 0 | Y128: 248 | Z128: 0 | AB128: 5307050 | AC128: QUINAULT
A129: =VLOOKUP(B129,CCDDD!$A$3:$B$319,2,FALSE) -> 31004 | B129: 5304200 | C129: LAKE STEVENS | D129: 0 | E129: 0 | F129: =VLOOKUP(B129,'25-26 Adjusted Formula counts'!$A$3:$L$320,8,FALSE) -> 10332 | G129: =ROUND((F129/$F$5*Assumptions!$E$22*Assumptions!$E$30),0) -> 56089 | H129: =VLOOKUP(B129,'25-26 Adjusted Formula counts'!$A$3:$L$320,9,FALSE) -> 667 | I129: =ROUND((H129/$H$5*Assumptions!$E$22*Assumptions!$E$31),0) -> 132999 | K129: 189088 | N129: 189088 | O129: 0 | P129: 189088 | R129: 0 | S129: 189088 | U129: =IFERROR(VLOOKUP($A129,#REF!, 19,FALSE),0) -> 0 | W129: 189088 | X129: 0 | Y129: 46 | Z129: 0 | AB129: 5304200 | AC129: LAKE STEVENS
A130: =VLOOKUP(B130,CCDDD!$A$3:$B$319,2,FALSE) -> 17414 | B130: 5304230 | C130: LAKE WASHINGTON | D130: 0 | E130: 0 | F130: =VLOOKUP(B130,'25-26 Adjusted Formula counts'!$A$3:$L$320,8,FALSE) -> 35771 | G130: =ROUND((F130/$F$5*Assumptions!$E$22*Assumptions!$E$30),0) -> 194190 | H130: =VLOOKUP(B130,'25-26 Adjusted Formula counts'!$A$3:$L$320,9,FALSE) -> 1440 | I130: =ROUND((H130/$H$5*Assumptions!$E$22*Assumptions!$E$31),0) -> 287134 | K130: 481324 | N130: 481324 | O130: 0 | P130: 481324 | R130: 0 | S130: 481324 | U130: =IFERROR(VLOOKUP($A130,#REF!, 19,FALSE),0) -> 0 | W130: 481324 | X130: 0 | Y130: 20 | Z130: 0 | AB130: 5304230 | AC130: LAKE WASHINGTON
A131: =VLOOKUP(B131,CCDDD!$A$3:$B$319,2,FALSE) -> 31306 | B131: 5304260 | C131: LAKEWOOD | D131: 0 | E131: 0 | F131: =VLOOKUP(B131,'25-26 Adjusted Formula counts'!$A$3:$L$320,8,FALSE) -> 2662 | G131: =ROUND((F131/$F$5*Assumptions!$E$22*Assumptions!$E$30),0) -> 14451 | H131: =VLOOKUP(B131,'25-26 Adjusted Formula counts'!$A$3:$L$320,9,FALSE) -> 333 | I131: =ROUND((H131/$H$5*Assumptions!$E$22*Assumptions!$E$31),0) -> 66400 | K131: 80851 | N131: 80851 | O131: 0 | P131: 80851 | R131: 0 | S131: 80851 | U131: =IFERROR(VLOOKUP($A131,#REF!, 19,FALSE),0) -> 0 | W131: 80851 | X131: 0 | Y131: 90 | Z131: 0 | AB131: 5304260 | AC131: LAKEWOOD
A132: =VLOOKUP(B132,CCDDD!$A$3:$B$319,2,FALSE) -> 38264 | B132: 5304290 | C132: LAMONT | D132: 0 | E132: 0 | F132: =VLOOKUP(B132,'25-26 Adjusted Formula counts'!$A$3:$L$320,8,FALSE) -> 28 | G132: =ROUND((F132/$F$5*Assumptions!$E$22*Assumptions!$E$30),0) -> 152 | H132: =VLOOKUP(B132,'25-26 Adjusted Formula counts'!$A$3:$L$320,9,FALSE) -> 10 | I132: =ROUND((H132/$H$5*Assumptions!$E$22*Assumptions!$E$31),0) -> 1994 | K132: 2146 | N132: 2146 | O132: 0 | P132: 2146 | R132: 0 | S132: 2146 | U132: =IFERROR(VLOOKUP($A132,#REF!, 19,FALSE),0) -> 0 | W132: 2146 | X132: 0 | Y132: 291 | Z132: 0 | AB132: 5304290 | AC132: LAMONT
A133: =VLOOKUP(B133,CCDDD!$A$3:$B$319,2,FALSE) -> 32362 | B133: 5304380 | C133: LIBERTY | D133: 0 | E133: 0 | F133: =VLOOKUP(B133,'25-26 Adjusted Formula counts'!$A$3:$L$320,8,FALSE) -> 833 | G133: =ROUND((F133/$F$5*Assumptions!$E$22*Assumptions!$E$30),0) -> 4522 | H133: =VLOOKUP(B133,'25-26 Adjusted Formula counts'!$A$3:$L$320,9,FALSE) -> 35 | I133: =ROUND((H133/$H$5*Assumptions!$E$22*Assumptions!$E$31),0) -> 6979 | K133: 11501 | N133: 11501 | O133: 0 | P133: 11501 | R133: 0 | S133: 11501 | U133: =IFERROR(VLOOKUP($A133,#REF!, 19,FALSE),0) -> 0 | W133: 11501 | X133: 0 | Y133: 224 | Z133: 0 | AB133: 5304380 | AC133: LIBERTY
A134: =VLOOKUP(B134,CCDDD!$A$3:$B$319,2,FALSE) -> 01158 | B134: 5304410 | C134: LIND | D134: 0 | E134: 0 | F134: =VLOOKUP(B134,'25-26 Adjusted Formula counts'!$A$3:$L$320,8,FALSE) -> 301 | G134: =ROUND((F134/$F$5*Assumptions!$E$22*Assumptions!$E$30),0) -> 1634 | H134: =VLOOKUP(B134,'25-26 Adjusted Formula counts'!$A$3:$L$320,9,FALSE) -> 50 | I134: =ROUND((H134/$H$5*Assumptions!$E$22*Assumptions!$E$31),0) -> 9970 | K134: 11604 | N134: 11604 | O134: 0 | P134: 11604 | R134: 0 | S134: 11604 | U134: =IFERROR(VLOOKUP($A134,#REF!, 19,FALSE),0) -> 0 | W134: 11604 | X134: 0 | Y134: 221 | Z134: 0 | AB134: 5304410 | AC134: LIND
A135: =VLOOKUP(B135,CCDDD!$A$3:$B$319,2,FALSE) -> 08122 | B135: 5304470 | C135: LONGVIEW | D135: 0 | E135: 0 | F135: =VLOOKUP(B135,'25-26 Adjusted Formula counts'!$A$3:$L$320,8,FALSE) -> 7321 | G135: =ROUND((F135/$F$5*Assumptions!$E$22*Assumptions!$E$30),0) -> 39744 | H135: =VLOOKUP(B135,'25-26 Adjusted Formula counts'!$A$3:$L$320,9,FALSE) -> 1332 | I135: =ROUND((H135/$H$5*Assumptions!$E$22*Assumptions!$E$31),0) -> 265599 | K135: =ROUNDDOWN(+I135+G135+E135+D135+J135,0) -> 305343 | N135: =K135 -> 305343 | O135: =-ROUND(N135/$N$5*$M$5,0) -> 0 | P135: =+K135+O135+M135 -> 305343 | R135: =-1*(P135*Q135) -> 0 | S135: =+P135+R135 -> 305343 | U135: =IFERROR(VLOOKUP($A135,#REF!, 19,FALSE),0) -> 0 | W135: =+S135-U135 -> 305343 | X135: =IF(U135>0,W135/U135,0) -> 0 | Y135: =RANK(W135,$W$7:$W$320,0) -> 31 | Z135: =(SUM(D135:E135)/S135) -> 0 | AB135: =+B135 -> 5304470 | AC135: LONGVIEW
A136: =VLOOKUP(B136,CCDDD!$A$3:$B$319,2,FALSE) -> 33183 | B136: 5304500 | C136: LOON LAKE | D136: 0 | E136: 0 | F136: =VLOOKUP(B136,'25-26 Adjusted Formula counts'!$A$3:$L$320,8,FALSE) -> 257 | G136: =ROUND((F136/$F$5*Assumptions!$E$22*Assumptions!$E$30),0) -> 1395 | H136: =VLOOKUP(B136,'25-26 Adjusted Formula counts'!$A$3:$L$320,9,FALSE) -> 52 | I136: =ROUND((H136/$H$5*Assumptions!$E$22*Assumptions!$E$31),0) -> 10369 | K136: 11764 | N136: 11764 | O136: 0 | P136: 11764 | R136: 0 | S136: 11764 | U136: =IFERROR(VLOOKUP($A136,#REF!, 19,FALSE),0) -> 0 | W136: 11764 | X136: 0 | Y136: 219 | Z136: 0 | AB136: 5304500 | AC136: LOON LAKE
A137: =VLOOKUP(B137,CCDDD!$A$3:$B$319,2,FALSE) -> 28144 | B137: 5304530 | C137: LOPEZ | D137: 0 | E137: 0 | F137: =VLOOKUP(B137,'25-26 Adjusted Formula counts'!$A$3:$L$320,8,FALSE) -> 280 | G137: =ROUND((F137/$F$5*Assumptions!$E$22*Assumptions!$E$30),0) -> 1520 | H137: =VLOOKUP(B137,'25-26 Adjusted Formula counts'!$A$3:$L$320,9,FALSE) -> 48 | I137: =ROUND((H137/$H$5*Assumptions!$E$22*Assumptions!$E$31),0) -> 9571 | K137: 11091 | N137: 11091 | O137: 0 | P137: 11091 | R137: 0 | S137: 11091 | U137: =IFERROR(VLOOKUP($A137,#REF!, 19,FALSE),0) -> 0 | W137: 11091 | X137: 0 | Y137: 226 | Z137: 0 | AB137: 5304530 | AC137: LOPEZ
A138: =VLOOKUP(B138,CCDDD!$A$3:$B$319,2,FALSE) -> 32903 | B138: 5304550 | C138: LUMEN CHARTER | D138: 0 | E138: 0 | F138: =VLOOKUP(B138,'25-26 Adjusted Formula counts'!$A$3:$L$320,8,FALSE) -> 38.42805968 | G138: =ROUND((F138/$F$5*Assumptions!$E$22*Assumptions!$E$30),0) -> 209 | H138: =VLOOKUP(B138,'25-26 Adjusted Formula counts'!$A$3:$L$320,9,FALSE) -> 7.805639011 | I138: =ROUND((H138/$H$5*Assumptions!$E$22*Assumptions!$E$31),0) -> 1556 | K138: 1765 | N138: 1765 | O138: 0 | P138: 1765 | R138: 0 | S138: 1765 | U138: =IFERROR(VLOOKUP($A138,#REF!, 19,FALSE),0) -> 0 | W138: 1765 | X138: 0 | Y138: 297 | Z138: 0 | AB138: 5304550 | AC138: LUMEN CHARTER
A139: =VLOOKUP(B139,CCDDD!$A$3:$B$319,2,FALSE) -> 20406 | B139: 5304590 | C139: LYLE | D139: 0 | E139: 0 | F139: =VLOOKUP(B139,'25-26 Adjusted Formula counts'!$A$3:$L$320,8,FALSE) -> 418 | G139: =ROUND((F139/$F$5*Assumptions!$E$22*Assumptions!$E$30),0) -> 2269 | H139: =VLOOKUP(B139,'25-26 Adjusted Formula counts'!$A$3:$L$320,9,FALSE) -> 90 | I139: =ROUND((H139/$H$5*Assumptions!$E$22*Assumptions!$E$31),0) -> 17946 | K139: 20215 | N139: 20215 | O139: 0 | P139: 20215 | R139: 0 | S139: 20215 | U139: =IFERROR(VLOOKUP($A139,#REF!, 19,FALSE),0) -> 0 | W139: 20215 | X139: 0 | Y139: 183 | Z139: 0 | AB139: 5304590 | AC139: LYLE
A140: =VLOOKUP(B140,CCDDD!$A$3:$B$319,2,FALSE) -> 37504 | B140: 5304620 | C140: LYNDEN | D140: 0 | E140: 0 | F140: =VLOOKUP(B140,'25-26 Adjusted Formula counts'!$A$3:$L$320,8,FALSE) -> 4363 | G140: =ROUND((F140/$F$5*Assumptions!$E$22*Assumptions!$E$30),0) -> 23685 | H140: =VLOOKUP(B140,'25-26 Adjusted Formula counts'!$A$3:$L$320,9,FALSE) -> 346 | I140: =ROUND((H140/$H$5*Assumptions!$E$22*Assumptions!$E$31),0) -> 68992 | K140: 92677 | N140: 92677 | O140: 0 | P140: 92677 | R140: 0 | S140: 92677 | U140: =IFERROR(VLOOKUP($A140,#REF!, 19,FALSE),0) -> 0 | W140: 92677 | X140: 0 | Y140: 84 | Z140: 0 | AB140: 5304620 | AC140: LYNDEN
A141: =VLOOKUP(B141,CCDDD!$A$3:$B$319,2,FALSE) -> 39120 | B141: 5304650 | C141: MABTON | D141: 0 | E141: 0 | F141: =VLOOKUP(B141,'25-26 Adjusted Formula counts'!$A$3:$L$320,8,FALSE) -> 770 | G141: =ROUND((F141/$F$5*Assumptions!$E$22*Assumptions!$E$30),0) -> 4180 | H141: =VLOOKUP(B141,'25-26 Adjusted Formula counts'!$A$3:$L$320,9,FALSE) -> 120 | I141: =ROUND((H141/$H$5*Assumptions!$E$22*Assumptions!$E$31),0) -> 23928 | K141: 28108 | N141: 28108 | O141: 0 | P141: 28108 | R141: 0 | S141: 28108 | U141: =IFERROR(VLOOKUP($A141,#REF!, 19,FALSE),0) -> 0 | W141: 28108 | X141: 0 | Y141: 161 | Z141: 0 | AB141: 5304650 | AC141: MABTON
A142: =VLOOKUP(B142,CCDDD!$A$3:$B$319,2,FALSE) -> 09207 | B142: 5304710 | C142: MANSFIELD | D142: 0 | E142: 0 | F142: =VLOOKUP(B142,'25-26 Adjusted Formula counts'!$A$3:$L$320,8,FALSE) -> 86 | G142: =ROUND((F142/$F$5*Assumptions!$E$22*Assumptions!$E$30),0) -> 467 | H142: =VLOOKUP(B142,'25-26 Adjusted Formula counts'!$A$3:$L$320,9,FALSE) -> 11 | I142: =ROUND((H142/$H$5*Assumptions!$E$22*Assumptions!$E$31),0) -> 2193 | K142: 2660 | N142: 2660 | O142: 0 | P142: 2660 | R142: 0 | S142: 2660 | U142: =IFERROR(VLOOKUP($A142,#REF!, 19,FALSE),0) -> 0 | W142: 2660 | X142: 0 | Y142: 286 | Z142: 0 | AB142: 5304710 | AC142: MANSFIELD
A143: =VLOOKUP(B143,CCDDD!$A$3:$B$319,2,FALSE) -> 04019 | B143: 5304740 | C143: MANSON | D143: 0 | E143: 0 | F143: =VLOOKUP(B143,'25-26 Adjusted Formula counts'!$A$3:$L$320,8,FALSE) -> 614 | G143: =ROUND((F143/$F$5*Assumptions!$E$22*Assumptions!$E$30),0) -> 3333 | H143: =VLOOKUP(B143,'25-26 Adjusted Formula counts'!$A$3:$L$320,9,FALSE) -> 103 | I143: =ROUND((H143/$H$5*Assumptions!$E$22*Assumptions!$E$31),0) -> 20538 | K143: 23871 | N143: 23871 | O143: 0 | P143: 23871 | R143: 0 | S143: 23871 | U143: =IFERROR(VLOOKUP($A143,#REF!, 19,FALSE),0) -> 0 | W143: 23871 | X143: 0 | Y143: 173 | Z143: 0 | AB143: 5304740 | AC143: MANSON
A144: =VLOOKUP(B144,CCDDD!$A$3:$B$319,2,FALSE) -> 23311 | B144: 5304800 | C144: MARY M KNIGHT | D144: 0 | E144: 0 | F144: =VLOOKUP(B144,'25-26 Adjusted Formula counts'!$A$3:$L$320,8,FALSE) -> 208 | G144: =ROUND((F144/$F$5*Assumptions!$E$22*Assumptions!$E$30),0) -> 1129 | H144: =VLOOKUP(B144,'25-26 Adjusted Formula counts'!$A$3:$L$320,9,FALSE) -> 25 | I144: =ROUND((H144/$H$5*Assumptions!$E$22*Assumptions!$E$31),0) -> 4985 | K144: 6114 | N144: 6114 | O144: 0 | P144: 6114 | R144: 0 | S144: 6114 | U144: =IFERROR(VLOOKUP($A144,#REF!, 19,FALSE),0) -> 0 | W144: 6114 | X144: 0 | Y144: 254 | Z144: 0 | AB144: 5304800 | AC144: MARY M KNIGHT
A145: =VLOOKUP(B145,CCDDD!$A$3:$B$319,2,FALSE) -> 33207 | B145: 5304830 | C145: MARY WALKER | D145: 0 | E145: 0 | F145: =VLOOKUP(B145,'25-26 Adjusted Formula counts'!$A$3:$L$320,8,FALSE) -> 644 | G145: =ROUND((F145/$F$5*Assumptions!$E$22*Assumptions!$E$30),0) -> 3496 | H145: =VLOOKUP(B145,'25-26 Adjusted Formula counts'!$A$3:$L$320,9,FALSE) -> 116 | I145: =ROUND((H145/$H$5*Assumptions!$E$22*Assumptions!$E$31),0) -> 23130 | K145: 26626 | N145: 26626 | O145: 0 | P145: 26626 | R145: 0 | S145: 26626 | U145: =IFERROR(VLOOKUP($A145,#REF!, 19,FALSE),0) -> 0 | W145: 26626 | X145: 0 | Y145: 165 | Z145: 0 | AB145: 5304830 | AC145: MARY WALKER
A146: =VLOOKUP(B146,CCDDD!$A$3:$B$319,2,FALSE) -> 31025 | B146: 5304860 | C146: MARYSVILLE | D146: 0 | E146: 0 | F146: =VLOOKUP(B146,'25-26 Adjusted Formula counts'!$A$3:$L$320,8,FALSE) -> 12636 | G146: =ROUND((F146/$F$5*Assumptions!$E$22*Assumptions!$E$30),0) -> 68597 | H146: =VLOOKUP(B146,'25-26 Adjusted Formula counts'!$A$3:$L$320,9,FALSE) -> 1407 | I146: =ROUND((H146/$H$5*Assumptions!$E$22*Assumptions!$E$31),0) -> 280554 | K146: 349151 | N146: 349151 | O146: 0 | P146: 349151 | R146: 0 | S146: 349151 | U146: =IFERROR(VLOOKUP($A146,#REF!, 19,FALSE),0) -> 0 | W146: 349151 | X146: 0 | Y146: 27 | Z146: 0 | AB146: 5304860 | AC146: MARYSVILLE
A147: =VLOOKUP(B147,CCDDD!$A$3:$B$319,2,FALSE) -> 14065 | B147: 5304890 | C147: MCCLEARY | D147: 0 | E147: 0 | F147: =VLOOKUP(B147,'25-26 Adjusted Formula counts'!$A$3:$L$320,8,FALSE) -> 573 | G147: =ROUND((F147/$F$5*Assumptions!$E$22*Assumptions!$E$30),0) -> 3111 | H147: =VLOOKUP(B147,'25-26 Adjusted Formula counts'!$A$3:$L$320,9,FALSE) -> 44 | I147: =ROUND((H147/$H$5*Assumptions!$E$22*Assumptions!$E$31),0) -> 8774 | K147: 11885 | N147: 11885 | O147: 0 | P147: 11885 | R147: 0 | S147: 11885 | U147: =IFERROR(VLOOKUP($A147,#REF!, 19,FALSE),0) -> 0 | W147: 11885 | X147: 0 | Y147: 216 | Z147: 0 | AB147: 5304890 | AC147: MCCLEARY
A148: =VLOOKUP(B148,CCDDD!$A$3:$B$319,2,FALSE) -> 32354 | B148: 5304920 | C148: MEAD | D148: 0 | E148: 0 | F148: =VLOOKUP(B148,'25-26 Adjusted Formula counts'!$A$3:$L$320,8,FALSE) -> 12104 | G148: =ROUND((F148/$F$5*Assumptions!$E$22*Assumptions!$E$30),0) -> 65709 | H148: =VLOOKUP(B148,'25-26 Adjusted Formula counts'!$A$3:$L$320,9,FALSE) -> 868 | I148: =ROUND((H148/$H$5*Assumptions!$E$22*Assumptions!$E$31),0) -> 173078 | K148: 238787 | N148: 238787 | O148: 0 | P148: 238787 | R148: 0 | S148: 238787 | U148: =IFERROR(VLOOKUP($A148,#REF!, 19,FALSE),0) -> 0 | W148: 238787 | X148: 0 | Y148: 37 | Z148: 0 | AB148: 5304920 | AC148: MEAD
A149: =VLOOKUP(B149,CCDDD!$A$3:$B$319,2,FALSE) -> 32326 | B149: 5304950 | C149: MEDICAL LAKE | D149: 0 | E149: 0 | F149: =VLOOKUP(B149,'25-26 Adjusted Formula counts'!$A$3:$L$320,8,FALSE) -> 1814 | G149: =ROUND((F149/$F$5*Assumptions!$E$22*Assumptions!$E$30),0) -> 9848 | H149: =VLOOKUP(B149,'25-26 Adjusted Formula counts'!$A$3:$L$320,9,FALSE) -> 168 | I149: =ROUND((H149/$H$5*Assumptions!$E$22*Assumptions!$E$31),0) -> 33499 | K149: 43347 | N149: 43347 | O149: 0 | P149: 43347 | R149: 0 | S149: 43347 | U149: =IFERROR(VLOOKUP($A149,#REF!, 19,FALSE),0) -> 0 | W149: 43347 | X149: 0 | Y149: 129 | Z149: 0 | AB149: 5304950 | AC149: MEDICAL LAKE
A150: =VLOOKUP(B150,CCDDD!$A$3:$B$319,2,FALSE) -> 17400 | B150: 5304980 | C150: MERCER ISLAND | D150: 0 | E150: 0 | F150: =VLOOKUP(B150,'25-26 Adjusted Formula counts'!$A$3:$L$320,8,FALSE) -> 4900 | G150: =ROUND((F150/$F$5*Assumptions!$E$22*Assumptions!$E$30),0) -> 26601 | H150: =VLOOKUP(B150,'25-26 Adjusted Formula counts'!$A$3:$L$320,9,FALSE) -> 150 | I150: =ROUND((H150/$H$5*Assumptions!$E$22*Assumptions!$E$31),0) -> 29910 | K150: 56511 | N150: 56511 | O150: 0 | P150: 56511 | R150: 0 | S150: 56511 | U150: =IFERROR(VLOOKUP($A150,#REF!, 19,FALSE),0) -> 0 | W150: 56511 | X150: 0 | Y150: 110 | Z150: 0 | AB150: 5304980 | AC150: MERCER ISLAND
A151: =VLOOKUP(B151,CCDDD!$A$3:$B$319,2,FALSE) -> 37505 | B151: 5305010 | C151: MERIDIAN | D151: 0 | E151: 0 | F151: =VLOOKUP(B151,'25-26 Adjusted Formula counts'!$A$3:$L$320,8,FALSE) -> 1709 | G151: =ROUND((F151/$F$5*Assumptions!$E$22*Assumptions!$E$30),0) -> 9278 | H151: =VLOOKUP(B151,'25-26 Adjusted Formula counts'!$A$3:$L$320,9,FALSE) -> 213 | I151: =ROUND((H151/$H$5*Assumptions!$E$22*Assumptions!$E$31),0) -> 42472 | K151: 51750 | N151: 51750 | O151: 0 | P151: 51750 | R151: 0 | S151: 51750 | U151: =IFERROR(VLOOKUP($A151,#REF!, 19,FALSE),0) -> 0 | W151: 51750 | X151: 0 | Y151: 117 | Z151: 0 | AB151: 5305010 | AC151: MERIDIAN
A152: =VLOOKUP(B152,CCDDD!$A$3:$B$319,2,FALSE) -> 24350 | B152: 5305020 | C152: METHOW VALLEY | D152: 0 | E152: 0 | F152: =VLOOKUP(B152,'25-26 Adjusted Formula counts'!$A$3:$L$320,8,FALSE) -> 837 | G152: =ROUND((F152/$F$5*Assumptions!$E$22*Assumptions!$E$30),0) -> 4544 | H152: =VLOOKUP(B152,'25-26 Adjusted Formula counts'!$A$3:$L$320,9,FALSE) -> 129 | I152: =ROUND((H152/$H$5*Assumptions!$E$22*Assumptions!$E$31),0) -> 25722 | K152: 30266 | N152: 30266 | O152: 0 | P152: 30266 | R152: 0 | S152: 30266 | U152: =IFERROR(VLOOKUP($A152,#REF!, 19,FALSE),0) -> 0 | W152: 30266 | X152: 0 | Y152: 157 | Z152: 0 | AB152: 5305020 | AC152: METHOW VALLEY
A153: =VLOOKUP(B153,CCDDD!$A$3:$B$319,2,FALSE) -> 30031 | B153: 5305040 | C153: MILL A | D153: 0 | E153: 0 | F153: =VLOOKUP(B153,'25-26 Adjusted Formula counts'!$A$3:$L$320,8,FALSE) -> 73 | G153: =ROUND((F153/$F$5*Assumptions!$E$22*Assumptions!$E$30),0) -> 396 | H153: =VLOOKUP(B153,'25-26 Adjusted Formula counts'!$A$3:$L$320,9,FALSE) -> 13 | I153: =ROUND((H153/$H$5*Assumptions!$E$22*Assumptions!$E$31),0) -> 2592 | K153: 2988 | N153: 2988 | O153: 0 | P153: 2988 | R153: 0 | S153: 2988 | U153: =IFERROR(VLOOKUP($A153,#REF!, 19,FALSE),0) -> 0 | W153: 2988 | X153: 0 | Y153: 285 | Z153: 0 | AB153: 5305040 | AC153: MILL A
A154: =VLOOKUP(B154,CCDDD!$A$3:$B$319,2,FALSE) -> 31103 | B154: 5305130 | C154: MONROE | D154: 0 | E154: 0 | F154: =VLOOKUP(B154,'25-26 Adjusted Formula counts'!$A$3:$L$320,8,FALSE) -> 6696 | G154: =ROUND((F154/$F$5*Assumptions!$E$22*Assumptions!$E$30),0) -> 36351 | H154: =VLOOKUP(B154,'25-26 Adjusted Formula counts'!$A$3:$L$320,9,FALSE) -> 453 | I154: =ROUND((H154/$H$5*Assumptions!$E$22*Assumptions!$E$31),0) -> 90328 | K154: 126679 | N154: 126679 | O154: 0 | P154: 126679 | R154: 0 | S154: 126679 | U154: =IFERROR(VLOOKUP($A154,#REF!, 19,FALSE),0) -> 0 | W154: 126679 | X154: 0 | Y154: 68 | Z154: 0 | AB154: 5305130 | AC154: MONROE
A155: =VLOOKUP(B155,CCDDD!$A$3:$B$319,2,FALSE) -> 14066 | B155: 5305160 | C155: MONTESANO | D155: 0 | E155: 0 | F155: =VLOOKUP(B155,'25-26 Adjusted Formula counts'!$A$3:$L$320,8,FALSE) -> 1337 | G155: =ROUND((F155/$F$5*Assumptions!$E$22*Assumptions!$E$30),0) -> 7258 | H155: =VLOOKUP(B155,'25-26 Adjusted Formula counts'!$A$3:$L$320,9,FALSE) -> 120 | I155: =ROUND((H155/$H$5*Assumptions!$E$22*Assumptions!$E$31),0) -> 23928 | K155: 31186 | N155: 31186 | O155: 0 | P155: 31186 | R155: 0 | S155: 31186 | U155: =IFERROR(VLOOKUP($A155,#REF!, 19,FALSE),0) -> 0 | W155: 31186 | X155: 0 | Y155: 154 | Z155: 0 | AB155: 5305160 | AC155: MONTESANO
A156: =VLOOKUP(B156,CCDDD!$A$3:$B$319,2,FALSE) -> 21214 | B156: 5305190 | C156: MORTON | D156: 0 | E156: 0 | F156: =VLOOKUP(B156,'25-26 Adjusted Formula counts'!$A$3:$L$320,8,FALSE) -> 337 | G156: =ROUND((F156/$F$5*Assumptions!$E$22*Assumptions!$E$30),0) -> 1829 | H156: =VLOOKUP(B156,'25-26 Adjusted Formula counts'!$A$3:$L$320,9,FALSE) -> 42 | I156: =ROUND((H156/$H$5*Assumptions!$E$22*Assumptions!$E$31),0) -> 8375 | K156: 10204 | N156: 10204 | O156: 0 | P156: 10204 | R156: 0 | S156: 10204 | U156: =IFERROR(VLOOKUP($A156,#REF!, 19,FALSE),0) -> 0 | W156: 10204 | X156: 0 | Y156: 229 | Z156: 0 | AB156: 5305190 | AC156: MORTON
A157: =VLOOKUP(B157,CCDDD!$A$3:$B$319,2,FALSE) -> 13161 | B157: 5305220 | C157: MOSES LAKE | D157: 0 | E157: 0 | F157: =VLOOKUP(B157,'25-26 Adjusted Formula counts'!$A$3:$L$320,8,FALSE) -> 9768 | G157: =ROUND((F157/$F$5*Assumptions!$E$22*Assumptions!$E$30),0) -> 53028 | H157: =VLOOKUP(B157,'25-26 Adjusted Formula counts'!$A$3:$L$320,9,FALSE) -> 1580 | I157: =ROUND((H157/$H$5*Assumptions!$E$22*Assumptions!$E$31),0) -> 315050 | K157: 368078 | N157: 368078 | O157: 0 | P157: 368078 | R157: 0 | S157: 368078 | U157: =IFERROR(VLOOKUP($A157,#REF!, 19,FALSE),0) -> 0 | W157: 368078 | X157: 0 | Y157: 25 | Z157: 0 | AB157: 5305220 | AC157: MOSES LAKE
A158: =VLOOKUP(B158,CCDDD!$A$3:$B$319,2,FALSE) -> 21206 | B158: 5305250 | C158: MOSSYROCK | D158: 0 | E158: 0 | F158: =VLOOKUP(B158,'25-26 Adjusted Formula counts'!$A$3:$L$320,8,FALSE) -> 708 | G158: =ROUND((F158/$F$5*Assumptions!$E$22*Assumptions!$E$30),0) -> 3844 | H158: =VLOOKUP(B158,'25-26 Adjusted Formula counts'!$A$3:$L$320,9,FALSE) -> 68 | I158: =ROUND((H158/$H$5*Assumptions!$E$22*Assumptions!$E$31),0) -> 13559 | K158: 17403 | N158: 17403 | O158: 0 | P158: 17403 | R158: 0 | S158: 17403 | U158: =IFERROR(VLOOKUP($A158,#REF!, 19,FALSE),0) -> 0 | W158: 17403 | X158: 0 | Y158: 193 | Z158: 0 | AB158: 5305250 | AC158: MOSSYROCK
A159: =VLOOKUP(B159,CCDDD!$A$3:$B$319,2,FALSE) -> 39209 | B159: 5305280 | C159: MOUNT ADAMS | D159: 0 | E159: 0 | F159: =VLOOKUP(B159,'25-26 Adjusted Formula counts'!$A$3:$L$320,8,FALSE) -> 998 | G159: =ROUND((F159/$F$5*Assumptions!$E$22*Assumptions!$E$30),0) -> 5418 | H159: =VLOOKUP(B159,'25-26 Adjusted Formula counts'!$A$3:$L$320,9,FALSE) -> 124 | I159: =ROUND((H159/$H$5*Assumptions!$E$22*Assumptions!$E$31),0) -> 24725 | K159: 30143 | N159: 30143 | O159: 0 | P159: 30143 | R159: 0 | S159: 30143 | U159: =IFERROR(VLOOKUP($A159,#REF!, 19,FALSE),0) -> 0 | W159: 30143 | X159: 0 | Y159: 158 | Z159: 0 | AB159: 5305280 | AC159: MOUNT ADAMS
A160: =VLOOKUP(B160,CCDDD!$A$3:$B$319,2,FALSE) -> 37507 | B160: 5305310 | C160: MOUNT BAKER | D160: 0 | E160: 0 | F160: =VLOOKUP(B160,'25-26 Adjusted Formula counts'!$A$3:$L$320,8,FALSE) -> 2441 | G160: =ROUND((F160/$F$5*Assumptions!$E$22*Assumptions!$E$30),0) -> 13251 | H160: =VLOOKUP(B160,'25-26 Adjusted Formula counts'!$A$3:$L$320,9,FALSE) -> 267 | I160: =ROUND((H160/$H$5*Assumptions!$E$22*Assumptions!$E$31),0) -> 53239 | K160: 66490 | N160: 66490 | O160: 0 | P160: 66490 | R160: 0 | S160: 66490 | U160: =IFERROR(VLOOKUP($A160,#REF!, 19,FALSE),0) -> 0 | W160: 66490 | X160: 0 | Y160: 98 | Z160: 0 | AB160: 5305310 | AC160: MOUNT BAKER
A161: =VLOOKUP(B161,CCDDD!$A$3:$B$319,2,FALSE) -> 30029 | B161: 5305340 | C161: MOUNT PLEASANT | D161: 0 | E161: 0 | F161: =VLOOKUP(B161,'25-26 Adjusted Formula counts'!$A$3:$L$320,8,FALSE) -> 41 | G161: =ROUND((F161/$F$5*Assumptions!$E$22*Assumptions!$E$30),0) -> 223 | H161: =VLOOKUP(B161,'25-26 Adjusted Formula counts'!$A$3:$L$320,9,FALSE) -> 2 | I161: =ROUND((H161/$H$5*Assumptions!$E$22*Assumptions!$E$31),0) -> 399 | K161: 622 | N161: 622 | O161: 0 | P161: 622 | R161: 0 | S161: 622 | U161: =IFERROR(VLOOKUP($A161,#REF!, 19,FALSE),0) -> 0 | W161: 622 | X161: 0 | Y161: 310 | Z161: 0 | AB161: 5305340 | AC161: MOUNT PLEASANT
A162: =VLOOKUP(B162,CCDDD!$A$3:$B$319,2,FALSE) -> 29320 | B162: 5305400 | C162: MOUNT VERNON | D162: 0 | E162: 0 | F162: =VLOOKUP(B162,'25-26 Adjusted Formula counts'!$A$3:$L$320,8,FALSE) -> 6734 | G162: =ROUND((F162/$F$5*Assumptions!$E$22*Assumptions!$E$30),0) -> 36557 | H162: =VLOOKUP(B162,'25-26 Adjusted Formula counts'!$A$3:$L$320,9,FALSE) -> 891 | I162: =ROUND((H162/$H$5*Assumptions!$E$22*Assumptions!$E$31),0) -> 177664 | K162: 214221 | N162: 214221 | O162: 0 | P162: 214221 | R162: 0 | S162: 214221 | U162: =IFERROR(VLOOKUP($A162,#REF!, 19,FALSE),0) -> 0 | W162: 214221 | X162: 0 | Y162: 39 | Z162: 0 | AB162: 5305400 | AC162: MOUNT VERNON
A163: =VLOOKUP(B163,CCDDD!$A$3:$B$319,2,FALSE) -> 31006 | B163: 5305430 | C163: MUKILTEO | D163: 0 | E163: 0 | F163: =VLOOKUP(B163,'25-26 Adjusted Formula counts'!$A$3:$L$320,8,FALSE) -> 17058 | G163: =ROUND((F163/$F$5*Assumptions!$E$22*Assumptions!$E$30),0) -> 92603 | H163: =VLOOKUP(B163,'25-26 Adjusted Formula counts'!$A$3:$L$320,9,FALSE) -> 2448 | I163: =ROUND((H163/$H$5*Assumptions!$E$22*Assumptions!$E$31),0) -> 488128 | K163: 580731 | N163: 580731 | O163: 0 | P163: 580731 | R163: 0 | S163: 580731 | U163: =IFERROR(VLOOKUP($A163,#REF!, 19,FALSE),0) -> 0 | W163: 580731 | X163: 0 | Y163: 16 | Z163: 0 | AB163: 5305430 | AC163: MUKILTEO
A164: =VLOOKUP(B164,CCDDD!$A$3:$B$319,2,FALSE) -> 39003 | B164: 5305460 | C164: NACHES VALLEY | D164: 0 | E164: 0 | F164: =VLOOKUP(B164,'25-26 Adjusted Formula counts'!$A$3:$L$320,8,FALSE) -> 1614 | G164: =ROUND((F164/$F$5*Assumptions!$E$22*Assumptions!$E$30),0) -> 8762 | H164: =VLOOKUP(B164,'25-26 Adjusted Formula counts'!$A$3:$L$320,9,FALSE) -> 173 | I164: =ROUND((H164/$H$5*Assumptions!$E$22*Assumptions!$E$31),0) -> 34496 | K164: 43258 | N164: 43258 | O164: 0 | P164: 43258 | R164: 0 | S164: 43258 | U164: =IFERROR(VLOOKUP($A164,#REF!, 19,FALSE),0) -> 0 | W164: 43258 | X164: 0 | Y164: 130 | Z164: 0 | AB164: 5305460 | AC164: NACHES VALLEY
A165: =VLOOKUP(B165,CCDDD!$A$3:$B$319,2,FALSE) -> 21014 | B165: 5305490 | C165: NAPAVINE | D165: 0 | E165: 0 | F165: =VLOOKUP(B165,'25-26 Adjusted Formula counts'!$A$3:$L$320,8,FALSE) -> 785 | G165: =ROUND((F165/$F$5*Assumptions!$E$22*Assumptions!$E$30),0) -> 4262 | H165: =VLOOKUP(B165,'25-26 Adjusted Formula counts'!$A$3:$L$320,9,FALSE) -> 82 | I165: =ROUND((H165/$H$5*Assumptions!$E$22*Assumptions!$E$31),0) -> 16351 | K165: 20613 | N165: 20613 | O165: 0 | P165: 20613 | R165: 0 | S165: 20613 | U165: =IFERROR(VLOOKUP($A165,#REF!, 19,FALSE),0) -> 0 | W165: 20613 | X165: 0 | Y165: 182 | Z165: 0 | AB165: 5305490 | AC165: NAPAVINE
A166: =VLOOKUP(B166,CCDDD!$A$3:$B$319,2,FALSE) -> 25155 | B166: 5305520 | C166: NASELLE-GRAYS | D166: 0 | E166: 0 | F166: =VLOOKUP(B166,'25-26 Adjusted Formula counts'!$A$3:$L$320,8,FALSE) -> 335 | G166: =ROUND((F166/$F$5*Assumptions!$E$22*Assumptions!$E$30),0) -> 1819 | H166: =VLOOKUP(B166,'25-26 Adjusted Formula counts'!$A$3:$L$320,9,FALSE) -> 39 | I166: =ROUND((H166/$H$5*Assumptions!$E$22*Assumptions!$E$31),0) -> 7777 | K166: 9596 | N166: 9596 | O166: 0 | P166: 9596 | R166: 0 | S166: 9596 | U166: =IFERROR(VLOOKUP($A166,#REF!, 19,FALSE),0) -> 0 | W166: 9596 | X166: 0 | Y166: 233 | Z166: 0 | AB166: 5305520 | AC166: NASELLE-GRAYS
A167: =VLOOKUP(B167,CCDDD!$A$3:$B$319,2,FALSE) -> 24014 | B167: 5305550 | C167: NESPELEM | D167: 0 | E167: 0 | F167: =VLOOKUP(B167,'25-26 Adjusted Formula counts'!$A$3:$L$320,8,FALSE) -> 246 | G167: =ROUND((F167/$F$5*Assumptions!$E$22*Assumptions!$E$30),0) -> 1335 | H167: =VLOOKUP(B167,'25-26 Adjusted Formula counts'!$A$3:$L$320,9,FALSE) -> 70 | I167: =ROUND((H167/$H$5*Assumptions!$E$22*Assumptions!$E$31),0) -> 13958 | K167: 15293 | N167: 15293 | O167: 0 | P167: 15293 | R167: 0 | S167: 15293 | U167: =IFERROR(VLOOKUP($A167,#REF!, 19,FALSE),0) -> 0 | W167: 15293 | X167: 0 | Y167: 201 | Z167: 0 | AB167: 5305550 | AC167: NESPELEM
A168: =VLOOKUP(B168,CCDDD!$A$3:$B$319,2,FALSE) -> 26056 | B168: 5305610 | C168: NEWPORT | D168: 0 | E168: 0 | F168: =VLOOKUP(B168,'25-26 Adjusted Formula counts'!$A$3:$L$320,8,FALSE) -> 1430 | G168: =ROUND((F168/$F$5*Assumptions!$E$22*Assumptions!$E$30),0) -> 7763 | H168: =VLOOKUP(B168,'25-26 Adjusted Formula counts'!$A$3:$L$320,9,FALSE) -> 268 | I168: =ROUND((H168/$H$5*Assumptions!$E$22*Assumptions!$E$31),0) -> 53439 | K168: 61202 | N168: 61202 | O168: 0 | P168: 61202 | R168: 0 | S168: 61202 | U168: =IFERROR(VLOOKUP($A168,#REF!, 19,FALSE),0) -> 0 | W168: 61202 | X168: 0 | Y168: 103 | Z168: 0 | AB168: 5305610 | AC168: NEWPORT
A169: =VLOOKUP(B169,CCDDD!$A$3:$B$319,2,FALSE) -> 32325 | B169: 5305640 | C169: NINE MILE FALLS | D169: 0 | E169: 0 | F169: =VLOOKUP(B169,'25-26 Adjusted Formula counts'!$A$3:$L$320,8,FALSE) -> 1574 | G169: =ROUND((F169/$F$5*Assumptions!$E$22*Assumptions!$E$30),0) -> 8545 | H169: =VLOOKUP(B169,'25-26 Adjusted Formula counts'!$A$3:$L$320,9,FALSE) -> 115 | I169: =ROUND((H169/$H$5*Assumptions!$E$22*Assumptions!$E$31),0) -> 22931 | K169: 31476 | N169: 31476 | O169: 0 | P169: 31476 | R169: 0 | S169: 31476 | U169: =IFERROR(VLOOKUP($A169,#REF!, 19,FALSE),0) -> 0 | W169: 31476 | X169: 0 | Y169: 153 | Z169: 0 | AB169: 5305640 | AC169: NINE MILE FALLS
A170: =VLOOKUP(B170,CCDDD!$A$3:$B$319,2,FALSE) -> 37506 | B170: 5305670 | C170: NOOKSACK VALLEY | D170: 0 | E170: 0 | F170: =VLOOKUP(B170,'25-26 Adjusted Formula counts'!$A$3:$L$320,8,FALSE) -> 2216 | G170: =ROUND((F170/$F$5*Assumptions!$E$22*Assumptions!$E$30),0) -> 12030 | H170: =VLOOKUP(B170,'25-26 Adjusted Formula counts'!$A$3:$L$320,9,FALSE) -> 242 | I170: =ROUND((H170/$H$5*Assumptions!$E$22*Assumptions!$E$31),0) -> 48254 | K170: 60284 | N170: 60284 | O170: 0 | P170: 60284 | R170: 0 | S170: 60284 | U170: =IFERROR(VLOOKUP($A170,#REF!, 19,FALSE),0) -> 0 | W170: 60284 | X170: 0 | Y170: 104 | Z170: 0 | AB170: 5305670 | AC170: NOOKSACK VALLEY
A171: =VLOOKUP(B171,CCDDD!$A$3:$B$319,2,FALSE) -> 14064 | B171: 5305700 | C171: NORTH BEACH | D171: 0 | E171: 0 | F171: =VLOOKUP(B171,'25-26 Adjusted Formula counts'!$A$3:$L$320,8,FALSE) -> 705 | G171: =ROUND((F171/$F$5*Assumptions!$E$22*Assumptions!$E$30),0) -> 3827 | H171: =VLOOKUP(B171,'25-26 Adjusted Formula counts'!$A$3:$L$320,9,FALSE) -> 126 | I171: =ROUND((H171/$H$5*Assumptions!$E$22*Assumptions!$E$31),0) -> 25124 | K171: 28951 | N171: 28951 | O171: 0 | P171: 28951 | R171: 0 | S171: 28951 | U171: =IFERROR(VLOOKUP($A171,#REF!, 19,FALSE),0) -> 0 | W171: 28951 | X171: 0 | Y171: 160 | Z171: 0 | AB171: 5305700 | AC171: NORTH BEACH
A172: =VLOOKUP(B172,CCDDD!$A$3:$B$319,2,FALSE) -> 11051 | B172: 5305730 | C172: NORTH FRANKLIN | D172: 0 | E172: 0 | F172: =VLOOKUP(B172,'25-26 Adjusted Formula counts'!$A$3:$L$320,8,FALSE) -> 2208 | G172: =ROUND((F172/$F$5*Assumptions!$E$22*Assumptions!$E$30),0) -> 11987 | H172: =VLOOKUP(B172,'25-26 Adjusted Formula counts'!$A$3:$L$320,9,FALSE) -> 198 | I172: =ROUND((H172/$H$5*Assumptions!$E$22*Assumptions!$E$31),0) -> 39481 | K172: 51468 | N172: 51468 | O172: 0 | P172: 51468 | R172: 0 | S172: 51468 | U172: =IFERROR(VLOOKUP($A172,#REF!, 19,FALSE),0) -> 0 | W172: 51468 | X172: 0 | Y172: 119 | Z172: 0 | AB172: 5305730 | AC172: NORTH FRANKLIN
A173: =VLOOKUP(B173,CCDDD!$A$3:$B$319,2,FALSE) -> 18400 | B173: 5305760 | C173: NORTH KITSAP | D173: 0 | E173: 0 | F173: =VLOOKUP(B173,'25-26 Adjusted Formula counts'!$A$3:$L$320,8,FALSE) -> 7160 | G173: =ROUND((F173/$F$5*Assumptions!$E$22*Assumptions!$E$30),0) -> 38870 | H173: =VLOOKUP(B173,'25-26 Adjusted Formula counts'!$A$3:$L$320,9,FALSE) -> 475 | I173: =ROUND((H173/$H$5*Assumptions!$E$22*Assumptions!$E$31),0) -> 94714 | K173: 133584 | N173: 133584 | O173: 0 | P173: 133584 | R173: 0 | S173: 133584 | U173: =IFERROR(VLOOKUP($A173,#REF!, 19,FALSE),0) -> 0 | W173: 133584 | X173: 0 | Y173: 66 | Z173: 0 | AB173: 5305760 | AC173: NORTH KITSAP
A174: =VLOOKUP(B174,CCDDD!$A$3:$B$319,2,FALSE) -> 23403 | B174: 5305790 | C174: NORTH MASON | D174: 0 | E174: 0 | F174: =VLOOKUP(B174,'25-26 Adjusted Formula counts'!$A$3:$L$320,8,FALSE) -> 2476 | G174: =ROUND((F174/$F$5*Assumptions!$E$22*Assumptions!$E$30),0) -> 13441 | H174: =VLOOKUP(B174,'25-26 Adjusted Formula counts'!$A$3:$L$320,9,FALSE) -> 368 | I174: =ROUND((H174/$H$5*Assumptions!$E$22*Assumptions!$E$31),0) -> 73379 | K174: 86820 | N174: 86820 | O174: 0 | P174: 86820 | R174: 0 | S174: 86820 | U174: =IFERROR(VLOOKUP($A174,#REF!, 19,FALSE),0) -> 0 | W174: 86820 | X174: 0 | Y174: 86 | Z174: 0 | AB174: 5305790 | AC174: NORTH MASON
A175: =VLOOKUP(B175,CCDDD!$A$3:$B$319,2,FALSE) -> 25200 | B175: 5305820 | C175: NORTH RIVER | D175: 0 | E175: 0 | F175: =VLOOKUP(B175,'25-26 Adjusted Formula counts'!$A$3:$L$320,8,FALSE) -> 51 | G175: =ROUND((F175/$F$5*Assumptions!$E$22*Assumptions!$E$30),0) -> 277 | H175: =VLOOKUP(B175,'25-26 Adjusted Formula counts'!$A$3:$L$320,9,FALSE) -> 10 | I175: =ROUND((H175/$H$5*Assumptions!$E$22*Assumptions!$E$31),0) -> 1994 | K175: 2271 | N175: 2271 | O175: 0 | P175: 2271 | R175: 0 | S175: 2271 | U175: =IFERROR(VLOOKUP($A175,#REF!, 19,FALSE),0) -> 0 | W175: 2271 | X175: 0 | Y175: 289 | Z175: 0 | AB175: 5305820 | AC175: NORTH RIVER
A176: =VLOOKUP(B176,CCDDD!$A$3:$B$319,2,FALSE) -> 34003 | B176: 5305850 | C176: NORTH THURSTON | D176: 0 | E176: 0 | F176: =VLOOKUP(B176,'25-26 Adjusted Formula counts'!$A$3:$L$320,8,FALSE) -> 17029 | G176: =ROUND((F176/$F$5*Assumptions!$E$22*Assumptions!$E$30),0) -> 92445 | H176: =VLOOKUP(B176,'25-26 Adjusted Formula counts'!$A$3:$L$320,9,FALSE) -> 1575 | I176: =ROUND((H176/$H$5*Assumptions!$E$22*Assumptions!$E$31),0) -> 314053 | K176: 406498 | N176: 406498 | O176: 0 | P176: 406498 | R176: 0 | S176: 406498 | U176: =IFERROR(VLOOKUP($A176,#REF!, 19,FALSE),0) -> 0 | W176: 406498 | X176: 0 | Y176: 22 | Z176: 0 | AB176: 5305850 | AC176: NORTH THURSTON
A177: =VLOOKUP(B177,CCDDD!$A$3:$B$319,2,FALSE) -> 33211 | B177: 5305880 | C177: NORTHPORT | D177: 0 | E177: 0 | F177: =VLOOKUP(B177,'25-26 Adjusted Formula counts'!$A$3:$L$320,8,FALSE) -> 227 | G177: =ROUND((F177/$F$5*Assumptions!$E$22*Assumptions!$E$30),0) -> 1232 | H177: =VLOOKUP(B177,'25-26 Adjusted Formula counts'!$A$3:$L$320,9,FALSE) -> 44 | I177: =ROUND((H177/$H$5*Assumptions!$E$22*Assumptions!$E$31),0) -> 8774 | K177: 10006 | N177: 10006 | O177: 0 | P177: 10006 | R177: 0 | S177: 10006 | U177: =IFERROR(VLOOKUP($A177,#REF!, 19,FALSE),0) -> 0 | W177: 10006 | X177: 0 | Y177: 230 | Z177: 0 | AB177: 5305880 | AC177: NORTHPORT
A178: =VLOOKUP(B178,CCDDD!$A$3:$B$319,2,FALSE) -> 17417 | B178: 5305910 | C178: NORTHSHORE | D178: 0 | E178: 0 | F178: =VLOOKUP(B178,'25-26 Adjusted Formula counts'!$A$3:$L$320,8,FALSE) -> 26389 | G178: =ROUND((F178/$F$5*Assumptions!$E$22*Assumptions!$E$30),0) -> 143258 | H178: =VLOOKUP(B178,'25-26 Adjusted Formula counts'!$A$3:$L$320,9,FALSE) -> 1033 | I178: =ROUND((H178/$H$5*Assumptions!$E$22*Assumptions!$E$31),0) -> 205979 | K178: 349237 | N178: 349237 | O178: 0 | P178: 349237 | R178: 0 | S178: 349237 | U178: =IFERROR(VLOOKUP($A178,#REF!, 19,FALSE),0) -> 0 | W178: 349237 | X178: 0 | Y178: 26 | Z178: 0 | AB178: 5305910 | AC178: NORTHSHORE
A179: =VLOOKUP(B179,CCDDD!$A$3:$B$319,2,FALSE) -> 15201 | B179: 5305940 | C179: OAK HARBOR | D179: 0 | E179: 0 | F179: =VLOOKUP(B179,'25-26 Adjusted Formula counts'!$A$3:$L$320,8,FALSE) -> 5955 | G179: =ROUND((F179/$F$5*Assumptions!$E$22*Assumptions!$E$30),0) -> 32328 | H179: =VLOOKUP(B179,'25-26 Adjusted Formula counts'!$A$3:$L$320,9,FALSE) -> 569 | I179: =ROUND((H179/$H$5*Assumptions!$E$22*Assumptions!$E$31),0) -> 113458 | K179: 145786 | N179: 145786 | O179: 0 | P179: 145786 | R179: 0 | S179: 145786 | U179: =IFERROR(VLOOKUP($A179,#REF!, 19,FALSE),0) -> 0 | W179: 145786 | X179: 0 | Y179: 60 | Z179: 0 | AB179: 5305940 | AC179: OAK HARBOR
A180: =VLOOKUP(B180,CCDDD!$A$3:$B$319,2,FALSE) -> 38324 | B180: 5305970 | C180: OAKESDALE | D180: 0 | E180: 0 | F180: =VLOOKUP(B180,'25-26 Adjusted Formula counts'!$A$3:$L$320,8,FALSE) -> 131 | G180: =ROUND((F180/$F$5*Assumptions!$E$22*Assumptions!$E$30),0) -> 711 | H180: =VLOOKUP(B180,'25-26 Adjusted Formula counts'!$A$3:$L$320,9,FALSE) -> 9 | I180: =ROUND((H180/$H$5*Assumptions!$E$22*Assumptions!$E$31),0) -> 1795 | K180: 2506 | N180: 2506 | O180: 0 | P180: 2506 | R180: 0 | S180: 2506 | U180: =IFERROR(VLOOKUP($A180,#REF!, 19,FALSE),0) -> 0 | W180: 2506 | X180: 0 | Y180: 287 | Z180: 0 | AB180: 5305970 | AC180: OAKESDALE
A181: =VLOOKUP(B181,CCDDD!$A$3:$B$319,2,FALSE) -> 14400 | B181: 5306000 | C181: OAKVILLE | D181: 0 | E181: 0 | F181: =VLOOKUP(B181,'25-26 Adjusted Formula counts'!$A$3:$L$320,8,FALSE) -> 452 | G181: =ROUND((F181/$F$5*Assumptions!$E$22*Assumptions!$E$30),0) -> 2454 | H181: =VLOOKUP(B181,'25-26 Adjusted Formula counts'!$A$3:$L$320,9,FALSE) -> 62 | I181: =ROUND((H181/$H$5*Assumptions!$E$22*Assumptions!$E$31),0) -> 12363 | K181: 14817 | N181: 14817 | O181: 0 | P181: 14817 | R181: 0 | S181: 14817 | U181: =IFERROR(VLOOKUP($A181,#REF!, 19,FALSE),0) -> 0 | W181: 14817 | X181: 0 | Y181: 205 | Z181: 0 | AB181: 5306000 | AC181: OAKVILLE
A182: =VLOOKUP(B182,CCDDD!$A$3:$B$319,2,FALSE) -> 25101 | B182: 5306060 | C182: OCEAN BEACH | D182: 0 | E182: 0 | F182: =VLOOKUP(B182,'25-26 Adjusted Formula counts'!$A$3:$L$320,8,FALSE) -> 1023 | G182: =ROUND((F182/$F$5*Assumptions!$E$22*Assumptions!$E$30),0) -> 5554 | H182: =VLOOKUP(B182,'25-26 Adjusted Formula counts'!$A$3:$L$320,9,FALSE) -> 189 | I182: =ROUND((H182/$H$5*Assumptions!$E$22*Assumptions!$E$31),0) -> 37686 | K182: 43240 | N182: 43240 | O182: 0 | P182: 43240 | R182: 0 | S182: 43240 | U182: =IFERROR(VLOOKUP($A182,#REF!, 19,FALSE),0) -> 0 | W182: 43240 | X182: 0 | Y182: 131 | Z182: 0 | AB182: 5306060 | AC182: OCEAN BEACH
A183: =VLOOKUP(B183,CCDDD!$A$3:$B$319,2,FALSE) -> 14172 | B183: 5306090 | C183: OCOSTA | D183: 0 | E183: 0 | F183: =VLOOKUP(B183,'25-26 Adjusted Formula counts'!$A$3:$L$320,8,FALSE) -> 660 | G183: =ROUND((F183/$F$5*Assumptions!$E$22*Assumptions!$E$30),0) -> 3583 | H183: =VLOOKUP(B183,'25-26 Adjusted Formula counts'!$A$3:$L$320,9,FALSE) -> 138 | I183: =ROUND((H183/$H$5*Assumptions!$E$22*Assumptions!$E$31),0) -> 27517 | K183: 31100 | N183: 31100 | O183: 0 | P183: 31100 | R183: 0 | S183: 31100 | U183: =IFERROR(VLOOKUP($A183,#REF!, 19,FALSE),0) -> 0 | W183: 31100 | X183: 0 | Y183: 155 | Z183: 0 | AB183: 5306090 | AC183: OCOSTA
A184: =VLOOKUP(B184,CCDDD!$A$3:$B$319,2,FALSE) -> 22105 | B184: 5306120 | C184: ODESSA | D184: 0 | E184: 0 | F184: =VLOOKUP(B184,'25-26 Adjusted Formula counts'!$A$3:$L$320,8,FALSE) -> 308 | G184: =ROUND((F184/$F$5*Assumptions!$E$22*Assumptions!$E$30),0) -> 1672 | H184: =VLOOKUP(B184,'25-26 Adjusted Formula counts'!$A$3:$L$320,9,FALSE) -> 45 | I184: =ROUND((H184/$H$5*Assumptions!$E$22*Assumptions!$E$31),0) -> 8973 | K184: 10645 | N184: 10645 | O184: 0 | P184: 10645 | R184: 0 | S184: 10645 | U184: =IFERROR(VLOOKUP($A184,#REF!, 19,FALSE),0) -> 0 | W184: 10645 | X184: 0 | Y184: 228 | Z184: 0 | AB184: 5306120 | AC184: ODESSA
A185: =VLOOKUP(B185,CCDDD!$A$3:$B$319,2,FALSE) -> 24105 | B185: 5306150 | C185: OKANOGAN | D185: 0 | E185: 0 | F185: =VLOOKUP(B185,'25-26 Adjusted Formula counts'!$A$3:$L$320,8,FALSE) -> 951 | G185: =ROUND((F185/$F$5*Assumptions!$E$22*Assumptions!$E$30),0) -> 5163 | H185: =VLOOKUP(B185,'25-26 Adjusted Formula counts'!$A$3:$L$320,9,FALSE) -> 151 | I185: =ROUND((H185/$H$5*Assumptions!$E$22*Assumptions!$E$31),0) -> 30109 | K185: 35272 | N185: 35272 | O185: 0 | P185: 35272 | R185: 0 | S185: 35272 | U185: =IFERROR(VLOOKUP($A185,#REF!, 19,FALSE),0) -> 0 | W185: 35272 | X185: 0 | Y185: 144 | Z185: 0 | AB185: 5306150 | AC185: OKANOGAN
A186: =VLOOKUP(B186,CCDDD!$A$3:$B$319,2,FALSE) -> 34111 | B186: 5306180 | C186: OLYMPIA | D186: 0 | E186: 0 | F186: =VLOOKUP(B186,'25-26 Adjusted Formula counts'!$A$3:$L$320,8,FALSE) -> 10404 | G186: =ROUND((F186/$F$5*Assumptions!$E$22*Assumptions!$E$30),0) -> 56480 | H186: =VLOOKUP(B186,'25-26 Adjusted Formula counts'!$A$3:$L$320,9,FALSE) -> 868 | I186: =ROUND((H186/$H$5*Assumptions!$E$22*Assumptions!$E$31),0) -> 173078 | K186: 229558 | N186: 229558 | O186: 0 | P186: 229558 | R186: 0 | S186: 229558 | U186: =IFERROR(VLOOKUP($A186,#REF!, 19,FALSE),0) -> 0 | W186: 229558 | X186: 0 | Y186: 38 | Z186: 0 | AB186: 5306180 | AC186: OLYMPIA
A187: =VLOOKUP(B187,CCDDD!$A$3:$B$319,2,FALSE) -> 24019 | B187: 5306220 | C187: OMAK | D187: 0 | E187: 0 | F187: =VLOOKUP(B187,'25-26 Adjusted Formula counts'!$A$3:$L$320,8,FALSE) -> 1880 | G187: =ROUND((F187/$F$5*Assumptions!$E$22*Assumptions!$E$30),0) -> 10206 | H187: =VLOOKUP(B187,'25-26 Adjusted Formula counts'!$A$3:$L$320,9,FALSE) -> 384 | I187: =ROUND((H187/$H$5*Assumptions!$E$22*Assumptions!$E$31),0) -> 76569 | K187: 86775 | N187: 86775 | O187: 0 | P187: 86775 | R187: 0 | S187: 86775 | U187: =IFERROR(VLOOKUP($A187,#REF!, 19,FALSE),0) -> 0 | W187: 86775 | X187: 0 | Y187: 87 | Z187: 0 | AB187: 5306220 | AC187: OMAK
A188: =VLOOKUP(B188,CCDDD!$A$3:$B$319,2,FALSE) -> 21300 | B188: 5306240 | C188: ONALASKA | D188: 0 | E188: 0 | F188: =VLOOKUP(B188,'25-26 Adjusted Formula counts'!$A$3:$L$320,8,FALSE) -> 946 | G188: =ROUND((F188/$F$5*Assumptions!$E$22*Assumptions!$E$30),0) -> 5136 | H188: =VLOOKUP(B188,'25-26 Adjusted Formula counts'!$A$3:$L$320,9,FALSE) -> 102 | I188: =ROUND((H188/$H$5*Assumptions!$E$22*Assumptions!$E$31),0) -> 20339 | K188: 25475 | N188: 25475 | O188: 0 | P188: 25475 | R188: 0 | S188: 25475 | U188: =IFERROR(VLOOKUP($A188,#REF!, 19,FALSE),0) -> 0 | W188: 25475 | X188: 0 | Y188: 169 | Z188: 0 | AB188: 5306240 | AC188: ONALASKA
A189: =VLOOKUP(B189,CCDDD!$A$3:$B$319,2,FALSE) -> 33030 | B189: 5306270 | C189: ONION CREEK | D189: 0 | E189: 0 | F189: =VLOOKUP(B189,'25-26 Adjusted Formula counts'!$A$3:$L$320,8,FALSE) -> 63 | G189: =ROUND((F189/$F$5*Assumptions!$E$22*Assumptions!$E$30),0) -> 342 | H189: =VLOOKUP(B189,'25-26 Adjusted Formula counts'!$A$3:$L$320,9,FALSE) -> 24 | I189: =ROUND((H189/$H$5*Assumptions!$E$22*Assumptions!$E$31),0) -> 4786 | K189: 5128 | N189: 5128 | O189: 0 | P189: 5128 | R189: 0 | S189: 5128 | U189: =IFERROR(VLOOKUP($A189,#REF!, 19,FALSE),0) -> 0 | W189: 5128 | X189: 0 | Y189: 265 | Z189: 0 | AB189: 5306270 | AC189: ONION CREEK
A190: =VLOOKUP(B190,CCDDD!$A$3:$B$319,2,FALSE) -> 28137 | B190: 5306300 | C190: ORCAS ISLAND | D190: 0 | E190: 0 | F190: =VLOOKUP(B190,'25-26 Adjusted Formula counts'!$A$3:$L$320,8,FALSE) -> 573 | G190: =ROUND((F190/$F$5*Assumptions!$E$22*Assumptions!$E$30),0) -> 3111 | H190: =VLOOKUP(B190,'25-26 Adjusted Formula counts'!$A$3:$L$320,9,FALSE) -> 84 | I190: =ROUND((H190/$H$5*Assumptions!$E$22*Assumptions!$E$31),0) -> 16749 | K190: 19860 | N190: 19860 | O190: 0 | P190: 19860 | R190: 0 | S190: 19860 | U190: =IFERROR(VLOOKUP($A190,#REF!, 19,FALSE),0) -> 0 | W190: 19860 | X190: 0 | Y190: 185 | Z190: 0 | AB190: 5306300 | AC190: ORCAS ISLAND
A191: =VLOOKUP(B191,CCDDD!$A$3:$B$319,2,FALSE) -> 32123 | B191: 5306330 | C191: ORCHARD PRAIRIE | D191: 0 | E191: 0 | F191: =VLOOKUP(B191,'25-26 Adjusted Formula counts'!$A$3:$L$320,8,FALSE) -> 178 | G191: =ROUND((F191/$F$5*Assumptions!$E$22*Assumptions!$E$30),0) -> 966 | H191: =VLOOKUP(B191,'25-26 Adjusted Formula counts'!$A$3:$L$320,9,FALSE) -> 16 | I191: =ROUND((H191/$H$5*Assumptions!$E$22*Assumptions!$E$31),0) -> 3190 | K191: 4156 | N191: 4156 | O191: 0 | P191: 4156 | R191: 0 | S191: 4156 | U191: =IFERROR(VLOOKUP($A191,#REF!, 19,FALSE),0) -> 0 | W191: 4156 | X191: 0 | Y191: 272 | Z191: 0 | AB191: 5306330 | AC191: ORCHARD PRAIRIE
A192: =VLOOKUP(B192,CCDDD!$A$3:$B$319,2,FALSE) -> 10065 | B192: 5306360 | C192: ORIENT | D192: 0 | E192: 0 | F192: =VLOOKUP(B192,'25-26 Adjusted Formula counts'!$A$3:$L$320,8,FALSE) -> 130 | G192: =ROUND((F192/$F$5*Assumptions!$E$22*Assumptions!$E$30),0) -> 706 | H192: =VLOOKUP(B192,'25-26 Adjusted Formula counts'!$A$3:$L$320,9,FALSE) -> 45 | I192: =ROUND((H192/$H$5*Assumptions!$E$22*Assumptions!$E$31),0) -> 8973 | K192: 9679 | N192: 9679 | O192: 0 | P192: 9679 | R192: 0 | S192: 9679 | U192: =IFERROR(VLOOKUP($A192,#REF!, 19,FALSE),0) -> 0 | W192: 9679 | X192: 0 | Y192: 232 | Z192: 0 | AB192: 5306360 | AC192: ORIENT
A193: =VLOOKUP(B193,CCDDD!$A$3:$B$319,2,FALSE) -> 09013 | B193: 5306390 | C193: ORONDO | D193: 0 | E193: 0 | F193: =VLOOKUP(B193,'25-26 Adjusted Formula counts'!$A$3:$L$320,8,FALSE) -> 264 | G193: =ROUND((F193/$F$5*Assumptions!$E$22*Assumptions!$E$30),0) -> 1433 | H193: =VLOOKUP(B193,'25-26 Adjusted Formula counts'!$A$3:$L$320,9,FALSE) -> 19 | I193: =ROUND((H193/$H$5*Assumptions!$E$22*Assumptions!$E$31),0) -> 3789 | K193: 5222 | N193: 5222 | O193: 0 | P193: 5222 | R193: 0 | S193: 5222 | U193: =IFERROR(VLOOKUP($A193,#REF!, 19,FALSE),0) -> 0 | W193: 5222 | X193: 0 | Y193: 264 | Z193: 0 | AB193: 5306390 | AC193: ORONDO
A194: =VLOOKUP(B194,CCDDD!$A$3:$B$319,2,FALSE) -> 24410 | B194: 5306420 | C194: OROVILLE | D194: 0 | E194: 0 | F194: =VLOOKUP(B194,'25-26 Adjusted Formula counts'!$A$3:$L$320,8,FALSE) -> 692 | G194: =ROUND((F194/$F$5*Assumptions!$E$22*Assumptions!$E$30),0) -> 3757 | H194: =VLOOKUP(B194,'25-26 Adjusted Formula counts'!$A$3:$L$320,9,FALSE) -> 145 | I194: =ROUND((H194/$H$5*Assumptions!$E$22*Assumptions!$E$31),0) -> 28913 | K194: 32670 | N194: 32670 | O194: 0 | P194: 32670 | R194: 0 | S194: 32670 | U194: =IFERROR(VLOOKUP($A194,#REF!, 19,FALSE),0) -> 0 | W194: 32670 | X194: 0 | Y194: 149 | Z194: 0 | AB194: 5306420 | AC194: OROVILLE
A195: =VLOOKUP(B195,CCDDD!$A$3:$B$319,2,FALSE) -> 27344 | B195: 5306450 | C195: ORTING | D195: 0 | E195: 0 | F195: =VLOOKUP(B195,'25-26 Adjusted Formula counts'!$A$3:$L$320,8,FALSE) -> 3274 | G195: =ROUND((F195/$F$5*Assumptions!$E$22*Assumptions!$E$30),0) -> 17774 | H195: =VLOOKUP(B195,'25-26 Adjusted Formula counts'!$A$3:$L$320,9,FALSE) -> 159 | I195: =ROUND((H195/$H$5*Assumptions!$E$22*Assumptions!$E$31),0) -> 31704 | K195: 49478 | N195: 49478 | O195: 0 | P195: 49478 | R195: 0 | S195: 49478 | U195: =IFERROR(VLOOKUP($A195,#REF!, 19,FALSE),0) -> 0 | W195: 49478 | X195: 0 | Y195: 122 | Z195: 0 | AB195: 5306450 | AC195: ORTING
A196: =VLOOKUP(B196,CCDDD!$A$3:$B$319,2,FALSE) -> 01147 | B196: 5306480 | C196: OTHELLO | D196: 0 | E196: 0 | F196: =VLOOKUP(B196,'25-26 Adjusted Formula counts'!$A$3:$L$320,8,FALSE) -> 4536 | G196: =ROUND((F196/$F$5*Assumptions!$E$22*Assumptions!$E$30),0) -> 24625 | H196: =VLOOKUP(B196,'25-26 Adjusted Formula counts'!$A$3:$L$320,9,FALSE) -> 895 | I196: =ROUND((H196/$H$5*Assumptions!$E$22*Assumptions!$E$31),0) -> 178462 | K196: 203087 | N196: 203087 | O196: 0 | P196: 203087 | R196: 0 | S196: 203087 | U196: =IFERROR(VLOOKUP($A196,#REF!, 19,FALSE),0) -> 0 | W196: 203087 | X196: 0 | Y196: 43 | Z196: 0 | AB196: 5306480 | AC196: OTHELLO
A197: =VLOOKUP(B197,CCDDD!$A$3:$B$319,2,FALSE) -> 09102 | B197: 5306510 | C197: PALISADES | D197: 0 | E197: 0 | F197: =VLOOKUP(B197,'25-26 Adjusted Formula counts'!$A$3:$L$320,8,FALSE) -> 47 | G197: =ROUND((F197/$F$5*Assumptions!$E$22*Assumptions!$E$30),0) -> 255 | H197: =VLOOKUP(B197,'25-26 Adjusted Formula counts'!$A$3:$L$320,9,FALSE) -> 5 | I197: =ROUND((H197/$H$5*Assumptions!$E$22*Assumptions!$E$31),0) -> 997 | K197: 1252 | N197: 1252 | O197: 0 | P197: 1252 | R197: 0 | S197: 1252 | U197: =IFERROR(VLOOKUP($A197,#REF!, 19,FALSE),0) -> 0 | W197: 1252 | X197: 0 | Y197: 303 | Z197: 0 | AB197: 5306510 | AC197: PALISADES
A198: =VLOOKUP(B198,CCDDD!$A$3:$B$319,2,FALSE) -> 38301 | B198: 5306540 | C198: PALOUSE | D198: 0 | E198: 0 | F198: =VLOOKUP(B198,'25-26 Adjusted Formula counts'!$A$3:$L$320,8,FALSE) -> 247 | G198: =ROUND((F198/$F$5*Assumptions!$E$22*Assumptions!$E$30),0) -> 1341 | H198: =VLOOKUP(B198,'25-26 Adjusted Formula counts'!$A$3:$L$320,9,FALSE) -> 12 | I198: =ROUND((H198/$H$5*Assumptions!$E$22*Assumptions!$E$31),0) -> 2393 | K198: 3734 | N198: 3734 | O198: 0 | P198: 3734 | R198: 0 | S198: 3734 | U198: =IFERROR(VLOOKUP($A198,#REF!, 19,FALSE),0) -> 0 | W198: 3734 | X198: 0 | Y198: 278 | Z198: 0 | AB198: 5306540 | AC198: PALOUSE
A199: =VLOOKUP(B199,CCDDD!$A$3:$B$319,2,FALSE) -> 11001 | B199: 5306570 | C199: PASCO | D199: 0 | E199: 0 | F199: =VLOOKUP(B199,'25-26 Adjusted Formula counts'!$A$3:$L$320,8,FALSE) -> 20387 | G199: =ROUND((F199/$F$5*Assumptions!$E$22*Assumptions!$E$30),0) -> 110675 | H199: =VLOOKUP(B199,'25-26 Adjusted Formula counts'!$A$3:$L$320,9,FALSE) -> 3147 | I199: =ROUND((H199/$H$5*Assumptions!$E$22*Assumptions!$E$31),0) -> 627508 | K199: =ROUNDDOWN(+I199+G199+E199+D199+J199,0) -> 738183 | N199: =K199 -> 738183 | O199: =-ROUND(N199/$N$5*$M$5,0) -> 0 | P199: =+K199+O199+M199 -> 738183 | R199: =-1*(P199*Q199) -> 0 | S199: =+P199+R199 -> 738183 | U199: =IFERROR(VLOOKUP($A199,#REF!, 19,FALSE),0) -> 0 | W199: =+S199-U199 -> 738183 | X199: =IF(U199>0,W199/U199,0) -> 0 | Y199: =RANK(W199,$W$7:$W$320,0) -> 8 | Z199: =(SUM(D199:E199)/S199) -> 0 | AB199: =+B199 -> 5306570 | AC199: PASCO
A200: =VLOOKUP(B200,CCDDD!$A$3:$B$319,2,FALSE) -> 24122 | B200: 5306600 | C200: PATEROS | D200: 0 | E200: 0 | F200: =VLOOKUP(B200,'25-26 Adjusted Formula counts'!$A$3:$L$320,8,FALSE) -> 287 | G200: =ROUND((F200/$F$5*Assumptions!$E$22*Assumptions!$E$30),0) -> 1558 | H200: =VLOOKUP(B200,'25-26 Adjusted Formula counts'!$A$3:$L$320,9,FALSE) -> 41 | I200: =ROUND((H200/$H$5*Assumptions!$E$22*Assumptions!$E$31),0) -> 8175 | K200: 9733 | N200: 9733 | O200: 0 | P200: 9733 | R200: 0 | S200: 9733 | U200: =IFERROR(VLOOKUP($A200,#REF!, 19,FALSE),0) -> 0 | W200: 9733 | X200: 0 | Y200: 231 | Z200: 0 | AB200: 5306600 | AC200: PATEROS
... 120 more rows

Sheet 26-27 Adjusted Formula counts (hidden)
A1: Source:"S:\Apportionment_NEW\Federal Funding & Allocations\Federal progran allocation\26-27\Final\Title I-A Final\Title I-A 26-27 Final_Draft.xlsx", initial adjusted formula counts
A2: LEAID | B2: LEANAME | C2: SendingLEAid | D2: NEG. adj | E2: Adj DEL. | F2: Adj Foster | G2: Adj TANF | H2: Adj - 5-17 pop | I2: Adj poverty | J2: Adj Total formula count | K2: Total Formula Count DOE | L2: Adj poverty percentage
A3: 5300030 | B3: Aberdeen School District | D3: 0 | F3: 16 | G3: 0 | H3: 3465 | I3: 709 | J3: 725 | K3: 725 | L3: 0.2092352092
A4: 5300060 | B4: Adna School District | D4: 0 | F4: 3 | G4: 0 | H4: 758 | I4: 45 | J4: 48 | K4: 48 | L4: 0.06332453826
A5: 5300090 | B5: Almira School District | D5: 0 | F5: 0 | G5: 0 | H5: 98 | I5: 11 | J5: 11 | K5: 11 | L5: 0.112244898
A6: 5300150 | B6: Anacortes School District | D6: 0 | F6: 9 | G6: 0 | H6: 2785 | I6: 195 | J6: 204 | K6: 204 | L6: 0.07324955117
A7: 5300240 | B7: Arlington School District | D7: 0 | F7: 6 | G7: 0 | H7: 6002 | I7: 533 | J7: 539 | K7: 539 | L7: 0.08980339887
A8: 5300280 | B8: Asotin-Anatone School District | D8: 0 | F8: 1 | G8: 0 | H8: 485 | I8: 29 | J8: 30 | K8: 30 | L8: 0.0618556701
A9: 5300300 | B9: Auburn School District | D9: 0 | F9: 42 | G9: 0 | H9: 18575 | I9: 2933 | J9: 2975 | K9: 2975 | L9: 0.1601615074
A10: 5300330 | B10: Bainbridge Island School District | D10: 0 | F10: 0 | G10: 0 | H10: 3995 | I10: 150 | J10: 150 | K10: 150 | L10: 0.03754693367
A11: 5300380 | B11: Battle Ground School District | D11: 0 | F11: 39 | G11: 0 | H11: 15849 | I11: 988 | J11: 1027 | K11: 1027 | L11: 0.06479904095
A12: 5300390 | B12: Bellevue School District | D12: 0 | F12: 10 | G12: 0 | H12: 22751 | I12: 1401 | J12: 1411 | K12: 1411 | L12: 0.0620192519
A13: 5300420 | B13: Bellingham | C13: 5300420 | D13: 0 | F13: 27 | G13: 0 | H13: 12300.17303 | I13: 920.9700798 | J13: 947.9700798 | K13: 956 | L13: 0.07706965402
A14: 5300450 | B14: Benge School District | D14: 0 | F14: 0 | G14: 0 | H14: 16 | I14: 1 | J14: 1 | K14: 1 | L14: 0.0625
A15: 5300480 | B15: Bethel School District | D15: 0 | F15: 81 | G15: 0 | H15: 24343 | I15: 2704 | J15: 2785 | K15: 2785 | L15: 0.1144066056
A16: 5300510 | B16: Bickleton School District | D16: 0 | F16: 0 | G16: 0 | H16: 79 | I16: 10 | J16: 10 | K16: 10 | L16: 0.1265822785
A17: 5300570 | B17: Blaine School District | D17: 0 | F17: 8 | G17: 0 | H17: 2450 | I17: 204 | J17: 212 | K17: 212 | L17: 0.08653061224
A18: 5300630 | B18: Boistfort School District | D18: 0 | F18: 2 | G18: 0 | H18: 221 | I18: 22 | J18: 24 | K18: 24 | L18: 0.1085972851
A19: 5300660 | B19: Bremerton | C19: 5300660 | D19: 0 | F19: 16 | G19: 0 | H19: 4879.713253 | I19: 804.763677 | J19: 820.763677 | K19: 917 | L19: 0.1681991614
A20: 5300690 | B20: Brewster School District | D20: 0 | F20: 0 | G20: 0 | H20: 942 | I20: 214 | J20: 214 | K20: 214 | L20: 0.2271762208
A21: 5300720 | B21: Bridgeport School District | D21: 0 | F21: 0 | G21: 0 | H21: 673 | I21: 82 | J21: 82 | K21: 82 | L21: 0.1218424963
A22: 5300750 | B22: Brinnon School District | D22: 0 | F22: 0 | G22: 0 | H22: 113 | I22: 13 | J22: 13 | K22: 13 | L22: 0.1150442478
A23: 5300780 | B23: Burlington-Edison School District | D23: 0 | F23: 5 | G23: 0 | H23: 3664 | I23: 356 | J23: 361 | K23: 361 | L23: 0.09852620087
A24: 5300810 | B24: Camas School District | D24: 0 | F24: 9 | G24: 0 | H24: 7419 | I24: 273 | J24: 282 | K24: 282 | L24: 0.03801051355
A25: 5300840 | B25: Cape Flattery School District | D25: 0 | F25: 12 | G25: 0 | H25: 541 | I25: 69 | J25: 81 | K25: 81 | L25: 0.1497227357
A26: 5300870 | B26: Carbonado School District | D26: 0 | F26: 0 | G26: 0 | H26: 210 | I26: 4 | J26: 4 | K26: 4 | L26: 0.01904761905
A27: 5300950 | B27: Cascade School District | D27: 0 | F27: 0 | G27: 0 | H27: 1596 | I27: 123 | J27: 123 | K27: 123 | L27: 0.07706766917
A28: 5300960 | B28: Cashmere School District | D28: 0 | F28: 6 | G28: 0 | H28: 1536 | I28: 129 | J28: 135 | K28: 135 | L28: 0.087890625
A29: 5300990 | B29: Castle Rock School District | D29: 0 | F29: 7 | G29: 0 | H29: 1662 | I29: 156 | J29: 163 | K29: 163 | L29: 0.0980746089
A30: 5301000 | B30: Catalyst Public Schools | C30: 5300660 | D30: 0 | E30: 0 | F30: 0 | G30: 0 | H30: 618.3813253 | I30: 77.79382211 | J30: 77.79382211 | K30: 0 | L30: 0.1258023471
A31: 5301050 | B31: Centerville School District | D31: 0 | F31: 0 | G31: 0 | H31: 94 | I31: 36 | J31: 36 | K31: 36 | L31: 0.3829787234
A32: 5301080 | B32: Central Kitsap School District | D32: 0 | F32: 33 | G32: 0 | H32: 11204 | I32: 795 | J32: 828 | K32: 828 | L32: 0.07390217779
A33: 5301110 | B33: Central Valley School District | D33: 0 | F33: 87 | G33: 0 | H33: 17085 | I33: 1218 | J33: 1305 | K33: 1305 | L33: 0.07638279192
A34: 5301140 | B34: Centralia School District | D34: 0 | F34: 17 | G34: 0 | H34: 4393 | I34: 765 | J34: 782 | K34: 782 | L34: 0.1780104712
A35: 5301170 | B35: Chehalis School District | D35: 0 | F35: 13 | G35: 0 | H35: 2949 | I35: 320 | J35: 333 | K35: 333 | L35: 0.1129196338
A36: 5301230 | B36: Cheney School District | D36: 0 | F36: 32 | G36: 0 | H36: 6266 | I36: 566 | J36: 598 | K36: 598 | L36: 0.09543568465
A37: 5301260 | B37: Chewelah School District | D37: 0 | F37: 2 | G37: 0 | H37: 937 | I37: 133 | J37: 135 | K37: 135 | L37: 0.144076841
A38: 5301290 | B38: Chimacum School District | D38: 0 | F38: 1 | G38: 0 | H38: 1124 | I38: 184 | J38: 185 | K38: 185 | L38: 0.1645907473
A39: 5301320 | B39: Clarkston School District | D39: 0 | F39: 14 | G39: 0 | H39: 2751 | I39: 487 | J39: 501 | K39: 501 | L39: 0.1821155943
A40: 5301350 | B40: Cle Elum-Roslyn School District | D40: 0 | F40: 10 | G40: 0 | H40: 1097 | I40: 119 | J40: 129 | K40: 129 | L40: 0.1175934366
A41: 5301410 | B41: Clover Park School District | D41: 0 | F41: 47 | G41: 0 | H41: 13799 | I41: 2008 | J41: 2055 | K41: 2055 | L41: 0.1489238351
A42: 5301440 | B42: Colfax School District | D42: 0 | F42: 0 | G42: 0 | H42: 621 | I42: 65 | J42: 65 | K42: 65 | L42: 0.1046698873
A43: 5301470 | B43: College Place School District | D43: 0 | F43: 8 | G43: 0 | H43: 2028 | I43: 243 | J43: 251 | K43: 251 | L43: 0.1237672584
A44: 5301500 | B44: Colton School District | D44: 0 | F44: 0 | G44: 0 | H44: 250 | I44: 16 | J44: 16 | K44: 16 | L44: 0.064
A45: 5301560 | B45: Columbia (Stevens) School District | D45: 0 | F45: 2 | G45: 0 | H45: 205 | I45: 50 | J45: 52 | K45: 52 | L45: 0.2536585366
A46: 5301590 | B46: Columbia (Walla Walla) School District | D46: 0 | F46: 1 | G46: 0 | H46: 753 | I46: 87 | J46: 88 | K46: 88 | L46: 0.1168658699
A47: 5301630 | B47: Colville School District | D47: 0 | F47: 9 | G47: 0 | H47: 1996 | I47: 384 | J47: 393 | K47: 393 | L47: 0.1968937876
A48: 5301660 | B48: Concrete School District | D48: 0 | F48: 5 | G48: 0 | H48: 705 | I48: 75 | J48: 80 | K48: 80 | L48: 0.1134751773
A49: 5301680 | B49: Conway School District | D49: 0 | F49: 1 | G49: 0 | H49: 534 | I49: 47 | J49: 48 | K49: 48 | L49: 0.08988764045
A50: 5301710 | B50: Cosmopolis School District | D50: 0 | F50: 1 | G50: 0 | H50: 311 | I50: 28 | J50: 29 | K50: 29 | L50: 0.09324758842
A51: 5303440 | B51: Coulee-Hartline School District | D51: 0 | F51: 0 | G51: 0 | H51: 246 | I51: 40 | J51: 40 | K51: 40 | L51: 0.162601626
A52: 5301800 | B52: Coupeville School District | D52: 0 | F52: 0 | G52: 0 | H52: 1082 | I52: 104 | J52: 104 | K52: 104 | L52: 0.09611829945
A53: 5301830 | B53: Crescent School District | D53: 0 | F53: 5 | G53: 0 | H53: 339 | I53: 62 | J53: 67 | K53: 67 | L53: 0.197640118
A54: 5301860 | B54: Creston School District | D54: 0 | F54: 3 | G54: 0 | H54: 114 | I54: 33 | J54: 36 | K54: 36 | L54: 0.3157894737
A55: 5301890 | B55: Curlew School District | D55: 0 | F55: 1 | G55: 0 | H55: 165 | I55: 47 | J55: 48 | K55: 48 | L55: 0.2909090909
A56: 5301920 | B56: Cusick School District | D56: 0 | F56: 3 | G56: 0 | H56: 326 | I56: 75 | J56: 78 | K56: 78 | L56: 0.2392638037
A57: 5301950 | B57: Damman School District | D57: 0 | F57: 0 | G57: 0 | H57: 115 | I57: 10 | J57: 10 | K57: 10 | L57: 0.08695652174
A58: 5301980 | B58: Darrington School District | D58: 0 | F58: 5 | G58: 0 | H58: 509 | I58: 40 | J58: 45 | K58: 45 | L58: 0.0884086444
A59: 5302010 | B59: Davenport School District | D59: 0 | F59: 2 | G59: 0 | H59: 588 | I59: 112 | J59: 114 | K59: 114 | L59: 0.193877551
A60: 5302040 | B60: Dayton School District | D60: 0 | F60: 1 | G60: 0 | H60: 514 | I60: 92 | J60: 93 | K60: 93 | L60: 0.1809338521
A61: 5302070 | B61: Deer Park School District | D61: 0 | F61: 25 | G61: 0 | H61: 2376 | I61: 214 | J61: 239 | K61: 239 | L61: 0.1005892256
A62: 5302130 | B62: Dieringer School District | D62: 0 | F62: 3 | G62: 0 | H62: 2296 | I62: 126 | J62: 129 | K62: 129 | L62: 0.05618466899
A63: 5302160 | B63: Dixie School District | D63: 0 | F63: 0 | G63: 0 | H63: 74 | I63: 1 | J63: 1 | K63: 1 | L63: 0.01351351351
A64: 5302280 | B64: East Valley School District (Spokane) | D64: 0 | F64: 26 | G64: 0 | H64: 4697 | I64: 543 | J64: 569 | K64: 569 | L64: 0.1211411539
A65: 5305370 | B65: East Valley School District (Yakima) | D65: 0 | F65: 10 | G65: 0 | H65: 3534 | I65: 515 | J65: 525 | K65: 525 | L65: 0.1485568761
A66: 5302310 | B66: Eastmont School District | D66: 0 | F66: 18 | G66: 0 | H66: 6294 | I66: 816 | J66: 834 | K66: 834 | L66: 0.1325071497
A67: 5302340 | B67: Easton School District | D67: 0 | F67: 0 | G67: 0 | H67: 160 | I67: 12 | J67: 12 | K67: 12 | L67: 0.075
A68: 5302370 | B68: Eatonville School District | D68: 0 | F68: 9 | G68: 0 | H68: 2223 | I68: 174 | J68: 183 | K68: 183 | L68: 0.08232118758
A69: 5302400 | B69: Edmonds School District | D69: 0 | F69: 40 | G69: 0 | H69: 24603 | I69: 2255 | J69: 2295 | K69: 2295 | L69: 0.09328130716
A70: 5302460 | B70: Ellensburg School District | D70: 0 | F70: 8 | G70: 0 | H70: 3660 | I70: 426 | J70: 434 | K70: 434 | L70: 0.118579235
A71: 5302490 | B71: Elma School District | D71: 0 | F71: 3 | G71: 0 | H71: 1576 | I71: 262 | J71: 265 | K71: 265 | L71: 0.1681472081
A72: 5302520 | B72: Endicott School District | D72: 0 | F72: 0 | G72: 0 | H72: 90 | I72: 12 | J72: 12 | K72: 12 | L72: 0.1333333333
A73: 5302550 | B73: Entiat School District | D73: 0 | F73: 5 | G73: 0 | H73: 417 | I73: 37 | J73: 42 | K73: 42 | L73: 0.1007194245
A74: 5300001 | B74: Enumclaw School District | D74: 0 | F74: 16 | G74: 0 | H74: 4736 | I74: 251 | J74: 267 | K74: 267 | L74: 0.05637668919
A75: 5302610 | B75: Ephrata School District | D75: 0 | F75: 2 | G75: 0 | H75: 2895 | I75: 495 | J75: 497 | K75: 497 | L75: 0.1716753022
A76: 5302640 | B76: Evaline School District | D76: 0 | F76: 1 | G76: 0 | H76: 132 | I76: 17 | J76: 18 | K76: 18 | L76: 0.1363636364
A77: 5302670 | B77: Everett School District | D77: 0 | F77: 23 | G77: 0 | H77: 23123 | I77: 2244 | J77: 2267 | K77: 2267 | L77: 0.09804091165
A78: 5302700 | B78: Evergreen School District (Clark) | D78: 0 | F78: 61 | G78: 0 | H78: 26694 | I78: 2621 | J78: 2682 | K78: 2682 | L78: 0.1004720162
A79: 5302730 | B79: Evergreen School District (Stevens) | D79: 0 | F79: 0 | G79: 0 | H79: 56 | I79: 19 | J79: 19 | K79: 19 | L79: 0.3392857143
A80: 5302820 | B80: Federal Way School District | D80: 0 | F80: 39 | G80: 0 | H80: 24447 | I80: 4134 | J80: 4173 | K80: 4173 | L80: 0.1706957909
A81: 5302850 | B81: Ferndale School District | D81: 0 | F81: 17 | G81: 0 | H81: 6112 | I81: 543 | J81: 560 | K81: 560 | L81: 0.09162303665
A82: 5302880 | B82: Fife Public Schools | D82: 0 | F82: 16 | G82: 0 | H82: 4106 | I82: 458 | J82: 474 | K82: 474 | L82: 0.1154408183
A83: 5302910 | B83: Finley School District | D83: 0 | F83: 5 | G83: 0 | H83: 920 | I83: 93 | J83: 98 | K83: 98 | L83: 0.1065217391
A84: 5302940 | B84: Franklin Pierce School District | D84: 0 | F84: 51 | G84: 0 | H84: 9347 | I84: 1533 | J84: 1584 | K84: 1584 | L84: 0.1694661389
A85: 5302970 | B85: Freeman School District | D85: 0 | F85: 1 | G85: 0 | H85: 998 | I85: 29 | J85: 30 | K85: 30 | L85: 0.03006012024
A86: 5303000 | B86: Garfield School District | D86: 0 | F86: 0 | G86: 0 | H86: 132 | I86: 28 | J86: 28 | K86: 28 | L86: 0.2121212121
A87: 5303030 | B87: Glenwood School District | D87: 0 | F87: 0 | G87: 0 | H87: 62 | I87: 10 | J87: 10 | K87: 10 | L87: 0.1612903226
A88: 5303090 | B88: Goldendale School District | D88: 0 | F88: 4 | G88: 0 | H88: 1076 | I88: 162 | J88: 166 | K88: 166 | L88: 0.1542750929
A89: 5303130 | B89: Grand Coulee Dam School District | D89: 0 | F89: 8 | G89: 0 | H89: 670 | I89: 149 | J89: 157 | K89: 157 | L89: 0.2343283582
A90: 5303150 | B90: Grandview School District | D90: 0 | F90: 8 | G90: 0 | H90: 3712 | I90: 820 | J90: 828 | K90: 828 | L90: 0.2230603448
A91: 5303180 | B91: Granger School District | D91: 0 | F91: 1 | G91: 0 | H91: 1577 | I91: 249 | J91: 250 | K91: 250 | L91: 0.1585288523
A92: 5303210 | B92: Granite Falls School District | D92: 0 | F92: 7 | G92: 0 | H92: 2838 | I92: 182 | J92: 189 | K92: 189 | L92: 0.0665961945
A93: 5303240 | B93: Grapeview School District | D93: 0 | F93: 1 | G93: 0 | H93: 347 | I93: 34 | J93: 35 | K93: 35 | L93: 0.1008645533
A94: 5303270 | B94: Great Northern School District | D94: 0 | F94: 0 | G94: 0 | H94: 188 | I94: 33 | J94: 33 | K94: 33 | L94: 0.1755319149
A95: 5303300 | B95: Green Mountain School District | D95: 0 | F95: 0 | G95: 0 | H95: 205 | I95: 13 | J95: 13 | K95: 13 | L95: 0.06341463415
A96: 5303330 | B96: Griffin School District | D96: 0 | F96: 3 | G96: 0 | H96: 901 | I96: 48 | J96: 51 | K96: 51 | L96: 0.05660377358
A97: 5303360 | B97: Harrington School District | D97: 0 | F97: 0 | G97: 0 | H97: 145 | I97: 25 | J97: 25 | K97: 25 | L97: 0.1724137931
A98: 5303510 | B98: Highland School District | D98: 0 | F98: 0 | G98: 0 | H98: 1264 | I98: 131 | J98: 131 | K98: 131 | L98: 0.1036392405
A99: 5303540 | B99: Highline | C99: 5303540 | D99: 0 | F99: 19 | G99: 0 | H99: 20024.41191 | I99: 3380.415234 | J99: 3399.415234 | K99: 3468 | L99: 0.1697635491
A100: 5303570 | B100: Hockinson School District | D100: 0 | F100: 2 | G100: 0 | H100: 2174 | I100: 114 | J100: 116 | K100: 116 | L100: 0.05335786569
A101: 5303600 | B101: Hood Canal School District | D101: 0 | F101: 6 | G101: 0 | H101: 714 | I101: 107 | J101: 113 | K101: 113 | L101: 0.1582633053
A102: 5303660 | B102: Hoquiam School District | D102: 0 | F102: 16 | G102: 0 | H102: 1799 | I102: 412 | J102: 428 | K102: 428 | L102: 0.23790995
A103: 5307790 | B103: Impact | Black River Elementary | C103: 5307230 | D103: 0 | E103: 0 | F103: 0 | G103: 0 | H103: 449.4336399 | I103: 73.83502779 | J103: 73.83502779 | K103: 0 | L103: 0.1642846045
A104: 5303700 | B104: Impact Puget Sound (Public Schools) | C104: 5308130 | D104: 0 | E104: 0 | F104: 0 | G104: 0 | H104: 497.6488706 | I104: 112.824155 | J104: 112.824155 | K104: 0 | L104: 0.2267143796
A105: 5303710 | B105: Impact Salish Sea | C105: 5308130 | D105: 0 | E105: 0 | F105: 0 | G105: 0 | H105: 342.6180698 | I105: 75.70451956 | J105: 75.70451956 | K105: 0 | L105: 0.2209589226
A106: 5303705 | B106: Impact Tacoma (Commencement Bay) | C106: 5308700 | D106: 0 | E106: 0 | F106: 0 | G106: 0 | H106: 303.7140733 | I106: 57.08452527 | J106: 57.08452527 | K106: 0 | L106: 0.1879548243
A107: 5300002 | B107: Inchelium School District | D107: 0 | F107: 5 | G107: 0 | H107: 200 | I107: 47 | J107: 52 | K107: 52 | L107: 0.26
A108: 5303720 | B108: Index School District | D108: 0 | F108: 0 | G108: 0 | H108: 55 | I108: 3 | J108: 3 | K108: 3 | L108: 0.05454545455
A109: 5303750 | B109: Issaquah School District | D109: 0 | F109: 8 | G109: 0 | H109: 23076 | I109: 829 | J109: 837 | K109: 837 | L109: 0.03627145086
A110: 5303780 | B110: Kahlotus School District | D110: 0 | F110: 0 | G110: 0 | H110: 60 | I110: 7 | J110: 7 | K110: 7 | L110: 0.1166666667
A111: 5303810 | B111: Kalama School District | D111: 0 | F111: 1 | G111: 0 | H111: 1373 | I111: 92 | J111: 93 | K111: 93 | L111: 0.06773488711
A112: 5303870 | B112: Keller School District | D112: 0 | F112: 0 | G112: 0 | H112: 110 | I112: 26 | J112: 26 | K112: 26 | L112: 0.2363636364
A113: 5300003 | B113: Kelso School District | D113: 0 | F113: 20 | G113: 0 | H113: 5531 | I113: 708 | J113: 728 | K113: 728 | L113: 0.1316217682
A114: 5303930 | B114: Kennewick School District | D114: 0 | F114: 46 | G114: 0 | H114: 20732 | I114: 2450 | J114: 2496 | K114: 2496 | L114: 0.1203935944
A115: 5303960 | B115: Kent School District | D115: 0 | F115: 42 | G115: 0 | H115: 30469 | I115: 4462 | J115: 4504 | K115: 4504 | L115: 0.1478223768
A116: 5303990 | B116: Kettle Falls School District | D116: 0 | F116: 1 | G116: 0 | H116: 941 | I116: 160 | J116: 161 | K116: 161 | L116: 0.1710945802
A117: 5304020 | B117: Kiona-Benton City School District | D117: 0 | F117: 8 | G117: 0 | H117: 1758 | I117: 152 | J117: 160 | K117: 160 | L117: 0.09101251422
A118: 5304050 | B118: Kittitas School District | D118: 0 | F118: 2 | G118: 0 | H118: 761 | I118: 62 | J118: 64 | K118: 64 | L118: 0.08409986859
A119: 5304080 | B119: Klickitat School District | D119: 0 | F119: 0 | G119: 0 | H119: 82 | I119: 14 | J119: 14 | K119: 14 | L119: 0.1707317073
A120: 5304170 | B120: La Center School District | D120: 0 | F120: 12 | G120: 0 | H120: 1930 | I120: 107 | J120: 119 | K120: 119 | L120: 0.06165803109
A121: 5304110 | B121: La Conner School District | D121: 0 | F121: 3 | G121: 0 | H121: 585 | I121: 61 | J121: 64 | K121: 64 | L121: 0.1094017094
A122: 5304150 | B122: LaCrosse School District | D122: 0 | F122: 0 | G122: 0 | H122: 90 | I122: 13 | J122: 13 | K122: 13 | L122: 0.1444444444
A123: 5301200 | B123: Lake Chelan School District | D123: 0 | F123: 2 | G123: 0 | H123: 1267 | I123: 107 | J123: 109 | K123: 109 | L123: 0.08602999211
A124: 5307050 | B124: Lake Quinault School District | D124: 0 | F124: 2 | G124: 0 | H124: 172 | I124: 15 | J124: 17 | K124: 17 | L124: 0.0988372093
A125: 5304200 | B125: Lake Stevens School District | D125: 0 | F125: 19 | G125: 0 | H125: 10407 | I125: 649 | J125: 668 | K125: 668 | L125: 0.06418756606
A126: 5304230 | B126: Lake Washington School District | D126: 0 | F126: 26 | G126: 0 | H126: 36176 | I126: 1461 | J126: 1487 | K126: 1487 | L126: 0.04110459973
A127: 5304260 | B127: Lakewood School District | D127: 0 | F127: 4 | G127: 0 | H127: 2681 | I127: 291 | J127: 295 | K127: 295 | L127: 0.1100335696
A128: 5304290 | B128: Lamont School District | D128: 0 | F128: 0 | G128: 0 | H128: 28 | I128: 7 | J128: 7 | K128: 7 | L128: 0.25
A129: 5304380 | B129: Liberty School District | D129: 0 | F129: 1 | G129: 0 | H129: 830 | I129: 37 | J129: 38 | K129: 38 | L129: 0.04578313253
A130: 5304410 | B130: Lind School District | D130: 0 | F130: 0 | G130: 0 | H130: 303 | I130: 51 | J130: 51 | K130: 51 | L130: 0.1683168317
A131: 5304470 | B131: Longview Public Schools | D131: 0 | F131: 26 | G131: 0 | H131: 7315 | I131: 1118 | J131: 1144 | K131: 1144 | L131: 0.1563909774
A132: 5304500 | B132: Loon Lake School District | D132: 0 | F132: 2 | G132: 0 | H132: 255 | I132: 41 | J132: 43 | K132: 43 | L132: 0.168627451
A133: 5304530 | B133: Lopez School District | D133: 0 | F133: 0 | G133: 0 | H133: 276 | I133: 40 | J133: 40 | K133: 40 | L133: 0.1449275362
A134: 5304550 | B134: Lumen High School | C134: 5308250 | D134: 0 | E134: 0 | F134: 0 | G134: 0 | H134: 28.7683404 | I134: 4.776230702 | J134: 4.776230702 | K134: 0 | L134: 0.1660238525
A135: 5304590 | B135: Lyle School District | D135: 0 | F135: 1 | G135: 0 | H135: 418 | I135: 70 | J135: 71 | K135: 71 | L135: 0.1698564593
A136: 5304620 | B136: Lynden School District | D136: 0 | F136: 1 | G136: 0 | H136: 4311 | I136: 263 | J136: 264 | K136: 264 | L136: 0.06123869172
A137: 5304650 | B137: Mabton School District | D137: 0 | F137: 2 | G137: 0 | H137: 765 | I137: 101 | J137: 103 | K137: 103 | L137: 0.1346405229
A138: 5304710 | B138: Mansfield School District | D138: 0 | F138: 0 | G138: 0 | H138: 85 | I138: 8 | J138: 8 | K138: 8 | L138: 0.09411764706
A139: 5304740 | B139: Manson School District | D139: 0 | F139: 1 | G139: 0 | H139: 626 | I139: 72 | J139: 73 | K139: 73 | L139: 0.1166134185
A140: 5304800 | B140: Mary M. Knight School District | D140: 0 | F140: 0 | G140: 0 | H140: 210 | I140: 27 | J140: 27 | K140: 27 | L140: 0.1285714286
A141: 5304830 | B141: Mary Walker School District | D141: 0 | F141: 14 | G141: 0 | H141: 639 | I141: 132 | J141: 146 | K141: 146 | L141: 0.2284820031
A142: 5304860 | B142: Marysville School District | D142: 0 | F142: 24 | G142: 0 | H142: 12728 | I142: 1382 | J142: 1406 | K142: 1406 | L142: 0.1104651163
A143: 5304890 | B143: McCleary School District | D143: 0 | F143: 3 | G143: 0 | H143: 567 | I143: 36 | J143: 39 | K143: 39 | L143: 0.06878306878
A144: 5304920 | B144: Mead School District | D144: 0 | F144: 25 | G144: 0 | H144: 12063 | I144: 736 | J144: 761 | K144: 761 | L144: 0.06308546796
A145: 5304950 | B145: Medical Lake School District | D145: 0 | F145: 3 | G145: 0 | H145: 1808 | I145: 125 | J145: 128 | K145: 128 | L145: 0.07079646018
A146: 5304980 | B146: Mercer Island School District | D146: 0 | F146: 2 | G146: 0 | H146: 4956 | I146: 135 | J146: 137 | K146: 137 | L146: 0.02764326069
A147: 5305010 | B147: Meridian School District | D147: 0 | F147: 5 | G147: 0 | H147: 1690 | I147: 153 | J147: 158 | K147: 158 | L147: 0.09349112426
A148: 5305020 | B148: Methow Valley School District | D148: 0 | F148: 0 | G148: 0 | H148: 833 | I148: 103 | J148: 103 | K148: 103 | L148: 0.1236494598
A149: 5305040 | B149: Mill A School District | D149: 0 | F149: 0 | G149: 0 | H149: 71 | I149: 9 | J149: 9 | K149: 9 | L149: 0.1267605634
A150: 5305130 | B150: Monroe School District | D150: 0 | F150: 7 | G150: 0 | H150: 6745 | I150: 406 | J150: 413 | K150: 413 | L150: 0.06123054114
A151: 5305160 | B151: Montesano School District | D151: 0 | F151: 7 | G151: 0 | H151: 1321 | I151: 97 | J151: 104 | K151: 104 | L151: 0.07872823618
A152: 5305190 | B152: Morton School District | D152: 0 | F152: 0 | G152: 0 | H152: 342 | I152: 32 | J152: 32 | K152: 32 | L152: 0.09356725146
A153: 5305220 | B153: Moses Lake School District | D153: 0 | F153: 50 | G153: 0 | H153: 9724 | I153: 1960 | J153: 2010 | K153: 2010 | L153: 0.2067050596
A154: 5305250 | B154: Mossyrock School District | D154: 0 | F154: 2 | G154: 0 | H154: 718 | I154: 77 | J154: 79 | K154: 79 | L154: 0.1100278552
A155: 5305280 | B155: Mount Adams School District | D155: 0 | F155: 9 | G155: 0 | H155: 992 | I155: 126 | J155: 135 | K155: 135 | L155: 0.1360887097
A156: 5305310 | B156: Mount Baker School District | D156: 0 | F156: 6 | G156: 0 | H156: 2412 | I156: 175 | J156: 181 | K156: 181 | L156: 0.07504145937
A157: 5305340 | B157: Mount Pleasant School District | D157: 0 | F157: 0 | G157: 0 | H157: 39 | I157: 5 | J157: 5 | K157: 5 | L157: 0.1282051282
A158: 5305400 | B158: Mount Vernon School District | D158: 0 | F158: 15 | G158: 0 | H158: 6746 | I158: 759 | J158: 774 | K158: 774 | L158: 0.1147346576
A159: 5305430 | B159: Mukilteo School District | D159: 0 | F159: 13 | G159: 0 | H159: 17182 | I159: 2358 | J159: 2371 | K159: 2371 | L159: 0.1379932487
A160: 5305460 | B160: Naches Valley School District | D160: 0 | F160: 0 | G160: 0 | H160: 1603 | I160: 189 | J160: 189 | K160: 189 | L160: 0.1179039301
A161: 5305490 | B161: Napavine School District | D161: 0 | F161: 2 | G161: 0 | H161: 796 | I161: 83 | J161: 85 | K161: 85 | L161: 0.1067839196
A162: 5305520 | B162: Naselle-Grays River Valley School District | D162: 0 | F162: 1 | G162: 0 | H162: 325 | I162: 40 | J162: 41 | K162: 41 | L162: 0.1261538462
A163: 5305550 | B163: Nespelem School District | D163: 0 | F163: 0 | G163: 0 | H163: 245 | I163: 77 | J163: 77 | K163: 77 | L163: 0.3142857143
A164: 5305610 | B164: Newport School District | D164: 0 | F164: 10 | G164: 0 | H164: 1443 | I164: 237 | J164: 247 | K164: 247 | L164: 0.1711711712
A165: 5305640 | B165: Nine Mile Falls School District | D165: 0 | F165: 5 | G165: 0 | H165: 1564 | I165: 130 | J165: 135 | K165: 135 | L165: 0.08631713555
A166: 5305670 | B166: Nooksack Valley School District | D166: 0 | F166: 6 | G166: 0 | H166: 2189 | I166: 165 | J166: 171 | K166: 171 | L166: 0.07811786204
A167: 5305700 | B167: North Beach School District | D167: 0 | F167: 4 | G167: 0 | H167: 698 | I167: 135 | J167: 139 | K167: 139 | L167: 0.1991404011
A168: 5305730 | B168: North Franklin School District | D168: 0 | F168: 0 | G168: 0 | H168: 2196 | I168: 238 | J168: 238 | K168: 238 | L168: 0.1083788707
A169: 5305760 | B169: North Kitsap School District | D169: 0 | F169: 11 | G169: 0 | H169: 7200 | I169: 535 | J169: 546 | K169: 546 | L169: 0.07583333333
A170: 5305790 | B170: North Mason School District | D170: 0 | F170: 6 | G170: 0 | H170: 2512 | I170: 358 | J170: 364 | K170: 364 | L170: 0.1449044586
A171: 5305820 | B171: North River School District | D171: 0 | F171: 0 | G171: 0 | H171: 50 | I171: 8 | J171: 8 | K171: 8 | L171: 0.16
A172: 5305850 | B172: North Thurston Public Schools | D172: 0 | F172: 37 | G172: 0 | H172: 17086 | I172: 1425 | J172: 1462 | K172: 1462 | L172: 0.08556713098
A173: 5305880 | B173: Northport School District | D173: 0 | F173: 0 | G173: 0 | H173: 225 | I173: 59 | J173: 59 | K173: 59 | L173: 0.2622222222
A174: 5305910 | B174: Northshore School District | D174: 0 | F174: 22 | G174: 0 | H174: 26639 | I174: 1036 | J174: 1058 | K174: 1058 | L174: 0.03971620556
A175: 5305940 | B175: Oak Harbor School District | D175: 0 | F175: 0 | G175: 0 | H175: 5959 | I175: 525 | J175: 525 | K175: 525 | L175: 0.08810203054
A176: 5305970 | B176: Oakesdale School District | D176: 0 | F176: 2 | G176: 0 | H176: 131 | I176: 9 | J176: 11 | K176: 11 | L176: 0.08396946565
A177: 5306000 | B177: Oakville School District | D177: 0 | F177: 2 | G177: 0 | H177: 446 | I177: 51 | J177: 53 | K177: 53 | L177: 0.1188340807
A178: 5306060 | B178: Ocean Beach School District | D178: 0 | F178: 6 | G178: 0 | H178: 977 | I178: 153 | J178: 159 | K178: 159 | L178: 0.1627430911
A179: 5306090 | B179: Ocosta School District | D179: 0 | F179: 3 | G179: 0 | H179: 648 | I179: 110 | J179: 113 | K179: 113 | L179: 0.174382716
A180: 5306120 | B180: Odessa School District | D180: 0 | F180: 0 | G180: 0 | H180: 308 | I180: 38 | J180: 38 | K180: 38 | L180: 0.1233766234
A181: 5306150 | B181: Okanogan School District | D181: 0 | F181: 7 | G181: 0 | H181: 945 | I181: 159 | J181: 166 | K181: 166 | L181: 0.1756613757
A182: 5306180 | B182: Olympia School District | D182: 0 | F182: 22 | G182: 0 | H182: 10439 | I182: 785 | J182: 807 | K182: 807 | L182: 0.07730625539
A183: 5306220 | B183: Omak School District | D183: 0 | F183: 7 | G183: 0 | H183: 1871 | I183: 341 | J183: 348 | K183: 348 | L183: 0.1859967932
A184: 5306240 | B184: Onalaska School District | D184: 0 | F184: 7 | G184: 0 | H184: 959 | I184: 93 | J184: 100 | K184: 100 | L184: 0.1042752868
A185: 5306270 | B185: Onion Creek School District | D185: 0 | F185: 0 | G185: 0 | H185: 62 | I185: 18 | J185: 18 | K185: 18 | L185: 0.2903225806
A186: 5306300 | B186: Orcas Island School District | D186: 0 | F186: 0 | G186: 0 | H186: 566 | I186: 70 | J186: 70 | K186: 70 | L186: 0.1236749117
A187: 5306330 | B187: Orchard Prairie School District | D187: 0 | F187: 0 | G187: 0 | H187: 177 | I187: 9 | J187: 9 | K187: 9 | L187: 0.05084745763
A188: 5306360 | B188: Orient School District | D188: 0 | F188: 0 | G188: 0 | H188: 129 | I188: 22 | J188: 22 | K188: 22 | L188: 0.1705426357
A189: 5306390 | B189: Orondo School District | D189: 0 | F189: 0 | G189: 0 | H189: 260 | I189: 16 | J189: 16 | K189: 16 | L189: 0.06153846154
A190: 5306420 | B190: Oroville School District | D190: 0 | F190: 2 | G190: 0 | H190: 689 | I190: 134 | J190: 136 | K190: 136 | L190: 0.1973875181
A191: 5306450 | B191: Orting School District | D191: 0 | F191: 10 | G191: 0 | H191: 3277 | I191: 202 | J191: 212 | K191: 212 | L191: 0.06469331706
A192: 5306480 | B192: Othello School District | D192: 0 | F192: 11 | G192: 0 | H192: 4557 | I192: 911 | J192: 922 | K192: 922 | L192: 0.2023260917
A193: 5306510 | B193: Palisades School District | D193: 0 | F193: 0 | G193: 0 | H193: 46 | I193: 4 | J193: 4 | K193: 4 | L193: 0.08695652174
A194: 5306540 | B194: Palouse School District | D194: 0 | F194: 0 | G194: 0 | H194: 247 | I194: 14 | J194: 14 | K194: 14 | L194: 0.05668016194
A195: 5399999 | B195: PART D SUBPART 2 | D195: 0 | E195: 785 | F195: 0 | G195: 0 | H195: 785 | I195: 0 | J195: 785 | K195: 785 | L195: 1
A196: 5306570 | B196: Pasco School District | D196: 0 | F196: 51 | G196: 0 | H196: 20277 | I196: 3545 | J196: 3596 | K196: 3596 | L196: 0.1773437885
A197: 5306600 | B197: Pateros School District | D197: 0 | F197: 0 | G197: 0 | H197: 286 | I197: 60 | J197: 60 | K197: 60 | L197: 0.2097902098
A198: 5306630 | B198: Paterson School District | D198: 0 | F198: 0 | G198: 0 | H198: 89 | I198: 4 | J198: 4 | K198: 4 | L198: 0.04494382022
